Workbook

Sheet KALKULATOR podpor
AG2: POMOČ PRI KODAH
AG3: HE0 | AH3: hidroelektrarne
AG4: VE0 | AH4: vetrne elektrarne
A5: Inačica: 3.1.2023; PRAVNO POJASNILO: | AG5: SE1 | AH5: sončne elektrarne - na stavbah
A6: Izračun je izključno informativne narave. Borzen, d.o.o. ne prevzema nobenih garancij o točnosti izračunov. | AG6: SE2 | AH6: sončne elektrarne - ostale
A7: Vsi uporabniki vso objavljeno vsebino uporabljajo izključno na lastno odgovornost. | AG7: GT0 | AH7: geotermalne elektrarne
AG8: LB1 | AH8: elektrarne na lesno biomaso
B9: VPIŠI KODO | D9: =IF(LEFT(C9,2)="se",D10,C9) -> 0 | E9: =SEARCH("SE1",$C$9) ->  | F9: =SEARCH("SE",$C$9) ->  | AG9: LB2 | AH9: sosežig nad 5% do 90%
B10: Izračun podpore za leto: | D10: =IF(C14>2008,D13,CONCATENATE(C9,"-2009")) -> -2009 | E10: =SEARCH("GT",$C$9) ->  | F10: =SEARCH("BP",$C$9) ->  | G10: =SEARCH("ČN",$C$9) ->  | H10: =SEARCH("OP",$C$9) ->  | I10: =SEARCH("BO",$C$9) -> 
B11: Vpiši odbitke v EUR/MWh | E11: =SEARCH("LB1",$C$9) ->  | F11: =SEARCH("LB2",$C$9) ->  | G11: =SEARCH("SL",$C$9) ->  | AG11: BP1 | AH11: bioplin iz biomase
B12: (odbitki zaradi subvencij / obnov) | AG12: BP2 | AH12: bioplin iz odpadkov
B13: =IF(ISERROR(E9),"",IF(C14=2012,"","Integrirana (do2011) ali PX3 bonus (od dec2012 - max 5kW)? (1-DA, 0-NE)")) ->  | D13: =CONCATENATE(C9,"-",C14) -> - | E13: =IF(C10=2011,3,0) -> 0 | F13: =IF(C10=2011,2,0) -> 0 | AG13: ČN0 | AH13: bioplin iz čistilnih naprav
B14: =IF(ISERROR(F9),"","RSEE 2009 / 2010 / 2011 / 2012H1 / 2012H2 / 2012dec / 2013mmm / 2014mmm ") ->  | AG14: OP0 | AH14: odlagališčni plin
B15: =IF(OR(ISNUMBER(E10),ISNUMBER(F10),ISNUMBER(G10),ISNUMBER(H10),ISNUMBER(I10)),"Vpiši dodatek na OP v %","") ->  | D15: napake | E15: =IF(ISNUMBER(C10),OR(C10>2023,C10<2009)) -> FALSE | F15: =IF(ISBLANK(C9),0,ISERROR(C24)) -> 0 | G15: =IF(AND(ISNUMBER(C14),C14>C10),1,0) -> 0 | H15: =E15+F15+G15 -> 0 | AG15: BO0 | AH15: biološko razgradljivi odpadki
B16: =IF(OR(ISNUMBER(E11),ISNUMBER(F11),ISNUMBER(G11)),"Vpiši dodatek/odbitek za LB na SDRS v %","") ->  | AG16: SL1 | AH16: SPTE na lesno biomaso do 4000 OU
B17: =IF(ISERROR(F10),"","Ali ima 70% RSEE (1-DA)?") ->  | F17: =IS ->  | AG17: SL2 | AH17: SPTE na lesno biomaso nad 4000 OU
F18: leta | AG18: SF1 | AH18: SPTE na fosilna goriva do 4000 OU
B19: Tip | C19: =VLOOKUP($D$9,'Izračuni 2009-2023'!$A$2:$CJ$321,2,FALSE) ->  | F19: 2009 | AG19: SF2 | AH19: SPTE na fosilna goriva nad 4000 OU
B20: Velikost | C20: =VLOOKUP($D$9,'Izračuni 2009-2023'!$A$2:$CJ$321,4,FALSE) ->  | F20: 2010
B21: Faktor B | C21: =VLOOKUP($D$9,'Izračuni 2009-2023'!$A$2:$CJ$321,53,FALSE) ->  | F21: 2011 | AG21: Velikostni razredi OVE
B22: Pripomba - skladnost Uredba? | C22: =VLOOKUP($D$9,'Izračuni 2009-2023'!$A$2:$CJ$321,43,FALSE) ->  | F22: 2012 | AG22: 1 | AH22: mikro - manjše od 50kW
F23: 2013 | AG23: 2 | AH23: mala - manjše od 1MW
A24: za skupino | B24: NDRS brez odbitkov / dodatkov | C24: =VLOOKUP($D$9,'Izračuni 2009-2023'!$A$2:$CJ$321,D32,FALSE) ->  | F24: 2014 | I24: =C33/C24 ->  | V24: NAVODILA | AG24: 3 | AH24: srednja - od 1MW do vključno 10MW
B25: SDRS brez odbitkov / dodatkov | C25: =VLOOKUP($D$9,'Izračuni 2009-2023'!$A$2:$CJ$321,D33,FALSE) ->  | F25: 2015 | V25: 1. V celico C9 vpiši kodo (glej pomoč pri strani) | AG25: 4 | AH25: velika - nad 10MW do vključno 125MW
B26: Skupni brez odbitkov / dodatkov | C26: =VLOOKUP($D$9,'Izračuni 2009-2023'!$A$2:$CJ$321,D34,FALSE) ->  | F26: 2016 | V26: 2. V C10 pa leto za izračun
B27: =IF(C25>0,"SDRS(0) - 2009 po uredbi","") ->  | C27: =IF(C25>0,VLOOKUP($D$9,'Izračuni 2009-2023'!$A$2:$CJ$321,7,FALSE),"") ->  | F27: 2017 | V27: 2. V roza obarvane celice vpiši podatek, če zahtevan | AG27: Velikostni razredi SPTE
B28: Splošni ZO v EUR/MWh | C28: =VLOOKUP($D$9,'Izračuni 2009-2023'!$A$2:$CJ$321,D35,FALSE) ->  | F28: 2018 | V28: 3. Gumb RESET počisti obrazec | AG28: 1 | AH28: mikro - manjše od 50kW
B29: Splošni OP v EUR/MWh | C29: =VLOOKUP($D$9,'Izračuni 2009-2023'!$A$2:$CJ$321,D36,FALSE) ->  | F29: 2019 | V29: 4. Pomoč za dodatke lesna biomasa desno spodaj | AG29: 2 | AH29: mala - manjše od 1MW
F30: 2020 | V30: Podpore SF so v primeru spremembe cene plina za | AG30: 3 | AH30: srednja - nižja - od 1MW do vključno 5MW
F31: 2021 | V31: drugo polovico leta! | AG31: 4 | AH31: srednja - višja - nad 5MW do vključno 25MW
A32: za konkretno enoto | B32: Veljavni NDRS | C32: =IF(ISNUMBER(C24),ROUND(C24+C13*(IF(C14<2012,0.15,0.05))*C24,2)-ROUND(ABS(C11),2),"") ->  | D32: =HLOOKUP($C$10,$F$37:$T$43,2,FALSE) ->  | F32: 2022 | U32: z upoštevanimi dodatki (INT) in odbitki | AG32: 5 | AH32: velika - nižja - nad 25MW do vključno 50MW
B33: od tega kot dodatek za INT ali PX3 | C33: =IF(ISNUMBER(C24),ROUND(C13*(IF(C14<2012,0.15,0.05))*C24,2),"") ->  | D33: =HLOOKUP($C$10,$F$37:$T$43,3,FALSE) ->  | F33: 2023 | AG33: 6 | AH33: velika - višja - nad 50MW do 200MW
B34: Veljavni SDRS | C34: =IF(AND(C17=1,ISNUMBER(C25)),ROUND(C17*0.7*C25,2),IF(ISNUMBER(C25),ROUND(C25+C16/100*C25,2),"")) ->  | D34: =HLOOKUP($C$10,$F$37:$T$43,4,FALSE) ->  | U34: z upoštevanimi dodatki / odbitki (LB)
B35: od tega kot dodatek | C35: =IF(ISNUMBER(C25),ROUND(C16/100*C25,2),"") ->  | D35: =HLOOKUP($C$10,$F$37:$T$43,5,FALSE) -> 
B36: Skupni veljavni | C36: =IF(ISNUMBER(C26),C32+C34,"") ->  | D36: =HLOOKUP($C$10,$F$37:$T$43,6,FALSE) ->  | G36: številke stolpcev za NDRS/SDRS/skupni/ZO/OP | AG36: POMOČ ZA IZRAČUN DODATKOV ZA LESNO BIOMASO
D37: =HLOOKUP($C$10,$F$37:$T$43,7,FALSE) ->  | F37: 2009 | G37: 2010 | H37: 2011 | I37: 2012 | J37: 2013 | K37: 2014 | L37: 2015 | M37: 2016 | N37: 2017 | O37: 2018 | P37: 2019 | Q37: 2020 | R37: 2021 | S37: 2022 | T37: 2023 | AG37: Tip biomase | AH37: SDRS | AI37: Delež v %
B38: ZO v EUR/MWh | C38: =IF(ISNUMBER(C28),ROUND(C36,5),C28) ->  | E38: ndrs | F38: 6 | G38: 11 | H38: 14 | I38: 17 | J38: 20 | K38: 23 | L38: 26 | M38: 29 | N38: 32 | O38: 35 | P38: 38 | Q38: 41 | R38: 44 | S38: 47 | T38: 50 | U38: brez morebitnih dodatkov vezanih na OP | AG38: A1 s certifikati | AH38: 0.1
B39: OP v EUR/MWh | C39: =IF(ISNUMBER(C29),IF(ISNUMBER(C21),ROUND((C36-C21*D37),2),C29),C29) ->  | E39: sdrs | F39: 7 | G39: 12 | H39: 15 | I39: 18 | J39: 21 | K39: 24 | L39: 27 | M39: 30 | N39: 33 | O39: 36 | P39: 39 | Q39: 42 | R39: 45 | S39: 48 | T39: 51 | U39: brez morebitnih dodatkov vezanih na OP | AG39: A1 | AH39: 0
B40: dodatek vezan na OP v EUR/MWh | C40: =IF(ISNUMBER(C39),ROUND(C15/100*C29,2),"") ->  | E40: skupni | F40: 9 | G40: 13 | H40: 16 | I40: 19 | J40: 22 | K40: 25 | L40: 28 | M40: 31 | N40: 34 | O40: 37 | P40: 40 | Q40: 43 | R40: 46 | S40: 49 | T40: 52 | AG40: A2 | AH40: -0.1
E41: zo | F41: 54 | G41: 60 | H41: 62 | I41: 64 | J41: 66 | K41: 68 | L41: 70 | M41: 72 | N41: 74 | O41: 76 | P41: 78 | Q41: 80 | R41: 82 | S41: 84 | T41: 86 | AG41: A3 | AH41: -0.35
B42: Končni ZO v EUR/kWh | C42: =IF(ISNUMBER(C38),IF(ISNUMBER(C40),(ROUND((C38+C40)/1000,5)),(ROUND((C38)/1000,5))),C38) ->  | E42: op | F42: 57 | G42: 61 | H42: 63 | I42: 65 | J42: 67 | K42: 69 | L42: 71 | M42: 73 | N42: 75 | O42: 77 | P42: 79 | Q42: 81 | R42: 83 | S42: 85 | T42: 87 | U42: za leto | AG42: Tehtana sprememba SDRS | AI42: =IF(SUM(AI38:AI41)=100,(AI38*AH38/100)+(AI39*AH39/100)+(AI40*AH40/100)+(AI41*AH41/100),"napaka v deležih!") -> napaka v deležih!
B43: Končni OP v EUR/kWh | C43: =IF(ISNUMBER(C39),IF(ISNUMBER(C40),(ROUND((C39+C40)/1000,5)),(ROUND((C39)/1000,5))),C39) ->  | E43: tržna cena | F43: ='Izračuni 2009-2023'!$S$326 -> 65 | G43: ='Izračuni 2009-2023'!$R$326 -> 53.41 | H43: ='Izračuni 2009-2023'!$Q$326 -> 53.13 | I43: ='Izračuni 2009-2023'!$P$326 -> 55.79 | J43: 50.66 | K43: 43.31 | L43: 39.65 | M43: 36.89 | N43: 41.94 | O43: 42.3 | P43: 64.01 | Q43: 60.5 | R43: 48.04 | S43: ='Izračuni 2009-2023'!F326 -> 120.67 | T43: ='Izračuni 2009-2023'!E326 -> 180 | U43: =C10 -> 0 | V43: =IF(C17=1,"Pozor, bioplinarna z znižanimi SDRS!","") ->  | AI43: (vnos v C16 v odstotkih, brez znaka "%")
B44: =IF(H15>0,"Napaka v vnosnih poljih!","") -> 
B45: =IF(AND(C14=2012,C13=1),"Napaka - v 2012 ni več dodatka INT!","") -> 

Sheet Pojasnila (hidden)
A1: Za pravilno delovanje kalkulatorja mora biti omogočeno delovanje makrojev!
A3: TEMA | B3: POJASNILO
A4: VPIŠI KODO | B4: Kode so sestavljene na naslednji način: prva dva znaka določata tip naprave, sledi številka glede podvrste in zadnja številka, ki določa velikostni razred.
B5: Ta se razlikuje med OVE (4 razredi) in SPTE (6 razredov)
B6: Primer: SE21 … sončne elekrtrarne (SE), ostale (2), mikro do 50kW (1) = SE21
A7: Vpiši odbitke v EUR/MWh | B7: Odbitki kot bi bili določeni na odločbi Agencije za energijo (v EUR/MWh), na primer zaradi subvencij ali pri vstopu obnovljenih naprav, kjer je delež pod 100%
A8: Integrirana (do2011) ali PX3 bonus (od dec2012 - max 5kW)? (1-DA, 0-NE) | B8: Ali gre za integrirano sončno elektrarno (relevantno le za postavitve do leta 2011) oziroma ali ima dodatek na notranji priklop
B9: (relevantno le za postavitve od decembra 2012 dalje, ter moči do 5kW)
A10: RSEE 2009 / 2010 / 2011 / 2012H1 / 2012H2 / 2012dec / 2013mmm / 2014mmm | B10: Leto oziroma mesec priznanih referenčnih stroškov oziroma obdobje postavitve / priklopa elektrarne (npr. 2009, 2013feb, 2012dec)
A11: Vpiši dodatek na OP v % | B11: Dodatek na obratovalno podporo v % - denimo zaradi koristne rabe toplote, rabe gnojevke (primer: 10)
A12: Vpiši dodatek/odbitek za LB na SDRS v % | B12: Dodatek ali odbitek pri spremenljivem delu stroškov (SDRS) vezan na vrsto uporabljene lesne biomase (pomoč desno spodaj od kalkulatorja)
A13: Ali ima 70% RSEE (1-DA)? | B13: Proizvodnim napravam na bioplin, ki za proizvodnjo bioplina uporabljajo substrat, ki vsebuje več kot 25 in manj kot 40 prostorninskih odstotkov zrnja oziroma
B14: silaže prvih posevkov koruze in drugih pravih žit, se določi spremenljivi del referenčnih stroškov v višini 70 %.
A15: NDRS | B15: nespremenljivi del referečnih stroškov
A16: SDRS | B16: spremenljivi del referenčnih stroškov
A17: ZO | B17: zagotovljeni odkup
A18: OP | B18: obratovalna podpora
A19: od tega kot dodatek za INT ali PX3 | B19: del vezan na dodatek za integrirane sončne elektrarne (postavitve do 2011) oz interni priklop (postavitve od dec2012 dalje, do največ 5kW)

Sheet Izračuni 2009-2023 (hidden)
E1: KODA | F1: NDRS 2009 po uredbi | G1: SDRS 2009 po uredbi | H1: Skupni 2009 po uredbi | I1: Skupni 2009 seštevek | J1: Skladnost skupni | K1: NDRS 2010 | L1: SDRS 2010 | M1: Skupni 2010 | N1: NDRS 2011 | O1: SDRS 2011 | P1: Skupni 2011 | Q1: NDRS 2012 | R1: SDRS 2012 | S1: Skupni 2012 | T1: NDRS 2013 | U1: SDRS 2013 | V1: Skupni 2013 | W1: NDRS 2014 | X1: SDRS 2014 | Y1: Skupni 2014 | Z1: NDRS 2015 | AA1: SDRS 2015 | AB1: Skupni 2015 | AC1: NDRS 2016 | AD1: SDRS 2016 | AE1: Skupni 2016 | AF1: NDRS 2017 | AG1: SDRS 2017 | AH1: Skupni 2017 | AI1: NDRS 2018 | AJ1: SDRS 2018 | AK1: Skupni 2018 | AL1: NDRS 2019 | AM1: SDRS 2019 | AN1: Skupni 2019 | AO1: NDRS 2020 | AP1: SDRS 2020 | AQ1: Skupni 2020 | AR1: NDRS 2021 | AS1: SDRS 2021 | AT1: Skupni 2021 | AU1: NDRS 2022 | AV1: SDRS 2022 | AW1: Skupni 2022 | AX1: NDRS 2023 | AY1: SDRS 2023 | AZ1: Skupni 2023 | BA1: Faktor B po Prilogi III | BB1: Cena ZO 2009 po uredbi | BC1: Cena ZO 2009 izračunana | BD1: Cena ZO 2009 skladna | BE1: Višina OP 2009 po uredbi | BF1: Višina OP 2009 izračunana | BG1: Višina OP 2009 skladna | BH1: Cena ZO 2010 | BI1: Višina OP 2010 | BJ1: Cena ZO 2011 | BK1: Višina OP 2011 | BL1: Cena ZO 2012 | BM1: Višina OP 2012 | BN1: Cena ZO 2013 | BO1: Višina OP 2013 | BP1: Cena ZO 2014 | BQ1: Višina OP 2014 | BR1: Cena ZO 2015 | BS1: Višina OP 2015 | BT1: Cena ZO 2016 | BU1: Višina OP 2016 | BV1: Cena ZO 2017 | BW1: Višina OP 2017 | BX1: Cena ZO 2018 | BY1: Višina OP 2018 | BZ1: Cena ZO 2019 | CA1: Višina OP 2019 | CB1: Cena ZO 2020 | CC1: Višina OP 2020 | CD1: Cena ZO 2021 | CE1: Višina OP 2021 | CF1: Cena ZO 2022 | CG1: Višina OP 2022 | CH1: Cena ZO 2023 | CI1: Višina OP 2023 | CJ1: OPOMBE za kategorijo | CK1: ZO2012 - ZO2011 | CL1: OP2012 - OP2011 | CM1: ZO2013 - ZO2012 | CN1: OP2013 - OP2012 | CO1: ZO2014 - ZO2013 | CP1: OP2014 - OP2013 | CQ1: ZO2015 - ZO2014 | CR1: OP2015 - OP2014 | CS1: ZO2016 - ZO2015 | CT1: OP2016 - OP2015 | CU1: ZO2017 - ZO2016 | CV1: OP2017 - OP2016 | CW1: ZO2018 - ZO2017 | CX1: OP2018 - OP2017 | CY1: ZO2019 - ZO2018 | CZ1: OP2019 - OP2018 | DA1: ZO2020 - ZO2019 | DB1: OP2020 - OP2019 | DC1: ZO2021 - ZO2020 | DD1: OP2021 - OP2020 | DE1: ZO2022 - ZO2021 | DF1: OP2022 - OP2021 | DG1: ZO2023 - ZO2022 | DH1: OP2023 - OP2022
A2: HE01 | B2: 1. Hidroelektrarne | C2: 1. Hidroelektrarne | D2: mikro - manjše od 50kW | E2: HE01 | F2: 105.47 | G2: 0 | H2: 105.47 | I2: =F2+G2 -> 105.47 | J2: =IF(H2=I2,"OK","razlika") -> OK | K2: =F2 -> 105.47 | L2: 0 | M2: =K2+L2 -> 105.47 | N2: =F2 -> 105.47 | O2: 0 | P2: =N2+O2 -> 105.47 | Q2: =F2 -> 105.47 | R2: 0 | S2: =Q2+R2 -> 105.47 | T2: =F2 -> 105.47 | U2: 0 | V2: =T2+U2 -> 105.47 | W2: =F2 -> 105.47 | X2: 0 | Y2: =W2+X2 -> 105.47 | Z2: =+W2 -> 105.47 | AA2: =+X2 -> 0 | AB2: =+Z2+AA2 -> 105.47 | AC2: =+Z2 -> 105.47 | AD2: =+AA2 -> 0 | AE2: =+AC2+AD2 -> 105.47 | AF2: =+AC2 -> 105.47 | AG2: =+AD2 -> 0 | AH2: =+AF2+AG2 -> 105.47 | AI2: =+AF2 -> 105.47 | AJ2: =+AG2 -> 0 | AK2: =+AI2+AJ2 -> 105.47 | AL2: =+AI2 -> 105.47 | AM2: =+AJ2 -> 0 | AN2: =+AL2+AM2 -> 105.47 | AO2: =+AL2 -> 105.47 | AP2: =+AM2 -> 0 | AQ2: =+AO2+AP2 -> 105.47 | AR2: =+AO2 -> 105.47 | AS2: =+AP2 -> 0 | AT2: =+AR2+AS2 -> 105.47 | AU2: =+AR2 -> 105.47 | AV2: =+AS2 -> 0 | AW2: =+AU2+AV2 -> 105.47 | AX2: =+AU2 -> 105.47 | AY2: =+AV2 -> 0 | AZ2: =+AX2+AY2 -> 105.47 | BA2: 0.86 | BB2: 105.47 | BC2: =I2 -> 105.47 | BD2: =IF(BB2=BC2,"OK","razlika") -> OK | BE2: 49.57 | BF2: =ROUND(I2-BA2*$S$326,2) -> 49.57 | BG2: =IF(BE2=BF2,"OK","razlika") -> OK | BH2: =K2+L2 -> 105.47 | BI2: =ROUND((K2+L2)-BA2*$R$326,2) -> 59.54 | BJ2: =N2+O2 -> 105.47 | BK2: =ROUND((N2+O2)-BA2*$Q$326,2) -> 59.78 | BL2: =Q2+R2 -> 105.47 | BM2: =ROUND((Q2+R2)-BA2*$P$326,2) -> 57.49 | BN2: =T2+U2 -> 105.47 | BO2: =ROUND((T2+U2)-BA2*$O$326,2) -> 61.9 | BP2: =W2+X2 -> 105.47 | BQ2: =ROUND((W2+X2)-BA2*$N$326,2) -> 68.22 | BR2: =+Z2+AA2 -> 105.47 | BS2: =ROUND((Z2+AA2)-BA2*$M$326,2) -> 71.37 | BT2: =+AC2+AD2 -> 105.47 | BU2: =ROUND((AC2+AD2)-BA2*$L$326,2) -> 73.74 | BV2: =+AH2 -> 105.47 | BW2: =ROUND(AH2-BA2*$K$326,2) -> 69.4 | BX2: =+AK2 -> 105.47 | BY2: =ROUND(AK2-BA2*$J$326,2) -> 69.09 | BZ2: =+AN2 -> 105.47 | CA2: =ROUND(AN2-BA2*$I$326,2) -> 50.42 | CB2: =+AQ2 -> 105.47 | CC2: =ROUND(AQ2-BA2*$H$326,2) -> 53.44 | CD2: =+AT2 -> 105.47 | CE2: =ROUND(AT2-BA2*$G$326,2) -> 64.16 | CF2: =+AW2 -> 105.47 | CG2: =ROUND(AW2-BA2*$F$326,2) -> 1.69 | CH2: =+AZ2 -> 105.47 | CI2: =ROUND(AZ2-BA2*$E$326,2) -> -49.33 | CK2: =BL2-BJ2 -> 0 | CL2: -2.29 | CM2: 0 | CN2: 4.41 | CO2: 0 | CP2: 6.32 | CQ2: =BR2-BP2 -> 0 | CR2: =BS2-BQ2 -> 3.15 | CS2: =BT2-BR2 -> 0 | CT2: =BU2-BS2 -> 2.37 | CU2: =BV2-BT2 -> 0 | CV2: =BW2-BU2 -> -4.34 | CW2: =BX2-BV2 -> 0 | CX2: =BY2-BW2 -> -0.31 | CY2: =BZ2-BX2 -> 0 | CZ2: =CA2-BY2 -> -18.67 | DA2: =CB2-BZ2 -> 0 | DB2: =CC2-CA2 -> 3.02 | DC2: =CD2-CB2 -> 0 | DD2: =CE2-CC2 -> 10.72 | DE2: =CF2-CD2 -> 0 | DF2: =CG2-CE2 -> -62.47 | DG2: =CH2-CF2 -> 0 | DH2: =CI2-CG2 -> -51.02
A3: HE02 | B3: 1. Hidroelektrarne | D3: mala - manjše od 1MW | E3: HE02 | F3: 92.61 | G3: 0 | H3: 92.61 | I3: 92.61 | J3: =IF(H3=I3,"OK","razlika") -> OK | K3: =F3 -> 92.61 | L3: 0 | M3: =K3+L3 -> 92.61 | N3: 92.61 | O3: 0 | P3: =N3+O3 -> 92.61 | Q3: 92.61 | R3: 0 | S3: =Q3+R3 -> 92.61 | T3: 92.61 | U3: 0 | V3: =T3+U3 -> 92.61 | W3: =F3 -> 92.61 | X3: 0 | Y3: =W3+X3 -> 92.61 | Z3: 92.61 | AA3: 0 | AB3: 92.61 | AC3: =+Z3 -> 92.61 | AD3: =+AA3 -> 0 | AE3: =+AC3+AD3 -> 92.61 | AF3: =+AC3 -> 92.61 | AG3: =+AD3 -> 0 | AH3: =+AF3+AG3 -> 92.61 | AI3: =+AF3 -> 92.61 | AJ3: =+AG3 -> 0 | AK3: =+AI3+AJ3 -> 92.61 | AL3: =+AI3 -> 92.61 | AM3: =+AJ3 -> 0 | AN3: =+AL3+AM3 -> 92.61 | AO3: =+AL3 -> 92.61 | AP3: =+AM3 -> 0 | AQ3: =+AO3+AP3 -> 92.61 | AR3: =+AO3 -> 92.61 | AS3: =+AP3 -> 0 | AT3: =+AR3+AS3 -> 92.61 | AU3: =+AR3 -> 92.61 | AV3: =+AS3 -> 0 | AW3: =+AU3+AV3 -> 92.61 | AX3: =+AU3 -> 92.61 | AY3: =+AV3 -> 0 | AZ3: =+AX3+AY3 -> 92.61 | BA3: 0.86 | BB3: 92.61 | BC3: =I3 -> 92.61 | BD3: =IF(BB3=BC3,"OK","razlika") -> OK | BE3: 36.71 | BF3: 36.71 | BG3: =IF(BE3=BF3,"OK","razlika") -> OK | BH3: =K3+L3 -> 92.61 | BI3: 46.68 | BJ3: =N3+O3 -> 92.61 | BK3: 46.92 | BL3: =Q3+R3 -> 92.61 | BM3: 44.63 | BN3: =T3+U3 -> 92.61 | BO3: 49.04 | BP3: =W3+X3 -> 92.61 | BQ3: 55.36 | BR3: =+Z3+AA3 -> 92.61 | BS3: 58.51 | BT3: =+AC3+AD3 -> 92.61 | BU3: 60.88 | BV3: =+AH3 -> 92.61 | BW3: 56.54 | BX3: =+AK3 -> 92.61 | BY3: 56.23 | BZ3: =+AN3 -> 92.61 | CA3: 37.56 | CB3: =+AQ3 -> 92.61 | CC3: 40.58 | CD3: =+AT3 -> 92.61 | CE3: 51.3 | CF3: =+AW3 -> 92.61 | CG3: -11.17 | CH3: =+AZ3 -> 92.61 | CI3: =ROUND(AZ3-BA3*$E$326,2) -> -62.19 | CK3: =BL3-BJ3 -> 0 | CL3: =BM3-BK3 -> -2.29 | CM3: =BN3-BL3 -> 0 | CN3: =BO3-BM3 -> 4.41 | CO3: =BP3-BN3 -> 0 | CP3: =BQ3-BO3 -> 6.32 | CQ3: =BR3-BP3 -> 0 | CR3: =BS3-BQ3 -> 3.15 | CS3: 0 | CT3: 2.37 | CU3: 0 | CV3: -4.34 | CW3: 0 | CX3: -0.31 | CY3: =BZ3-BX3 -> 0 | CZ3: -18.67 | DA3: =CB3-BZ3 -> 0 | DB3: 3.02 | DC3: =CD3-CB3 -> 0 | DD3: 10.72 | DE3: =CF3-CD3 -> 0 | DF3: -62.47 | DG3: =CH3-CF3 -> 0 | DH3: -51.02
A4: HE03 | B4: 1. Hidroelektrarne | D4: srednja - od 1MW do vključno 10MW | E4: HE03 | F4: 82.34 | G4: 0 | H4: 82.34 | I4: 82.34 | J4: OK | K4: 82.34 | L4: 0 | M4: 82.34 | N4: 82.34 | O4: 0 | P4: 82.34 | Q4: 82.34 | R4: 0 | S4: 82.34 | T4: 82.34 | U4: 0 | V4: 82.34 | W4: 82.34 | X4: 0 | Y4: 82.34 | Z4: 82.34 | AA4: 0 | AB4: 82.34 | AC4: 82.34 | AD4: 0 | AE4: 82.34 | AF4: 82.34 | AG4: 0 | AH4: 82.34 | AI4: 82.34 | AJ4: 0 | AK4: 82.34 | AL4: 82.34 | AM4: 0 | AN4: 82.34 | AO4: 82.34 | AP4: 0 | AQ4: 82.34 | AR4: 82.34 | AS4: 0 | AT4: 82.34 | AU4: 82.34 | AV4: 0 | AW4: 82.34 | AX4: 82.34 | AY4: 0 | AZ4: 82.34 | BA4: 0.9 | BB4: 82.34 | BC4: =I4 -> 82.34 | BD4: OK | BE4: 23.84 | BF4: 23.84 | BG4: OK | BH4: =K4+L4 -> 82.34 | BI4: 34.27 | BJ4: =N4+O4 -> 82.34 | BK4: 34.52 | BL4: =Q4+R4 -> 82.34 | BM4: 32.13 | BN4: =T4+U4 -> 82.34 | BO4: 36.75 | BP4: =W4+X4 -> 82.34 | BQ4: 43.36 | BR4: =+Z4+AA4 -> 82.34 | BS4: 46.66 | BT4: =+AC4+AD4 -> 82.34 | BU4: 49.14 | BV4: =+AH4 -> 82.34 | BW4: 44.59 | BX4: =+AK4 -> 82.34 | BY4: 44.27 | BZ4: =+AN4 -> 82.34 | CA4: 24.73 | CB4: =+AQ4 -> 82.34 | CC4: 27.89 | CD4: =+AT4 -> 82.34 | CE4: 39.1 | CF4: =+AW4 -> 82.34 | CG4: -26.26 | CH4: 82.34 | CI4: -79.66 | CK4: 0 | CL4: -2.39 | CM4: 0 | CN4: 4.62 | CO4: 0 | CP4: 6.61 | CQ4: 0 | CR4: 3.3 | CS4: 0 | CT4: 2.48 | CU4: 0 | CV4: -4.55 | CW4: 0 | CX4: -0.32 | CY4: 0 | CZ4: -19.54 | DA4: 0 | DB4: 3.16 | DC4: 0 | DD4: 11.21 | DE4: 0 | DF4: -65.36 | DG4: 0 | DH4: -53.4
A5: HE04 | B5: 1. Hidroelektrarne | D5: velika - nad 10MW do vključno 125MW | E5: HE04 | F5: 76.57 | G5: 0 | H5: 76.57 | I5: 76.57 | J5: OK | K5: 76.57 | L5: 0 | M5: 76.57 | N5: 76.57 | O5: 0 | P5: 76.57 | Q5: 76.57 | R5: 0 | S5: 76.57 | T5: 76.57 | U5: 0 | V5: 76.57 | W5: 76.57 | X5: 0 | Y5: 76.57 | Z5: 76.57 | AA5: 0 | AB5: 76.57 | AC5: 76.57 | AD5: 0 | AE5: 76.57 | AF5: 76.57 | AG5: 0 | AH5: 76.57 | AI5: 76.57 | AJ5: 0 | AK5: 76.57 | AL5: 76.57 | AM5: 0 | AN5: 76.57 | AO5: 76.57 | AP5: 0 | AQ5: 76.57 | AR5: 76.57 | AS5: 0 | AT5: 76.57 | AU5: 76.57 | AV5: 0 | AW5: 76.57 | AX5: 76.57 | AY5: 0 | AZ5: 76.57 | BA5: 0.9 | BB5: (ni ZO) | BC5: (ni ZO) | BD5: OK | BE5: 18.07 | BF5: 18.07 | BG5: OK | BH5: (ni ZO) | BI5: 28.5 | BJ5: (ni ZO) | BK5: 28.75 | BL5: (ni ZO) | BM5: 26.36 | BN5: (ni ZO) | BO5: 30.98 | BP5: (ni ZO) | BQ5: 37.59 | BR5: (ni ZO) | BS5: 40.89 | BT5: (ni ZO) | BU5: 43.37 | BV5: (ni ZO) | BW5: 38.82 | BX5: (ni ZO) | BY5: 38.5 | BZ5: (ni ZO) | CA5: 18.96 | CB5: (ni ZO) | CC5: 22.12 | CD5: (ni ZO) | CE5: 33.33 | CF5: (ni ZO) | CG5: -32.03 | CH5: (ni ZO) | CI5: =ROUND(AZ5-BA5*$E$326,2) -> -85.43 | CK5: (ni ZO) | CL5: -2.39 | CM5: (ni ZO) | CN5: 4.62 | CO5: (ni ZO) | CP5: 6.61 | CQ5: (ni ZO) | CR5: 3.3 | CS5: (ni ZO) | CT5: 2.48 | CU5: (ni ZO) | CV5: -4.55 | CW5: (ni ZO) | CX5: -0.32 | CY5: (ni ZO) | CZ5: -19.54 | DA5: (ni ZO) | DB5: 3.16 | DC5: (ni ZO) | DD5: 11.21 | DE5: (ni ZO) | DF5: -65.36 | DG5: (ni ZO) | DH5: -53.4
A6: VE01 | B6: 2. Vetrne elektrarne | C6: 2. Vetrne elektrarne | D6: mikro - manjše od 50kW | E6: VE01 | F6: 95.38 | G6: 0 | H6: 95.38 | I6: 95.38 | J6: OK | K6: 95.38 | L6: 0 | M6: 95.38 | N6: 95.38 | O6: 0 | P6: 95.38 | Q6: 95.38 | R6: 0 | S6: 95.38 | T6: 95.38 | U6: 0 | V6: 95.38 | W6: 95.38 | X6: 0 | Y6: 95.38 | Z6: 95.38 | AA6: 0 | AB6: 95.38 | AC6: 95.38 | AD6: 0 | AE6: 95.38 | AF6: 95.38 | AG6: 0 | AH6: 95.38 | AI6: 95.38 | AJ6: 0 | AK6: 95.38 | AL6: 95.38 | AM6: 0 | AN6: 95.38 | AO6: 95.38 | AP6: 0 | AQ6: 95.38 | AR6: 95.38 | AS6: 0 | AT6: 95.38 | AU6: 95.38 | AV6: 0 | AW6: 95.38 | AX6: 95.38 | AY6: 0 | AZ6: 95.38 | BA6: 0.8 | BB6: 95.38 | BC6: =I6 -> 95.38 | BD6: OK | BE6: 43.38 | BF6: 43.38 | BG6: OK | BH6: =K6+L6 -> 95.38 | BI6: 52.65 | BJ6: =N6+O6 -> 95.38 | BK6: 52.88 | BL6: =Q6+R6 -> 95.38 | BM6: 50.75 | BN6: =T6+U6 -> 95.38 | BO6: 54.85 | BP6: =W6+X6 -> 95.38 | BQ6: 60.73 | BR6: =+Z6+AA6 -> 95.38 | BS6: 63.66 | BT6: =+AC6+AD6 -> 95.38 | BU6: 65.87 | BV6: =+AH6 -> 95.38 | BW6: 61.83 | BX6: =+AK6 -> 95.38 | BY6: 61.54 | BZ6: =+AN6 -> 95.38 | CA6: 44.17 | CB6: =+AQ6 -> 95.38 | CC6: 46.98 | CD6: =+AT6 -> 95.38 | CE6: 56.95 | CF6: =+AW6 -> 95.38 | CG6: -1.16 | CH6: =+AZ6 -> 95.38 | CI6: =ROUND(AZ6-BA6*$E$326,2) -> -48.62 | CK6: 0 | CL6: -2.13 | CM6: =BN6-BL6 -> 0 | CN6: 4.1 | CO6: =BP6-BN6 -> 0 | CP6: 5.88 | CQ6: 0 | CR6: 2.93 | CS6: 0 | CT6: 2.21 | CU6: =BV6-BT6 -> 0 | CV6: -4.04 | CW6: =BX6-BV6 -> 0 | CX6: -0.29 | CY6: =BZ6-BX6 -> 0 | CZ6: -17.37 | DA6: =CB6-BZ6 -> 0 | DB6: 2.81 | DC6: =CD6-CB6 -> 0 | DD6: 9.97 | DE6: =CF6-CD6 -> 0 | DF6: -58.11 | DG6: =CH6-CF6 -> 0 | DH6: -47.46
A7: VE02 | B7: 2. Vetrne elektrarne | D7: mala - manjše od 1MW | E7: VE02 | F7: 95.38 | G7: 0 | H7: 95.38 | I7: 95.38 | J7: OK | K7: 95.38 | L7: 0 | M7: 95.38 | N7: 95.38 | O7: 0 | P7: 95.38 | Q7: 95.38 | R7: 0 | S7: 95.38 | T7: 95.38 | U7: 0 | V7: 95.38 | W7: 95.38 | X7: 0 | Y7: 95.38 | Z7: 95.38 | AA7: 0 | AB7: 95.38 | AC7: 95.38 | AD7: 0 | AE7: 95.38 | AF7: 95.38 | AG7: 0 | AH7: 95.38 | AI7: 95.38 | AJ7: 0 | AK7: 95.38 | AL7: 95.38 | AM7: 0 | AN7: 95.38 | AO7: 95.38 | AP7: 0 | AQ7: 95.38 | AR7: 95.38 | AS7: 0 | AT7: 95.38 | AU7: 95.38 | AV7: 0 | AW7: 95.38 | AX7: 95.38 | AY7: 0 | AZ7: 95.38 | BA7: 0.8 | BB7: 95.38 | BC7: =I7 -> 95.38 | BD7: OK | BE7: 43.38 | BF7: 43.38 | BG7: OK | BH7: =K7+L7 -> 95.38 | BI7: 52.65 | BJ7: =N7+O7 -> 95.38 | BK7: 52.88 | BL7: =Q7+R7 -> 95.38 | BM7: 50.75 | BN7: =T7+U7 -> 95.38 | BO7: 54.85 | BP7: =W7+X7 -> 95.38 | BQ7: 60.73 | BR7: =+Z7+AA7 -> 95.38 | BS7: 63.66 | BT7: =+AC7+AD7 -> 95.38 | BU7: 65.87 | BV7: =+AH7 -> 95.38 | BW7: 61.83 | BX7: =+AK7 -> 95.38 | BY7: 61.54 | BZ7: =+AN7 -> 95.38 | CA7: 44.17 | CB7: =+AQ7 -> 95.38 | CC7: 46.98 | CD7: =+AT7 -> 95.38 | CE7: 56.95 | CF7: =+AW7 -> 95.38 | CG7: -1.16 | CH7: =+AZ7 -> 95.38 | CI7: =ROUND(AZ7-BA7*$E$326,2) -> -48.62 | CK7: 0 | CL7: -2.13 | CM7: 0 | CN7: 4.1 | CO7: 0 | CP7: 5.88 | CQ7: 0 | CR7: 2.93 | CS7: 0 | CT7: 2.21 | CU7: 0 | CV7: -4.04 | CW7: 0 | CX7: -0.29 | CY7: 0 | CZ7: -17.37 | DA7: 0 | DB7: 2.81 | DC7: 0 | DD7: 9.97 | DE7: 0 | DF7: -58.11 | DG7: 0 | DH7: -47.46
A8: VE03 | B8: 2. Vetrne elektrarne | D8: srednja - od 1MW do vključno 10MW | E8: VE03 | F8: 95.38 | G8: 0 | H8: 95.38 | I8: 95.38 | J8: OK | K8: 95.38 | L8: 0 | M8: 95.38 | N8: 95.38 | O8: 0 | P8: 95.38 | Q8: 95.38 | R8: 0 | S8: 95.38 | T8: 95.38 | U8: 0 | V8: 95.38 | W8: 95.38 | X8: 0 | Y8: 95.38 | Z8: 95.38 | AA8: 0 | AB8: 95.38 | AC8: 95.38 | AD8: 0 | AE8: 95.38 | AF8: 95.38 | AG8: 0 | AH8: 95.38 | AI8: 95.38 | AJ8: 0 | AK8: 95.38 | AL8: 95.38 | AM8: 0 | AN8: 95.38 | AO8: 95.38 | AP8: 0 | AQ8: 95.38 | AR8: 95.38 | AS8: 0 | AT8: 95.38 | AU8: 95.38 | AV8: 0 | AW8: 95.38 | AX8: 95.38 | AY8: 0 | AZ8: 95.38 | BA8: 0.8 | BB8: 95.38 | BC8: =I8 -> 95.38 | BD8: OK | BE8: 43.38 | BF8: 43.38 | BG8: OK | BH8: =K8+L8 -> 95.38 | BI8: 52.65 | BJ8: =N8+O8 -> 95.38 | BK8: 52.88 | BL8: =Q8+R8 -> 95.38 | BM8: 50.75 | BN8: =T8+U8 -> 95.38 | BO8: 54.85 | BP8: =W8+X8 -> 95.38 | BQ8: 60.73 | BR8: =+Z8+AA8 -> 95.38 | BS8: 63.66 | BT8: =+AC8+AD8 -> 95.38 | BU8: 65.87 | BV8: =+AH8 -> 95.38 | BW8: 61.83 | BX8: =+AK8 -> 95.38 | BY8: 61.54 | BZ8: =+AN8 -> 95.38 | CA8: 44.17 | CB8: =+AQ8 -> 95.38 | CC8: 46.98 | CD8: =+AT8 -> 95.38 | CE8: 56.95 | CF8: =+AW8 -> 95.38 | CG8: -1.16 | CH8: 95.38 | CI8: -48.62 | CK8: 0 | CL8: -2.13 | CM8: 0 | CN8: 4.1 | CO8: 0 | CP8: 5.88 | CQ8: 0 | CR8: 2.93 | CS8: 0 | CT8: 2.21 | CU8: 0 | CV8: -4.04 | CW8: 0 | CX8: -0.29 | CY8: 0 | CZ8: -17.37 | DA8: 0 | DB8: 2.81 | DC8: 0 | DD8: 9.97 | DE8: 0 | DF8: -58.11 | DG8: 0 | DH8: -47.46
A9: VE04 | B9: 2. Vetrne elektrarne | D9: velika - nad 10MW do vključno 125MW | E9: VE04 | F9: 86.74 | G9: 0 | H9: 86.74 | I9: 86.74 | J9: OK | K9: 86.74 | L9: 0 | M9: 86.74 | N9: 86.74 | O9: 0 | P9: 86.74 | Q9: 86.74 | R9: 0 | S9: 86.74 | T9: 86.74 | U9: 0 | V9: 86.74 | W9: 86.74 | X9: 0 | Y9: 86.74 | Z9: 86.74 | AA9: 0 | AB9: 86.74 | AC9: 86.74 | AD9: 0 | AE9: 86.74 | AF9: 86.74 | AG9: 0 | AH9: 86.74 | AI9: 86.74 | AJ9: 0 | AK9: 86.74 | AL9: 86.74 | AM9: 0 | AN9: 86.74 | AO9: 86.74 | AP9: 0 | AQ9: 86.74 | AR9: 86.74 | AS9: 0 | AT9: 86.74 | AU9: 86.74 | AV9: 0 | AW9: 86.74 | AX9: 86.74 | AY9: 0 | AZ9: 86.74 | BA9: 0.86 | BB9: (ni ZO) | BC9: (ni ZO) | BD9: OK | BE9: 30.84 | BF9: 30.84 | BG9: OK | BH9: (ni ZO) | BI9: 40.81 | BJ9: (ni ZO) | BK9: 41.05 | BL9: (ni ZO) | BM9: 38.76 | BN9: (ni ZO) | BO9: 43.17 | BP9: (ni ZO) | BQ9: 49.49 | BR9: (ni ZO) | BS9: 52.64 | BT9: (ni ZO) | BU9: 55.01 | BV9: (ni ZO) | BW9: 50.67 | BX9: (ni ZO) | BY9: 50.36 | BZ9: (ni ZO) | CA9: 31.69 | CB9: (ni ZO) | CC9: 34.71 | CD9: (ni ZO) | CE9: 45.43 | CF9: (ni ZO) | CG9: -17.04 | CH9: (ni ZO) | CI9: -68.06 | CK9: (ni ZO) | CL9: -2.29 | CM9: (ni ZO) | CN9: 4.41 | CO9: (ni ZO) | CP9: 6.32 | CQ9: (ni ZO) | CR9: 3.15 | CS9: (ni ZO) | CT9: 2.37 | CU9: (ni ZO) | CV9: -4.34 | CW9: (ni ZO) | CX9: -0.31 | CY9: (ni ZO) | CZ9: -18.67 | DA9: (ni ZO) | DB9: 3.02 | DC9: (ni ZO) | DD9: 10.72 | DE9: (ni ZO) | DF9: -62.47 | DG9: (ni ZO) | DH9: -51.02
A10: SE11-2009 | B10: 3.1 Sončne elektrarne - na stavbah 2009 | C10: 3.1 Sončne elektrarne - na stavbah 2009 | D10: mikro - manjše od 50kW | E10: SE11 | F10: 415.46 | G10: 0 | H10: 415.46 | I10: 415.46 | J10: OK | K10: 415.46 | L10: 0 | M10: 415.46 | N10: 415.46 | O10: 0 | P10: 415.46 | Q10: 415.46 | R10: 0 | S10: 415.46 | T10: 415.46 | U10: 0 | V10: 415.46 | W10: 415.46 | X10: 0 | Y10: 415.46 | Z10: 415.46 | AA10: 0 | AB10: 415.46 | AC10: 415.46 | AD10: 0 | AE10: 415.46 | AF10: 415.46 | AG10: 0 | AH10: 415.46 | AI10: 415.46 | AJ10: 0 | AK10: 415.46 | AL10: 415.46 | AM10: 0 | AN10: 415.46 | AO10: 415.46 | AP10: 0 | AQ10: 415.46 | AR10: 415.46 | AS10: 0 | AT10: 415.46 | AU10: 415.46 | AV10: 0 | AW10: 415.46 | AX10: 415.46 | AY10: 0 | AZ10: 415.46 | BA10: 0.88 | BB10: 415.46 | BC10: =I10 -> 415.46 | BD10: OK | BE10: 358.26 | BF10: 358.26 | BG10: OK | BH10: =K10+L10 -> 415.46 | BI10: 368.46 | BJ10: =N10+O10 -> 415.46 | BK10: 368.71 | BL10: =Q10+R10 -> 415.46 | BM10: 366.36 | BN10: =T10+U10 -> 415.46 | BO10: 370.88 | BP10: =W10+X10 -> 415.46 | BQ10: 377.35 | BR10: =+Z10+AA10 -> 415.46 | BS10: 380.57 | BT10: =+AC10+AD10 -> 415.46 | BU10: 383 | BV10: =+AH10 -> 415.46 | BW10: 378.55 | BX10: =+AK10 -> 415.46 | BY10: 378.24 | BZ10: =+AN10 -> 415.46 | CA10: 359.13 | CB10: =+AQ10 -> 415.46 | CC10: 362.22 | CD10: =+AT10 -> 415.46 | CE10: 373.18 | CF10: =+AW10 -> 415.46 | CG10: 309.27 | CH10: =+AZ10 -> 415.46 | CI10: =ROUND(AZ10-BA10*$E$326,2) -> 257.06 | CK10: 0 | CL10: -2.35 | CM10: =BN10-BL10 -> 0 | CN10: 4.52 | CO10: =BP10-BN10 -> 0 | CP10: 6.47 | CQ10: 0 | CR10: 3.22 | CS10: 0 | CT10: 2.43 | CU10: =BV10-BT10 -> 0 | CV10: -4.45 | CW10: =BX10-BV10 -> 0 | CX10: -0.31 | CY10: =BZ10-BX10 -> 0 | CZ10: -19.11 | DA10: =CB10-BZ10 -> 0 | DB10: 3.09 | DC10: =CD10-CB10 -> 0 | DD10: 10.96 | DE10: =CF10-CD10 -> 0 | DF10: -63.91 | DG10: =CH10-CF10 -> 0 | DH10: -52.21
A11: SE12-2009 | B11: 3.1 Sončne elektrarne - na stavbah 2009 | D11: mala - manjše od 1MW | E11: SE12 | F11: 380.02 | G11: 0 | H11: 380.02 | I11: 380.02 | J11: OK | K11: 380.02 | L11: 0 | M11: 380.02 | N11: =F11 -> 380.02 | O11: 0 | P11: 380.02 | Q11: 380.02 | R11: 0 | S11: 380.02 | T11: =F11 -> 380.02 | U11: 0 | V11: 380.02 | W11: 380.02 | X11: 0 | Y11: 380.02 | Z11: 380.02 | AA11: 0 | AB11: 380.02 | AC11: 380.02 | AD11: 0 | AE11: 380.02 | AF11: 380.02 | AG11: 0 | AH11: 380.02 | AI11: 380.02 | AJ11: 0 | AK11: 380.02 | AL11: 380.02 | AM11: 0 | AN11: 380.02 | AO11: 380.02 | AP11: 0 | AQ11: 380.02 | AR11: 380.02 | AS11: 0 | AT11: 380.02 | AU11: 380.02 | AV11: 0 | AW11: 380.02 | AX11: 380.02 | AY11: 0 | AZ11: 380.02 | BA11: 0.88 | BB11: 380.02 | BC11: =I11 -> 380.02 | BD11: OK | BE11: 322.82 | BF11: 322.82 | BG11: OK | BH11: =K11+L11 -> 380.02 | BI11: 333.02 | BJ11: =N11+O11 -> 380.02 | BK11: 333.27 | BL11: =Q11+R11 -> 380.02 | BM11: 330.92 | BN11: =T11+U11 -> 380.02 | BO11: 335.44 | BP11: =W11+X11 -> 380.02 | BQ11: 341.91 | BR11: =+Z11+AA11 -> 380.02 | BS11: 345.13 | BT11: =+AC11+AD11 -> 380.02 | BU11: 347.56 | BV11: =+AH11 -> 380.02 | BW11: 343.11 | BX11: =+AK11 -> 380.02 | BY11: 342.8 | BZ11: =+AN11 -> 380.02 | CA11: 323.69 | CB11: =+AQ11 -> 380.02 | CC11: 326.78 | CD11: =+AT11 -> 380.02 | CE11: 337.74 | CF11: =+AW11 -> 380.02 | CG11: 273.83 | CH11: 380.02 | CI11: 221.62 | CJ11: le za INTEGRIRANE - razlika pri ZO in OP 2009 zaradi zaokrožitve +15% | CK11: 0 | CL11: -2.35 | CM11: 0 | CN11: 4.52 | CO11: 0 | CP11: 6.47 | CQ11: 0 | CR11: 3.22 | CS11: 0 | CT11: 2.43 | CU11: 0 | CV11: -4.45 | CW11: 0 | CX11: -0.31 | CY11: 0 | CZ11: -19.11 | DA11: 0 | DB11: 3.09 | DC11: 0 | DD11: 10.96 | DE11: 0 | DF11: -63.91 | DG11: 0 | DH11: -52.21
A12: SE13-2009 | B12: 3.1 Sončne elektrarne - na stavbah 2009 | D12: srednja - od 1MW do vključno 10MW | E12: SE13 | F12: 315.36 | G12: 0 | H12: 315.36 | I12: 315.36 | J12: OK | K12: 315.36 | L12: 0 | M12: 315.36 | N12: 315.36 | O12: 0 | P12: 315.36 | Q12: 315.36 | R12: 0 | S12: 315.36 | T12: 315.36 | U12: 0 | V12: 315.36 | W12: 315.36 | X12: 0 | Y12: 315.36 | Z12: 315.36 | AA12: 0 | AB12: 315.36 | AC12: 315.36 | AD12: 0 | AE12: 315.36 | AF12: 315.36 | AG12: 0 | AH12: 315.36 | AI12: 315.36 | AJ12: 0 | AK12: 315.36 | AL12: 315.36 | AM12: 0 | AN12: 315.36 | AO12: 315.36 | AP12: 0 | AQ12: 315.36 | AR12: 315.36 | AS12: 0 | AT12: 315.36 | AU12: 315.36 | AV12: 0 | AW12: 315.36 | AX12: 315.36 | AY12: 0 | AZ12: 315.36 | BA12: 0.91 | BB12: 315.36 | BC12: =I12 -> 315.36 | BD12: OK | BE12: 256.21 | BF12: 256.21 | BG12: OK | BH12: =K12+L12 -> 315.36 | BI12: 266.76 | BJ12: =N12+O12 -> 315.36 | BK12: 267.01 | BL12: =Q12+R12 -> 315.36 | BM12: 264.59 | BN12: =T12+U12 -> 315.36 | BO12: 269.26 | BP12: =W12+X12 -> 315.36 | BQ12: 275.95 | BR12: =+Z12+AA12 -> 315.36 | BS12: 279.28 | BT12: =+AC12+AD12 -> 315.36 | BU12: 281.79 | BV12: =+AH12 -> 315.36 | BW12: 277.19 | BX12: =+AK12 -> 315.36 | BY12: 276.87 | BZ12: =+AN12 -> 315.36 | CA12: 257.11 | CB12: =+AQ12 -> 315.36 | CC12: 260.31 | CD12: =+AT12 -> 315.36 | CE12: 271.64 | CF12: =+AW12 -> 315.36 | CG12: 205.55 | CH12: 315.36 | CI12: 151.56 | CJ12: le za INTEGRIRANE - razlika pri ZO in OP 2009 zaradi zaokrožitve +15% | CK12: 0 | CL12: -2.42 | CM12: 0 | CN12: 4.67 | CO12: 0 | CP12: 6.69 | CQ12: 0 | CR12: 3.33 | CS12: 0 | CT12: 2.51 | CU12: 0 | CV12: -4.6 | CW12: 0 | CX12: -0.32 | CY12: 0 | CZ12: -19.76 | DA12: 0 | DB12: 3.2 | DC12: 0 | DD12: 11.33 | DE12: 0 | DF12: -66.09 | DG12: 0 | DH12: -53.99
A13: SE14-2009 | B13: 3.1 Sončne elektrarne - na stavbah 2009 | D13: velika - nad 10MW do vključno 125MW | E13: SE14 | F13: 280.71 | G13: 0 | H13: 280.71 | I13: 280.71 | J13: OK | K13: 280.71 | L13: 0 | M13: 280.71 | N13: 280.71 | O13: 0 | P13: 280.71 | Q13: 280.71 | R13: 0 | S13: 280.71 | T13: 280.71 | U13: 0 | V13: 280.71 | W13: 280.71 | X13: 0 | Y13: 280.71 | Z13: 280.71 | AA13: 0 | AB13: 280.71 | AC13: 280.71 | AD13: 0 | AE13: 280.71 | AF13: 280.71 | AG13: 0 | AH13: 280.71 | AI13: 280.71 | AJ13: 0 | AK13: 280.71 | AL13: 280.71 | AM13: 0 | AN13: 280.71 | AO13: 280.71 | AP13: 0 | AQ13: 280.71 | AR13: 280.71 | AS13: 0 | AT13: 280.71 | AU13: 280.71 | AV13: 0 | AW13: 280.71 | AX13: 280.71 | AY13: 0 | AZ13: 280.71 | BA13: 1 | BB13: (ni ZO) | BC13: (ni ZO) | BD13: OK | BE13: 215.71 | BF13: 215.71 | BG13: OK | BH13: (ni ZO) | BI13: 227.3 | BJ13: (ni ZO) | BK13: 227.58 | BL13: (ni ZO) | BM13: 224.92 | BN13: (ni ZO) | BO13: 230.05 | BP13: (ni ZO) | BQ13: 237.4 | BR13: (ni ZO) | BS13: 241.06 | BT13: (ni ZO) | BU13: 243.82 | BV13: (ni ZO) | BW13: 238.77 | BX13: (ni ZO) | BY13: 238.41 | BZ13: (ni ZO) | CA13: 216.7 | CB13: (ni ZO) | CC13: 220.21 | CD13: (ni ZO) | CE13: 232.67 | CF13: (ni ZO) | CG13: 160.04 | CH13: (ni ZO) | CI13: 100.71 | CK13: (ni ZO) | CL13: -2.66 | CM13: (ni ZO) | CN13: 5.13 | CO13: (ni ZO) | CP13: 7.35 | CQ13: (ni ZO) | CR13: 3.66 | CS13: (ni ZO) | CT13: 2.76 | CU13: (ni ZO) | CV13: -5.05 | CW13: (ni ZO) | CX13: -0.36 | CY13: (ni ZO) | CZ13: -21.71 | DA13: (ni ZO) | DB13: 3.51 | DC13: (ni ZO) | DD13: 12.46 | DE13: (ni ZO) | DF13: -72.63 | DG13: (ni ZO) | DH13: -59.33
C14: 3.1. INT Sončne elektrarne - integrirane 2009 | D14: mikro - manjše od 50kW | F14: =ROUND(F10*1.15,2) -> 477.78 | G14: 0 | I14: =F14+G14 -> 477.78 | J14: niso v uredbi; ROUND(2009*1,15 ; 2) | K14: 477.78 | L14: 0 | M14: 477.78 | N14: 477.78 | O14: 0 | P14: 477.78 | Q14: 477.78 | R14: 0 | S14: 477.78 | T14: 477.78 | U14: 0 | V14: 477.78 | W14: 477.78 | X14: 0 | Y14: 477.78 | Z14: 477.78 | AA14: 0 | AB14: 477.78 | AC14: 477.78 | AD14: 0 | AE14: 477.78 | AF14: 477.78 | AG14: 0 | AH14: 477.78 | AI14: 477.78 | AJ14: 0 | AK14: 477.78 | AL14: 477.78 | AM14: 0 | AN14: 477.78 | AO14: 477.78 | AP14: 0 | AQ14: 477.78 | AR14: 477.78 | AS14: 0 | AT14: 477.78 | AU14: 477.78 | AV14: 0 | AW14: 477.78 | AX14: 477.78 | AY14: 0 | AZ14: 477.78 | BA14: 0.88 | BB14: 477.78 | BC14: =I14 -> 477.78 | BD14: OK | BE14: 420.58 | BF14: 420.58 | BG14: OK | BH14: =K14+L14 -> 477.78 | BI14: 430.78 | BJ14: =N14+O14 -> 477.78 | BK14: 431.03 | BL14: =Q14+R14 -> 477.78 | BM14: 428.68 | BN14: =T14+U14 -> 477.78 | BO14: 433.2 | BP14: =W14+X14 -> 477.78 | BQ14: 439.67 | BR14: =+Z14+AA14 -> 477.78 | BS14: 442.89 | BT14: =+AC14+AD14 -> 477.78 | BU14: 445.32 | BV14: =+AH14 -> 477.78 | BW14: 440.87 | BX14: =+AK14 -> 477.78 | BY14: 440.56 | BZ14: =+AN14 -> 477.78 | CA14: 421.45 | CB14: =+AQ14 -> 477.78 | CC14: 424.54 | CD14: =+AT14 -> 477.78 | CE14: 435.5 | CF14: =+AW14 -> 477.78 | CG14: 371.59 | CH14: =+AZ14 -> 477.78 | CI14: 319.38 | CK14: 0 | CL14: -2.35 | CM14: =BN14-BL14 -> 0 | CN14: 4.52 | CO14: =BP14-BN14 -> 0 | CP14: 6.47 | CQ14: 0 | CR14: 3.22 | CS14: 0 | CT14: 2.43 | CU14: =BV14-BT14 -> 0 | CV14: -4.45 | CW14: =BX14-BV14 -> 0 | CX14: -0.31 | CY14: =BZ14-BX14 -> 0 | CZ14: -19.11 | DA14: =CB14-BZ14 -> 0 | DB14: 3.09 | DC14: =CD14-CB14 -> 0 | DD14: 10.96 | DE14: =CF14-CD14 -> 0 | DF14: -63.91 | DG14: =CH14-CF14 -> 0 | DH14: -52.21
D15: mala - manjše od 1MW | F15: =ROUND(F11*1.15,2) -> 437.02 | G15: 0 | I15: =F15+G15 -> 437.02 | J15: niso v uredbi; ROUND(2009*1,15 ; 2) | K15: 437.02 | L15: 0 | M15: 437.02 | N15: 437.02 | O15: 0 | P15: 437.02 | Q15: 437.02 | R15: 0 | S15: 437.02 | T15: 437.02 | U15: 0 | V15: 437.02 | W15: 437.02 | X15: 0 | Y15: 437.02 | Z15: 437.02 | AA15: 0 | AB15: 437.02 | AC15: 437.02 | AD15: 0 | AE15: 437.02 | AF15: 437.02 | AG15: 0 | AH15: 437.02 | AI15: 437.02 | AJ15: 0 | AK15: 437.02 | AL15: 437.02 | AM15: 0 | AN15: 437.02 | AO15: 437.02 | AP15: 0 | AQ15: 437.02 | AR15: 437.02 | AS15: 0 | AT15: 437.02 | AU15: 437.02 | AV15: 0 | AW15: 437.02 | AX15: 437.02 | AY15: 0 | AZ15: 437.02 | BA15: 0.88 | BB15: 437.03 | BC15: =I15 -> 437.02 | BD15: razlika | BE15: 379.83 | BF15: 379.82 | BG15: razlika | BH15: =K15+L15 -> 437.02 | BI15: 390.02 | BJ15: =N15+O15 -> 437.02 | BK15: 390.27 | BL15: =Q15+R15 -> 437.02 | BM15: 387.92 | BN15: =T15+U15 -> 437.02 | BO15: 392.44 | BP15: =W15+X15 -> 437.02 | BQ15: 398.91 | BR15: =+Z15+AA15 -> 437.02 | BS15: 402.13 | BT15: =+AC15+AD15 -> 437.02 | BU15: 404.56 | BV15: =+AH15 -> 437.02 | BW15: 400.11 | BX15: =+AK15 -> 437.02 | BY15: 399.8 | BZ15: =+AN15 -> 437.02 | CA15: 380.69 | CB15: =+AQ15 -> 437.02 | CC15: 383.78 | CD15: =+AT15 -> 437.02 | CE15: 394.74 | CF15: =+AW15 -> 437.02 | CG15: 330.83 | CH15: =+AZ15 -> 437.02 | CI15: 278.62 | CJ15: razlika pri ZO in OP 2009 zaradi zaokrožitve +15% | CK15: 0 | CL15: -2.35 | CM15: 0 | CN15: 4.52 | CO15: 0 | CP15: 6.47 | CQ15: 0 | CR15: 3.22 | CS15: 0 | CT15: 2.43 | CU15: 0 | CV15: -4.45 | CW15: 0 | CX15: -0.31 | CY15: 0 | CZ15: -19.11 | DA15: 0 | DB15: 3.09 | DC15: 0 | DD15: 10.96 | DE15: 0 | DF15: -63.91 | DG15: 0 | DH15: -52.21
D16: srednja - od 1MW do vključno 10MW | F16: =ROUND(F12*1.15,2) -> 362.66 | G16: 0 | I16: 362.66 | J16: niso v uredbi; ROUND(2009*1,15 ; 2) | K16: 362.66 | L16: 0 | M16: 362.66 | N16: 362.66 | O16: 0 | P16: 362.66 | Q16: 362.66 | R16: 0 | S16: 362.66 | T16: 362.66 | U16: 0 | V16: 362.66 | W16: 362.66 | X16: 0 | Y16: 362.66 | Z16: 362.66 | AA16: 0 | AB16: 362.66 | AC16: 362.66 | AD16: 0 | AE16: 362.66 | AF16: 362.66 | AG16: 0 | AH16: 362.66 | AI16: 362.66 | AJ16: 0 | AK16: 362.66 | AL16: 362.66 | AM16: 0 | AN16: 362.66 | AO16: 362.66 | AP16: 0 | AQ16: 362.66 | AR16: 362.66 | AS16: 0 | AT16: 362.66 | AU16: 362.66 | AV16: 0 | AW16: 362.66 | AX16: 362.66 | AY16: 0 | AZ16: 362.66 | BA16: 0.91 | BB16: 362.67 | BC16: =I16 -> 362.66 | BD16: razlika | BE16: 303.52 | BF16: 303.51 | BG16: razlika | BH16: =K16+L16 -> 362.66 | BI16: 314.06 | BJ16: =N16+O16 -> 362.66 | BK16: 314.31 | BL16: =Q16+R16 -> 362.66 | BM16: 311.89 | BN16: =T16+U16 -> 362.66 | BO16: 316.56 | BP16: =W16+X16 -> 362.66 | BQ16: 323.25 | BR16: =+Z16+AA16 -> 362.66 | BS16: 326.58 | BT16: =+AC16+AD16 -> 362.66 | BU16: 329.09 | BV16: =+AH16 -> 362.66 | BW16: 324.49 | BX16: =+AK16 -> 362.66 | BY16: 324.17 | BZ16: =+AN16 -> 362.66 | CA16: 304.41 | CB16: =+AQ16 -> 362.66 | CC16: 307.61 | CD16: =+AT16 -> 362.66 | CE16: 318.94 | CF16: =+AW16 -> 362.66 | CG16: 252.85 | CH16: =+AZ16 -> 362.66 | CI16: 198.86 | CJ16: razlika pri ZO in OP 2009 zaradi zaokrožitve +15% | CK16: 0 | CL16: -2.42 | CM16: 0 | CN16: 4.67 | CO16: 0 | CP16: 6.69 | CQ16: 0 | CR16: 3.33 | CS16: 0 | CT16: 2.51 | CU16: 0 | CV16: -4.6 | CW16: 0 | CX16: -0.32 | CY16: 0 | CZ16: -19.76 | DA16: 0 | DB16: 3.2 | DC16: 0 | DD16: 11.33 | DE16: 0 | DF16: -66.09 | DG16: 0 | DH16: -53.99
D17: velika - nad 10MW do vključno 125MW | F17: =ROUND(F13*1.15,2) -> 322.82 | G17: 0 | I17: 322.82 | J17: niso v uredbi; ROUND(2009*1,15 ; 2) | K17: 322.82 | L17: 0 | M17: 322.82 | N17: 322.82 | O17: 0 | P17: 322.82 | Q17: 322.82 | R17: 0 | S17: 322.82 | T17: 322.82 | U17: 0 | V17: 322.82 | W17: 322.82 | X17: 0 | Y17: 322.82 | Z17: 322.82 | AA17: 0 | AB17: 322.82 | AC17: 322.82 | AD17: 0 | AE17: 322.82 | AF17: 322.82 | AG17: 0 | AH17: 322.82 | AI17: 322.82 | AJ17: 0 | AK17: 322.82 | AL17: 322.82 | AM17: 0 | AN17: 322.82 | AO17: 322.82 | AP17: 0 | AQ17: 322.82 | AR17: 322.82 | AS17: 0 | AT17: 322.82 | AU17: 322.82 | AV17: 0 | AW17: 322.82 | AX17: 322.82 | AY17: 0 | AZ17: 322.82 | BA17: 1 | BB17: (ni ZO) | BC17: (ni ZO) | BD17: OK | BE17: 257.82 | BF17: 257.82 | BG17: OK | BH17: (ni ZO) | BI17: 269.41 | BJ17: (ni ZO) | BK17: 269.69 | BL17: (ni ZO) | BM17: 267.03 | BN17: (ni ZO) | BO17: 272.16 | BP17: (ni ZO) | BQ17: 279.51 | BR17: (ni ZO) | BS17: 283.17 | BT17: (ni ZO) | BU17: 285.93 | BV17: (ni ZO) | BW17: 280.88 | BX17: (ni ZO) | BY17: 280.52 | BZ17: (ni ZO) | CA17: 258.81 | CB17: (ni ZO) | CC17: 262.32 | CD17: (ni ZO) | CE17: 274.78 | CF17: (ni ZO) | CG17: 202.15 | CH17: (ni ZO) | CI17: =ROUND(AZ17-BA17*$E$326,2) -> 142.82 | CK17: (ni ZO) | CL17: -2.66 | CM17: (ni ZO) | CN17: 5.13 | CO17: (ni ZO) | CP17: 7.35 | CQ17: (ni ZO) | CR17: 3.66 | CS17: (ni ZO) | CT17: 2.76 | CU17: (ni ZO) | CV17: -5.05 | CW17: (ni ZO) | CX17: -0.36 | CY17: (ni ZO) | CZ17: -21.71 | DA17: (ni ZO) | DB17: 3.51 | DC17: (ni ZO) | DD17: 12.46 | DE17: (ni ZO) | DF17: -72.63 | DG17: (ni ZO) | DH17: -59.33
A18: SE21-2009 | B18: 3.2 Sončne elektrarne - samostojni objekti 2009 | C18: 3.2 Sončne elektrarne - samostojni objekti 2009 | D18: mikro - manjše od 50kW | E18: SE21 | F18: 390.42 | G18: 0 | H18: 390.42 | I18: 390.42 | J18: =IF(H18=I18,"OK","razlika") -> OK | K18: 390.42 | L18: 0 | M18: 390.42 | N18: 390.42 | O18: 0 | P18: 390.42 | Q18: 390.42 | R18: 0 | S18: 390.42 | T18: 390.42 | U18: 0 | V18: 390.42 | W18: 390.42 | X18: 0 | Y18: 390.42 | Z18: 390.42 | AA18: 0 | AB18: 390.42 | AC18: 390.42 | AD18: 0 | AE18: 390.42 | AF18: 390.42 | AG18: 0 | AH18: 390.42 | AI18: 390.42 | AJ18: 0 | AK18: 390.42 | AL18: 390.42 | AM18: 0 | AN18: 390.42 | AO18: 390.42 | AP18: 0 | AQ18: 390.42 | AR18: 390.42 | AS18: 0 | AT18: 390.42 | AU18: 390.42 | AV18: 0 | AW18: 390.42 | AX18: 390.42 | AY18: 0 | AZ18: 390.42 | BA18: 0.88 | BB18: 390.42 | BC18: =I18 -> 390.42 | BD18: OK | BE18: 333.22 | BF18: 333.22 | BG18: OK | BH18: =K18+L18 -> 390.42 | BI18: 343.42 | BJ18: =N18+O18 -> 390.42 | BK18: 343.67 | BL18: =Q18+R18 -> 390.42 | BM18: 341.32 | BN18: =T18+U18 -> 390.42 | BO18: 345.84 | BP18: =W18+X18 -> 390.42 | BQ18: 352.31 | BR18: =+Z18+AA18 -> 390.42 | BS18: 355.53 | BT18: =+AC18+AD18 -> 390.42 | BU18: 357.96 | BV18: =+AH18 -> 390.42 | BW18: 353.51 | BX18: =+AK18 -> 390.42 | BY18: 353.2 | BZ18: =+AN18 -> 390.42 | CA18: 334.09 | CB18: =+AQ18 -> 390.42 | CC18: 337.18 | CD18: =+AT18 -> 390.42 | CE18: 348.14 | CF18: =+AW18 -> 390.42 | CG18: 284.23 | CH18: =+AZ18 -> 390.42 | CI18: 232.02 | CK18: 0 | CL18: -2.35 | CM18: =BN18-BL18 -> 0 | CN18: 4.52 | CO18: =BP18-BN18 -> 0 | CP18: 6.47 | CQ18: 0 | CR18: 3.22 | CS18: 0 | CT18: 2.43 | CU18: =BV18-BT18 -> 0 | CV18: -4.45 | CW18: =BX18-BV18 -> 0 | CX18: -0.31 | CY18: =BZ18-BX18 -> 0 | CZ18: -19.11 | DA18: =CB18-BZ18 -> 0 | DB18: 3.09 | DC18: =CD18-CB18 -> 0 | DD18: 10.96 | DE18: =CF18-CD18 -> 0 | DF18: -63.91 | DG18: =CH18-CF18 -> 0 | DH18: -52.21
A19: SE22-2009 | B19: 3.2 Sončne elektrarne - samostojni objekti 2009 | D19: mala - manjše od 1MW | E19: SE22 | F19: 359.71 | G19: 0 | H19: 359.71 | I19: 359.71 | J19: =IF(H19=I19,"OK","razlika") -> OK | K19: 359.71 | L19: 0 | M19: 359.71 | N19: 359.71 | O19: 0 | P19: 359.71 | Q19: 359.71 | R19: 0 | S19: 359.71 | T19: 359.71 | U19: 0 | V19: 359.71 | W19: 359.71 | X19: 0 | Y19: 359.71 | Z19: 359.71 | AA19: 0 | AB19: 359.71 | AC19: 359.71 | AD19: 0 | AE19: 359.71 | AF19: 359.71 | AG19: 0 | AH19: 359.71 | AI19: 359.71 | AJ19: 0 | AK19: 359.71 | AL19: 359.71 | AM19: 0 | AN19: 359.71 | AO19: 359.71 | AP19: 0 | AQ19: 359.71 | AR19: 359.71 | AS19: 0 | AT19: 359.71 | AU19: 359.71 | AV19: 0 | AW19: 359.71 | AX19: 359.71 | AY19: 0 | AZ19: 359.71 | BA19: 0.88 | BB19: 359.71 | BC19: =I19 -> 359.71 | BD19: OK | BE19: 302.51 | BF19: 302.51 | BG19: OK | BH19: =K19+L19 -> 359.71 | BI19: 312.71 | BJ19: =N19+O19 -> 359.71 | BK19: 312.96 | BL19: =Q19+R19 -> 359.71 | BM19: 310.61 | BN19: =T19+U19 -> 359.71 | BO19: 315.13 | BP19: =W19+X19 -> 359.71 | BQ19: 321.6 | BR19: =+Z19+AA19 -> 359.71 | BS19: 324.82 | BT19: =+AC19+AD19 -> 359.71 | BU19: 327.25 | BV19: =+AH19 -> 359.71 | BW19: 322.8 | BX19: =+AK19 -> 359.71 | BY19: 322.49 | BZ19: =+AN19 -> 359.71 | CA19: 303.38 | CB19: =+AQ19 -> 359.71 | CC19: 306.47 | CD19: =+AT19 -> 359.71 | CE19: 317.43 | CF19: =+AW19 -> 359.71 | CG19: 253.52 | CH19: 359.71 | CI19: 201.31 | CK19: 0 | CL19: -2.35 | CM19: 0 | CN19: 4.52 | CO19: 0 | CP19: 6.47 | CQ19: 0 | CR19: 3.22 | CS19: 0 | CT19: 2.43 | CU19: 0 | CV19: -4.45 | CW19: 0 | CX19: -0.31 | CY19: 0 | CZ19: -19.11 | DA19: 0 | DB19: 3.09 | DC19: 0 | DD19: 10.96 | DE19: 0 | DF19: -63.91 | DG19: 0 | DH19: -52.21
A20: SE23-2009 | B20: 3.2 Sončne elektrarne - samostojni objekti 2009 | D20: srednja - od 1MW do vključno 10MW | E20: SE23 | F20: 289.98 | G20: 0 | H20: 289.98 | I20: 289.98 | J20: =IF(H20=I20,"OK","razlika") -> OK | K20: 289.98 | L20: 0 | M20: 289.98 | N20: 289.98 | O20: 0 | P20: 289.98 | Q20: 289.98 | R20: 0 | S20: 289.98 | T20: 289.98 | U20: 0 | V20: 289.98 | W20: 289.98 | X20: 0 | Y20: 289.98 | Z20: 289.98 | AA20: 0 | AB20: 289.98 | AC20: 289.98 | AD20: 0 | AE20: 289.98 | AF20: 289.98 | AG20: 0 | AH20: 289.98 | AI20: 289.98 | AJ20: 0 | AK20: 289.98 | AL20: 289.98 | AM20: 0 | AN20: 289.98 | AO20: 289.98 | AP20: 0 | AQ20: 289.98 | AR20: 289.98 | AS20: 0 | AT20: 289.98 | AU20: 289.98 | AV20: 0 | AW20: 289.98 | AX20: 289.98 | AY20: 0 | AZ20: 289.98 | BA20: 0.91 | BB20: 289.98 | BC20: =I20 -> 289.98 | BD20: OK | BE20: 230.83 | BF20: 230.83 | BG20: OK | BH20: =K20+L20 -> 289.98 | BI20: 241.38 | BJ20: =N20+O20 -> 289.98 | BK20: 241.63 | BL20: =Q20+R20 -> 289.98 | BM20: 239.21 | BN20: =T20+U20 -> 289.98 | BO20: 243.88 | BP20: =W20+X20 -> 289.98 | BQ20: 250.57 | BR20: =+Z20+AA20 -> 289.98 | BS20: 253.9 | BT20: =+AC20+AD20 -> 289.98 | BU20: 256.41 | BV20: =+AH20 -> 289.98 | BW20: 251.81 | BX20: =+AK20 -> 289.98 | BY20: 251.49 | BZ20: =+AN20 -> 289.98 | CA20: 231.73 | CB20: =+AQ20 -> 289.98 | CC20: 234.93 | CD20: =+AT20 -> 289.98 | CE20: 246.26 | CF20: =+AW20 -> 289.98 | CG20: 180.17 | CH20: 289.98 | CI20: 126.18 | CK20: 0 | CL20: -2.42 | CM20: 0 | CN20: 4.67 | CO20: 0 | CP20: 6.69 | CQ20: 0 | CR20: 3.33 | CS20: 0 | CT20: 2.51 | CU20: 0 | CV20: -4.6 | CW20: 0 | CX20: -0.32 | CY20: 0 | CZ20: -19.76 | DA20: 0 | DB20: 3.2 | DC20: 0 | DD20: 11.33 | DE20: 0 | DF20: -66.09 | DG20: 0 | DH20: -53.99
A21: SE24-2009 | B21: 3.2 Sončne elektrarne - samostojni objekti 2009 | D21: velika - nad 10MW do vključno 125MW | E21: SE24 | F21: 269.22 | G21: 0 | H21: 269.22 | I21: 269.22 | J21: =IF(H21=I21,"OK","razlika") -> OK | K21: 269.22 | L21: 0 | M21: 269.22 | N21: 269.22 | O21: 0 | P21: 269.22 | Q21: 269.22 | R21: 0 | S21: 269.22 | T21: 269.22 | U21: 0 | V21: 269.22 | W21: 269.22 | X21: 0 | Y21: 269.22 | Z21: 269.22 | AA21: 0 | AB21: 269.22 | AC21: 269.22 | AD21: 0 | AE21: 269.22 | AF21: 269.22 | AG21: 0 | AH21: 269.22 | AI21: 269.22 | AJ21: 0 | AK21: 269.22 | AL21: 269.22 | AM21: 0 | AN21: 269.22 | AO21: 269.22 | AP21: 0 | AQ21: 269.22 | AR21: 269.22 | AS21: 0 | AT21: 269.22 | AU21: 269.22 | AV21: 0 | AW21: 269.22 | AX21: 269.22 | AY21: 0 | AZ21: 269.22 | BA21: 1 | BB21: (ni ZO) | BC21: (ni ZO) | BD21: OK | BE21: 204.22 | BF21: 204.22 | BG21: OK | BH21: (ni ZO) | BI21: 215.81 | BJ21: (ni ZO) | BK21: 216.09 | BL21: (ni ZO) | BM21: 213.43 | BN21: (ni ZO) | BO21: 218.56 | BP21: (ni ZO) | BQ21: 225.91 | BR21: (ni ZO) | BS21: 229.57 | BT21: (ni ZO) | BU21: 232.33 | BV21: (ni ZO) | BW21: 227.28 | BX21: (ni ZO) | BY21: 226.92 | BZ21: (ni ZO) | CA21: 205.21 | CB21: (ni ZO) | CC21: 208.72 | CD21: (ni ZO) | CE21: 221.18 | CF21: (ni ZO) | CG21: 148.55 | CH21: (ni ZO) | CI21: 89.22 | CK21: (ni ZO) | CL21: -2.66 | CM21: (ni ZO) | CN21: 5.13 | CO21: (ni ZO) | CP21: 7.35 | CQ21: (ni ZO) | CR21: 3.66 | CS21: (ni ZO) | CT21: 2.76 | CU21: (ni ZO) | CV21: -5.05 | CW21: (ni ZO) | CX21: -0.36 | CY21: (ni ZO) | CZ21: -21.71 | DA21: (ni ZO) | DB21: 3.51 | DC21: (ni ZO) | DD21: 12.46 | DE21: (ni ZO) | DF21: -72.63 | DG21: (ni ZO) | DH21: -59.33
A22: SE11-2010 | B22: 3.1 Sončne elektrarne - na stavbah 2010 | C22: 3.1 Sončne elektrarne - na stavbah 2010 | D22: mikro - manjše od 50kW | E22: SE11 | K22: =ROUND(F10*0.93,2) -> 386.38 | L22: 0 | M22: 386.38 | N22: =K22 -> 386.38 | O22: 0 | P22: 386.38 | Q22: =K22 -> 386.38 | R22: 0 | S22: 386.38 | T22: =K22 -> 386.38 | U22: 0 | V22: 386.38 | W22: =K22 -> 386.38 | X22: 0 | Y22: 386.38 | Z22: 386.38 | AA22: 0 | AB22: 386.38 | AC22: 386.38 | AD22: 0 | AE22: 386.38 | AF22: 386.38 | AG22: 0 | AH22: 386.38 | AI22: 386.38 | AJ22: 0 | AK22: 386.38 | AL22: 386.38 | AM22: 0 | AN22: 386.38 | AO22: 386.38 | AP22: 0 | AQ22: 386.38 | AR22: 386.38 | AS22: 0 | AT22: 386.38 | AU22: 386.38 | AV22: 0 | AW22: 386.38 | AX22: 386.38 | AY22: 0 | AZ22: 386.38 | BA22: 0.88 | BH22: =K22+L22 -> 386.38 | BI22: 339.38 | BJ22: =N22+O22 -> 386.38 | BK22: 339.63 | BL22: =Q22+R22 -> 386.38 | BM22: 337.28 | BN22: =T22+U22 -> 386.38 | BO22: 341.8 | BP22: =W22+X22 -> 386.38 | BQ22: 348.27 | BR22: =+Z22+AA22 -> 386.38 | BS22: 351.49 | BT22: =+AC22+AD22 -> 386.38 | BU22: 353.92 | BV22: =+AH22 -> 386.38 | BW22: 349.47 | BX22: =+AK22 -> 386.38 | BY22: 349.16 | BZ22: =+AN22 -> 386.38 | CA22: 330.05 | CB22: =+AQ22 -> 386.38 | CC22: 333.14 | CD22: =+AT22 -> 386.38 | CE22: 344.1 | CF22: =+AW22 -> 386.38 | CG22: 280.19 | CH22: =+AZ22 -> 386.38 | CI22: 227.98 | CK22: 0 | CL22: -2.35 | CM22: =BN22-BL22 -> 0 | CN22: 4.52 | CO22: =BP22-BN22 -> 0 | CP22: 6.47 | CQ22: 0 | CR22: 3.22 | CS22: 0 | CT22: 2.43 | CU22: =BV22-BT22 -> 0 | CV22: -4.45 | CW22: =BX22-BV22 -> 0 | CX22: -0.31 | CY22: =BZ22-BX22 -> 0 | CZ22: -19.11 | DA22: =CB22-BZ22 -> 0 | DB22: 3.09 | DC22: =CD22-CB22 -> 0 | DD22: 10.96 | DE22: =CF22-CD22 -> 0 | DF22: -63.91 | DG22: =CH22-CF22 -> 0 | DH22: -52.21
A23: SE12-2010 | B23: 3.1 Sončne elektrarne - na stavbah 2010 | D23: mala - manjše od 1MW | E23: SE12 | K23: =ROUND(F11*0.93,2) -> 353.42 | L23: 0 | M23: 353.42 | N23: =K23 -> 353.42 | O23: 0 | P23: 353.42 | Q23: 353.42 | R23: 0 | S23: 353.42 | T23: 353.42 | U23: 0 | V23: 353.42 | W23: 353.42 | X23: 0 | Y23: 353.42 | Z23: 353.42 | AA23: 0 | AB23: 353.42 | AC23: 353.42 | AD23: 0 | AE23: 353.42 | AF23: 353.42 | AG23: 0 | AH23: 353.42 | AI23: 353.42 | AJ23: 0 | AK23: 353.42 | AL23: 353.42 | AM23: 0 | AN23: 353.42 | AO23: 353.42 | AP23: 0 | AQ23: 353.42 | AR23: 353.42 | AS23: 0 | AT23: 353.42 | AU23: 353.42 | AV23: 0 | AW23: 353.42 | AX23: 353.42 | AY23: 0 | AZ23: 353.42 | BA23: 0.88 | BH23: =K23+L23 -> 353.42 | BI23: 306.42 | BJ23: =N23+O23 -> 353.42 | BK23: 306.67 | BL23: =Q23+R23 -> 353.42 | BM23: 304.32 | BN23: =T23+U23 -> 353.42 | BO23: 308.84 | BP23: =W23+X23 -> 353.42 | BQ23: 315.31 | BR23: =+Z23+AA23 -> 353.42 | BS23: 318.53 | BT23: =+AC23+AD23 -> 353.42 | BU23: 320.96 | BV23: =+AH23 -> 353.42 | BW23: 316.51 | BX23: =+AK23 -> 353.42 | BY23: 316.2 | BZ23: =+AN23 -> 353.42 | CA23: 297.09 | CB23: =+AQ23 -> 353.42 | CC23: 300.18 | CD23: =+AT23 -> 353.42 | CE23: 311.14 | CF23: =+AW23 -> 353.42 | CG23: 247.23 | CH23: 353.42 | CI23: 195.02 | CK23: 0 | CL23: -2.35 | CM23: 0 | CN23: 4.52 | CO23: 0 | CP23: 6.47 | CQ23: 0 | CR23: 3.22 | CS23: 0 | CT23: 2.43 | CU23: 0 | CV23: -4.45 | CW23: 0 | CX23: -0.31 | CY23: 0 | CZ23: -19.11 | DA23: 0 | DB23: 3.09 | DC23: 0 | DD23: 10.96 | DE23: 0 | DF23: -63.91 | DG23: 0 | DH23: -52.21
A24: SE13-2010 | B24: 3.1 Sončne elektrarne - na stavbah 2010 | D24: srednja - od 1MW do vključno 10MW | E24: SE13 | K24: 293.28 | L24: 0 | M24: 293.28 | N24: 293.28 | O24: 0 | P24: 293.28 | Q24: 293.28 | R24: 0 | S24: 293.28 | T24: 293.28 | U24: 0 | V24: 293.28 | W24: 293.28 | X24: 0 | Y24: 293.28 | Z24: 293.28 | AA24: 0 | AB24: 293.28 | AC24: 293.28 | AD24: 0 | AE24: 293.28 | AF24: 293.28 | AG24: 0 | AH24: 293.28 | AI24: 293.28 | AJ24: 0 | AK24: 293.28 | AL24: 293.28 | AM24: 0 | AN24: 293.28 | AO24: 293.28 | AP24: 0 | AQ24: 293.28 | AR24: 293.28 | AS24: 0 | AT24: 293.28 | AU24: 293.28 | AV24: 0 | AW24: 293.28 | AX24: 293.28 | AY24: 0 | AZ24: 293.28 | BA24: 0.91 | BH24: =K24+L24 -> 293.28 | BI24: 244.68 | BJ24: =N24+O24 -> 293.28 | BK24: 244.93 | BL24: =Q24+R24 -> 293.28 | BM24: 242.51 | BN24: =T24+U24 -> 293.28 | BO24: 247.18 | BP24: =W24+X24 -> 293.28 | BQ24: 253.87 | BR24: =+Z24+AA24 -> 293.28 | BS24: 257.2 | BT24: =+AC24+AD24 -> 293.28 | BU24: 259.71 | BV24: =+AH24 -> 293.28 | BW24: 255.11 | BX24: =+AK24 -> 293.28 | BY24: 254.79 | BZ24: =+AN24 -> 293.28 | CA24: 235.03 | CB24: =+AQ24 -> 293.28 | CC24: 238.23 | CD24: =+AT24 -> 293.28 | CE24: 249.56 | CF24: =+AW24 -> 293.28 | CG24: 183.47 | CH24: 293.28 | CI24: 129.48 | CK24: 0 | CL24: -2.42 | CM24: 0 | CN24: 4.67 | CO24: 0 | CP24: 6.69 | CQ24: 0 | CR24: 3.33 | CS24: 0 | CT24: 2.51 | CU24: 0 | CV24: -4.6 | CW24: 0 | CX24: -0.32 | CY24: 0 | CZ24: -19.76 | DA24: 0 | DB24: 3.2 | DC24: 0 | DD24: 11.33 | DE24: 0 | DF24: -66.09 | DG24: 0 | DH24: -53.99
A25: SE14-2010 | B25: 3.1 Sončne elektrarne - na stavbah 2010 | D25: velika - nad 10MW do vključno 125MW | E25: SE14 | K25: 261.06 | L25: 0 | M25: 261.06 | N25: 261.06 | O25: 0 | P25: 261.06 | Q25: 261.06 | R25: 0 | S25: 261.06 | T25: 261.06 | U25: 0 | V25: 261.06 | W25: 261.06 | X25: 0 | Y25: 261.06 | Z25: 261.06 | AA25: 0 | AB25: 261.06 | AC25: 261.06 | AD25: 0 | AE25: 261.06 | AF25: 261.06 | AG25: 0 | AH25: 261.06 | AI25: 261.06 | AJ25: 0 | AK25: 261.06 | AL25: 261.06 | AM25: 0 | AN25: 261.06 | AO25: 261.06 | AP25: 0 | AQ25: 261.06 | AR25: 261.06 | AS25: 0 | AT25: 261.06 | AU25: 261.06 | AV25: 0 | AW25: 261.06 | AX25: 261.06 | AY25: 0 | AZ25: 261.06 | BA25: 1 | BH25: (ni ZO) | BI25: 207.65 | BJ25: (ni ZO) | BK25: 207.93 | BL25: (ni ZO) | BM25: 205.27 | BN25: (ni ZO) | BO25: 210.4 | BP25: (ni ZO) | BQ25: 217.75 | BR25: (ni ZO) | BS25: 221.41 | BT25: (ni ZO) | BU25: 224.17 | BV25: (ni ZO) | BW25: 219.12 | BX25: (ni ZO) | BY25: 218.76 | BZ25: (ni ZO) | CA25: 197.05 | CB25: (ni ZO) | CC25: 200.56 | CD25: (ni ZO) | CE25: 213.02 | CF25: (ni ZO) | CG25: 140.39 | CH25: (ni ZO) | CI25: 81.06 | CK25: (ni ZO) | CL25: -2.66 | CM25: (ni ZO) | CN25: 5.13 | CO25: (ni ZO) | CP25: 7.35 | CQ25: (ni ZO) | CR25: 3.66 | CS25: (ni ZO) | CT25: 2.76 | CU25: (ni ZO) | CV25: -5.05 | CW25: (ni ZO) | CX25: -0.36 | CY25: (ni ZO) | CZ25: -21.71 | DA25: (ni ZO) | DB25: 3.51 | DC25: (ni ZO) | DD25: 12.46 | DE25: (ni ZO) | DF25: -72.63 | DG25: (ni ZO) | DH25: -59.33
C26: 3.1 INT Sončne elektrarne - integrirane 2010 | D26: mikro - manjše od 50kW | K26: =ROUND(K22*1.15,2) -> 444.34 | L26: 0 | M26: 444.34 | N26: 444.34 | O26: 0 | P26: 444.34 | Q26: 444.34 | R26: 0 | S26: 444.34 | T26: 444.34 | U26: 0 | V26: 444.34 | W26: 444.34 | X26: 0 | Y26: 444.34 | Z26: 444.34 | AA26: 0 | AB26: 444.34 | AC26: 444.34 | AD26: 0 | AE26: 444.34 | AF26: 444.34 | AG26: 0 | AH26: 444.34 | AI26: 444.34 | AJ26: 0 | AK26: 444.34 | AL26: 444.34 | AM26: 0 | AN26: 444.34 | AO26: 444.34 | AP26: 0 | AQ26: 444.34 | AR26: 444.34 | AS26: 0 | AT26: 444.34 | AU26: 444.34 | AV26: 0 | AW26: 444.34 | AX26: 444.34 | AY26: 0 | AZ26: 444.34 | BA26: 0.88 | BH26: =K26+L26 -> 444.34 | BI26: 397.34 | BJ26: =N26+O26 -> 444.34 | BK26: 397.59 | BL26: =Q26+R26 -> 444.34 | BM26: 395.24 | BN26: =T26+U26 -> 444.34 | BO26: 399.76 | BP26: =W26+X26 -> 444.34 | BQ26: 406.23 | BR26: =+Z26+AA26 -> 444.34 | BS26: 409.45 | BT26: =+AC26+AD26 -> 444.34 | BU26: 411.88 | BV26: =+AH26 -> 444.34 | BW26: 407.43 | BX26: =+AK26 -> 444.34 | BY26: 407.12 | BZ26: =+AN26 -> 444.34 | CA26: 388.01 | CB26: =+AQ26 -> 444.34 | CC26: 391.1 | CD26: =+AT26 -> 444.34 | CE26: 402.06 | CF26: =+AW26 -> 444.34 | CG26: 338.15 | CH26: =+AZ26 -> 444.34 | CI26: 285.94 | CK26: 0 | CL26: -2.35 | CM26: =BN26-BL26 -> 0 | CN26: 4.52 | CO26: =BP26-BN26 -> 0 | CP26: 6.47 | CQ26: 0 | CR26: 3.22 | CS26: 0 | CT26: 2.43 | CU26: =BV26-BT26 -> 0 | CV26: -4.45 | CW26: =BX26-BV26 -> 0 | CX26: -0.31 | CY26: =BZ26-BX26 -> 0 | CZ26: -19.11 | DA26: =CB26-BZ26 -> 0 | DB26: 3.09 | DC26: =CD26-CB26 -> 0 | DD26: 10.96 | DE26: =CF26-CD26 -> 0 | DF26: -63.91 | DG26: =CH26-CF26 -> 0 | DH26: -52.21
D27: mala - manjše od 1MW | K27: =ROUND(K23*1.15,2) -> 406.43 | L27: 0 | M27: 406.43 | N27: 406.43 | O27: 0 | P27: 406.43 | Q27: 406.43 | R27: 0 | S27: 406.43 | T27: 406.43 | U27: 0 | V27: 406.43 | W27: 406.43 | X27: 0 | Y27: 406.43 | Z27: 406.43 | AA27: 0 | AB27: 406.43 | AC27: 406.43 | AD27: 0 | AE27: 406.43 | AF27: 406.43 | AG27: 0 | AH27: 406.43 | AI27: 406.43 | AJ27: 0 | AK27: 406.43 | AL27: 406.43 | AM27: 0 | AN27: 406.43 | AO27: 406.43 | AP27: 0 | AQ27: 406.43 | AR27: 406.43 | AS27: 0 | AT27: 406.43 | AU27: 406.43 | AV27: 0 | AW27: 406.43 | AX27: 406.43 | AY27: 0 | AZ27: 406.43 | BA27: 0.88 | BH27: =K27+L27 -> 406.43 | BI27: 359.43 | BJ27: =N27+O27 -> 406.43 | BK27: 359.68 | BL27: =Q27+R27 -> 406.43 | BM27: 357.33 | BN27: =T27+U27 -> 406.43 | BO27: 361.85 | BP27: =W27+X27 -> 406.43 | BQ27: 368.32 | BR27: =+Z27+AA27 -> 406.43 | BS27: 371.54 | BT27: =+AC27+AD27 -> 406.43 | BU27: 373.97 | BV27: =+AH27 -> 406.43 | BW27: 369.52 | BX27: =+AK27 -> 406.43 | BY27: 369.21 | BZ27: =+AN27 -> 406.43 | CA27: 350.1 | CB27: =+AQ27 -> 406.43 | CC27: 353.19 | CD27: =+AT27 -> 406.43 | CE27: 364.15 | CF27: =+AW27 -> 406.43 | CG27: 300.24 | CH27: 406.43 | CI27: 248.03 | CK27: 0 | CL27: -2.35 | CM27: 0 | CN27: 4.52 | CO27: 0 | CP27: 6.47 | CQ27: 0 | CR27: 3.22 | CS27: 0 | CT27: 2.43 | CU27: 0 | CV27: -4.45 | CW27: 0 | CX27: -0.31 | CY27: 0 | CZ27: -19.11 | DA27: 0 | DB27: 3.09 | DC27: 0 | DD27: 10.96 | DE27: 0 | DF27: -63.91 | DG27: 0 | DH27: -52.21
D28: srednja - od 1MW do vključno 10MW | K28: 337.27 | L28: 0 | M28: 337.27 | N28: 337.27 | O28: 0 | P28: 337.27 | Q28: 337.27 | R28: 0 | S28: 337.27 | T28: 337.27 | U28: 0 | V28: 337.27 | W28: 337.27 | X28: 0 | Y28: 337.27 | Z28: 337.27 | AA28: 0 | AB28: 337.27 | AC28: 337.27 | AD28: 0 | AE28: 337.27 | AF28: 337.27 | AG28: 0 | AH28: 337.27 | AI28: 337.27 | AJ28: 0 | AK28: 337.27 | AL28: 337.27 | AM28: 0 | AN28: 337.27 | AO28: 337.27 | AP28: 0 | AQ28: 337.27 | AR28: 337.27 | AS28: 0 | AT28: 337.27 | AU28: 337.27 | AV28: 0 | AW28: 337.27 | AX28: 337.27 | AY28: 0 | AZ28: 337.27 | BA28: 0.91 | BH28: =K28+L28 -> 337.27 | BI28: 288.67 | BJ28: =N28+O28 -> 337.27 | BK28: 288.92 | BL28: =Q28+R28 -> 337.27 | BM28: 286.5 | BN28: =T28+U28 -> 337.27 | BO28: 291.17 | BP28: =W28+X28 -> 337.27 | BQ28: 297.86 | BR28: =+Z28+AA28 -> 337.27 | BS28: 301.19 | BT28: =+AC28+AD28 -> 337.27 | BU28: 303.7 | BV28: =+AH28 -> 337.27 | BW28: 299.1 | BX28: =+AK28 -> 337.27 | BY28: 298.78 | BZ28: =+AN28 -> 337.27 | CA28: 279.02 | CB28: =+AQ28 -> 337.27 | CC28: 282.22 | CD28: =+AT28 -> 337.27 | CE28: 293.55 | CF28: =+AW28 -> 337.27 | CG28: 227.46 | CH28: 337.27 | CI28: 173.47 | CK28: 0 | CL28: -2.42 | CM28: 0 | CN28: 4.67 | CO28: 0 | CP28: 6.69 | CQ28: 0 | CR28: 3.33 | CS28: 0 | CT28: 2.51 | CU28: 0 | CV28: -4.6 | CW28: 0 | CX28: -0.32 | CY28: 0 | CZ28: -19.76 | DA28: 0 | DB28: 3.2 | DC28: 0 | DD28: 11.33 | DE28: 0 | DF28: -66.09 | DG28: 0 | DH28: -53.99
D29: velika - nad 10MW do vključno 125MW | K29: 300.22 | L29: 0 | M29: 300.22 | N29: 300.22 | O29: 0 | P29: 300.22 | Q29: 300.22 | R29: 0 | S29: 300.22 | T29: 300.22 | U29: 0 | V29: 300.22 | W29: 300.22 | X29: 0 | Y29: 300.22 | Z29: 300.22 | AA29: 0 | AB29: 300.22 | AC29: 300.22 | AD29: 0 | AE29: 300.22 | AF29: 300.22 | AG29: 0 | AH29: 300.22 | AI29: 300.22 | AJ29: 0 | AK29: 300.22 | AL29: 300.22 | AM29: 0 | AN29: 300.22 | AO29: 300.22 | AP29: 0 | AQ29: 300.22 | AR29: 300.22 | AS29: 0 | AT29: 300.22 | AU29: 300.22 | AV29: 0 | AW29: 300.22 | AX29: 300.22 | AY29: 0 | AZ29: 300.22 | BA29: 1 | BH29: (ni ZO) | BI29: 246.81 | BJ29: (ni ZO) | BK29: 247.09 | BL29: (ni ZO) | BM29: 244.43 | BN29: (ni ZO) | BO29: 249.56 | BP29: (ni ZO) | BQ29: 256.91 | BR29: (ni ZO) | BS29: 260.57 | BT29: (ni ZO) | BU29: 263.33 | BV29: (ni ZO) | BW29: 258.28 | BX29: (ni ZO) | BY29: 257.92 | BZ29: (ni ZO) | CA29: 236.21 | CB29: (ni ZO) | CC29: 239.72 | CD29: (ni ZO) | CE29: 252.18 | CF29: (ni ZO) | CG29: 179.55 | CH29: (ni ZO) | CI29: 120.22 | CK29: (ni ZO) | CL29: -2.66 | CM29: (ni ZO) | CN29: 5.13 | CO29: (ni ZO) | CP29: 7.35 | CQ29: (ni ZO) | CR29: 3.66 | CS29: (ni ZO) | CT29: 2.76 | CU29: (ni ZO) | CV29: -5.05 | CW29: (ni ZO) | CX29: -0.36 | CY29: (ni ZO) | CZ29: -21.71 | DA29: (ni ZO) | DB29: 3.51 | DC29: (ni ZO) | DD29: 12.46 | DE29: (ni ZO) | DF29: -72.63 | DG29: (ni ZO) | DH29: -59.33
A30: SE21-2010 | B30: 3.2 Sončne elektrarne - samostojni objekti 2010 | C30: 3.2 Sončne elektrarne - samostojni objekti 2010 | D30: mikro - manjše od 50kW | E30: SE21 | K30: 363.09 | L30: 0 | M30: 363.09 | N30: 363.09 | O30: 0 | P30: 363.09 | Q30: 363.09 | R30: 0 | S30: 363.09 | T30: 363.09 | U30: 0 | V30: 363.09 | W30: 363.09 | X30: 0 | Y30: 363.09 | Z30: 363.09 | AA30: 0 | AB30: 363.09 | AC30: 363.09 | AD30: 0 | AE30: 363.09 | AF30: 363.09 | AG30: 0 | AH30: 363.09 | AI30: 363.09 | AJ30: 0 | AK30: 363.09 | AL30: 363.09 | AM30: 0 | AN30: 363.09 | AO30: 363.09 | AP30: 0 | AQ30: 363.09 | AR30: 363.09 | AS30: 0 | AT30: 363.09 | AU30: 363.09 | AV30: 0 | AW30: 363.09 | AX30: 363.09 | AY30: 0 | AZ30: 363.09 | BA30: 0.88 | BH30: =K30+L30 -> 363.09 | BI30: 316.09 | BJ30: =N30+O30 -> 363.09 | BK30: 316.34 | BL30: =Q30+R30 -> 363.09 | BM30: 313.99 | BN30: =T30+U30 -> 363.09 | BO30: 318.51 | BP30: =W30+X30 -> 363.09 | BQ30: 324.98 | BR30: =+Z30+AA30 -> 363.09 | BS30: 328.2 | BT30: =+AC30+AD30 -> 363.09 | BU30: 330.63 | BV30: =+AH30 -> 363.09 | BW30: 326.18 | BX30: =+AK30 -> 363.09 | BY30: 325.87 | BZ30: =+AN30 -> 363.09 | CA30: 306.76 | CB30: =+AQ30 -> 363.09 | CC30: 309.85 | CD30: =+AT30 -> 363.09 | CE30: 320.81 | CF30: =+AW30 -> 363.09 | CG30: 256.9 | CH30: =+AZ30 -> 363.09 | CI30: 204.69 | CK30: 0 | CL30: -2.35 | CM30: =BN30-BL30 -> 0 | CN30: 4.52 | CO30: =BP30-BN30 -> 0 | CP30: 6.47 | CQ30: 0 | CR30: 3.22 | CS30: 0 | CT30: 2.43 | CU30: =BV30-BT30 -> 0 | CV30: -4.45 | CW30: =BX30-BV30 -> 0 | CX30: -0.31 | CY30: =BZ30-BX30 -> 0 | CZ30: -19.11 | DA30: =CB30-BZ30 -> 0 | DB30: 3.09 | DC30: =CD30-CB30 -> 0 | DD30: 10.96 | DE30: =CF30-CD30 -> 0 | DF30: -63.91 | DG30: =CH30-CF30 -> 0 | DH30: -52.21
A31: SE22-2010 | B31: 3.2 Sončne elektrarne - samostojni objekti 2010 | D31: mala - manjše od 1MW | E31: SE22 | K31: 334.53 | L31: 0 | M31: 334.53 | N31: 334.53 | O31: 0 | P31: 334.53 | Q31: 334.53 | R31: 0 | S31: 334.53 | T31: 334.53 | U31: 0 | V31: 334.53 | W31: 334.53 | X31: 0 | Y31: 334.53 | Z31: 334.53 | AA31: 0 | AB31: 334.53 | AC31: 334.53 | AD31: 0 | AE31: 334.53 | AF31: 334.53 | AG31: 0 | AH31: 334.53 | AI31: 334.53 | AJ31: 0 | AK31: 334.53 | AL31: 334.53 | AM31: 0 | AN31: 334.53 | AO31: 334.53 | AP31: 0 | AQ31: 334.53 | AR31: 334.53 | AS31: 0 | AT31: 334.53 | AU31: 334.53 | AV31: 0 | AW31: 334.53 | AX31: 334.53 | AY31: 0 | AZ31: 334.53 | BA31: 0.88 | BH31: =K31+L31 -> 334.53 | BI31: 287.53 | BJ31: =N31+O31 -> 334.53 | BK31: 287.78 | BL31: =Q31+R31 -> 334.53 | BM31: 285.43 | BN31: =T31+U31 -> 334.53 | BO31: 289.95 | BP31: =W31+X31 -> 334.53 | BQ31: 296.42 | BR31: =+Z31+AA31 -> 334.53 | BS31: 299.64 | BT31: =+AC31+AD31 -> 334.53 | BU31: 302.07 | BV31: =+AH31 -> 334.53 | BW31: 297.62 | BX31: =+AK31 -> 334.53 | BY31: 297.31 | BZ31: =+AN31 -> 334.53 | CA31: 278.2 | CB31: =+AQ31 -> 334.53 | CC31: 281.29 | CD31: =+AT31 -> 334.53 | CE31: 292.25 | CF31: =+AW31 -> 334.53 | CG31: 228.34 | CH31: 334.53 | CI31: 176.13 | CK31: 0 | CL31: -2.35 | CM31: 0 | CN31: 4.52 | CO31: 0 | CP31: 6.47 | CQ31: 0 | CR31: 3.22 | CS31: 0 | CT31: 2.43 | CU31: 0 | CV31: -4.45 | CW31: 0 | CX31: -0.31 | CY31: 0 | CZ31: -19.11 | DA31: 0 | DB31: 3.09 | DC31: 0 | DD31: 10.96 | DE31: 0 | DF31: -63.91 | DG31: 0 | DH31: -52.21
A32: SE23-2010 | B32: 3.2 Sončne elektrarne - samostojni objekti 2010 | D32: srednja - od 1MW do vključno 10MW | E32: SE23 | K32: 269.68 | L32: 0 | M32: 269.68 | N32: 269.68 | O32: 0 | P32: 269.68 | Q32: 269.68 | R32: 0 | S32: 269.68 | T32: 269.68 | U32: 0 | V32: 269.68 | W32: 269.68 | X32: 0 | Y32: 269.68 | Z32: 269.68 | AA32: 0 | AB32: 269.68 | AC32: 269.68 | AD32: 0 | AE32: 269.68 | AF32: 269.68 | AG32: 0 | AH32: 269.68 | AI32: 269.68 | AJ32: 0 | AK32: 269.68 | AL32: 269.68 | AM32: 0 | AN32: 269.68 | AO32: 269.68 | AP32: 0 | AQ32: 269.68 | AR32: 269.68 | AS32: 0 | AT32: 269.68 | AU32: 269.68 | AV32: 0 | AW32: 269.68 | AX32: 269.68 | AY32: 0 | AZ32: 269.68 | BA32: 0.91 | BH32: =K32+L32 -> 269.68 | BI32: 221.08 | BJ32: =N32+O32 -> 269.68 | BK32: 221.33 | BL32: =Q32+R32 -> 269.68 | BM32: 218.91 | BN32: =T32+U32 -> 269.68 | BO32: 223.58 | BP32: =W32+X32 -> 269.68 | BQ32: 230.27 | BR32: =+Z32+AA32 -> 269.68 | BS32: 233.6 | BT32: =+AC32+AD32 -> 269.68 | BU32: 236.11 | BV32: =+AH32 -> 269.68 | BW32: 231.51 | BX32: =+AK32 -> 269.68 | BY32: 231.19 | BZ32: =+AN32 -> 269.68 | CA32: 211.43 | CB32: =+AQ32 -> 269.68 | CC32: 214.63 | CD32: =+AT32 -> 269.68 | CE32: 225.96 | CF32: =+AW32 -> 269.68 | CG32: 159.87 | CH32: 269.68 | CI32: 105.88 | CK32: 0 | CL32: -2.42 | CM32: 0 | CN32: 4.67 | CO32: 0 | CP32: 6.69 | CQ32: 0 | CR32: 3.33 | CS32: 0 | CT32: 2.51 | CU32: 0 | CV32: -4.6 | CW32: 0 | CX32: -0.32 | CY32: 0 | CZ32: -19.76 | DA32: 0 | DB32: 3.2 | DC32: 0 | DD32: 11.33 | DE32: 0 | DF32: -66.09 | DG32: 0 | DH32: -53.99
A33: SE24-2010 | B33: 3.2 Sončne elektrarne - samostojni objekti 2010 | D33: velika - nad 10MW do vključno 125MW | E33: SE24 | K33: 250.37 | L33: 0 | M33: 250.37 | N33: 250.37 | O33: 0 | P33: 250.37 | Q33: 250.37 | R33: 0 | S33: 250.37 | T33: =K33 -> 250.37 | U33: 0 | V33: 250.37 | W33: =K33 -> 250.37 | X33: 0 | Y33: 250.37 | Z33: 250.37 | AA33: 0 | AB33: 250.37 | AC33: 250.37 | AD33: 0 | AE33: 250.37 | AF33: 250.37 | AG33: 0 | AH33: 250.37 | AI33: 250.37 | AJ33: 0 | AK33: 250.37 | AL33: 250.37 | AM33: 0 | AN33: 250.37 | AO33: 250.37 | AP33: 0 | AQ33: 250.37 | AR33: 250.37 | AS33: 0 | AT33: 250.37 | AU33: 250.37 | AV33: 0 | AW33: 250.37 | AX33: 250.37 | AY33: 0 | AZ33: 250.37 | BA33: 1 | BH33: (ni ZO) | BI33: 196.96 | BJ33: (ni ZO) | BK33: 197.24 | BL33: (ni ZO) | BM33: 194.58 | BN33: (ni ZO) | BO33: 199.71 | BP33: (ni ZO) | BQ33: 207.06 | BR33: (ni ZO) | BS33: 210.72 | BT33: (ni ZO) | BU33: 213.48 | BV33: (ni ZO) | BW33: 208.43 | BX33: (ni ZO) | BY33: 208.07 | BZ33: (ni ZO) | CA33: 186.36 | CB33: (ni ZO) | CC33: 189.87 | CD33: (ni ZO) | CE33: 202.33 | CF33: (ni ZO) | CG33: 129.7 | CH33: (ni ZO) | CI33: 70.37 | CK33: (ni ZO) | CL33: -2.66 | CM33: (ni ZO) | CN33: 5.13 | CO33: (ni ZO) | CP33: 7.35 | CQ33: (ni ZO) | CR33: 3.66 | CS33: (ni ZO) | CT33: 2.76 | CU33: (ni ZO) | CV33: -5.05 | CW33: (ni ZO) | CX33: -0.36 | CY33: (ni ZO) | CZ33: -21.71 | DA33: (ni ZO) | DB33: 3.51 | DC33: (ni ZO) | DD33: 12.46 | DE33: (ni ZO) | DF33: -72.63 | DG33: (ni ZO) | DH33: -59.33
A34: SE11-2011 | B34: 3.1 Sončne elektrarne - na stavbah 2011 | C34: 3.1 Sončne elektrarne - na stavbah 2011 | D34: mikro - manjše od 50kW | E34: SE11 | N34: =ROUND(F10*0.8,2) -> 332.37 | O34: 0 | P34: 332.37 | Q34: =N34 -> 332.37 | R34: 0 | S34: 332.37 | T34: =N34 -> 332.37 | U34: 0 | V34: 332.37 | W34: =N34 -> 332.37 | X34: 0 | Y34: 332.37 | Z34: 332.37 | AA34: 0 | AB34: 332.37 | AC34: 332.37 | AD34: 0 | AE34: 332.37 | AF34: 332.37 | AG34: 0 | AH34: 332.37 | AI34: 332.37 | AJ34: 0 | AK34: 332.37 | AL34: 332.37 | AM34: 0 | AN34: 332.37 | AO34: 332.37 | AP34: 0 | AQ34: 332.37 | AR34: 332.37 | AS34: 0 | AT34: 332.37 | AU34: 332.37 | AV34: 0 | AW34: 332.37 | AX34: 332.37 | AY34: 0 | AZ34: 332.37 | BA34: 0.88 | BJ34: =N34+O34 -> 332.37 | BK34: 285.62 | BL34: =Q34+R34 -> 332.37 | BM34: =ROUND((Q34+R34)-BA34*$P$326,2) -> 283.27 | BN34: =T34+U34 -> 332.37 | BO34: =ROUND((T34+U34)-BA34*$O$326,2) -> 287.79 | BP34: =W34+X34 -> 332.37 | BQ34: 294.26 | BR34: =+Z34+AA34 -> 332.37 | BS34: 297.48 | BT34: =+AC34+AD34 -> 332.37 | BU34: 299.91 | BV34: =+AH34 -> 332.37 | BW34: 295.46 | BX34: =+AK34 -> 332.37 | BY34: 295.15 | BZ34: =+AN34 -> 332.37 | CA34: 276.04 | CB34: =+AQ34 -> 332.37 | CC34: 279.13 | CD34: =+AT34 -> 332.37 | CE34: 290.09 | CF34: =+AW34 -> 332.37 | CG34: 226.18 | CH34: =+AZ34 -> 332.37 | CI34: 173.97 | CK34: 0 | CL34: -2.35 | CM34: =BN34-BL34 -> 0 | CN34: 4.52 | CO34: =BP34-BN34 -> 0 | CP34: 6.47 | CQ34: 0 | CR34: 3.22 | CS34: 0 | CT34: 2.43 | CU34: =BV34-BT34 -> 0 | CV34: -4.45 | CW34: =BX34-BV34 -> 0 | CX34: -0.31 | CY34: =BZ34-BX34 -> 0 | CZ34: -19.11 | DA34: =CB34-BZ34 -> 0 | DB34: 3.09 | DC34: =CD34-CB34 -> 0 | DD34: 10.96 | DE34: =CF34-CD34 -> 0 | DF34: -63.91 | DG34: =CH34-CF34 -> 0 | DH34: -52.21
A35: SE12-2011 | B35: 3.1 Sončne elektrarne - na stavbah 2011 | D35: mala - manjše od 1MW | E35: SE12 | N35: 304.02 | O35: 0 | P35: 304.02 | Q35: =N35 -> 304.02 | R35: 0 | S35: 304.02 | T35: 304.02 | U35: 0 | V35: 304.02 | W35: 304.02 | X35: 0 | Y35: 304.02 | Z35: 304.02 | AA35: 0 | AB35: 304.02 | AC35: 304.02 | AD35: 0 | AE35: 304.02 | AF35: 304.02 | AG35: 0 | AH35: 304.02 | AI35: 304.02 | AJ35: 0 | AK35: 304.02 | AL35: 304.02 | AM35: 0 | AN35: 304.02 | AO35: 304.02 | AP35: 0 | AQ35: 304.02 | AR35: 304.02 | AS35: 0 | AT35: 304.02 | AU35: 304.02 | AV35: 0 | AW35: 304.02 | AX35: 304.02 | AY35: 0 | AZ35: 304.02 | BA35: 0.88 | BJ35: =N35+O35 -> 304.02 | BK35: 257.27 | BL35: =Q35+R35 -> 304.02 | BM35: 254.92 | BN35: =T35+U35 -> 304.02 | BO35: 259.44 | BP35: =W35+X35 -> 304.02 | BQ35: 265.91 | BR35: =+Z35+AA35 -> 304.02 | BS35: 269.13 | BT35: =+AC35+AD35 -> 304.02 | BU35: 271.56 | BV35: =+AH35 -> 304.02 | BW35: 267.11 | BX35: =+AK35 -> 304.02 | BY35: 266.8 | BZ35: =+AN35 -> 304.02 | CA35: 247.69 | CB35: =+AQ35 -> 304.02 | CC35: 250.78 | CD35: =+AT35 -> 304.02 | CE35: 261.74 | CF35: =+AW35 -> 304.02 | CG35: 197.83 | CH35: 304.02 | CI35: 145.62 | CK35: 0 | CL35: -2.35 | CM35: 0 | CN35: 4.52 | CO35: 0 | CP35: 6.47 | CQ35: 0 | CR35: 3.22 | CS35: 0 | CT35: 2.43 | CU35: 0 | CV35: -4.45 | CW35: 0 | CX35: -0.31 | CY35: 0 | CZ35: -19.11 | DA35: 0 | DB35: 3.09 | DC35: 0 | DD35: 10.96 | DE35: 0 | DF35: -63.91 | DG35: 0 | DH35: -52.21
A36: SE13-2011 | B36: 3.1 Sončne elektrarne - na stavbah 2011 | D36: srednja - od 1MW do vključno 10MW | E36: SE13 | N36: 252.29 | O36: 0 | P36: 252.29 | Q36: 252.29 | R36: 0 | S36: 252.29 | T36: 252.29 | U36: 0 | V36: 252.29 | W36: 252.29 | X36: 0 | Y36: 252.29 | Z36: 252.29 | AA36: 0 | AB36: 252.29 | AC36: 252.29 | AD36: 0 | AE36: 252.29 | AF36: 252.29 | AG36: 0 | AH36: 252.29 | AI36: 252.29 | AJ36: 0 | AK36: 252.29 | AL36: 252.29 | AM36: 0 | AN36: 252.29 | AO36: 252.29 | AP36: 0 | AQ36: 252.29 | AR36: 252.29 | AS36: 0 | AT36: 252.29 | AU36: 252.29 | AV36: 0 | AW36: 252.29 | AX36: 252.29 | AY36: 0 | AZ36: 252.29 | BA36: 0.91 | BJ36: =N36+O36 -> 252.29 | BK36: 203.94 | BL36: =Q36+R36 -> 252.29 | BM36: 201.52 | BN36: =T36+U36 -> 252.29 | BO36: 206.19 | BP36: =W36+X36 -> 252.29 | BQ36: 212.88 | BR36: =+Z36+AA36 -> 252.29 | BS36: 216.21 | BT36: =+AC36+AD36 -> 252.29 | BU36: 218.72 | BV36: =+AH36 -> 252.29 | BW36: 214.12 | BX36: =+AK36 -> 252.29 | BY36: 213.8 | BZ36: =+AN36 -> 252.29 | CA36: 194.04 | CB36: =+AQ36 -> 252.29 | CC36: 197.24 | CD36: =+AT36 -> 252.29 | CE36: 208.57 | CF36: =+AW36 -> 252.29 | CG36: 142.48 | CH36: 252.29 | CI36: 88.49 | CK36: 0 | CL36: -2.42 | CM36: 0 | CN36: 4.67 | CO36: 0 | CP36: 6.69 | CQ36: 0 | CR36: 3.33 | CS36: 0 | CT36: 2.51 | CU36: 0 | CV36: -4.6 | CW36: 0 | CX36: -0.32 | CY36: 0 | CZ36: -19.76 | DA36: 0 | DB36: 3.2 | DC36: 0 | DD36: 11.33 | DE36: 0 | DF36: -66.09 | DG36: 0 | DH36: -53.99
A37: SE14-2011 | B37: 3.1 Sončne elektrarne - na stavbah 2011 | D37: velika - nad 10MW do vključno 125MW | E37: SE14 | N37: 224.57 | O37: 0 | P37: 224.57 | Q37: 224.57 | R37: 0 | S37: 224.57 | T37: 224.57 | U37: 0 | V37: 224.57 | W37: 224.57 | X37: 0 | Y37: 224.57 | Z37: 224.57 | AA37: 0 | AB37: 224.57 | AC37: 224.57 | AD37: 0 | AE37: 224.57 | AF37: 224.57 | AG37: 0 | AH37: 224.57 | AI37: 224.57 | AJ37: 0 | AK37: 224.57 | AL37: 224.57 | AM37: 0 | AN37: 224.57 | AO37: 224.57 | AP37: 0 | AQ37: 224.57 | AR37: 224.57 | AS37: 0 | AT37: 224.57 | AU37: 224.57 | AV37: 0 | AW37: 224.57 | AX37: 224.57 | AY37: 0 | AZ37: 224.57 | BA37: 1 | BJ37: (ni ZO) | BK37: 171.44 | BL37: (ni ZO) | BM37: 168.78 | BN37: (ni ZO) | BO37: 173.91 | BP37: (ni ZO) | BQ37: 181.26 | BR37: (ni ZO) | BS37: 184.92 | BT37: (ni ZO) | BU37: 187.68 | BV37: (ni ZO) | BW37: 182.63 | BX37: (ni ZO) | BY37: 182.27 | BZ37: (ni ZO) | CA37: 160.56 | CB37: (ni ZO) | CC37: 164.07 | CD37: (ni ZO) | CE37: 176.53 | CF37: (ni ZO) | CG37: 103.9 | CH37: (ni ZO) | CI37: 44.57 | CK37: (ni ZO) | CL37: -2.66 | CM37: (ni ZO) | CN37: 5.13 | CO37: (ni ZO) | CP37: 7.35 | CQ37: (ni ZO) | CR37: 3.66 | CS37: (ni ZO) | CT37: 2.76 | CU37: (ni ZO) | CV37: -5.05 | CW37: (ni ZO) | CX37: -0.36 | CY37: (ni ZO) | CZ37: -21.71 | DA37: (ni ZO) | DB37: 3.51 | DC37: (ni ZO) | DD37: 12.46 | DE37: (ni ZO) | DF37: -72.63 | DG37: (ni ZO) | DH37: -59.33
C38: 3.1 INT Sončne elektrarne - integrirane 2011 | D38: mikro - manjše od 50kW | N38: =ROUND(N34*1.15,2) -> 382.23 | O38: 0 | P38: 382.23 | Q38: 382.23 | R38: 0 | S38: 382.23 | T38: 382.23 | U38: 0 | V38: 382.23 | W38: 382.23 | X38: 0 | Y38: 382.23 | Z38: 382.23 | AA38: 0 | AB38: 382.23 | AC38: 382.23 | AD38: 0 | AE38: 382.23 | AF38: 382.23 | AG38: 0 | AH38: 382.23 | AI38: 382.23 | AJ38: 0 | AK38: 382.23 | AL38: 382.23 | AM38: 0 | AN38: 382.23 | AO38: 382.23 | AP38: 0 | AQ38: 382.23 | AR38: 382.23 | AS38: 0 | AT38: 382.23 | AU38: 382.23 | AV38: 0 | AW38: 382.23 | AX38: 382.23 | AY38: 0 | AZ38: 382.23 | BA38: 0.88 | BJ38: =N38+O38 -> 382.23 | BK38: 335.48 | BL38: =Q38+R38 -> 382.23 | BM38: 333.13 | BN38: =T38+U38 -> 382.23 | BO38: 337.65 | BP38: =W38+X38 -> 382.23 | BQ38: 344.12 | BR38: =+Z38+AA38 -> 382.23 | BS38: 347.34 | BT38: =+AC38+AD38 -> 382.23 | BU38: 349.77 | BV38: =+AH38 -> 382.23 | BW38: 345.32 | BX38: =+AK38 -> 382.23 | BY38: 345.01 | BZ38: =+AN38 -> 382.23 | CA38: 325.9 | CB38: =+AQ38 -> 382.23 | CC38: 328.99 | CD38: =+AT38 -> 382.23 | CE38: 339.95 | CF38: =+AW38 -> 382.23 | CG38: 276.04 | CH38: =+AZ38 -> 382.23 | CI38: 223.83 | CK38: 0 | CL38: -2.35 | CM38: =BN38-BL38 -> 0 | CN38: 4.52 | CO38: =BP38-BN38 -> 0 | CP38: 6.47 | CQ38: 0 | CR38: 3.22 | CS38: 0 | CT38: 2.43 | CU38: =BV38-BT38 -> 0 | CV38: -4.45 | CW38: =BX38-BV38 -> 0 | CX38: -0.31 | CY38: =BZ38-BX38 -> 0 | CZ38: -19.11 | DA38: =CB38-BZ38 -> 0 | DB38: 3.09 | DC38: =CD38-CB38 -> 0 | DD38: 10.96 | DE38: =CF38-CD38 -> 0 | DF38: -63.91 | DG38: =CH38-CF38 -> 0 | DH38: -52.21
D39: mala - manjše od 1MW | N39: =ROUND(N35*1.15,2) -> 349.62 | O39: 0 | P39: 349.62 | Q39: 349.62 | R39: 0 | S39: 349.62 | T39: 349.62 | U39: 0 | V39: 349.62 | W39: 349.62 | X39: 0 | Y39: 349.62 | Z39: 349.62 | AA39: 0 | AB39: 349.62 | AC39: 349.62 | AD39: 0 | AE39: 349.62 | AF39: 349.62 | AG39: 0 | AH39: 349.62 | AI39: 349.62 | AJ39: 0 | AK39: 349.62 | AL39: 349.62 | AM39: 0 | AN39: 349.62 | AO39: 349.62 | AP39: 0 | AQ39: 349.62 | AR39: 349.62 | AS39: 0 | AT39: 349.62 | AU39: 349.62 | AV39: 0 | AW39: 349.62 | AX39: 349.62 | AY39: 0 | AZ39: 349.62 | BA39: 0.88 | BJ39: =N39+O39 -> 349.62 | BK39: 302.87 | BL39: =Q39+R39 -> 349.62 | BM39: 300.52 | BN39: =T39+U39 -> 349.62 | BO39: 305.04 | BP39: =W39+X39 -> 349.62 | BQ39: 311.51 | BR39: =+Z39+AA39 -> 349.62 | BS39: 314.73 | BT39: =+AC39+AD39 -> 349.62 | BU39: 317.16 | BV39: =+AH39 -> 349.62 | BW39: 312.71 | BX39: =+AK39 -> 349.62 | BY39: 312.4 | BZ39: =+AN39 -> 349.62 | CA39: 293.29 | CB39: =+AQ39 -> 349.62 | CC39: 296.38 | CD39: =+AT39 -> 349.62 | CE39: 307.34 | CF39: =+AW39 -> 349.62 | CG39: 243.43 | CH39: 349.62 | CI39: 191.22 | CK39: 0 | CL39: -2.35 | CM39: 0 | CN39: 4.52 | CO39: 0 | CP39: 6.47 | CQ39: 0 | CR39: 3.22 | CS39: 0 | CT39: 2.43 | CU39: 0 | CV39: -4.45 | CW39: 0 | CX39: -0.31 | CY39: 0 | CZ39: -19.11 | DA39: 0 | DB39: 3.09 | DC39: 0 | DD39: 10.96 | DE39: 0 | DF39: -63.91 | DG39: 0 | DH39: -52.21
D40: srednja - od 1MW do vključno 10MW | N40: 290.13 | O40: 0 | P40: 290.13 | Q40: 290.13 | R40: 0 | S40: 290.13 | T40: 290.13 | U40: 0 | V40: 290.13 | W40: 290.13 | X40: 0 | Y40: 290.13 | Z40: 290.13 | AA40: 0 | AB40: 290.13 | AC40: 290.13 | AD40: 0 | AE40: 290.13 | AF40: 290.13 | AG40: 0 | AH40: 290.13 | AI40: 290.13 | AJ40: 0 | AK40: 290.13 | AL40: 290.13 | AM40: 0 | AN40: 290.13 | AO40: 290.13 | AP40: 0 | AQ40: 290.13 | AR40: 290.13 | AS40: 0 | AT40: 290.13 | AU40: 290.13 | AV40: 0 | AW40: 290.13 | AX40: 290.13 | AY40: 0 | AZ40: 290.13 | BA40: 0.91 | BJ40: =N40+O40 -> 290.13 | BK40: 241.78 | BL40: =Q40+R40 -> 290.13 | BM40: 239.36 | BN40: =T40+U40 -> 290.13 | BO40: 244.03 | BP40: =W40+X40 -> 290.13 | BQ40: 250.72 | BR40: =+Z40+AA40 -> 290.13 | BS40: 254.05 | BT40: =+AC40+AD40 -> 290.13 | BU40: 256.56 | BV40: =+AH40 -> 290.13 | BW40: 251.96 | BX40: =+AK40 -> 290.13 | BY40: 251.64 | BZ40: =+AN40 -> 290.13 | CA40: 231.88 | CB40: =+AQ40 -> 290.13 | CC40: 235.08 | CD40: =+AT40 -> 290.13 | CE40: 246.41 | CF40: =+AW40 -> 290.13 | CG40: 180.32 | CH40: 290.13 | CI40: 126.33 | CK40: 0 | CL40: -2.42 | CM40: 0 | CN40: 4.67 | CO40: 0 | CP40: 6.69 | CQ40: 0 | CR40: 3.33 | CS40: 0 | CT40: 2.51 | CU40: 0 | CV40: -4.6 | CW40: 0 | CX40: -0.32 | CY40: 0 | CZ40: -19.76 | DA40: 0 | DB40: 3.2 | DC40: 0 | DD40: 11.33 | DE40: 0 | DF40: -66.09 | DG40: 0 | DH40: -53.99
D41: velika - nad 10MW do vključno 125MW | N41: 258.26 | O41: 0 | P41: 258.26 | Q41: 258.26 | R41: 0 | S41: 258.26 | T41: 258.26 | U41: 0 | V41: 258.26 | W41: 258.26 | X41: 0 | Y41: 258.26 | Z41: 258.26 | AA41: 0 | AB41: 258.26 | AC41: 258.26 | AD41: 0 | AE41: 258.26 | AF41: 258.26 | AG41: 0 | AH41: 258.26 | AI41: 258.26 | AJ41: 0 | AK41: 258.26 | AL41: 258.26 | AM41: 0 | AN41: 258.26 | AO41: 258.26 | AP41: 0 | AQ41: 258.26 | AR41: 258.26 | AS41: 0 | AT41: 258.26 | AU41: 258.26 | AV41: 0 | AW41: 258.26 | AX41: 258.26 | AY41: 0 | AZ41: 258.26 | BA41: 1 | BJ41: (ni ZO) | BK41: 205.13 | BL41: (ni ZO) | BM41: 202.47 | BN41: (ni ZO) | BO41: 207.6 | BP41: (ni ZO) | BQ41: 214.95 | BR41: (ni ZO) | BS41: 218.61 | BT41: (ni ZO) | BU41: 221.37 | BV41: (ni ZO) | BW41: 216.32 | BX41: (ni ZO) | BY41: 215.96 | BZ41: (ni ZO) | CA41: 194.25 | CB41: (ni ZO) | CC41: 197.76 | CD41: (ni ZO) | CE41: 210.22 | CF41: (ni ZO) | CG41: 137.59 | CH41: (ni ZO) | CI41: 78.26 | CK41: (ni ZO) | CL41: -2.66 | CM41: (ni ZO) | CN41: 5.13 | CO41: (ni ZO) | CP41: 7.35 | CQ41: (ni ZO) | CR41: 3.66 | CS41: (ni ZO) | CT41: 2.76 | CU41: (ni ZO) | CV41: -5.05 | CW41: (ni ZO) | CX41: -0.36 | CY41: (ni ZO) | CZ41: -21.71 | DA41: (ni ZO) | DB41: 3.51 | DC41: (ni ZO) | DD41: 12.46 | DE41: (ni ZO) | DF41: -72.63 | DG41: (ni ZO) | DH41: -59.33
A42: SE21-2011 | B42: 3.2 Sončne elektrarne - samostojni objekti 2011 | C42: 3.2 Sončne elektrarne - samostojni objekti 2011 | D42: mikro - manjše od 50kW | E42: SE21 | N42: 312.34 | O42: 0 | P42: 312.34 | Q42: 312.34 | R42: 0 | S42: 312.34 | T42: 312.34 | U42: 0 | V42: 312.34 | W42: 312.34 | X42: 0 | Y42: 312.34 | Z42: 312.34 | AA42: 0 | AB42: 312.34 | AC42: 312.34 | AD42: 0 | AE42: 312.34 | AF42: 312.34 | AG42: 0 | AH42: 312.34 | AI42: 312.34 | AJ42: 0 | AK42: 312.34 | AL42: 312.34 | AM42: 0 | AN42: 312.34 | AO42: 312.34 | AP42: 0 | AQ42: 312.34 | AR42: 312.34 | AS42: 0 | AT42: 312.34 | AU42: 312.34 | AV42: 0 | AW42: 312.34 | AX42: 312.34 | AY42: 0 | AZ42: 312.34 | BA42: 0.88 | BJ42: =N42+O42 -> 312.34 | BK42: 265.59 | BL42: =Q42+R42 -> 312.34 | BM42: 263.24 | BN42: =T42+U42 -> 312.34 | BO42: 267.76 | BP42: =W42+X42 -> 312.34 | BQ42: 274.23 | BR42: =+Z42+AA42 -> 312.34 | BS42: 277.45 | BT42: =+AC42+AD42 -> 312.34 | BU42: 279.88 | BV42: =+AH42 -> 312.34 | BW42: 275.43 | BX42: =+AK42 -> 312.34 | BY42: 275.12 | BZ42: =+AN42 -> 312.34 | CA42: 256.01 | CB42: =+AQ42 -> 312.34 | CC42: 259.1 | CD42: =+AT42 -> 312.34 | CE42: 270.06 | CF42: =+AW42 -> 312.34 | CG42: 206.15 | CH42: =+AZ42 -> 312.34 | CI42: 153.94 | CK42: 0 | CL42: -2.35 | CM42: =BN42-BL42 -> 0 | CN42: 4.52 | CO42: =BP42-BN42 -> 0 | CP42: 6.47 | CQ42: 0 | CR42: 3.22 | CS42: 0 | CT42: 2.43 | CU42: =BV42-BT42 -> 0 | CV42: -4.45 | CW42: =BX42-BV42 -> 0 | CX42: -0.31 | CY42: =BZ42-BX42 -> 0 | CZ42: -19.11 | DA42: =CB42-BZ42 -> 0 | DB42: 3.09 | DC42: =CD42-CB42 -> 0 | DD42: 10.96 | DE42: =CF42-CD42 -> 0 | DF42: -63.91 | DG42: =CH42-CF42 -> 0 | DH42: -52.21
A43: SE22-2011 | B43: 3.2 Sončne elektrarne - samostojni objekti 2011 | D43: mala - manjše od 1MW | E43: SE22 | N43: 287.77 | O43: 0 | P43: 287.77 | Q43: 287.77 | R43: 0 | S43: 287.77 | T43: 287.77 | U43: 0 | V43: 287.77 | W43: 287.77 | X43: 0 | Y43: 287.77 | Z43: 287.77 | AA43: 0 | AB43: 287.77 | AC43: 287.77 | AD43: 0 | AE43: 287.77 | AF43: 287.77 | AG43: 0 | AH43: 287.77 | AI43: 287.77 | AJ43: 0 | AK43: 287.77 | AL43: 287.77 | AM43: 0 | AN43: 287.77 | AO43: 287.77 | AP43: 0 | AQ43: 287.77 | AR43: 287.77 | AS43: 0 | AT43: 287.77 | AU43: 287.77 | AV43: 0 | AW43: 287.77 | AX43: 287.77 | AY43: 0 | AZ43: 287.77 | BA43: 0.88 | BJ43: =N43+O43 -> 287.77 | BK43: 241.02 | BL43: =Q43+R43 -> 287.77 | BM43: 238.67 | BN43: =T43+U43 -> 287.77 | BO43: 243.19 | BP43: =W43+X43 -> 287.77 | BQ43: 249.66 | BR43: =+Z43+AA43 -> 287.77 | BS43: 252.88 | BT43: =+AC43+AD43 -> 287.77 | BU43: 255.31 | BV43: =+AH43 -> 287.77 | BW43: 250.86 | BX43: =+AK43 -> 287.77 | BY43: 250.55 | BZ43: =+AN43 -> 287.77 | CA43: 231.44 | CB43: =+AQ43 -> 287.77 | CC43: 234.53 | CD43: =+AT43 -> 287.77 | CE43: 245.49 | CF43: =+AW43 -> 287.77 | CG43: 181.58 | CH43: 287.77 | CI43: 129.37 | CK43: 0 | CL43: -2.35 | CM43: 0 | CN43: 4.52 | CO43: 0 | CP43: 6.47 | CQ43: 0 | CR43: 3.22 | CS43: 0 | CT43: 2.43 | CU43: 0 | CV43: -4.45 | CW43: 0 | CX43: -0.31 | CY43: 0 | CZ43: -19.11 | DA43: 0 | DB43: 3.09 | DC43: 0 | DD43: 10.96 | DE43: 0 | DF43: -63.91 | DG43: 0 | DH43: -52.21
A44: SE23-2011 | B44: 3.2 Sončne elektrarne - samostojni objekti 2011 | D44: srednja - od 1MW do vključno 10MW | E44: SE23 | N44: 231.98 | O44: 0 | P44: 231.98 | Q44: 231.98 | R44: 0 | S44: 231.98 | T44: 231.98 | U44: 0 | V44: 231.98 | W44: 231.98 | X44: 0 | Y44: 231.98 | Z44: 231.98 | AA44: 0 | AB44: 231.98 | AC44: 231.98 | AD44: 0 | AE44: 231.98 | AF44: 231.98 | AG44: 0 | AH44: 231.98 | AI44: 231.98 | AJ44: 0 | AK44: 231.98 | AL44: 231.98 | AM44: 0 | AN44: 231.98 | AO44: 231.98 | AP44: 0 | AQ44: 231.98 | AR44: 231.98 | AS44: 0 | AT44: 231.98 | AU44: 231.98 | AV44: 0 | AW44: 231.98 | AX44: 231.98 | AY44: 0 | AZ44: 231.98 | BA44: 0.91 | BJ44: =N44+O44 -> 231.98 | BK44: 183.63 | BL44: =Q44+R44 -> 231.98 | BM44: 181.21 | BN44: =T44+U44 -> 231.98 | BO44: 185.88 | BP44: =W44+X44 -> 231.98 | BQ44: 192.57 | BR44: =+Z44+AA44 -> 231.98 | BS44: 195.9 | BT44: =+AC44+AD44 -> 231.98 | BU44: 198.41 | BV44: =+AH44 -> 231.98 | BW44: 193.81 | BX44: =+AK44 -> 231.98 | BY44: 193.49 | BZ44: =+AN44 -> 231.98 | CA44: 173.73 | CB44: =+AQ44 -> 231.98 | CC44: 176.93 | CD44: =+AT44 -> 231.98 | CE44: 188.26 | CF44: =+AW44 -> 231.98 | CG44: 122.17 | CH44: 231.98 | CI44: 68.18 | CK44: 0 | CL44: -2.42 | CM44: 0 | CN44: 4.67 | CO44: 0 | CP44: 6.69 | CQ44: 0 | CR44: 3.33 | CS44: 0 | CT44: 2.51 | CU44: 0 | CV44: -4.6 | CW44: 0 | CX44: -0.32 | CY44: 0 | CZ44: -19.76 | DA44: 0 | DB44: 3.2 | DC44: 0 | DD44: 11.33 | DE44: 0 | DF44: -66.09 | DG44: 0 | DH44: -53.99
A45: SE24-2011 | B45: 3.2 Sončne elektrarne - samostojni objekti 2011 | D45: velika - nad 10MW do vključno 125MW | E45: SE24 | N45: 215.38 | O45: 0 | P45: 215.38 | Q45: 215.38 | R45: 0 | S45: 215.38 | T45: =N45 -> 215.38 | U45: 0 | V45: 215.38 | W45: =N45 -> 215.38 | X45: 0 | Y45: 215.38 | Z45: 215.38 | AA45: 0 | AB45: 215.38 | AC45: 215.38 | AD45: 0 | AE45: 215.38 | AF45: 215.38 | AG45: 0 | AH45: 215.38 | AI45: 215.38 | AJ45: 0 | AK45: 215.38 | AL45: 215.38 | AM45: 0 | AN45: 215.38 | AO45: 215.38 | AP45: 0 | AQ45: 215.38 | AR45: 215.38 | AS45: 0 | AT45: 215.38 | AU45: 215.38 | AV45: 0 | AW45: 215.38 | AX45: 215.38 | AY45: 0 | AZ45: 215.38 | BA45: 1 | BJ45: (ni ZO) | BK45: 162.25 | BL45: (ni ZO) | BM45: 159.59 | BN45: (ni ZO) | BO45: 164.72 | BP45: (ni ZO) | BQ45: 172.07 | BR45: (ni ZO) | BS45: 175.73 | BT45: (ni ZO) | BU45: 178.49 | BV45: (ni ZO) | BW45: 173.44 | BX45: (ni ZO) | BY45: 173.08 | BZ45: (ni ZO) | CA45: 151.37 | CB45: (ni ZO) | CC45: 154.88 | CD45: (ni ZO) | CE45: 167.34 | CF45: (ni ZO) | CG45: 94.71 | CH45: (ni ZO) | CI45: 35.38 | CK45: (ni ZO) | CL45: -2.66 | CM45: (ni ZO) | CN45: 5.13 | CO45: (ni ZO) | CP45: 7.35 | CQ45: (ni ZO) | CR45: 3.66 | CS45: (ni ZO) | CT45: 2.76 | CU45: (ni ZO) | CV45: -5.05 | CW45: (ni ZO) | CX45: -0.36 | CY45: (ni ZO) | CZ45: -21.71 | DA45: (ni ZO) | DB45: 3.51 | DC45: (ni ZO) | DD45: 12.46 | DE45: (ni ZO) | DF45: -72.63 | DG45: (ni ZO) | DH45: -59.33
A46: SE11-2012H1 | B46: 3.1 Sončne elektrarne - na stavbah 2012 - prva polovica | C46: 3.1 Sončne elektrarne - na stavbah 2012 H1 | D46: mikro - manjše od 50kW | E46: SE11 | Q46: =ROUND(F10*0.7,2) -> 290.82 | R46: 0 | S46: =Q46+R46 -> 290.82 | T46: =Q46 -> 290.82 | U46: 0 | V46: 290.82 | W46: =Q46 -> 290.82 | X46: 0 | Y46: 290.82 | Z46: 290.82 | AA46: 0 | AB46: 290.82 | AC46: 290.82 | AD46: 0 | AE46: 290.82 | AF46: 290.82 | AG46: 0 | AH46: 290.82 | AI46: 290.82 | AJ46: 0 | AK46: 290.82 | AL46: 290.82 | AM46: 0 | AN46: 290.82 | AO46: 290.82 | AP46: 0 | AQ46: 290.82 | AR46: 290.82 | AS46: 0 | AT46: 290.82 | AU46: 290.82 | AV46: 0 | AW46: 290.82 | AX46: 290.82 | AY46: 0 | AZ46: 290.82 | BA46: 0.88 | BL46: =Q46+R46 -> 290.82 | BM46: 241.72 | BN46: =T46+U46 -> 290.82 | BO46: 246.24 | BP46: =W46+X46 -> 290.82 | BQ46: 252.71 | BR46: =+Z46+AA46 -> 290.82 | BS46: 255.93 | BT46: =+AC46+AD46 -> 290.82 | BU46: 258.36 | BV46: =+AH46 -> 290.82 | BW46: 253.91 | BX46: =+AK46 -> 290.82 | BY46: 253.6 | BZ46: =+AN46 -> 290.82 | CA46: 234.49 | CB46: =+AQ46 -> 290.82 | CC46: 237.58 | CD46: =+AT46 -> 290.82 | CE46: 248.54 | CF46: =+AW46 -> 290.82 | CG46: 184.63 | CH46: =+AZ46 -> 290.82 | CI46: 132.42 | CK46: (ni podpore 2011) | CL46: (ni podpore 2011) | CM46: =BN46-BL46 -> 0 | CN46: =BO46-BM46 -> 4.52 | CO46: =BP46-BN46 -> 0 | CP46: 6.47 | CQ46: 0 | CR46: 3.22 | CS46: 0 | CT46: 2.43 | CU46: =BV46-BT46 -> 0 | CV46: -4.45 | CW46: =BX46-BV46 -> 0 | CX46: -0.31 | CY46: =BZ46-BX46 -> 0 | CZ46: -19.11 | DA46: =CB46-BZ46 -> 0 | DB46: 3.09 | DC46: =CD46-CB46 -> 0 | DD46: 10.96 | DE46: =CF46-CD46 -> 0 | DF46: -63.91 | DG46: =CH46-CF46 -> 0 | DH46: -52.21
A47: SE12-2012H1 | B47: 3.1 Sončne elektrarne - na stavbah 2012 - prva polovica | D47: mala - manjše od 1MW | E47: SE12 | Q47: =ROUND(F11*0.7,2) -> 266.01 | R47: 0 | S47: 266.01 | T47: =Q47 -> 266.01 | U47: 0 | V47: 266.01 | W47: =Q47 -> 266.01 | X47: 0 | Y47: 266.01 | Z47: 266.01 | AA47: 0 | AB47: 266.01 | AC47: 266.01 | AD47: 0 | AE47: 266.01 | AF47: 266.01 | AG47: 0 | AH47: 266.01 | AI47: 266.01 | AJ47: 0 | AK47: 266.01 | AL47: 266.01 | AM47: 0 | AN47: 266.01 | AO47: 266.01 | AP47: 0 | AQ47: 266.01 | AR47: 266.01 | AS47: 0 | AT47: 266.01 | AU47: 266.01 | AV47: 0 | AW47: 266.01 | AX47: 266.01 | AY47: 0 | AZ47: 266.01 | BA47: 0.88 | BL47: =Q47+R47 -> 266.01 | BM47: 216.91 | BN47: =T47+U47 -> 266.01 | BO47: 221.43 | BP47: =W47+X47 -> 266.01 | BQ47: 227.9 | BR47: =+Z47+AA47 -> 266.01 | BS47: 231.12 | BT47: =+AC47+AD47 -> 266.01 | BU47: 233.55 | BV47: =+AH47 -> 266.01 | BW47: 229.1 | BX47: =+AK47 -> 266.01 | BY47: 228.79 | BZ47: =+AN47 -> 266.01 | CA47: 209.68 | CB47: =+AQ47 -> 266.01 | CC47: 212.77 | CD47: =+AT47 -> 266.01 | CE47: 223.73 | CF47: =+AW47 -> 266.01 | CG47: 159.82 | CH47: 266.01 | CI47: 107.61 | CK47: (ni podpore 2011) | CL47: (ni podpore 2011) | CM47: 0 | CN47: 4.52 | CO47: 0 | CP47: 6.47 | CQ47: 0 | CR47: 3.22 | CS47: 0 | CT47: 2.43 | CU47: 0 | CV47: -4.45 | CW47: 0 | CX47: -0.31 | CY47: 0 | CZ47: -19.11 | DA47: 0 | DB47: 3.09 | DC47: 0 | DD47: 10.96 | DE47: 0 | DF47: -63.91 | DG47: 0 | DH47: -52.21
A48: SE13-2012H1 | B48: 3.1 Sončne elektrarne - na stavbah 2012 - prva polovica | D48: srednja - od 1MW do vključno 10MW | E48: SE13 | Q48: =ROUND(F12*0.7,2) -> 220.75 | R48: 0 | S48: 220.75 | T48: 220.75 | U48: 0 | V48: 220.75 | W48: 220.75 | X48: 0 | Y48: 220.75 | Z48: 220.75 | AA48: 0 | AB48: 220.75 | AC48: 220.75 | AD48: 0 | AE48: 220.75 | AF48: 220.75 | AG48: 0 | AH48: 220.75 | AI48: 220.75 | AJ48: 0 | AK48: 220.75 | AL48: 220.75 | AM48: 0 | AN48: 220.75 | AO48: 220.75 | AP48: 0 | AQ48: 220.75 | AR48: 220.75 | AS48: 0 | AT48: 220.75 | AU48: 220.75 | AV48: 0 | AW48: 220.75 | AX48: 220.75 | AY48: 0 | AZ48: 220.75 | BA48: 0.91 | BL48: =Q48+R48 -> 220.75 | BM48: 169.98 | BN48: =T48+U48 -> 220.75 | BO48: 174.65 | BP48: =W48+X48 -> 220.75 | BQ48: 181.34 | BR48: =+Z48+AA48 -> 220.75 | BS48: 184.67 | BT48: =+AC48+AD48 -> 220.75 | BU48: 187.18 | BV48: =+AH48 -> 220.75 | BW48: 182.58 | BX48: =+AK48 -> 220.75 | BY48: 182.26 | BZ48: =+AN48 -> 220.75 | CA48: 162.5 | CB48: =+AQ48 -> 220.75 | CC48: 165.7 | CD48: =+AT48 -> 220.75 | CE48: 177.03 | CF48: =+AW48 -> 220.75 | CG48: 110.94 | CH48: 220.75 | CI48: 56.95 | CK48: (ni podpore 2011) | CL48: (ni podpore 2011) | CM48: 0 | CN48: 4.67 | CO48: 0 | CP48: 6.69 | CQ48: 0 | CR48: 3.33 | CS48: 0 | CT48: 2.51 | CU48: 0 | CV48: -4.6 | CW48: 0 | CX48: -0.32 | CY48: 0 | CZ48: -19.76 | DA48: 0 | DB48: 3.2 | DC48: 0 | DD48: 11.33 | DE48: 0 | DF48: -66.09 | DG48: 0 | DH48: -53.99
A49: SE14-2012H1 | B49: 3.1 Sončne elektrarne - na stavbah 2012 - prva polovica | D49: velika - nad 10MW do vključno 125MW | E49: SE14 | Q49: =ROUND(F13*0.7,2) -> 196.5 | R49: 0 | S49: 196.5 | T49: 196.5 | U49: 0 | V49: 196.5 | W49: 196.5 | X49: 0 | Y49: 196.5 | Z49: 196.5 | AA49: 0 | AB49: 196.5 | AC49: 196.5 | AD49: 0 | AE49: 196.5 | AF49: 196.5 | AG49: 0 | AH49: 196.5 | AI49: 196.5 | AJ49: 0 | AK49: 196.5 | AL49: 196.5 | AM49: 0 | AN49: 196.5 | AO49: 196.5 | AP49: 0 | AQ49: 196.5 | AR49: 196.5 | AS49: 0 | AT49: 196.5 | AU49: 196.5 | AV49: 0 | AW49: 196.5 | AX49: 196.5 | AY49: 0 | AZ49: 196.5 | BA49: 1 | BL49: (ni ZO) | BM49: 140.71 | BN49: (ni ZO) | BO49: 145.84 | BP49: (ni ZO) | BQ49: 153.19 | BR49: (ni ZO) | BS49: 156.85 | BT49: (ni ZO) | BU49: 159.61 | BV49: (ni ZO) | BW49: 154.56 | BX49: (ni ZO) | BY49: 154.2 | BZ49: (ni ZO) | CA49: 132.49 | CB49: (ni ZO) | CC49: 136 | CD49: (ni ZO) | CE49: 148.46 | CF49: (ni ZO) | CG49: 75.83 | CH49: (ni ZO) | CI49: 16.5 | CK49: (ni podpore 2011) | CL49: (ni podpore 2011) | CM49: (ni ZO) | CN49: 5.13 | CO49: (ni ZO) | CP49: 7.35 | CQ49: (ni ZO) | CR49: 3.66 | CS49: (ni ZO) | CT49: 2.76 | CU49: (ni ZO) | CV49: -5.05 | CW49: (ni ZO) | CX49: -0.36 | CY49: (ni ZO) | CZ49: -21.71 | DA49: (ni ZO) | DB49: 3.51 | DC49: (ni ZO) | DD49: 12.46 | DE49: (ni ZO) | DF49: -72.63 | DG49: (ni ZO) | DH49: -59.33
A50: SE11-2012H2 | B50: 3.1 Sončne elektrarne - na stavbah 2012 - druga polovica | C50: 3.1 Sončne elektrarne - na stavbah 2012 H2 | D50: mikro - manjše od 50kW | E50: SE11 | Q50: =ROUND(F10*0.4755,2) -> 197.55 | R50: 0 | S50: =Q50+R50 -> 197.55 | T50: 197.55 | U50: 0 | V50: 197.55 | W50: 197.55 | X50: 0 | Y50: 197.55 | Z50: 197.55 | AA50: 0 | AB50: 197.55 | AC50: 197.55 | AD50: 0 | AE50: 197.55 | AF50: 197.55 | AG50: 0 | AH50: 197.55 | AI50: 197.55 | AJ50: 0 | AK50: 197.55 | AL50: 197.55 | AM50: 0 | AN50: 197.55 | AO50: 197.55 | AP50: 0 | AQ50: 197.55 | AR50: 197.55 | AS50: 0 | AT50: 197.55 | AU50: 197.55 | AV50: 0 | AW50: 197.55 | AX50: 197.55 | AY50: 0 | AZ50: 197.55 | BA50: 0.88 | BL50: =Q50+R50 -> 197.55 | BM50: 148.45 | BN50: =T50+U50 -> 197.55 | BO50: 152.97 | BP50: =W50+X50 -> 197.55 | BQ50: 159.44 | BR50: =+Z50+AA50 -> 197.55 | BS50: 162.66 | BT50: =+AC50+AD50 -> 197.55 | BU50: 165.09 | BV50: =+AH50 -> 197.55 | BW50: 160.64 | BX50: =+AK50 -> 197.55 | BY50: 160.33 | BZ50: =+AN50 -> 197.55 | CA50: 141.22 | CB50: =+AQ50 -> 197.55 | CC50: 144.31 | CD50: =+AT50 -> 197.55 | CE50: 155.27 | CF50: =+AW50 -> 197.55 | CG50: 91.36 | CH50: =+AZ50 -> 197.55 | CI50: 39.15 | CK50: (ni podpore 2011) | CL50: (ni podpore 2011) | CM50: 0 | CN50: 4.52 | CO50: =BP50-BN50 -> 0 | CP50: 6.47 | CQ50: 0 | CR50: 3.22 | CS50: 0 | CT50: 2.43 | CU50: =BV50-BT50 -> 0 | CV50: -4.45 | CW50: =BX50-BV50 -> 0 | CX50: -0.31 | CY50: =BZ50-BX50 -> 0 | CZ50: -19.11 | DA50: =CB50-BZ50 -> 0 | DB50: 3.09 | DC50: =CD50-CB50 -> 0 | DD50: 10.96 | DE50: =CF50-CD50 -> 0 | DF50: -63.91 | DG50: =CH50-CF50 -> 0 | DH50: -52.21
A51: SE12-2012H2 | B51: 3.1 Sončne elektrarne - na stavbah 2012 - druga polovica | D51: mala - manjše od 1MW | E51: SE12 | Q51: =ROUND(F11*0.4755,2) -> 180.7 | R51: 0 | S51: 180.7 | T51: 180.7 | U51: 0 | V51: 180.7 | W51: 180.7 | X51: 0 | Y51: 180.7 | Z51: 180.7 | AA51: 0 | AB51: 180.7 | AC51: 180.7 | AD51: 0 | AE51: 180.7 | AF51: 180.7 | AG51: 0 | AH51: 180.7 | AI51: 180.7 | AJ51: 0 | AK51: 180.7 | AL51: 180.7 | AM51: 0 | AN51: 180.7 | AO51: 180.7 | AP51: 0 | AQ51: 180.7 | AR51: 180.7 | AS51: 0 | AT51: 180.7 | AU51: 180.7 | AV51: 0 | AW51: 180.7 | AX51: 180.7 | AY51: 0 | AZ51: 180.7 | BA51: 0.88 | BL51: =Q51+R51 -> 180.7 | BM51: 131.6 | BN51: =T51+U51 -> 180.7 | BO51: 136.12 | BP51: =W51+X51 -> 180.7 | BQ51: 142.59 | BR51: =+Z51+AA51 -> 180.7 | BS51: 145.81 | BT51: =+AC51+AD51 -> 180.7 | BU51: 148.24 | BV51: =+AH51 -> 180.7 | BW51: 143.79 | BX51: =+AK51 -> 180.7 | BY51: 143.48 | BZ51: =+AN51 -> 180.7 | CA51: 124.37 | CB51: =+AQ51 -> 180.7 | CC51: 127.46 | CD51: =+AT51 -> 180.7 | CE51: 138.42 | CF51: =+AW51 -> 180.7 | CG51: 74.51 | CH51: 180.7 | CI51: 22.3 | CK51: (ni podpore 2011) | CL51: (ni podpore 2011) | CM51: 0 | CN51: 4.52 | CO51: 0 | CP51: 6.47 | CQ51: 0 | CR51: 3.22 | CS51: 0 | CT51: 2.43 | CU51: 0 | CV51: -4.45 | CW51: 0 | CX51: -0.31 | CY51: 0 | CZ51: -19.11 | DA51: 0 | DB51: 3.09 | DC51: 0 | DD51: 10.96 | DE51: 0 | DF51: -63.91 | DG51: 0 | DH51: -52.21
A52: SE13-2012H2 | B52: 3.1 Sončne elektrarne - na stavbah 2012 - druga polovica | D52: srednja - od 1MW do vključno 10MW | E52: SE13 | Q52: =ROUND(F12*0.4755,2) -> 149.95 | R52: 0 | S52: 149.95 | T52: 149.95 | U52: 0 | V52: 149.95 | W52: 149.95 | X52: 0 | Y52: 149.95 | Z52: 149.95 | AA52: 0 | AB52: 149.95 | AC52: 149.95 | AD52: 0 | AE52: 149.95 | AF52: 149.95 | AG52: 0 | AH52: 149.95 | AI52: 149.95 | AJ52: 0 | AK52: 149.95 | AL52: 149.95 | AM52: 0 | AN52: 149.95 | AO52: 149.95 | AP52: 0 | AQ52: 149.95 | AR52: 149.95 | AS52: 0 | AT52: 149.95 | AU52: 149.95 | AV52: 0 | AW52: 149.95 | AX52: 149.95 | AY52: 0 | AZ52: 149.95 | BA52: 0.91 | BL52: =Q52+R52 -> 149.95 | BM52: 99.18 | BN52: =T52+U52 -> 149.95 | BO52: 103.85 | BP52: =W52+X52 -> 149.95 | BQ52: 110.54 | BR52: =+Z52+AA52 -> 149.95 | BS52: 113.87 | BT52: =+AC52+AD52 -> 149.95 | BU52: 116.38 | BV52: =+AH52 -> 149.95 | BW52: 111.78 | BX52: =+AK52 -> 149.95 | BY52: 111.46 | BZ52: =+AN52 -> 149.95 | CA52: 91.7 | CB52: =+AQ52 -> 149.95 | CC52: 94.9 | CD52: =+AT52 -> 149.95 | CE52: 106.23 | CF52: =+AW52 -> 149.95 | CG52: 40.14 | CH52: 149.95 | CI52: -13.85 | CK52: (ni podpore 2011) | CL52: (ni podpore 2011) | CM52: 0 | CN52: 4.67 | CO52: 0 | CP52: 6.69 | CQ52: 0 | CR52: 3.33 | CS52: 0 | CT52: 2.51 | CU52: 0 | CV52: -4.6 | CW52: 0 | CX52: -0.32 | CY52: 0 | CZ52: -19.76 | DA52: 0 | DB52: 3.2 | DC52: 0 | DD52: 11.33 | DE52: 0 | DF52: -66.09 | DG52: 0 | DH52: -53.99
A53: SE14-2012H2 | B53: 3.1 Sončne elektrarne - na stavbah 2012 - druga polovica | D53: velika - nad 10MW do vključno 125MW | E53: SE14 | Q53: =ROUND(F13*0.4755,2) -> 133.48 | R53: 0 | S53: 133.48 | T53: 133.48 | U53: 0 | V53: 133.48 | W53: 133.48 | X53: 0 | Y53: 133.48 | Z53: 133.48 | AA53: 0 | AB53: 133.48 | AC53: 133.48 | AD53: 0 | AE53: 133.48 | AF53: 133.48 | AG53: 0 | AH53: 133.48 | AI53: 133.48 | AJ53: 0 | AK53: 133.48 | AL53: 133.48 | AM53: 0 | AN53: 133.48 | AO53: 133.48 | AP53: 0 | AQ53: 133.48 | AR53: 133.48 | AS53: 0 | AT53: 133.48 | AU53: 133.48 | AV53: 0 | AW53: 133.48 | AX53: 133.48 | AY53: 0 | AZ53: 133.48 | BA53: 1 | BL53: (ni ZO) | BM53: 77.69 | BN53: (ni ZO) | BO53: 82.82 | BP53: (ni ZO) | BQ53: 90.17 | BR53: (ni ZO) | BS53: 93.83 | BT53: (ni ZO) | BU53: 96.59 | BV53: (ni ZO) | BW53: 91.54 | BX53: (ni ZO) | BY53: 91.18 | BZ53: (ni ZO) | CA53: 69.47 | CB53: (ni ZO) | CC53: 72.98 | CD53: (ni ZO) | CE53: 85.44 | CF53: (ni ZO) | CG53: 12.81 | CH53: (ni ZO) | CI53: -46.52 | CK53: (ni podpore 2011) | CL53: (ni podpore 2011) | CM53: (ni ZO) | CN53: 5.13 | CO53: (ni ZO) | CP53: 7.35 | CQ53: (ni ZO) | CR53: 3.66 | CS53: (ni ZO) | CT53: 2.76 | CU53: (ni ZO) | CV53: -5.05 | CW53: (ni ZO) | CX53: -0.36 | CY53: (ni ZO) | CZ53: -21.71 | DA53: (ni ZO) | DB53: 3.51 | DC53: (ni ZO) | DD53: 12.46 | DE53: (ni ZO) | DF53: -72.63 | DG53: (ni ZO) | DH53: -59.33
A54: SE21-2012H1 | B54: 3.2 Sončne elektrarne - ostale 2012 - prva polovica | C54: 3.2 Sončne elektrarne - ostale 2012 H1 | D54: mikro - manjše od 50kW | E54: SE21 | Q54: =ROUND(F18*0.7,2) -> 273.29 | R54: 0 | S54: 273.29 | T54: 273.29 | U54: 0 | V54: 273.29 | W54: 273.29 | X54: 0 | Y54: 273.29 | Z54: 273.29 | AA54: 0 | AB54: 273.29 | AC54: 273.29 | AD54: 0 | AE54: 273.29 | AF54: 273.29 | AG54: 0 | AH54: 273.29 | AI54: 273.29 | AJ54: 0 | AK54: 273.29 | AL54: 273.29 | AM54: 0 | AN54: 273.29 | AO54: 273.29 | AP54: 0 | AQ54: 273.29 | AR54: 273.29 | AS54: 0 | AT54: 273.29 | AU54: 273.29 | AV54: 0 | AW54: 273.29 | AX54: 273.29 | AY54: 0 | AZ54: 273.29 | BA54: 0.88 | BL54: =Q54+R54 -> 273.29 | BM54: 224.19 | BN54: =T54+U54 -> 273.29 | BO54: 228.71 | BP54: =W54+X54 -> 273.29 | BQ54: 235.18 | BR54: =+Z54+AA54 -> 273.29 | BS54: 238.4 | BT54: =+AC54+AD54 -> 273.29 | BU54: 240.83 | BV54: =+AH54 -> 273.29 | BW54: 236.38 | BX54: =+AK54 -> 273.29 | BY54: 236.07 | BZ54: =+AN54 -> 273.29 | CA54: 216.96 | CB54: =+AQ54 -> 273.29 | CC54: 220.05 | CD54: =+AT54 -> 273.29 | CE54: 231.01 | CF54: =+AW54 -> 273.29 | CG54: 167.1 | CH54: =+AZ54 -> 273.29 | CI54: 114.89 | CK54: (ni podpore 2011) | CL54: (ni podpore 2011) | CM54: 0 | CN54: 4.52 | CO54: =BP54-BN54 -> 0 | CP54: 6.47 | CQ54: 0 | CR54: 3.22 | CS54: 0 | CT54: 2.43 | CU54: =BV54-BT54 -> 0 | CV54: -4.45 | CW54: =BX54-BV54 -> 0 | CX54: -0.31 | CY54: =BZ54-BX54 -> 0 | CZ54: -19.11 | DA54: =CB54-BZ54 -> 0 | DB54: 3.09 | DC54: =CD54-CB54 -> 0 | DD54: 10.96 | DE54: =CF54-CD54 -> 0 | DF54: -63.91 | DG54: =CH54-CF54 -> 0 | DH54: -52.21
A55: SE22-2012H1 | B55: 3.2 Sončne elektrarne - ostale 2012 - prva polovica | D55: mala - manjše od 1MW | E55: SE22 | Q55: =ROUND(F19*0.7,2) -> 251.8 | R55: 0 | S55: 251.8 | T55: 251.8 | U55: 0 | V55: 251.8 | W55: 251.8 | X55: 0 | Y55: 251.8 | Z55: 251.8 | AA55: 0 | AB55: 251.8 | AC55: 251.8 | AD55: 0 | AE55: 251.8 | AF55: 251.8 | AG55: 0 | AH55: 251.8 | AI55: 251.8 | AJ55: 0 | AK55: 251.8 | AL55: 251.8 | AM55: 0 | AN55: 251.8 | AO55: 251.8 | AP55: 0 | AQ55: 251.8 | AR55: 251.8 | AS55: 0 | AT55: 251.8 | AU55: 251.8 | AV55: 0 | AW55: 251.8 | AX55: 251.8 | AY55: 0 | AZ55: 251.8 | BA55: 0.88 | BL55: =Q55+R55 -> 251.8 | BM55: 202.7 | BN55: =T55+U55 -> 251.8 | BO55: 207.22 | BP55: =W55+X55 -> 251.8 | BQ55: 213.69 | BR55: =+Z55+AA55 -> 251.8 | BS55: 216.91 | BT55: =+AC55+AD55 -> 251.8 | BU55: 219.34 | BV55: =+AH55 -> 251.8 | BW55: 214.89 | BX55: =+AK55 -> 251.8 | BY55: 214.58 | BZ55: =+AN55 -> 251.8 | CA55: 195.47 | CB55: =+AQ55 -> 251.8 | CC55: 198.56 | CD55: =+AT55 -> 251.8 | CE55: 209.52 | CF55: =+AW55 -> 251.8 | CG55: 145.61 | CH55: 251.8 | CI55: 93.4 | CK55: (ni podpore 2011) | CL55: (ni podpore 2011) | CM55: 0 | CN55: 4.52 | CO55: 0 | CP55: 6.47 | CQ55: 0 | CR55: 3.22 | CS55: 0 | CT55: 2.43 | CU55: 0 | CV55: -4.45 | CW55: 0 | CX55: -0.31 | CY55: 0 | CZ55: -19.11 | DA55: 0 | DB55: 3.09 | DC55: 0 | DD55: 10.96 | DE55: 0 | DF55: -63.91 | DG55: 0 | DH55: -52.21
A56: SE23-2012H1 | B56: 3.2 Sončne elektrarne - ostale 2012 - prva polovica | D56: srednja - od 1MW do vključno 10MW | E56: SE23 | Q56: =ROUND(F20*0.7,2) -> 202.99 | R56: 0 | S56: 202.99 | T56: 202.99 | U56: 0 | V56: 202.99 | W56: 202.99 | X56: 0 | Y56: 202.99 | Z56: 202.99 | AA56: 0 | AB56: 202.99 | AC56: 202.99 | AD56: 0 | AE56: 202.99 | AF56: 202.99 | AG56: 0 | AH56: 202.99 | AI56: 202.99 | AJ56: 0 | AK56: 202.99 | AL56: 202.99 | AM56: 0 | AN56: 202.99 | AO56: 202.99 | AP56: 0 | AQ56: 202.99 | AR56: 202.99 | AS56: 0 | AT56: 202.99 | AU56: 202.99 | AV56: 0 | AW56: 202.99 | AX56: 202.99 | AY56: 0 | AZ56: 202.99 | BA56: 0.91 | BL56: =Q56+R56 -> 202.99 | BM56: 152.22 | BN56: =T56+U56 -> 202.99 | BO56: 156.89 | BP56: =W56+X56 -> 202.99 | BQ56: 163.58 | BR56: =+Z56+AA56 -> 202.99 | BS56: 166.91 | BT56: =+AC56+AD56 -> 202.99 | BU56: 169.42 | BV56: =+AH56 -> 202.99 | BW56: 164.82 | BX56: =+AK56 -> 202.99 | BY56: 164.5 | BZ56: =+AN56 -> 202.99 | CA56: 144.74 | CB56: =+AQ56 -> 202.99 | CC56: 147.94 | CD56: =+AT56 -> 202.99 | CE56: 159.27 | CF56: =+AW56 -> 202.99 | CG56: 93.18 | CH56: 202.99 | CI56: 39.19 | CK56: (ni podpore 2011) | CL56: (ni podpore 2011) | CM56: 0 | CN56: 4.67 | CO56: 0 | CP56: 6.69 | CQ56: 0 | CR56: 3.33 | CS56: 0 | CT56: 2.51 | CU56: 0 | CV56: -4.6 | CW56: 0 | CX56: -0.32 | CY56: 0 | CZ56: -19.76 | DA56: 0 | DB56: 3.2 | DC56: 0 | DD56: 11.33 | DE56: 0 | DF56: -66.09 | DG56: 0 | DH56: -53.99
A57: SE24-2012H1 | B57: 3.2 Sončne elektrarne - ostale 2012 - prva polovica | D57: velika - nad 10MW do vključno 125MW | E57: SE24 | Q57: =ROUND(F21*0.7,2) -> 188.45 | R57: 0 | S57: 188.45 | T57: 188.45 | U57: 0 | V57: 188.45 | W57: 188.45 | X57: 0 | Y57: 188.45 | Z57: 188.45 | AA57: 0 | AB57: 188.45 | AC57: 188.45 | AD57: 0 | AE57: 188.45 | AF57: 188.45 | AG57: 0 | AH57: 188.45 | AI57: 188.45 | AJ57: 0 | AK57: 188.45 | AL57: 188.45 | AM57: 0 | AN57: 188.45 | AO57: 188.45 | AP57: 0 | AQ57: 188.45 | AR57: 188.45 | AS57: 0 | AT57: 188.45 | AU57: 188.45 | AV57: 0 | AW57: 188.45 | AX57: 188.45 | AY57: 0 | AZ57: 188.45 | BA57: 1 | BL57: (ni ZO) | BM57: 132.66 | BN57: (ni ZO) | BO57: 137.79 | BP57: (ni ZO) | BQ57: 145.14 | BR57: (ni ZO) | BS57: 148.8 | BT57: (ni ZO) | BU57: 151.56 | BV57: (ni ZO) | BW57: 146.51 | BX57: (ni ZO) | BY57: 146.15 | BZ57: (ni ZO) | CA57: 124.44 | CB57: (ni ZO) | CC57: 127.95 | CD57: (ni ZO) | CE57: 140.41 | CF57: (ni ZO) | CG57: 67.78 | CH57: (ni ZO) | CI57: 8.45 | CK57: (ni podpore 2011) | CL57: (ni podpore 2011) | CM57: (ni ZO) | CN57: 5.13 | CO57: (ni ZO) | CP57: 7.35 | CQ57: (ni ZO) | CR57: 3.66 | CS57: (ni ZO) | CT57: 2.76 | CU57: (ni ZO) | CV57: -5.05 | CW57: (ni ZO) | CX57: -0.36 | CY57: (ni ZO) | CZ57: -21.71 | DA57: (ni ZO) | DB57: 3.51 | DC57: (ni ZO) | DD57: 12.46 | DE57: (ni ZO) | DF57: -72.63 | DG57: (ni ZO) | DH57: -59.33
A58: SE21-2012H2 | B58: 3.2 Sončne elektrarne - ostale 2012 - druga polovica | C58: 3.2 Sončne elektrarne - ostale 2012 H2 | D58: mikro - manjše od 50kW | E58: SE21 | Q58: =ROUND(F18*0.4755,2) -> 185.64 | R58: 0 | S58: =Q58+R58 -> 185.64 | T58: 185.64 | U58: 0 | V58: 185.64 | W58: 185.64 | X58: 0 | Y58: 185.64 | Z58: 185.64 | AA58: 0 | AB58: 185.64 | AC58: 185.64 | AD58: 0 | AE58: 185.64 | AF58: 185.64 | AG58: 0 | AH58: 185.64 | AI58: 185.64 | AJ58: 0 | AK58: 185.64 | AL58: 185.64 | AM58: 0 | AN58: 185.64 | AO58: 185.64 | AP58: 0 | AQ58: 185.64 | AR58: 185.64 | AS58: 0 | AT58: 185.64 | AU58: 185.64 | AV58: 0 | AW58: 185.64 | AX58: 185.64 | AY58: 0 | AZ58: 185.64 | BA58: 0.88 | BL58: =Q58+R58 -> 185.64 | BM58: 136.54 | BN58: =T58+U58 -> 185.64 | BO58: 141.06 | BP58: =W58+X58 -> 185.64 | BQ58: 147.53 | BR58: =+Z58+AA58 -> 185.64 | BS58: 150.75 | BT58: =+AC58+AD58 -> 185.64 | BU58: 153.18 | BV58: =+AH58 -> 185.64 | BW58: 148.73 | BX58: =+AK58 -> 185.64 | BY58: 148.42 | BZ58: =+AN58 -> 185.64 | CA58: 129.31 | CB58: =+AQ58 -> 185.64 | CC58: 132.4 | CD58: =+AT58 -> 185.64 | CE58: 143.36 | CF58: =+AW58 -> 185.64 | CG58: 79.45 | CH58: =+AZ58 -> 185.64 | CI58: 27.24 | CK58: (ni podpore 2011) | CL58: (ni podpore 2011) | CM58: 0 | CN58: 4.52 | CO58: =BP58-BN58 -> 0 | CP58: 6.47 | CQ58: 0 | CR58: 3.22 | CS58: 0 | CT58: 2.43 | CU58: =BV58-BT58 -> 0 | CV58: -4.45 | CW58: =BX58-BV58 -> 0 | CX58: -0.31 | CY58: =BZ58-BX58 -> 0 | CZ58: -19.11 | DA58: =CB58-BZ58 -> 0 | DB58: 3.09 | DC58: =CD58-CB58 -> 0 | DD58: 10.96 | DE58: =CF58-CD58 -> 0 | DF58: -63.91 | DG58: =CH58-CF58 -> 0 | DH58: -52.21
A59: SE22-2012H2 | B59: 3.2 Sončne elektrarne - ostale 2012 - druga polovica | D59: mala - manjše od 1MW | E59: SE22 | Q59: =ROUND(F19*0.4755,2) -> 171.04 | R59: 0 | S59: 171.04 | T59: 171.04 | U59: 0 | V59: 171.04 | W59: 171.04 | X59: 0 | Y59: 171.04 | Z59: 171.04 | AA59: 0 | AB59: 171.04 | AC59: 171.04 | AD59: 0 | AE59: 171.04 | AF59: 171.04 | AG59: 0 | AH59: 171.04 | AI59: 171.04 | AJ59: 0 | AK59: 171.04 | AL59: 171.04 | AM59: 0 | AN59: 171.04 | AO59: 171.04 | AP59: 0 | AQ59: 171.04 | AR59: 171.04 | AS59: 0 | AT59: 171.04 | AU59: 171.04 | AV59: 0 | AW59: 171.04 | AX59: 171.04 | AY59: 0 | AZ59: 171.04 | BA59: 0.88 | BL59: =Q59+R59 -> 171.04 | BM59: 121.94 | BN59: =T59+U59 -> 171.04 | BO59: 126.46 | BP59: =W59+X59 -> 171.04 | BQ59: 132.93 | BR59: =+Z59+AA59 -> 171.04 | BS59: 136.15 | BT59: =+AC59+AD59 -> 171.04 | BU59: 138.58 | BV59: =+AH59 -> 171.04 | BW59: 134.13 | BX59: =+AK59 -> 171.04 | BY59: 133.82 | BZ59: =+AN59 -> 171.04 | CA59: 114.71 | CB59: =+AQ59 -> 171.04 | CC59: 117.8 | CD59: =+AT59 -> 171.04 | CE59: 128.76 | CF59: =+AW59 -> 171.04 | CG59: 64.85 | CH59: 171.04 | CI59: 12.64 | CK59: (ni podpore 2011) | CL59: (ni podpore 2011) | CM59: 0 | CN59: 4.52 | CO59: 0 | CP59: 6.47 | CQ59: 0 | CR59: 3.22 | CS59: 0 | CT59: 2.43 | CU59: 0 | CV59: -4.45 | CW59: 0 | CX59: -0.31 | CY59: 0 | CZ59: -19.11 | DA59: 0 | DB59: 3.09 | DC59: 0 | DD59: 10.96 | DE59: 0 | DF59: -63.91 | DG59: 0 | DH59: -52.21
A60: SE23-2012H2 | B60: 3.2 Sončne elektrarne - ostale 2012 - druga polovica | D60: srednja - od 1MW do vključno 10MW | E60: SE23 | Q60: =ROUND(F20*0.4755,2) -> 137.89 | R60: 0 | S60: 137.89 | T60: 137.89 | U60: 0 | V60: 137.89 | W60: 137.89 | X60: 0 | Y60: 137.89 | Z60: 137.89 | AA60: 0 | AB60: 137.89 | AC60: 137.89 | AD60: 0 | AE60: 137.89 | AF60: 137.89 | AG60: 0 | AH60: 137.89 | AI60: 137.89 | AJ60: 0 | AK60: 137.89 | AL60: 137.89 | AM60: 0 | AN60: 137.89 | AO60: 137.89 | AP60: 0 | AQ60: 137.89 | AR60: 137.89 | AS60: 0 | AT60: 137.89 | AU60: 137.89 | AV60: 0 | AW60: 137.89 | AX60: 137.89 | AY60: 0 | AZ60: 137.89 | BA60: 0.91 | BL60: =Q60+R60 -> 137.89 | BM60: 87.12 | BN60: =T60+U60 -> 137.89 | BO60: 91.79 | BP60: =W60+X60 -> 137.89 | BQ60: 98.48 | BR60: =+Z60+AA60 -> 137.89 | BS60: 101.81 | BT60: =+AC60+AD60 -> 137.89 | BU60: 104.32 | BV60: =+AH60 -> 137.89 | BW60: 99.72 | BX60: =+AK60 -> 137.89 | BY60: 99.4 | BZ60: =+AN60 -> 137.89 | CA60: 79.64 | CB60: =+AQ60 -> 137.89 | CC60: 82.84 | CD60: =+AT60 -> 137.89 | CE60: 94.17 | CF60: =+AW60 -> 137.89 | CG60: 28.08 | CH60: 137.89 | CI60: -25.91 | CK60: (ni podpore 2011) | CL60: (ni podpore 2011) | CM60: 0 | CN60: 4.67 | CO60: 0 | CP60: 6.69 | CQ60: 0 | CR60: 3.33 | CS60: 0 | CT60: 2.51 | CU60: 0 | CV60: -4.6 | CW60: 0 | CX60: -0.32 | CY60: 0 | CZ60: -19.76 | DA60: 0 | DB60: 3.2 | DC60: 0 | DD60: 11.33 | DE60: 0 | DF60: -66.09 | DG60: 0 | DH60: -53.99
A61: SE24-2012H2 | B61: 3.2 Sončne elektrarne - ostale 2012 - druga polovica | D61: velika - nad 10MW do vključno 125MW | E61: SE24 | Q61: =ROUND(F21*0.4755,2) -> 128.01 | R61: 0 | S61: 128.01 | T61: 128.01 | U61: 0 | V61: 128.01 | W61: 128.01 | X61: 0 | Y61: 128.01 | Z61: 128.01 | AA61: 0 | AB61: 128.01 | AC61: 128.01 | AD61: 0 | AE61: 128.01 | AF61: 128.01 | AG61: 0 | AH61: 128.01 | AI61: 128.01 | AJ61: 0 | AK61: 128.01 | AL61: 128.01 | AM61: 0 | AN61: 128.01 | AO61: 128.01 | AP61: 0 | AQ61: 128.01 | AR61: 128.01 | AS61: 0 | AT61: 128.01 | AU61: 128.01 | AV61: 0 | AW61: 128.01 | AX61: 128.01 | AY61: 0 | AZ61: 128.01 | BA61: 1 | BL61: (ni ZO) | BM61: 72.22 | BN61: (ni ZO) | BO61: 77.35 | BP61: (ni ZO) | BQ61: 84.7 | BR61: (ni ZO) | BS61: 88.36 | BT61: (ni ZO) | BU61: 91.12 | BV61: (ni ZO) | BW61: 86.07 | BX61: (ni ZO) | BY61: 85.71 | BZ61: (ni ZO) | CA61: 64 | CB61: (ni ZO) | CC61: 67.51 | CD61: (ni ZO) | CE61: 79.97 | CF61: (ni ZO) | CG61: 7.34 | CH61: (ni ZO) | CI61: -51.99 | CK61: (ni podpore 2011) | CL61: (ni podpore 2011) | CM61: (ni ZO) | CN61: 5.13 | CO61: (ni ZO) | CP61: 7.35 | CQ61: (ni ZO) | CR61: 3.66 | CS61: (ni ZO) | CT61: 2.76 | CU61: (ni ZO) | CV61: -5.05 | CW61: (ni ZO) | CX61: -0.36 | CY61: (ni ZO) | CZ61: -21.71 | DA61: (ni ZO) | DB61: 3.51 | DC61: (ni ZO) | DD61: 12.46 | DE61: (ni ZO) | DF61: -72.63 | DG61: (ni ZO) | DH61: -59.33
A62: SE11-2012dec | B62: 3.1 Sončne elektrarne - na stavbah 2012 december | D62: mikro - manjše od 50kW | E62: SE11 | T62: 150 | U62: 0 | V62: =T62+U62 -> 150 | W62: 150 | X62: 0 | Y62: 150 | Z62: 150 | AA62: 0 | AB62: 150 | AC62: 150 | AD62: 0 | AE62: 150 | AF62: 150 | AG62: 0 | AH62: 150 | AI62: 150 | AJ62: 0 | AK62: 150 | AL62: 150 | AM62: 0 | AN62: 150 | AO62: 150 | AP62: 0 | AQ62: 150 | AR62: 150 | AS62: 0 | AT62: 150 | AU62: 150 | AV62: 0 | AW62: 150 | AX62: 150 | AY62: 0 | AZ62: 150 | BA62: 0.88 | BN62: =T62+U62 -> 150 | BO62: 105.42 | BP62: =W62+X62 -> 150 | BQ62: 111.89 | BR62: =+Z62+AA62 -> 150 | BS62: 115.11 | BT62: =+AC62+AD62 -> 150 | BU62: 117.54 | BV62: =+AH62 -> 150 | BW62: 113.09 | BX62: =+AK62 -> 150 | BY62: 112.78 | BZ62: =+AN62 -> 150 | CA62: 93.67 | CB62: =+AQ62 -> 150 | CC62: 96.76 | CD62: =+AT62 -> 150 | CE62: 107.72 | CF62: =+AW62 -> 150 | CG62: 43.81 | CH62: =+AZ62 -> 150 | CI62: -8.4 | CK62: (ni podpore 2011/2) | CL62: (ni podpore 2011/2) | CM62: (ni podpore 2011/2) | CN62: (ni podpore 2011/2) | CO62: =BP62-BN62 -> 0 | CP62: =BQ62-BO62 -> 6.47 | CQ62: 0 | CR62: 3.22 | CS62: 0 | CT62: 2.43 | CU62: =BV62-BT62 -> 0 | CV62: -4.45 | CW62: =BX62-BV62 -> 0 | CX62: -0.31 | CY62: =BZ62-BX62 -> 0 | CZ62: -19.11 | DA62: =CB62-BZ62 -> 0 | DB62: 3.09 | DC62: =CD62-CB62 -> 0 | DD62: 10.96 | DE62: =CF62-CD62 -> 0 | DF62: -63.91 | DG62: =CH62-CF62 -> 0 | DH62: -52.21
A63: SE12-2012dec | B63: 3.1 Sončne elektrarne - na stavbah 2012 december | D63: mala - manjše od 1MW | E63: SE12 | T63: 137.19 | U63: 0 | V63: 137.19 | W63: 137.19 | X63: 0 | Y63: 137.19 | Z63: 137.19 | AA63: 0 | AB63: 137.19 | AC63: 137.19 | AD63: 0 | AE63: 137.19 | AF63: 137.19 | AG63: 0 | AH63: 137.19 | AI63: 137.19 | AJ63: 0 | AK63: 137.19 | AL63: 137.19 | AM63: 0 | AN63: 137.19 | AO63: 137.19 | AP63: 0 | AQ63: 137.19 | AR63: 137.19 | AS63: 0 | AT63: 137.19 | AU63: 137.19 | AV63: 0 | AW63: 137.19 | AX63: 137.19 | AY63: 0 | AZ63: 137.19 | BA63: 0.88 | BN63: =T63+U63 -> 137.19 | BO63: 92.61 | BP63: =W63+X63 -> 137.19 | BQ63: 99.08 | BR63: =+Z63+AA63 -> 137.19 | BS63: 102.3 | BT63: =+AC63+AD63 -> 137.19 | BU63: 104.73 | BV63: =+AH63 -> 137.19 | BW63: 100.28 | BX63: =+AK63 -> 137.19 | BY63: 99.97 | BZ63: =+AN63 -> 137.19 | CA63: 80.86 | CB63: =+AQ63 -> 137.19 | CC63: 83.95 | CD63: =+AT63 -> 137.19 | CE63: 94.91 | CF63: =+AW63 -> 137.19 | CG63: 31 | CH63: 137.19 | CI63: -21.21 | CK63: (ni podpore 2011/2) | CL63: (ni podpore 2011/2) | CM63: (ni podpore 2011/2) | CN63: (ni podpore 2011/2) | CO63: 0 | CP63: 6.47 | CQ63: 0 | CR63: 3.22 | CS63: 0 | CT63: 2.43 | CU63: 0 | CV63: -4.45 | CW63: 0 | CX63: -0.31 | CY63: 0 | CZ63: -19.11 | DA63: 0 | DB63: 3.09 | DC63: 0 | DD63: 10.96 | DE63: 0 | DF63: -63.91 | DG63: 0 | DH63: -52.21
A64: SE13-2012dec | B64: 3.1 Sončne elektrarne - na stavbah 2012 december | D64: srednja - od 1MW do vključno 10MW | E64: SE13 | T64: 113.85 | U64: 0 | V64: 113.85 | W64: 113.85 | X64: 0 | Y64: 113.85 | Z64: 113.85 | AA64: 0 | AB64: 113.85 | AC64: 113.85 | AD64: 0 | AE64: 113.85 | AF64: 113.85 | AG64: 0 | AH64: 113.85 | AI64: 113.85 | AJ64: 0 | AK64: 113.85 | AL64: 113.85 | AM64: 0 | AN64: 113.85 | AO64: 113.85 | AP64: 0 | AQ64: 113.85 | AR64: 113.85 | AS64: 0 | AT64: 113.85 | AU64: 113.85 | AV64: 0 | AW64: 113.85 | AX64: 113.85 | AY64: 0 | AZ64: 113.85 | BA64: 0.91 | BN64: =T64+U64 -> 113.85 | BO64: 67.75 | BP64: =W64+X64 -> 113.85 | BQ64: 74.44 | BR64: =+Z64+AA64 -> 113.85 | BS64: 77.77 | BT64: =+AC64+AD64 -> 113.85 | BU64: 80.28 | BV64: =+AH64 -> 113.85 | BW64: 75.68 | BX64: =+AK64 -> 113.85 | BY64: 75.36 | BZ64: =+AN64 -> 113.85 | CA64: 55.6 | CB64: =+AQ64 -> 113.85 | CC64: 58.8 | CD64: =+AT64 -> 113.85 | CE64: 70.13 | CF64: =+AW64 -> 113.85 | CG64: 4.04 | CH64: 113.85 | CI64: -49.95 | CK64: (ni podpore 2011/2) | CL64: (ni podpore 2011/2) | CM64: (ni podpore 2011/2) | CN64: (ni podpore 2011/2) | CO64: 0 | CP64: 6.69 | CQ64: 0 | CR64: 3.33 | CS64: 0 | CT64: 2.51 | CU64: 0 | CV64: -4.6 | CW64: 0 | CX64: -0.32 | CY64: 0 | CZ64: -19.76 | DA64: 0 | DB64: 3.2 | DC64: 0 | DD64: 11.33 | DE64: 0 | DF64: -66.09 | DG64: 0 | DH64: -53.99
A65: SE14-2012dec | B65: 3.1 Sončne elektrarne - na stavbah 2012 december | D65: velika - nad 10MW do vključno 125MW | E65: SE14 | T65: 101.34 | U65: 0 | V65: 101.34 | W65: 101.34 | X65: 0 | Y65: 101.34 | Z65: 101.34 | AA65: 0 | AB65: 101.34 | AC65: 101.34 | AD65: 0 | AE65: 101.34 | AF65: 101.34 | AG65: 0 | AH65: 101.34 | AI65: 101.34 | AJ65: 0 | AK65: 101.34 | AL65: 101.34 | AM65: 0 | AN65: 101.34 | AO65: 101.34 | AP65: 0 | AQ65: 101.34 | AR65: 101.34 | AS65: 0 | AT65: 101.34 | AU65: 101.34 | AV65: 0 | AW65: 101.34 | AX65: 101.34 | AY65: 0 | AZ65: 101.34 | BA65: 1 | BN65: (ni ZO) | BO65: 50.68 | BP65: (ni ZO) | BQ65: 58.03 | BR65: (ni ZO) | BS65: 61.69 | BT65: (ni ZO) | BU65: 64.45 | BV65: (ni ZO) | BW65: 59.4 | BX65: (ni ZO) | BY65: 59.04 | BZ65: (ni ZO) | CA65: 37.33 | CB65: (ni ZO) | CC65: 40.84 | CD65: (ni ZO) | CE65: 53.3 | CF65: (ni ZO) | CG65: -19.33 | CH65: (ni ZO) | CI65: -78.66 | CK65: (ni podpore 2011/2) | CL65: (ni podpore 2011/2) | CM65: (ni podpore 2011/2) | CN65: (ni podpore 2011/2) | CO65: (ni ZO) | CP65: 7.35 | CQ65: (ni ZO) | CR65: 3.66 | CS65: (ni ZO) | CT65: 2.76 | CU65: (ni ZO) | CV65: -5.05 | CW65: (ni ZO) | CX65: -0.36 | CY65: (ni ZO) | CZ65: -21.71 | DA65: (ni ZO) | DB65: 3.51 | DC65: (ni ZO) | DD65: 12.46 | DE65: (ni ZO) | DF65: -72.63 | DG65: (ni ZO) | DH65: -59.33
A66: SE21-2012dec | B66: 3.2 Sončne elektrarne - ostale 2012 december | D66: mikro - manjše od 50kW | E66: SE21 | T66: 140.95 | U66: 0 | V66: 140.95 | W66: 140.95 | X66: 0 | Y66: 140.95 | Z66: =+W66 -> 140.95 | AA66: =+X66 -> 0 | AB66: =+Z66+AA66 -> 140.95 | AC66: 140.95 | AD66: 0 | AE66: 140.95 | AF66: 140.95 | AG66: 0 | AH66: 140.95 | AI66: 140.95 | AJ66: 0 | AK66: 140.95 | AL66: 140.95 | AM66: 0 | AN66: 140.95 | AO66: 140.95 | AP66: 0 | AQ66: 140.95 | AR66: 140.95 | AS66: 0 | AT66: 140.95 | AU66: 140.95 | AV66: 0 | AW66: 140.95 | AX66: 140.95 | AY66: 0 | AZ66: 140.95 | BA66: 0.88 | BN66: =T66+U66 -> 140.95 | BO66: =ROUND((T66+U66)-BA66*$O$326,2) -> 96.37 | BP66: =W66+X66 -> 140.95 | BQ66: =ROUND((W66+X66)-BA66*$N$326,2) -> 102.84 | BR66: =+Z66+AA66 -> 140.95 | BS66: =ROUND((Z66+AA66)-BA66*$M$326,2) -> 106.06 | BT66: =+AC66+AD66 -> 140.95 | BU66: =ROUND((AC66+AD66)-BA66*$L$326,2) -> 108.49 | BV66: =+AH66 -> 140.95 | BW66: =ROUND(AH66-BA66*$K$326,2) -> 104.04 | BX66: =+AK66 -> 140.95 | BY66: =ROUND(AK66-BA66*$J$326,2) -> 103.73 | BZ66: =+AN66 -> 140.95 | CA66: =ROUND(AN66-BA66*$I$326,2) -> 84.62 | CB66: =+AQ66 -> 140.95 | CC66: =ROUND(AQ66-BA66*$H$326,2) -> 87.71 | CD66: =+AT66 -> 140.95 | CE66: =ROUND(AT66-BA66*$G$326,2) -> 98.67 | CF66: =+AW66 -> 140.95 | CG66: =ROUND(AW66-BA66*$F$326,2) -> 34.76 | CH66: =+AZ66 -> 140.95 | CI66: -17.45 | CK66: (ni podpore 2011/2) | CL66: (ni podpore 2011/2) | CM66: (ni podpore 2011/2) | CN66: (ni podpore 2011/2) | CO66: =BP66-BN66 -> 0 | CP66: 6.47 | CQ66: 0 | CR66: 3.22 | CS66: =BT66-BR66 -> 0 | CT66: =BU66-BS66 -> 2.43 | CU66: =BV66-BT66 -> 0 | CV66: =BW66-BU66 -> -4.45 | CW66: =BX66-BV66 -> 0 | CX66: =BY66-BW66 -> -0.31 | CY66: =BZ66-BX66 -> 0 | CZ66: =CA66-BY66 -> -19.11 | DA66: =CB66-BZ66 -> 0 | DB66: =CC66-CA66 -> 3.09 | DC66: =CD66-CB66 -> 0 | DD66: =CE66-CC66 -> 10.96 | DE66: =CF66-CD66 -> 0 | DF66: =CG66-CE66 -> -63.91 | DG66: =CH66-CF66 -> 0 | DH66: =CI66-CG66 -> -52.21
A67: SE22-2012dec | B67: 3.2 Sončne elektrarne - ostale 2012 december | D67: mala - manjše od 1MW | E67: SE22 | T67: 129.86 | U67: 0 | V67: 129.86 | W67: 129.86 | X67: 0 | Y67: 129.86 | Z67: 129.86 | AA67: 0 | AB67: 129.86 | AC67: =+Z67 -> 129.86 | AD67: =+AA67 -> 0 | AE67: =+AC67+AD67 -> 129.86 | AF67: =+AC67 -> 129.86 | AG67: =+AD67 -> 0 | AH67: =+AF67+AG67 -> 129.86 | AI67: =+AF67 -> 129.86 | AJ67: =+AG67 -> 0 | AK67: =+AI67+AJ67 -> 129.86 | AL67: =+AI67 -> 129.86 | AM67: =+AJ67 -> 0 | AN67: =+AL67+AM67 -> 129.86 | AO67: =+AL67 -> 129.86 | AP67: =+AM67 -> 0 | AQ67: =+AO67+AP67 -> 129.86 | AR67: =+AO67 -> 129.86 | AS67: =+AP67 -> 0 | AT67: =+AR67+AS67 -> 129.86 | AU67: =+AR67 -> 129.86 | AV67: =+AS67 -> 0 | AW67: =+AU67+AV67 -> 129.86 | AX67: =+AU67 -> 129.86 | AY67: =+AV67 -> 0 | AZ67: =+AX67+AY67 -> 129.86 | BA67: 0.88 | BN67: =T67+U67 -> 129.86 | BO67: 85.28 | BP67: =W67+X67 -> 129.86 | BQ67: 91.75 | BR67: =+Z67+AA67 -> 129.86 | BS67: 94.97 | BT67: =+AC67+AD67 -> 129.86 | BU67: 97.4 | BV67: =+AH67 -> 129.86 | BW67: 92.95 | BX67: =+AK67 -> 129.86 | BY67: 92.64 | BZ67: =+AN67 -> 129.86 | CA67: 73.53 | CB67: =+AQ67 -> 129.86 | CC67: 76.62 | CD67: =+AT67 -> 129.86 | CE67: 87.58 | CF67: =+AW67 -> 129.86 | CG67: 23.67 | CH67: 129.86 | CI67: -28.54 | CK67: (ni podpore 2011/2) | CL67: (ni podpore 2011/2) | CM67: (ni podpore 2011/2) | CN67: (ni podpore 2011/2) | CO67: 0 | CP67: 6.47 | CQ67: =BR67-BP67 -> 0 | CR67: =BS67-BQ67 -> 3.22 | CS67: 0 | CT67: 2.43 | CU67: 0 | CV67: -4.45 | CW67: 0 | CX67: -0.31 | CY67: 0 | CZ67: -19.11 | DA67: 0 | DB67: 3.09 | DC67: 0 | DD67: 10.96 | DE67: 0 | DF67: -63.91 | DG67: 0 | DH67: -52.21
A68: SE23-2012dec | B68: 3.2 Sončne elektrarne - ostale 2012 december | D68: srednja - od 1MW do vključno 10MW | E68: SE23 | T68: 104.68 | U68: 0 | V68: 104.68 | W68: 104.68 | X68: 0 | Y68: 104.68 | Z68: 104.68 | AA68: 0 | AB68: 104.68 | AC68: 104.68 | AD68: 0 | AE68: 104.68 | AF68: 104.68 | AG68: 0 | AH68: 104.68 | AI68: 104.68 | AJ68: 0 | AK68: 104.68 | AL68: 104.68 | AM68: 0 | AN68: 104.68 | AO68: 104.68 | AP68: 0 | AQ68: 104.68 | AR68: 104.68 | AS68: 0 | AT68: 104.68 | AU68: 104.68 | AV68: 0 | AW68: 104.68 | AX68: 104.68 | AY68: 0 | AZ68: 104.68 | BA68: 0.91 | BN68: =T68+U68 -> 104.68 | BO68: 58.58 | BP68: =W68+X68 -> 104.68 | BQ68: 65.27 | BR68: =+Z68+AA68 -> 104.68 | BS68: 68.6 | BT68: =+AC68+AD68 -> 104.68 | BU68: 71.11 | BV68: =+AH68 -> 104.68 | BW68: 66.51 | BX68: =+AK68 -> 104.68 | BY68: 66.19 | BZ68: =+AN68 -> 104.68 | CA68: 46.43 | CB68: =+AQ68 -> 104.68 | CC68: 49.63 | CD68: =+AT68 -> 104.68 | CE68: 60.96 | CF68: =+AW68 -> 104.68 | CG68: -5.13 | CH68: 104.68 | CI68: -59.12 | CK68: (ni podpore 2011/2) | CL68: (ni podpore 2011/2) | CM68: (ni podpore 2011/2) | CN68: (ni podpore 2011/2) | CO68: 0 | CP68: 6.69 | CQ68: 0 | CR68: 3.33 | CS68: 0 | CT68: 2.51 | CU68: 0 | CV68: -4.6 | CW68: 0 | CX68: -0.32 | CY68: 0 | CZ68: -19.76 | DA68: 0 | DB68: 3.2 | DC68: 0 | DD68: 11.33 | DE68: 0 | DF68: -66.09 | DG68: 0 | DH68: -53.99
A69: SE24-2012dec | B69: 3.2 Sončne elektrarne - ostale 2012 december | D69: velika - nad 10MW do vključno 125MW | E69: SE24 | T69: 97.19 | U69: 0 | V69: 97.19 | W69: 97.19 | X69: 0 | Y69: 97.19 | Z69: 97.19 | AA69: 0 | AB69: 97.19 | AC69: 97.19 | AD69: 0 | AE69: 97.19 | AF69: 97.19 | AG69: 0 | AH69: 97.19 | AI69: 97.19 | AJ69: 0 | AK69: 97.19 | AL69: 97.19 | AM69: 0 | AN69: 97.19 | AO69: 97.19 | AP69: 0 | AQ69: 97.19 | AR69: 97.19 | AS69: 0 | AT69: 97.19 | AU69: 97.19 | AV69: 0 | AW69: 97.19 | AX69: 97.19 | AY69: 0 | AZ69: 97.19 | BA69: 1 | BN69: (ni ZO) | BO69: 46.53 | BP69: (ni ZO) | BQ69: 53.88 | BR69: (ni ZO) | BS69: 57.54 | BT69: (ni ZO) | BU69: 60.3 | BV69: (ni ZO) | BW69: 55.25 | BX69: (ni ZO) | BY69: 54.89 | BZ69: (ni ZO) | CA69: 33.18 | CB69: (ni ZO) | CC69: 36.69 | CD69: (ni ZO) | CE69: 49.15 | CF69: (ni ZO) | CG69: -23.48 | CH69: (ni ZO) | CI69: -82.81 | CK69: (ni podpore 2011/2) | CL69: (ni podpore 2011/2) | CM69: (ni podpore 2011/2) | CN69: (ni podpore 2011/2) | CO69: (ni ZO) | CP69: 7.35 | CQ69: (ni ZO) | CR69: 3.66 | CS69: (ni ZO) | CT69: 2.76 | CU69: (ni ZO) | CV69: -5.05 | CW69: (ni ZO) | CX69: -0.36 | CY69: (ni ZO) | CZ69: -21.71 | DA69: (ni ZO) | DB69: 3.51 | DC69: (ni ZO) | DD69: 12.46 | DE69: (ni ZO) | DF69: -72.63 | DG69: (ni ZO) | DH69: -59.33
A70: SE11-2013jan | B70: 3.1 Sončne elektrarne - na stavbah 2013 januar | D70: mikro - manjše od 50kW | E70: SE11 | T70: =ROUND(0.98*T62,2) -> 147 | U70: 0 | V70: =T70+U70 -> 147 | W70: =ROUND(0.98*W62,2) -> 147 | X70: 0 | Y70: 147 | Z70: 147 | AA70: 0 | AB70: 147 | AC70: 147 | AD70: 0 | AE70: 147 | AF70: 147 | AG70: 0 | AH70: 147 | AI70: 147 | AJ70: 0 | AK70: 147 | AL70: 147 | AM70: 0 | AN70: 147 | AO70: 147 | AP70: 0 | AQ70: 147 | AR70: 147 | AS70: 0 | AT70: 147 | AU70: 147 | AV70: 0 | AW70: 147 | AX70: 147 | AY70: 0 | AZ70: 147 | BA70: 0.88 | BN70: =T70+U70 -> 147 | BO70: 102.42 | BP70: =W70+X70 -> 147 | BQ70: 108.89 | BR70: =+Z70+AA70 -> 147 | BS70: 112.11 | BT70: =+AC70+AD70 -> 147 | BU70: 114.54 | BV70: =+AH70 -> 147 | BW70: 110.09 | BX70: =+AK70 -> 147 | BY70: 109.78 | BZ70: =+AN70 -> 147 | CA70: 90.67 | CB70: =+AQ70 -> 147 | CC70: 93.76 | CD70: =+AT70 -> 147 | CE70: 104.72 | CF70: =+AW70 -> 147 | CG70: 40.81 | CH70: =+AZ70 -> 147 | CI70: -11.4 | CK70: (ni podpore 2011/2) | CL70: (ni podpore 2011/2) | CM70: (ni podpore 2011/2) | CN70: (ni podpore 2011/2) | CO70: =BP70-BN70 -> 0 | CP70: 6.47 | CQ70: 0 | CR70: 3.22 | CS70: 0 | CT70: 2.43 | CU70: =BV70-BT70 -> 0 | CV70: -4.45 | CW70: =BX70-BV70 -> 0 | CX70: -0.31 | CY70: =BZ70-BX70 -> 0 | CZ70: -19.11 | DA70: =CB70-BZ70 -> 0 | DB70: 3.09 | DC70: =CD70-CB70 -> 0 | DD70: 10.96 | DE70: =CF70-CD70 -> 0 | DF70: -63.91 | DG70: =CH70-CF70 -> 0 | DH70: -52.21
A71: SE12-2013jan | B71: 3.1 Sončne elektrarne - na stavbah 2013 januar | D71: mala - manjše od 1MW | E71: SE12 | T71: =ROUND(0.98*T63,2) -> 134.45 | U71: 0 | V71: 134.45 | W71: =ROUND(0.98*W63,2) -> 134.45 | X71: 0 | Y71: 134.45 | Z71: 134.45 | AA71: 0 | AB71: 134.45 | AC71: 134.45 | AD71: 0 | AE71: 134.45 | AF71: 134.45 | AG71: 0 | AH71: 134.45 | AI71: 134.45 | AJ71: 0 | AK71: 134.45 | AL71: 134.45 | AM71: 0 | AN71: 134.45 | AO71: 134.45 | AP71: 0 | AQ71: 134.45 | AR71: 134.45 | AS71: 0 | AT71: 134.45 | AU71: 134.45 | AV71: 0 | AW71: 134.45 | AX71: 134.45 | AY71: 0 | AZ71: 134.45 | BA71: 0.88 | BN71: =T71+U71 -> 134.45 | BO71: 89.87 | BP71: =W71+X71 -> 134.45 | BQ71: 96.34 | BR71: =+Z71+AA71 -> 134.45 | BS71: 99.56 | BT71: =+AC71+AD71 -> 134.45 | BU71: 101.99 | BV71: =+AH71 -> 134.45 | BW71: 97.54 | BX71: =+AK71 -> 134.45 | BY71: 97.23 | BZ71: =+AN71 -> 134.45 | CA71: 78.12 | CB71: =+AQ71 -> 134.45 | CC71: 81.21 | CD71: =+AT71 -> 134.45 | CE71: 92.17 | CF71: =+AW71 -> 134.45 | CG71: 28.26 | CH71: 134.45 | CI71: -23.95 | CK71: (ni podpore 2011/2) | CL71: (ni podpore 2011/2) | CM71: (ni podpore 2011/2) | CN71: (ni podpore 2011/2) | CO71: 0 | CP71: 6.47 | CQ71: 0 | CR71: 3.22 | CS71: 0 | CT71: 2.43 | CU71: 0 | CV71: -4.45 | CW71: 0 | CX71: -0.31 | CY71: 0 | CZ71: -19.11 | DA71: 0 | DB71: 3.09 | DC71: 0 | DD71: 10.96 | DE71: 0 | DF71: -63.91 | DG71: 0 | DH71: -52.21
A72: SE13-2013jan | B72: 3.1 Sončne elektrarne - na stavbah 2013 januar | D72: srednja - od 1MW do vključno 10MW | E72: SE13 | T72: 111.57 | U72: 0 | V72: 111.57 | W72: 111.57 | X72: 0 | Y72: 111.57 | Z72: 111.57 | AA72: 0 | AB72: 111.57 | AC72: 111.57 | AD72: 0 | AE72: 111.57 | AF72: 111.57 | AG72: 0 | AH72: 111.57 | AI72: 111.57 | AJ72: 0 | AK72: 111.57 | AL72: 111.57 | AM72: 0 | AN72: 111.57 | AO72: 111.57 | AP72: 0 | AQ72: 111.57 | AR72: 111.57 | AS72: 0 | AT72: 111.57 | AU72: 111.57 | AV72: 0 | AW72: 111.57 | AX72: 111.57 | AY72: 0 | AZ72: 111.57 | BA72: 0.91 | BN72: =T72+U72 -> 111.57 | BO72: 65.47 | BP72: =W72+X72 -> 111.57 | BQ72: 72.16 | BR72: =+Z72+AA72 -> 111.57 | BS72: 75.49 | BT72: =+AC72+AD72 -> 111.57 | BU72: 78 | BV72: =+AH72 -> 111.57 | BW72: 73.4 | BX72: =+AK72 -> 111.57 | BY72: 73.08 | BZ72: =+AN72 -> 111.57 | CA72: 53.32 | CB72: =+AQ72 -> 111.57 | CC72: 56.52 | CD72: =+AT72 -> 111.57 | CE72: 67.85 | CF72: =+AW72 -> 111.57 | CG72: 1.76 | CH72: 111.57 | CI72: -52.23 | CK72: (ni podpore 2011/2) | CL72: (ni podpore 2011/2) | CM72: (ni podpore 2011/2) | CN72: (ni podpore 2011/2) | CO72: 0 | CP72: 6.69 | CQ72: 0 | CR72: 3.33 | CS72: 0 | CT72: 2.51 | CU72: 0 | CV72: -4.6 | CW72: 0 | CX72: -0.32 | CY72: 0 | CZ72: -19.76 | DA72: 0 | DB72: 3.2 | DC72: 0 | DD72: 11.33 | DE72: 0 | DF72: -66.09 | DG72: 0 | DH72: -53.99
A73: SE14-2013jan | B73: 3.1 Sončne elektrarne - na stavbah 2013 januar | D73: velika - nad 10MW do vključno 125MW | E73: SE14 | T73: 99.31 | U73: 0 | V73: 99.31 | W73: 99.31 | X73: 0 | Y73: 99.31 | Z73: 99.31 | AA73: 0 | AB73: 99.31 | AC73: 99.31 | AD73: 0 | AE73: 99.31 | AF73: 99.31 | AG73: 0 | AH73: 99.31 | AI73: 99.31 | AJ73: 0 | AK73: 99.31 | AL73: 99.31 | AM73: 0 | AN73: 99.31 | AO73: 99.31 | AP73: 0 | AQ73: 99.31 | AR73: 99.31 | AS73: 0 | AT73: 99.31 | AU73: 99.31 | AV73: 0 | AW73: 99.31 | AX73: 99.31 | AY73: 0 | AZ73: 99.31 | BA73: 1 | BN73: (ni ZO) | BO73: 48.65 | BP73: (ni ZO) | BQ73: 56 | BR73: (ni ZO) | BS73: 59.66 | BT73: (ni ZO) | BU73: 62.42 | BV73: (ni ZO) | BW73: 57.37 | BX73: (ni ZO) | BY73: 57.01 | BZ73: (ni ZO) | CA73: 35.3 | CB73: (ni ZO) | CC73: 38.81 | CD73: (ni ZO) | CE73: 51.27 | CF73: (ni ZO) | CG73: -21.36 | CH73: (ni ZO) | CI73: -80.69 | CK73: (ni podpore 2011/2) | CL73: (ni podpore 2011/2) | CM73: (ni podpore 2011/2) | CN73: (ni podpore 2011/2) | CO73: (ni ZO) | CP73: 7.35 | CQ73: (ni ZO) | CR73: 3.66 | CS73: (ni ZO) | CT73: 2.76 | CU73: (ni ZO) | CV73: -5.05 | CW73: (ni ZO) | CX73: -0.36 | CY73: (ni ZO) | CZ73: -21.71 | DA73: (ni ZO) | DB73: 3.51 | DC73: (ni ZO) | DD73: 12.46 | DE73: (ni ZO) | DF73: -72.63 | DG73: (ni ZO) | DH73: -59.33
A74: SE21-2013jan | B74: 3.2 Sončne elektrarne - ostale 2013 januar | D74: mikro - manjše od 50kW | E74: SE21 | T74: 138.13 | U74: 0 | V74: 138.13 | W74: 138.13 | X74: 0 | Y74: 138.13 | Z74: 138.13 | AA74: 0 | AB74: 138.13 | AC74: 138.13 | AD74: 0 | AE74: 138.13 | AF74: 138.13 | AG74: 0 | AH74: 138.13 | AI74: 138.13 | AJ74: 0 | AK74: 138.13 | AL74: 138.13 | AM74: 0 | AN74: 138.13 | AO74: 138.13 | AP74: 0 | AQ74: 138.13 | AR74: 138.13 | AS74: 0 | AT74: 138.13 | AU74: 138.13 | AV74: 0 | AW74: 138.13 | AX74: 138.13 | AY74: 0 | AZ74: 138.13 | BA74: 0.88 | BN74: =T74+U74 -> 138.13 | BO74: 93.55 | BP74: =W74+X74 -> 138.13 | BQ74: 100.02 | BR74: =+Z74+AA74 -> 138.13 | BS74: 103.24 | BT74: =+AC74+AD74 -> 138.13 | BU74: 105.67 | BV74: =+AH74 -> 138.13 | BW74: 101.22 | BX74: =+AK74 -> 138.13 | BY74: 100.91 | BZ74: =+AN74 -> 138.13 | CA74: 81.8 | CB74: =+AQ74 -> 138.13 | CC74: 84.89 | CD74: =+AT74 -> 138.13 | CE74: 95.85 | CF74: =+AW74 -> 138.13 | CG74: 31.94 | CH74: =+AZ74 -> 138.13 | CI74: -20.27 | CK74: (ni podpore 2011/2) | CL74: (ni podpore 2011/2) | CM74: (ni podpore 2011/2) | CN74: (ni podpore 2011/2) | CO74: =BP74-BN74 -> 0 | CP74: 6.47 | CQ74: 0 | CR74: 3.22 | CS74: 0 | CT74: 2.43 | CU74: =BV74-BT74 -> 0 | CV74: -4.45 | CW74: =BX74-BV74 -> 0 | CX74: -0.31 | CY74: =BZ74-BX74 -> 0 | CZ74: -19.11 | DA74: =CB74-BZ74 -> 0 | DB74: 3.09 | DC74: =CD74-CB74 -> 0 | DD74: 10.96 | DE74: =CF74-CD74 -> 0 | DF74: -63.91 | DG74: =CH74-CF74 -> 0 | DH74: -52.21
A75: SE22-2013jan | B75: 3.2 Sončne elektrarne - ostale 2013 januar | D75: mala - manjše od 1MW | E75: SE22 | T75: 127.26 | U75: 0 | V75: 127.26 | W75: 127.26 | X75: 0 | Y75: 127.26 | Z75: 127.26 | AA75: 0 | AB75: 127.26 | AC75: 127.26 | AD75: 0 | AE75: 127.26 | AF75: 127.26 | AG75: 0 | AH75: 127.26 | AI75: 127.26 | AJ75: 0 | AK75: 127.26 | AL75: 127.26 | AM75: 0 | AN75: 127.26 | AO75: 127.26 | AP75: 0 | AQ75: 127.26 | AR75: 127.26 | AS75: 0 | AT75: 127.26 | AU75: 127.26 | AV75: 0 | AW75: 127.26 | AX75: 127.26 | AY75: 0 | AZ75: 127.26 | BA75: 0.88 | BN75: =T75+U75 -> 127.26 | BO75: 82.68 | BP75: =W75+X75 -> 127.26 | BQ75: 89.15 | BR75: =+Z75+AA75 -> 127.26 | BS75: 92.37 | BT75: =+AC75+AD75 -> 127.26 | BU75: 94.8 | BV75: =+AH75 -> 127.26 | BW75: 90.35 | BX75: =+AK75 -> 127.26 | BY75: 90.04 | BZ75: =+AN75 -> 127.26 | CA75: 70.93 | CB75: =+AQ75 -> 127.26 | CC75: 74.02 | CD75: =+AT75 -> 127.26 | CE75: 84.98 | CF75: =+AW75 -> 127.26 | CG75: 21.07 | CH75: 127.26 | CI75: -31.14 | CK75: (ni podpore 2011/2) | CL75: (ni podpore 2011/2) | CM75: (ni podpore 2011/2) | CN75: (ni podpore 2011/2) | CO75: 0 | CP75: 6.47 | CQ75: 0 | CR75: 3.22 | CS75: 0 | CT75: 2.43 | CU75: 0 | CV75: -4.45 | CW75: 0 | CX75: -0.31 | CY75: 0 | CZ75: -19.11 | DA75: 0 | DB75: 3.09 | DC75: 0 | DD75: 10.96 | DE75: 0 | DF75: -63.91 | DG75: 0 | DH75: -52.21
A76: SE23-2013jan | B76: 3.2 Sončne elektrarne - ostale 2013 januar | D76: srednja - od 1MW do vključno 10MW | E76: SE23 | T76: 102.59 | U76: 0 | V76: 102.59 | W76: 102.59 | X76: 0 | Y76: 102.59 | Z76: 102.59 | AA76: 0 | AB76: 102.59 | AC76: 102.59 | AD76: 0 | AE76: 102.59 | AF76: 102.59 | AG76: 0 | AH76: 102.59 | AI76: 102.59 | AJ76: 0 | AK76: 102.59 | AL76: 102.59 | AM76: 0 | AN76: 102.59 | AO76: 102.59 | AP76: 0 | AQ76: 102.59 | AR76: 102.59 | AS76: 0 | AT76: 102.59 | AU76: 102.59 | AV76: 0 | AW76: 102.59 | AX76: 102.59 | AY76: 0 | AZ76: 102.59 | BA76: 0.91 | BN76: =T76+U76 -> 102.59 | BO76: 56.49 | BP76: =W76+X76 -> 102.59 | BQ76: 63.18 | BR76: =+Z76+AA76 -> 102.59 | BS76: 66.51 | BT76: =+AC76+AD76 -> 102.59 | BU76: 69.02 | BV76: =+AH76 -> 102.59 | BW76: 64.42 | BX76: =+AK76 -> 102.59 | BY76: 64.1 | BZ76: =+AN76 -> 102.59 | CA76: 44.34 | CB76: =+AQ76 -> 102.59 | CC76: 47.54 | CD76: =+AT76 -> 102.59 | CE76: 58.87 | CF76: =+AW76 -> 102.59 | CG76: -7.22 | CH76: 102.59 | CI76: -61.21 | CK76: (ni podpore 2011/2) | CL76: (ni podpore 2011/2) | CM76: (ni podpore 2011/2) | CN76: (ni podpore 2011/2) | CO76: 0 | CP76: 6.69 | CQ76: 0 | CR76: 3.33 | CS76: 0 | CT76: 2.51 | CU76: 0 | CV76: -4.6 | CW76: 0 | CX76: -0.32 | CY76: 0 | CZ76: -19.76 | DA76: 0 | DB76: 3.2 | DC76: 0 | DD76: 11.33 | DE76: 0 | DF76: -66.09 | DG76: 0 | DH76: -53.99
A77: SE24-2013jan | B77: 3.2 Sončne elektrarne - ostale 2013 januar | D77: velika - nad 10MW do vključno 125MW | E77: SE24 | T77: 95.25 | U77: 0 | V77: 95.25 | W77: 95.25 | X77: 0 | Y77: 95.25 | Z77: 95.25 | AA77: 0 | AB77: 95.25 | AC77: 95.25 | AD77: 0 | AE77: 95.25 | AF77: 95.25 | AG77: 0 | AH77: 95.25 | AI77: 95.25 | AJ77: 0 | AK77: 95.25 | AL77: 95.25 | AM77: 0 | AN77: 95.25 | AO77: 95.25 | AP77: 0 | AQ77: 95.25 | AR77: 95.25 | AS77: 0 | AT77: 95.25 | AU77: 95.25 | AV77: 0 | AW77: 95.25 | AX77: 95.25 | AY77: 0 | AZ77: 95.25 | BA77: 1 | BN77: (ni ZO) | BO77: 44.59 | BP77: (ni ZO) | BQ77: 51.94 | BR77: (ni ZO) | BS77: 55.6 | BT77: (ni ZO) | BU77: 58.36 | BV77: (ni ZO) | BW77: 53.31 | BX77: (ni ZO) | BY77: 52.95 | BZ77: (ni ZO) | CA77: 31.24 | CB77: (ni ZO) | CC77: 34.75 | CD77: (ni ZO) | CE77: 47.21 | CF77: (ni ZO) | CG77: -25.42 | CH77: (ni ZO) | CI77: -84.75 | CK77: (ni podpore 2011/2) | CL77: (ni podpore 2011/2) | CM77: (ni podpore 2011/2) | CN77: (ni podpore 2011/2) | CO77: (ni ZO) | CP77: 7.35 | CQ77: (ni ZO) | CR77: 3.66 | CS77: (ni ZO) | CT77: 2.76 | CU77: (ni ZO) | CV77: -5.05 | CW77: (ni ZO) | CX77: -0.36 | CY77: (ni ZO) | CZ77: -21.71 | DA77: (ni ZO) | DB77: 3.51 | DC77: (ni ZO) | DD77: 12.46 | DE77: (ni ZO) | DF77: -72.63 | DG77: (ni ZO) | DH77: -59.33
A78: SE11-2013feb | B78: 3.1 Sončne elektrarne - na stavbah 2013 februar | D78: mikro - manjše od 50kW | E78: SE11 | T78: 144.06 | U78: 0 | V78: 144.06 | W78: 144.06 | X78: 0 | Y78: 144.06 | Z78: 144.06 | AA78: 0 | AB78: 144.06 | AC78: 144.06 | AD78: 0 | AE78: 144.06 | AF78: 144.06 | AG78: 0 | AH78: 144.06 | AI78: 144.06 | AJ78: 0 | AK78: 144.06 | AL78: 144.06 | AM78: 0 | AN78: 144.06 | AO78: 144.06 | AP78: 0 | AQ78: 144.06 | AR78: 144.06 | AS78: 0 | AT78: 144.06 | AU78: 144.06 | AV78: 0 | AW78: 144.06 | AX78: 144.06 | AY78: 0 | AZ78: 144.06 | BA78: 0.88 | BN78: =T78+U78 -> 144.06 | BO78: 99.48 | BP78: =W78+X78 -> 144.06 | BQ78: 105.95 | BR78: =+Z78+AA78 -> 144.06 | BS78: 109.17 | BT78: =+AC78+AD78 -> 144.06 | BU78: 111.6 | BV78: =+AH78 -> 144.06 | BW78: 107.15 | BX78: =+AK78 -> 144.06 | BY78: 106.84 | BZ78: =+AN78 -> 144.06 | CA78: 87.73 | CB78: =+AQ78 -> 144.06 | CC78: 90.82 | CD78: =+AT78 -> 144.06 | CE78: 101.78 | CF78: =+AW78 -> 144.06 | CG78: 37.87 | CH78: =+AZ78 -> 144.06 | CI78: -14.34 | CK78: (ni podpore 2011/2) | CL78: (ni podpore 2011/2) | CM78: (ni podpore 2011/2) | CN78: (ni podpore 2011/2) | CO78: =BP78-BN78 -> 0 | CP78: 6.47 | CQ78: 0 | CR78: 3.22 | CS78: 0 | CT78: 2.43 | CU78: =BV78-BT78 -> 0 | CV78: -4.45 | CW78: =BX78-BV78 -> 0 | CX78: -0.31 | CY78: =BZ78-BX78 -> 0 | CZ78: -19.11 | DA78: =CB78-BZ78 -> 0 | DB78: 3.09 | DC78: =CD78-CB78 -> 0 | DD78: 10.96 | DE78: =CF78-CD78 -> 0 | DF78: -63.91 | DG78: =CH78-CF78 -> 0 | DH78: -52.21
A79: SE12-2013feb | B79: 3.1 Sončne elektrarne - na stavbah 2013 februar | D79: mala - manjše od 1MW | E79: SE12 | T79: 131.76 | U79: 0 | V79: 131.76 | W79: 131.76 | X79: 0 | Y79: 131.76 | Z79: 131.76 | AA79: 0 | AB79: 131.76 | AC79: 131.76 | AD79: 0 | AE79: 131.76 | AF79: 131.76 | AG79: 0 | AH79: 131.76 | AI79: 131.76 | AJ79: 0 | AK79: 131.76 | AL79: 131.76 | AM79: 0 | AN79: 131.76 | AO79: 131.76 | AP79: 0 | AQ79: 131.76 | AR79: 131.76 | AS79: 0 | AT79: 131.76 | AU79: 131.76 | AV79: 0 | AW79: 131.76 | AX79: 131.76 | AY79: 0 | AZ79: 131.76 | BA79: 0.88 | BN79: =T79+U79 -> 131.76 | BO79: 87.18 | BP79: =W79+X79 -> 131.76 | BQ79: 93.65 | BR79: =+Z79+AA79 -> 131.76 | BS79: 96.87 | BT79: =+AC79+AD79 -> 131.76 | BU79: 99.3 | BV79: =+AH79 -> 131.76 | BW79: 94.85 | BX79: =+AK79 -> 131.76 | BY79: 94.54 | BZ79: =+AN79 -> 131.76 | CA79: 75.43 | CB79: =+AQ79 -> 131.76 | CC79: 78.52 | CD79: =+AT79 -> 131.76 | CE79: 89.48 | CF79: =+AW79 -> 131.76 | CG79: 25.57 | CH79: 131.76 | CI79: -26.64 | CK79: (ni podpore 2011/2) | CL79: (ni podpore 2011/2) | CM79: (ni podpore 2011/2) | CN79: (ni podpore 2011/2) | CO79: 0 | CP79: 6.47 | CQ79: 0 | CR79: 3.22 | CS79: 0 | CT79: 2.43 | CU79: 0 | CV79: -4.45 | CW79: 0 | CX79: -0.31 | CY79: 0 | CZ79: -19.11 | DA79: 0 | DB79: 3.09 | DC79: 0 | DD79: 10.96 | DE79: 0 | DF79: -63.91 | DG79: 0 | DH79: -52.21
A80: SE13-2013feb | B80: 3.1 Sončne elektrarne - na stavbah 2013 februar | D80: srednja - od 1MW do vključno 10MW | E80: SE13 | T80: 109.34 | U80: 0 | V80: 109.34 | W80: 109.34 | X80: 0 | Y80: 109.34 | Z80: 109.34 | AA80: 0 | AB80: 109.34 | AC80: 109.34 | AD80: 0 | AE80: 109.34 | AF80: 109.34 | AG80: 0 | AH80: 109.34 | AI80: 109.34 | AJ80: 0 | AK80: 109.34 | AL80: 109.34 | AM80: 0 | AN80: 109.34 | AO80: 109.34 | AP80: 0 | AQ80: 109.34 | AR80: 109.34 | AS80: 0 | AT80: 109.34 | AU80: 109.34 | AV80: 0 | AW80: 109.34 | AX80: 109.34 | AY80: 0 | AZ80: 109.34 | BA80: 0.91 | BN80: =T80+U80 -> 109.34 | BO80: 63.24 | BP80: =W80+X80 -> 109.34 | BQ80: 69.93 | BR80: =+Z80+AA80 -> 109.34 | BS80: 73.26 | BT80: =+AC80+AD80 -> 109.34 | BU80: 75.77 | BV80: =+AH80 -> 109.34 | BW80: 71.17 | BX80: =+AK80 -> 109.34 | BY80: 70.85 | BZ80: =+AN80 -> 109.34 | CA80: 51.09 | CB80: =+AQ80 -> 109.34 | CC80: 54.29 | CD80: =+AT80 -> 109.34 | CE80: 65.62 | CF80: =+AW80 -> 109.34 | CG80: -0.47 | CH80: 109.34 | CI80: -54.46 | CK80: (ni podpore 2011/2) | CL80: (ni podpore 2011/2) | CM80: (ni podpore 2011/2) | CN80: (ni podpore 2011/2) | CO80: 0 | CP80: 6.69 | CQ80: 0 | CR80: 3.33 | CS80: 0 | CT80: 2.51 | CU80: 0 | CV80: -4.6 | CW80: 0 | CX80: -0.32 | CY80: 0 | CZ80: -19.76 | DA80: 0 | DB80: 3.2 | DC80: 0 | DD80: 11.33 | DE80: 0 | DF80: -66.09 | DG80: 0 | DH80: -53.99
A81: SE14-2013feb | B81: 3.1 Sončne elektrarne - na stavbah 2013 februar | D81: velika - nad 10MW do vključno 125MW | E81: SE14 | T81: 97.32 | U81: 0 | V81: 97.32 | W81: 97.32 | X81: 0 | Y81: 97.32 | Z81: 97.32 | AA81: 0 | AB81: 97.32 | AC81: 97.32 | AD81: 0 | AE81: 97.32 | AF81: 97.32 | AG81: 0 | AH81: 97.32 | AI81: 97.32 | AJ81: 0 | AK81: 97.32 | AL81: 97.32 | AM81: 0 | AN81: 97.32 | AO81: 97.32 | AP81: 0 | AQ81: 97.32 | AR81: 97.32 | AS81: 0 | AT81: 97.32 | AU81: 97.32 | AV81: 0 | AW81: 97.32 | AX81: 97.32 | AY81: 0 | AZ81: 97.32 | BA81: 1 | BN81: (ni ZO) | BO81: 46.66 | BP81: (ni ZO) | BQ81: 54.01 | BR81: (ni ZO) | BS81: 57.67 | BT81: (ni ZO) | BU81: 60.43 | BV81: (ni ZO) | BW81: 55.38 | BX81: (ni ZO) | BY81: 55.02 | BZ81: (ni ZO) | CA81: 33.31 | CB81: (ni ZO) | CC81: 36.82 | CD81: (ni ZO) | CE81: 49.28 | CF81: (ni ZO) | CG81: -23.35 | CH81: (ni ZO) | CI81: =ROUND(AZ81-BA81*$E$326,2) -> -82.68 | CK81: (ni podpore 2011/2) | CL81: (ni podpore 2011/2) | CM81: (ni podpore 2011/2) | CN81: (ni podpore 2011/2) | CO81: (ni ZO) | CP81: 7.35 | CQ81: (ni ZO) | CR81: 3.66 | CS81: (ni ZO) | CT81: 2.76 | CU81: (ni ZO) | CV81: -5.05 | CW81: (ni ZO) | CX81: -0.36 | CY81: (ni ZO) | CZ81: -21.71 | DA81: (ni ZO) | DB81: 3.51 | DC81: (ni ZO) | DD81: 12.46 | DE81: (ni ZO) | DF81: -72.63 | DG81: (ni ZO) | DH81: -59.33
A82: SE21-2013feb | B82: 3.2 Sončne elektrarne - ostale 2013 februar | D82: mikro - manjše od 50kW | E82: SE21 | T82: 135.37 | U82: 0 | V82: 135.37 | W82: 135.37 | X82: 0 | Y82: 135.37 | Z82: 135.37 | AA82: 0 | AB82: 135.37 | AC82: 135.37 | AD82: 0 | AE82: 135.37 | AF82: 135.37 | AG82: 0 | AH82: 135.37 | AI82: 135.37 | AJ82: 0 | AK82: 135.37 | AL82: 135.37 | AM82: 0 | AN82: 135.37 | AO82: 135.37 | AP82: 0 | AQ82: 135.37 | AR82: 135.37 | AS82: 0 | AT82: 135.37 | AU82: 135.37 | AV82: 0 | AW82: 135.37 | AX82: 135.37 | AY82: 0 | AZ82: 135.37 | BA82: 0.88 | BN82: =T82+U82 -> 135.37 | BO82: 90.79 | BP82: =W82+X82 -> 135.37 | BQ82: 97.26 | BR82: =+Z82+AA82 -> 135.37 | BS82: 100.48 | BT82: =+AC82+AD82 -> 135.37 | BU82: 102.91 | BV82: =+AH82 -> 135.37 | BW82: 98.46 | BX82: =+AK82 -> 135.37 | BY82: 98.15 | BZ82: =+AN82 -> 135.37 | CA82: 79.04 | CB82: =+AQ82 -> 135.37 | CC82: 82.13 | CD82: =+AT82 -> 135.37 | CE82: 93.09 | CF82: =+AW82 -> 135.37 | CG82: 29.18 | CH82: =+AZ82 -> 135.37 | CI82: -23.03 | CK82: (ni podpore 2011/2) | CL82: (ni podpore 2011/2) | CM82: (ni podpore 2011/2) | CN82: (ni podpore 2011/2) | CO82: =BP82-BN82 -> 0 | CP82: 6.47 | CQ82: 0 | CR82: 3.22 | CS82: 0 | CT82: 2.43 | CU82: =BV82-BT82 -> 0 | CV82: -4.45 | CW82: =BX82-BV82 -> 0 | CX82: -0.31 | CY82: =BZ82-BX82 -> 0 | CZ82: -19.11 | DA82: =CB82-BZ82 -> 0 | DB82: 3.09 | DC82: =CD82-CB82 -> 0 | DD82: 10.96 | DE82: =CF82-CD82 -> 0 | DF82: -63.91 | DG82: =CH82-CF82 -> 0 | DH82: -52.21
A83: SE22-2013feb | B83: 3.2 Sončne elektrarne - ostale 2013 februar | D83: mala - manjše od 1MW | E83: SE22 | T83: 124.71 | U83: 0 | V83: 124.71 | W83: 124.71 | X83: 0 | Y83: 124.71 | Z83: 124.71 | AA83: 0 | AB83: 124.71 | AC83: 124.71 | AD83: 0 | AE83: 124.71 | AF83: 124.71 | AG83: 0 | AH83: 124.71 | AI83: 124.71 | AJ83: 0 | AK83: 124.71 | AL83: 124.71 | AM83: 0 | AN83: 124.71 | AO83: 124.71 | AP83: 0 | AQ83: 124.71 | AR83: 124.71 | AS83: 0 | AT83: 124.71 | AU83: 124.71 | AV83: 0 | AW83: 124.71 | AX83: 124.71 | AY83: 0 | AZ83: 124.71 | BA83: 0.88 | BN83: =T83+U83 -> 124.71 | BO83: 80.13 | BP83: =W83+X83 -> 124.71 | BQ83: 86.6 | BR83: =+Z83+AA83 -> 124.71 | BS83: 89.82 | BT83: =+AC83+AD83 -> 124.71 | BU83: 92.25 | BV83: =+AH83 -> 124.71 | BW83: 87.8 | BX83: =+AK83 -> 124.71 | BY83: 87.49 | BZ83: =+AN83 -> 124.71 | CA83: 68.38 | CB83: =+AQ83 -> 124.71 | CC83: 71.47 | CD83: =+AT83 -> 124.71 | CE83: 82.43 | CF83: =+AW83 -> 124.71 | CG83: 18.52 | CH83: 124.71 | CI83: -33.69 | CK83: (ni podpore 2011/2) | CL83: (ni podpore 2011/2) | CM83: (ni podpore 2011/2) | CN83: (ni podpore 2011/2) | CO83: 0 | CP83: 6.47 | CQ83: 0 | CR83: 3.22 | CS83: 0 | CT83: 2.43 | CU83: 0 | CV83: -4.45 | CW83: 0 | CX83: -0.31 | CY83: 0 | CZ83: -19.11 | DA83: 0 | DB83: 3.09 | DC83: 0 | DD83: 10.96 | DE83: 0 | DF83: -63.91 | DG83: 0 | DH83: -52.21
A84: SE23-2013feb | B84: 3.2 Sončne elektrarne - ostale 2013 februar | D84: srednja - od 1MW do vključno 10MW | E84: SE23 | T84: 100.54 | U84: 0 | V84: 100.54 | W84: 100.54 | X84: 0 | Y84: 100.54 | Z84: 100.54 | AA84: 0 | AB84: 100.54 | AC84: 100.54 | AD84: 0 | AE84: 100.54 | AF84: 100.54 | AG84: 0 | AH84: 100.54 | AI84: 100.54 | AJ84: 0 | AK84: 100.54 | AL84: 100.54 | AM84: 0 | AN84: 100.54 | AO84: 100.54 | AP84: 0 | AQ84: 100.54 | AR84: 100.54 | AS84: 0 | AT84: 100.54 | AU84: 100.54 | AV84: 0 | AW84: 100.54 | AX84: 100.54 | AY84: 0 | AZ84: 100.54 | BA84: 0.91 | BN84: =T84+U84 -> 100.54 | BO84: 54.44 | BP84: =W84+X84 -> 100.54 | BQ84: 61.13 | BR84: =+Z84+AA84 -> 100.54 | BS84: 64.46 | BT84: =+AC84+AD84 -> 100.54 | BU84: 66.97 | BV84: =+AH84 -> 100.54 | BW84: 62.37 | BX84: =+AK84 -> 100.54 | BY84: 62.05 | BZ84: =+AN84 -> 100.54 | CA84: 42.29 | CB84: =+AQ84 -> 100.54 | CC84: 45.49 | CD84: =+AT84 -> 100.54 | CE84: 56.82 | CF84: =+AW84 -> 100.54 | CG84: -9.27 | CH84: 100.54 | CI84: -63.26 | CK84: (ni podpore 2011/2) | CL84: (ni podpore 2011/2) | CM84: (ni podpore 2011/2) | CN84: (ni podpore 2011/2) | CO84: 0 | CP84: 6.69 | CQ84: 0 | CR84: 3.33 | CS84: 0 | CT84: 2.51 | CU84: 0 | CV84: -4.6 | CW84: 0 | CX84: -0.32 | CY84: 0 | CZ84: -19.76 | DA84: 0 | DB84: 3.2 | DC84: 0 | DD84: 11.33 | DE84: 0 | DF84: -66.09 | DG84: 0 | DH84: -53.99
A85: SE24-2013feb | B85: 3.2 Sončne elektrarne - ostale 2013 februar | D85: velika - nad 10MW do vključno 125MW | E85: SE24 | T85: 93.35 | U85: 0 | V85: 93.35 | W85: 93.35 | X85: 0 | Y85: 93.35 | Z85: 93.35 | AA85: 0 | AB85: 93.35 | AC85: 93.35 | AD85: 0 | AE85: 93.35 | AF85: 93.35 | AG85: 0 | AH85: 93.35 | AI85: 93.35 | AJ85: 0 | AK85: 93.35 | AL85: 93.35 | AM85: 0 | AN85: 93.35 | AO85: 93.35 | AP85: 0 | AQ85: 93.35 | AR85: 93.35 | AS85: 0 | AT85: 93.35 | AU85: 93.35 | AV85: 0 | AW85: 93.35 | AX85: 93.35 | AY85: 0 | AZ85: 93.35 | BA85: 1 | BN85: (ni ZO) | BO85: 42.69 | BP85: (ni ZO) | BQ85: 50.04 | BR85: (ni ZO) | BS85: 53.7 | BT85: (ni ZO) | BU85: 56.46 | BV85: (ni ZO) | BW85: 51.41 | BX85: (ni ZO) | BY85: 51.05 | BZ85: (ni ZO) | CA85: 29.34 | CB85: (ni ZO) | CC85: 32.85 | CD85: (ni ZO) | CE85: 45.31 | CF85: (ni ZO) | CG85: -27.32 | CH85: (ni ZO) | CI85: -86.65 | CK85: (ni podpore 2011/2) | CL85: (ni podpore 2011/2) | CM85: (ni podpore 2011/2) | CN85: (ni podpore 2011/2) | CO85: (ni ZO) | CP85: 7.35 | CQ85: (ni ZO) | CR85: 3.66 | CS85: (ni ZO) | CT85: 2.76 | CU85: (ni ZO) | CV85: -5.05 | CW85: (ni ZO) | CX85: -0.36 | CY85: (ni ZO) | CZ85: -21.71 | DA85: (ni ZO) | DB85: 3.51 | DC85: (ni ZO) | DD85: 12.46 | DE85: (ni ZO) | DF85: -72.63 | DG85: (ni ZO) | DH85: -59.33
A86: SE11-2013mar | B86: 3.1 Sončne elektrarne - na stavbah 2013 marec | D86: mikro - manjše od 50kW | E86: SE11 | T86: 141.18 | U86: 0 | V86: 141.18 | W86: 141.18 | X86: 0 | Y86: 141.18 | Z86: 141.18 | AA86: 0 | AB86: 141.18 | AC86: 141.18 | AD86: 0 | AE86: 141.18 | AF86: 141.18 | AG86: 0 | AH86: 141.18 | AI86: 141.18 | AJ86: 0 | AK86: 141.18 | AL86: 141.18 | AM86: 0 | AN86: 141.18 | AO86: 141.18 | AP86: 0 | AQ86: 141.18 | AR86: 141.18 | AS86: 0 | AT86: 141.18 | AU86: 141.18 | AV86: 0 | AW86: 141.18 | AX86: 141.18 | AY86: 0 | AZ86: 141.18 | BA86: 0.88 | BN86: =T86+U86 -> 141.18 | BO86: 96.6 | BP86: =W86+X86 -> 141.18 | BQ86: 103.07 | BR86: =+Z86+AA86 -> 141.18 | BS86: 106.29 | BT86: =+AC86+AD86 -> 141.18 | BU86: 108.72 | BV86: =+AH86 -> 141.18 | BW86: 104.27 | BX86: =+AK86 -> 141.18 | BY86: 103.96 | BZ86: =+AN86 -> 141.18 | CA86: 84.85 | CB86: =+AQ86 -> 141.18 | CC86: 87.94 | CD86: =+AT86 -> 141.18 | CE86: 98.9 | CF86: =+AW86 -> 141.18 | CG86: 34.99 | CH86: =+AZ86 -> 141.18 | CI86: -17.22 | CK86: (ni podpore 2011/2) | CL86: (ni podpore 2011/2) | CM86: (ni podpore 2011/2) | CN86: (ni podpore 2011/2) | CO86: =BP86-BN86 -> 0 | CP86: 6.47 | CQ86: 0 | CR86: 3.22 | CS86: 0 | CT86: 2.43 | CU86: =BV86-BT86 -> 0 | CV86: -4.45 | CW86: =BX86-BV86 -> 0 | CX86: -0.31 | CY86: =BZ86-BX86 -> 0 | CZ86: -19.11 | DA86: =CB86-BZ86 -> 0 | DB86: 3.09 | DC86: =CD86-CB86 -> 0 | DD86: 10.96 | DE86: =CF86-CD86 -> 0 | DF86: -63.91 | DG86: =CH86-CF86 -> 0 | DH86: -52.21
A87: SE12-2013mar | B87: 3.1 Sončne elektrarne - na stavbah 2013 marec | D87: mala - manjše od 1MW | E87: SE12 | T87: 129.12 | U87: 0 | V87: 129.12 | W87: 129.12 | X87: 0 | Y87: 129.12 | Z87: 129.12 | AA87: 0 | AB87: 129.12 | AC87: 129.12 | AD87: 0 | AE87: 129.12 | AF87: 129.12 | AG87: 0 | AH87: 129.12 | AI87: 129.12 | AJ87: 0 | AK87: 129.12 | AL87: 129.12 | AM87: 0 | AN87: 129.12 | AO87: 129.12 | AP87: 0 | AQ87: 129.12 | AR87: 129.12 | AS87: 0 | AT87: 129.12 | AU87: 129.12 | AV87: 0 | AW87: 129.12 | AX87: 129.12 | AY87: 0 | AZ87: 129.12 | BA87: 0.88 | BN87: =T87+U87 -> 129.12 | BO87: 84.54 | BP87: =W87+X87 -> 129.12 | BQ87: 91.01 | BR87: =+Z87+AA87 -> 129.12 | BS87: 94.23 | BT87: =+AC87+AD87 -> 129.12 | BU87: 96.66 | BV87: =+AH87 -> 129.12 | BW87: 92.21 | BX87: =+AK87 -> 129.12 | BY87: 91.9 | BZ87: =+AN87 -> 129.12 | CA87: 72.79 | CB87: =+AQ87 -> 129.12 | CC87: 75.88 | CD87: =+AT87 -> 129.12 | CE87: 86.84 | CF87: =+AW87 -> 129.12 | CG87: 22.93 | CH87: 129.12 | CI87: -29.28 | CK87: (ni podpore 2011/2) | CL87: (ni podpore 2011/2) | CM87: (ni podpore 2011/2) | CN87: (ni podpore 2011/2) | CO87: 0 | CP87: 6.47 | CQ87: 0 | CR87: 3.22 | CS87: 0 | CT87: 2.43 | CU87: 0 | CV87: -4.45 | CW87: 0 | CX87: -0.31 | CY87: 0 | CZ87: -19.11 | DA87: 0 | DB87: 3.09 | DC87: 0 | DD87: 10.96 | DE87: 0 | DF87: -63.91 | DG87: 0 | DH87: -52.21
A88: SE13-2013mar | B88: 3.1 Sončne elektrarne - na stavbah 2013 marec | D88: srednja - od 1MW do vključno 10MW | E88: SE13 | T88: 107.15 | U88: 0 | V88: 107.15 | W88: 107.15 | X88: 0 | Y88: 107.15 | Z88: 107.15 | AA88: 0 | AB88: 107.15 | AC88: 107.15 | AD88: 0 | AE88: 107.15 | AF88: 107.15 | AG88: 0 | AH88: 107.15 | AI88: 107.15 | AJ88: 0 | AK88: 107.15 | AL88: 107.15 | AM88: 0 | AN88: 107.15 | AO88: 107.15 | AP88: 0 | AQ88: 107.15 | AR88: 107.15 | AS88: 0 | AT88: 107.15 | AU88: 107.15 | AV88: 0 | AW88: 107.15 | AX88: 107.15 | AY88: 0 | AZ88: 107.15 | BA88: 0.91 | BN88: =T88+U88 -> 107.15 | BO88: 61.05 | BP88: =W88+X88 -> 107.15 | BQ88: 67.74 | BR88: =+Z88+AA88 -> 107.15 | BS88: 71.07 | BT88: =+AC88+AD88 -> 107.15 | BU88: 73.58 | BV88: =+AH88 -> 107.15 | BW88: 68.98 | BX88: =+AK88 -> 107.15 | BY88: 68.66 | BZ88: =+AN88 -> 107.15 | CA88: 48.9 | CB88: =+AQ88 -> 107.15 | CC88: 52.1 | CD88: =+AT88 -> 107.15 | CE88: 63.43 | CF88: =+AW88 -> 107.15 | CG88: -2.66 | CH88: 107.15 | CI88: -56.65 | CK88: (ni podpore 2011/2) | CL88: (ni podpore 2011/2) | CM88: (ni podpore 2011/2) | CN88: (ni podpore 2011/2) | CO88: 0 | CP88: 6.69 | CQ88: 0 | CR88: 3.33 | CS88: 0 | CT88: 2.51 | CU88: 0 | CV88: -4.6 | CW88: 0 | CX88: -0.32 | CY88: 0 | CZ88: -19.76 | DA88: 0 | DB88: 3.2 | DC88: 0 | DD88: 11.33 | DE88: 0 | DF88: -66.09 | DG88: 0 | DH88: -53.99
A89: SE14-2013mar | B89: 3.1 Sončne elektrarne - na stavbah 2013 marec | D89: velika - nad 10MW do vključno 125MW | E89: SE14 | T89: 95.37 | U89: 0 | V89: 95.37 | W89: 95.37 | X89: 0 | Y89: 95.37 | Z89: 95.37 | AA89: 0 | AB89: 95.37 | AC89: 95.37 | AD89: 0 | AE89: 95.37 | AF89: 95.37 | AG89: 0 | AH89: 95.37 | AI89: 95.37 | AJ89: 0 | AK89: 95.37 | AL89: 95.37 | AM89: 0 | AN89: 95.37 | AO89: 95.37 | AP89: 0 | AQ89: 95.37 | AR89: 95.37 | AS89: 0 | AT89: 95.37 | AU89: 95.37 | AV89: 0 | AW89: 95.37 | AX89: 95.37 | AY89: 0 | AZ89: 95.37 | BA89: 1 | BN89: (ni ZO) | BO89: 44.71 | BP89: (ni ZO) | BQ89: 52.06 | BR89: (ni ZO) | BS89: 55.72 | BT89: (ni ZO) | BU89: 58.48 | BV89: (ni ZO) | BW89: 53.43 | BX89: (ni ZO) | BY89: 53.07 | BZ89: (ni ZO) | CA89: 31.36 | CB89: (ni ZO) | CC89: 34.87 | CD89: (ni ZO) | CE89: 47.33 | CF89: (ni ZO) | CG89: -25.3 | CH89: (ni ZO) | CI89: -84.63 | CK89: (ni podpore 2011/2) | CL89: (ni podpore 2011/2) | CM89: (ni podpore 2011/2) | CN89: (ni podpore 2011/2) | CO89: (ni ZO) | CP89: 7.35 | CQ89: (ni ZO) | CR89: 3.66 | CS89: (ni ZO) | CT89: 2.76 | CU89: (ni ZO) | CV89: -5.05 | CW89: (ni ZO) | CX89: -0.36 | CY89: (ni ZO) | CZ89: -21.71 | DA89: (ni ZO) | DB89: 3.51 | DC89: (ni ZO) | DD89: 12.46 | DE89: (ni ZO) | DF89: -72.63 | DG89: (ni ZO) | DH89: -59.33
A90: SE21-2013mar | B90: 3.2 Sončne elektrarne - ostale 2013 marec | D90: mikro - manjše od 50kW | E90: SE21 | T90: 132.66 | U90: 0 | V90: 132.66 | W90: 132.66 | X90: 0 | Y90: 132.66 | Z90: 132.66 | AA90: 0 | AB90: 132.66 | AC90: 132.66 | AD90: 0 | AE90: 132.66 | AF90: 132.66 | AG90: 0 | AH90: 132.66 | AI90: 132.66 | AJ90: 0 | AK90: 132.66 | AL90: 132.66 | AM90: 0 | AN90: 132.66 | AO90: 132.66 | AP90: 0 | AQ90: 132.66 | AR90: 132.66 | AS90: 0 | AT90: 132.66 | AU90: 132.66 | AV90: 0 | AW90: 132.66 | AX90: 132.66 | AY90: 0 | AZ90: 132.66 | BA90: 0.88 | BN90: =T90+U90 -> 132.66 | BO90: 88.08 | BP90: =W90+X90 -> 132.66 | BQ90: 94.55 | BR90: =+Z90+AA90 -> 132.66 | BS90: 97.77 | BT90: =+AC90+AD90 -> 132.66 | BU90: 100.2 | BV90: =+AH90 -> 132.66 | BW90: 95.75 | BX90: =+AK90 -> 132.66 | BY90: 95.44 | BZ90: =+AN90 -> 132.66 | CA90: 76.33 | CB90: =+AQ90 -> 132.66 | CC90: 79.42 | CD90: =+AT90 -> 132.66 | CE90: 90.38 | CF90: =+AW90 -> 132.66 | CG90: 26.47 | CH90: =+AZ90 -> 132.66 | CI90: -25.74 | CK90: (ni podpore 2011/2) | CL90: (ni podpore 2011/2) | CM90: (ni podpore 2011/2) | CN90: (ni podpore 2011/2) | CO90: =BP90-BN90 -> 0 | CP90: 6.47 | CQ90: 0 | CR90: 3.22 | CS90: 0 | CT90: 2.43 | CU90: =BV90-BT90 -> 0 | CV90: -4.45 | CW90: =BX90-BV90 -> 0 | CX90: -0.31 | CY90: =BZ90-BX90 -> 0 | CZ90: -19.11 | DA90: =CB90-BZ90 -> 0 | DB90: 3.09 | DC90: =CD90-CB90 -> 0 | DD90: 10.96 | DE90: =CF90-CD90 -> 0 | DF90: -63.91 | DG90: =CH90-CF90 -> 0 | DH90: -52.21
A91: SE22-2013mar | B91: 3.2 Sončne elektrarne - ostale 2013 marec | D91: mala - manjše od 1MW | E91: SE22 | T91: 122.22 | U91: 0 | V91: 122.22 | W91: 122.22 | X91: 0 | Y91: 122.22 | Z91: 122.22 | AA91: 0 | AB91: 122.22 | AC91: 122.22 | AD91: 0 | AE91: 122.22 | AF91: 122.22 | AG91: 0 | AH91: 122.22 | AI91: 122.22 | AJ91: 0 | AK91: 122.22 | AL91: 122.22 | AM91: 0 | AN91: 122.22 | AO91: 122.22 | AP91: 0 | AQ91: 122.22 | AR91: 122.22 | AS91: 0 | AT91: 122.22 | AU91: 122.22 | AV91: 0 | AW91: 122.22 | AX91: 122.22 | AY91: 0 | AZ91: 122.22 | BA91: 0.88 | BN91: =T91+U91 -> 122.22 | BO91: 77.64 | BP91: =W91+X91 -> 122.22 | BQ91: 84.11 | BR91: =+Z91+AA91 -> 122.22 | BS91: 87.33 | BT91: =+AC91+AD91 -> 122.22 | BU91: 89.76 | BV91: =+AH91 -> 122.22 | BW91: 85.31 | BX91: =+AK91 -> 122.22 | BY91: 85 | BZ91: =+AN91 -> 122.22 | CA91: 65.89 | CB91: =+AQ91 -> 122.22 | CC91: 68.98 | CD91: =+AT91 -> 122.22 | CE91: 79.94 | CF91: =+AW91 -> 122.22 | CG91: 16.03 | CH91: 122.22 | CI91: -36.18 | CK91: (ni podpore 2011/2) | CL91: (ni podpore 2011/2) | CM91: (ni podpore 2011/2) | CN91: (ni podpore 2011/2) | CO91: 0 | CP91: 6.47 | CQ91: 0 | CR91: 3.22 | CS91: 0 | CT91: 2.43 | CU91: 0 | CV91: -4.45 | CW91: 0 | CX91: -0.31 | CY91: 0 | CZ91: -19.11 | DA91: 0 | DB91: 3.09 | DC91: 0 | DD91: 10.96 | DE91: 0 | DF91: -63.91 | DG91: 0 | DH91: -52.21
A92: SE23-2013mar | B92: 3.2 Sončne elektrarne - ostale 2013 marec | D92: srednja - od 1MW do vključno 10MW | E92: SE23 | T92: 98.53 | U92: 0 | V92: 98.53 | W92: 98.53 | X92: 0 | Y92: 98.53 | Z92: 98.53 | AA92: 0 | AB92: 98.53 | AC92: 98.53 | AD92: 0 | AE92: 98.53 | AF92: 98.53 | AG92: 0 | AH92: 98.53 | AI92: 98.53 | AJ92: 0 | AK92: 98.53 | AL92: 98.53 | AM92: 0 | AN92: 98.53 | AO92: 98.53 | AP92: 0 | AQ92: 98.53 | AR92: 98.53 | AS92: 0 | AT92: 98.53 | AU92: 98.53 | AV92: 0 | AW92: 98.53 | AX92: 98.53 | AY92: 0 | AZ92: 98.53 | BA92: 0.91 | BN92: =T92+U92 -> 98.53 | BO92: 52.43 | BP92: =W92+X92 -> 98.53 | BQ92: 59.12 | BR92: =+Z92+AA92 -> 98.53 | BS92: 62.45 | BT92: =+AC92+AD92 -> 98.53 | BU92: 64.96 | BV92: =+AH92 -> 98.53 | BW92: 60.36 | BX92: =+AK92 -> 98.53 | BY92: 60.04 | BZ92: =+AN92 -> 98.53 | CA92: 40.28 | CB92: =+AQ92 -> 98.53 | CC92: 43.48 | CD92: =+AT92 -> 98.53 | CE92: 54.81 | CF92: =+AW92 -> 98.53 | CG92: -11.28 | CH92: 98.53 | CI92: -65.27 | CK92: (ni podpore 2011/2) | CL92: (ni podpore 2011/2) | CM92: (ni podpore 2011/2) | CN92: (ni podpore 2011/2) | CO92: 0 | CP92: 6.69 | CQ92: 0 | CR92: 3.33 | CS92: 0 | CT92: 2.51 | CU92: 0 | CV92: -4.6 | CW92: 0 | CX92: -0.32 | CY92: 0 | CZ92: -19.76 | DA92: 0 | DB92: 3.2 | DC92: 0 | DD92: 11.33 | DE92: 0 | DF92: -66.09 | DG92: 0 | DH92: -53.99
A93: SE24-2013mar | B93: 3.2 Sončne elektrarne - ostale 2013 marec | D93: velika - nad 10MW do vključno 125MW | E93: SE24 | T93: 91.48 | U93: 0 | V93: 91.48 | W93: 91.48 | X93: 0 | Y93: 91.48 | Z93: 91.48 | AA93: 0 | AB93: 91.48 | AC93: 91.48 | AD93: 0 | AE93: 91.48 | AF93: 91.48 | AG93: 0 | AH93: 91.48 | AI93: 91.48 | AJ93: 0 | AK93: 91.48 | AL93: 91.48 | AM93: 0 | AN93: 91.48 | AO93: 91.48 | AP93: 0 | AQ93: 91.48 | AR93: 91.48 | AS93: 0 | AT93: 91.48 | AU93: 91.48 | AV93: 0 | AW93: 91.48 | AX93: 91.48 | AY93: 0 | AZ93: 91.48 | BA93: 1 | BN93: (ni ZO) | BO93: 40.82 | BP93: (ni ZO) | BQ93: 48.17 | BR93: (ni ZO) | BS93: 51.83 | BT93: (ni ZO) | BU93: 54.59 | BV93: (ni ZO) | BW93: 49.54 | BX93: (ni ZO) | BY93: 49.18 | BZ93: (ni ZO) | CA93: 27.47 | CB93: (ni ZO) | CC93: 30.98 | CD93: (ni ZO) | CE93: 43.44 | CF93: (ni ZO) | CG93: -29.19 | CH93: (ni ZO) | CI93: -88.52 | CK93: (ni podpore 2011/2) | CL93: (ni podpore 2011/2) | CM93: (ni podpore 2011/2) | CN93: (ni podpore 2011/2) | CO93: (ni ZO) | CP93: 7.35 | CQ93: (ni ZO) | CR93: 3.66 | CS93: (ni ZO) | CT93: 2.76 | CU93: (ni ZO) | CV93: -5.05 | CW93: (ni ZO) | CX93: -0.36 | CY93: (ni ZO) | CZ93: -21.71 | DA93: (ni ZO) | DB93: 3.51 | DC93: (ni ZO) | DD93: 12.46 | DE93: (ni ZO) | DF93: -72.63 | DG93: (ni ZO) | DH93: -59.33
A94: SE11-2013apr | B94: 3.1 Sončne elektrarne - na stavbah 2013 april | D94: mikro - manjše od 50kW | E94: SE11 | T94: 138.36 | U94: 0 | V94: 138.36 | W94: 138.36 | X94: 0 | Y94: 138.36 | Z94: 138.36 | AA94: 0 | AB94: 138.36 | AC94: 138.36 | AD94: 0 | AE94: 138.36 | AF94: 138.36 | AG94: 0 | AH94: 138.36 | AI94: 138.36 | AJ94: 0 | AK94: 138.36 | AL94: 138.36 | AM94: 0 | AN94: 138.36 | AO94: 138.36 | AP94: 0 | AQ94: 138.36 | AR94: 138.36 | AS94: 0 | AT94: 138.36 | AU94: 138.36 | AV94: 0 | AW94: 138.36 | AX94: 138.36 | AY94: 0 | AZ94: 138.36 | BA94: 0.88 | BN94: =T94+U94 -> 138.36 | BO94: 93.78 | BP94: =W94+X94 -> 138.36 | BQ94: 100.25 | BR94: =+Z94+AA94 -> 138.36 | BS94: 103.47 | BT94: =+AC94+AD94 -> 138.36 | BU94: 105.9 | BV94: =+AH94 -> 138.36 | BW94: 101.45 | BX94: =+AK94 -> 138.36 | BY94: 101.14 | BZ94: =+AN94 -> 138.36 | CA94: 82.03 | CB94: =+AQ94 -> 138.36 | CC94: 85.12 | CD94: =+AT94 -> 138.36 | CE94: 96.08 | CF94: =+AW94 -> 138.36 | CG94: 32.17 | CH94: =+AZ94 -> 138.36 | CI94: -20.04 | CK94: (ni podpore 2011/2) | CL94: (ni podpore 2011/2) | CM94: (ni podpore 2011/2) | CN94: (ni podpore 2011/2) | CO94: =BP94-BN94 -> 0 | CP94: 6.47 | CQ94: 0 | CR94: 3.22 | CS94: 0 | CT94: 2.43 | CU94: =BV94-BT94 -> 0 | CV94: -4.45 | CW94: =BX94-BV94 -> 0 | CX94: -0.31 | CY94: =BZ94-BX94 -> 0 | CZ94: -19.11 | DA94: =CB94-BZ94 -> 0 | DB94: 3.09 | DC94: =CD94-CB94 -> 0 | DD94: 10.96 | DE94: =CF94-CD94 -> 0 | DF94: -63.91 | DG94: =CH94-CF94 -> 0 | DH94: -52.21
A95: SE12-2013apr | B95: 3.1 Sončne elektrarne - na stavbah 2013 april | D95: mala - manjše od 1MW | E95: SE12 | T95: 126.54 | U95: 0 | V95: 126.54 | W95: 126.54 | X95: 0 | Y95: 126.54 | Z95: 126.54 | AA95: 0 | AB95: 126.54 | AC95: 126.54 | AD95: 0 | AE95: 126.54 | AF95: 126.54 | AG95: 0 | AH95: 126.54 | AI95: 126.54 | AJ95: 0 | AK95: 126.54 | AL95: 126.54 | AM95: 0 | AN95: 126.54 | AO95: 126.54 | AP95: 0 | AQ95: 126.54 | AR95: 126.54 | AS95: 0 | AT95: 126.54 | AU95: 126.54 | AV95: 0 | AW95: 126.54 | AX95: 126.54 | AY95: 0 | AZ95: 126.54 | BA95: 0.88 | BN95: =T95+U95 -> 126.54 | BO95: 81.96 | BP95: =W95+X95 -> 126.54 | BQ95: 88.43 | BR95: =+Z95+AA95 -> 126.54 | BS95: 91.65 | BT95: =+AC95+AD95 -> 126.54 | BU95: 94.08 | BV95: =+AH95 -> 126.54 | BW95: 89.63 | BX95: =+AK95 -> 126.54 | BY95: 89.32 | BZ95: =+AN95 -> 126.54 | CA95: 70.21 | CB95: =+AQ95 -> 126.54 | CC95: 73.3 | CD95: =+AT95 -> 126.54 | CE95: 84.26 | CF95: =+AW95 -> 126.54 | CG95: 20.35 | CH95: 126.54 | CI95: -31.86 | CK95: (ni podpore 2011/2) | CL95: (ni podpore 2011/2) | CM95: (ni podpore 2011/2) | CN95: (ni podpore 2011/2) | CO95: 0 | CP95: 6.47 | CQ95: 0 | CR95: 3.22 | CS95: 0 | CT95: 2.43 | CU95: 0 | CV95: -4.45 | CW95: 0 | CX95: -0.31 | CY95: 0 | CZ95: -19.11 | DA95: 0 | DB95: 3.09 | DC95: 0 | DD95: 10.96 | DE95: 0 | DF95: -63.91 | DG95: 0 | DH95: -52.21
A96: SE13-2013apr | B96: 3.1 Sončne elektrarne - na stavbah 2013 april | D96: srednja - od 1MW do vključno 10MW | E96: SE13 | T96: 105.01 | U96: 0 | V96: 105.01 | W96: 105.01 | X96: 0 | Y96: 105.01 | Z96: 105.01 | AA96: 0 | AB96: 105.01 | AC96: 105.01 | AD96: 0 | AE96: 105.01 | AF96: 105.01 | AG96: 0 | AH96: 105.01 | AI96: 105.01 | AJ96: 0 | AK96: 105.01 | AL96: 105.01 | AM96: 0 | AN96: 105.01 | AO96: 105.01 | AP96: 0 | AQ96: 105.01 | AR96: 105.01 | AS96: 0 | AT96: 105.01 | AU96: 105.01 | AV96: 0 | AW96: 105.01 | AX96: 105.01 | AY96: 0 | AZ96: 105.01 | BA96: 0.91 | BN96: =T96+U96 -> 105.01 | BO96: 58.91 | BP96: =W96+X96 -> 105.01 | BQ96: 65.6 | BR96: =+Z96+AA96 -> 105.01 | BS96: 68.93 | BT96: =+AC96+AD96 -> 105.01 | BU96: 71.44 | BV96: =+AH96 -> 105.01 | BW96: 66.84 | BX96: =+AK96 -> 105.01 | BY96: 66.52 | BZ96: =+AN96 -> 105.01 | CA96: 46.76 | CB96: =+AQ96 -> 105.01 | CC96: 49.96 | CD96: =+AT96 -> 105.01 | CE96: 61.29 | CF96: =+AW96 -> 105.01 | CG96: -4.8 | CH96: 105.01 | CI96: -58.79 | CK96: (ni podpore 2011/2) | CL96: (ni podpore 2011/2) | CM96: (ni podpore 2011/2) | CN96: (ni podpore 2011/2) | CO96: 0 | CP96: 6.69 | CQ96: 0 | CR96: 3.33 | CS96: 0 | CT96: 2.51 | CU96: 0 | CV96: -4.6 | CW96: 0 | CX96: -0.32 | CY96: 0 | CZ96: -19.76 | DA96: 0 | DB96: 3.2 | DC96: 0 | DD96: 11.33 | DE96: 0 | DF96: -66.09 | DG96: 0 | DH96: -53.99
A97: SE14-2013apr | B97: 3.1 Sončne elektrarne - na stavbah 2013 april | D97: velika - nad 10MW do vključno 125MW | E97: SE14 | T97: 93.46 | U97: 0 | V97: 93.46 | W97: 93.46 | X97: 0 | Y97: 93.46 | Z97: 93.46 | AA97: 0 | AB97: 93.46 | AC97: 93.46 | AD97: 0 | AE97: 93.46 | AF97: 93.46 | AG97: 0 | AH97: 93.46 | AI97: 93.46 | AJ97: 0 | AK97: 93.46 | AL97: 93.46 | AM97: 0 | AN97: 93.46 | AO97: 93.46 | AP97: 0 | AQ97: 93.46 | AR97: 93.46 | AS97: 0 | AT97: 93.46 | AU97: 93.46 | AV97: 0 | AW97: 93.46 | AX97: 93.46 | AY97: 0 | AZ97: 93.46 | BA97: 1 | BN97: (ni ZO) | BO97: 42.8 | BP97: (ni ZO) | BQ97: 50.15 | BR97: (ni ZO) | BS97: 53.81 | BT97: (ni ZO) | BU97: 56.57 | BV97: (ni ZO) | BW97: 51.52 | BX97: (ni ZO) | BY97: 51.16 | BZ97: (ni ZO) | CA97: 29.45 | CB97: (ni ZO) | CC97: 32.96 | CD97: (ni ZO) | CE97: 45.42 | CF97: (ni ZO) | CG97: -27.21 | CH97: (ni ZO) | CI97: -86.54 | CK97: (ni podpore 2011/2) | CL97: (ni podpore 2011/2) | CM97: (ni podpore 2011/2) | CN97: (ni podpore 2011/2) | CO97: (ni ZO) | CP97: 7.35 | CQ97: (ni ZO) | CR97: 3.66 | CS97: (ni ZO) | CT97: 2.76 | CU97: (ni ZO) | CV97: -5.05 | CW97: (ni ZO) | CX97: -0.36 | CY97: (ni ZO) | CZ97: -21.71 | DA97: (ni ZO) | DB97: 3.51 | DC97: (ni ZO) | DD97: 12.46 | DE97: (ni ZO) | DF97: -72.63 | DG97: (ni ZO) | DH97: -59.33
A98: SE21-2013apr | B98: 3.2 Sončne elektrarne - ostale 2013 april | D98: mikro - manjše od 50kW | E98: SE21 | T98: 130.01 | U98: 0 | V98: 130.01 | W98: 130.01 | X98: 0 | Y98: 130.01 | Z98: 130.01 | AA98: 0 | AB98: 130.01 | AC98: 130.01 | AD98: 0 | AE98: 130.01 | AF98: 130.01 | AG98: 0 | AH98: 130.01 | AI98: 130.01 | AJ98: 0 | AK98: 130.01 | AL98: 130.01 | AM98: 0 | AN98: 130.01 | AO98: 130.01 | AP98: 0 | AQ98: 130.01 | AR98: 130.01 | AS98: 0 | AT98: 130.01 | AU98: 130.01 | AV98: 0 | AW98: 130.01 | AX98: 130.01 | AY98: 0 | AZ98: 130.01 | BA98: 0.88 | BN98: =T98+U98 -> 130.01 | BO98: =ROUND((T98+U98)-BA98*$O$326,2) -> 85.43 | BP98: =W98+X98 -> 130.01 | BQ98: 91.9 | BR98: =+Z98+AA98 -> 130.01 | BS98: 95.12 | BT98: =+AC98+AD98 -> 130.01 | BU98: 97.55 | BV98: =+AH98 -> 130.01 | BW98: 93.1 | BX98: =+AK98 -> 130.01 | BY98: 92.79 | BZ98: =+AN98 -> 130.01 | CA98: 73.68 | CB98: =+AQ98 -> 130.01 | CC98: 76.77 | CD98: =+AT98 -> 130.01 | CE98: 87.73 | CF98: =+AW98 -> 130.01 | CG98: 23.82 | CH98: =+AZ98 -> 130.01 | CI98: -28.39 | CK98: (ni podpore 2011/2) | CL98: (ni podpore 2011/2) | CM98: (ni podpore 2011/2) | CN98: (ni podpore 2011/2) | CO98: =BP98-BN98 -> 0 | CP98: 6.47 | CQ98: 0 | CR98: 3.22 | CS98: 0 | CT98: 2.43 | CU98: =BV98-BT98 -> 0 | CV98: -4.45 | CW98: =BX98-BV98 -> 0 | CX98: -0.31 | CY98: =BZ98-BX98 -> 0 | CZ98: -19.11 | DA98: =CB98-BZ98 -> 0 | DB98: 3.09 | DC98: =CD98-CB98 -> 0 | DD98: 10.96 | DE98: =CF98-CD98 -> 0 | DF98: -63.91 | DG98: =CH98-CF98 -> 0 | DH98: -52.21
A99: SE22-2013apr | B99: 3.2 Sončne elektrarne - ostale 2013 april | D99: mala - manjše od 1MW | E99: SE22 | T99: 119.78 | U99: 0 | V99: 119.78 | W99: 119.78 | X99: 0 | Y99: 119.78 | Z99: 119.78 | AA99: 0 | AB99: 119.78 | AC99: 119.78 | AD99: 0 | AE99: 119.78 | AF99: 119.78 | AG99: 0 | AH99: 119.78 | AI99: 119.78 | AJ99: 0 | AK99: 119.78 | AL99: 119.78 | AM99: 0 | AN99: 119.78 | AO99: 119.78 | AP99: 0 | AQ99: 119.78 | AR99: 119.78 | AS99: 0 | AT99: 119.78 | AU99: 119.78 | AV99: 0 | AW99: 119.78 | AX99: 119.78 | AY99: 0 | AZ99: 119.78 | BA99: 0.88 | BN99: =T99+U99 -> 119.78 | BO99: 75.2 | BP99: =W99+X99 -> 119.78 | BQ99: 81.67 | BR99: =+Z99+AA99 -> 119.78 | BS99: 84.89 | BT99: =+AC99+AD99 -> 119.78 | BU99: 87.32 | BV99: =+AH99 -> 119.78 | BW99: 82.87 | BX99: =+AK99 -> 119.78 | BY99: 82.56 | BZ99: =+AN99 -> 119.78 | CA99: 63.45 | CB99: =+AQ99 -> 119.78 | CC99: 66.54 | CD99: =+AT99 -> 119.78 | CE99: 77.5 | CF99: =+AW99 -> 119.78 | CG99: 13.59 | CH99: 119.78 | CI99: -38.62 | CK99: (ni podpore 2011/2) | CL99: (ni podpore 2011/2) | CM99: (ni podpore 2011/2) | CN99: (ni podpore 2011/2) | CO99: 0 | CP99: 6.47 | CQ99: 0 | CR99: 3.22 | CS99: 0 | CT99: 2.43 | CU99: 0 | CV99: -4.45 | CW99: 0 | CX99: -0.31 | CY99: 0 | CZ99: -19.11 | DA99: 0 | DB99: 3.09 | DC99: 0 | DD99: 10.96 | DE99: 0 | DF99: -63.91 | DG99: 0 | DH99: -52.21
A100: SE23-2013apr | B100: 3.2 Sončne elektrarne - ostale 2013 april | D100: srednja - od 1MW do vključno 10MW | E100: SE23 | T100: 96.56 | U100: 0 | V100: 96.56 | W100: 96.56 | X100: 0 | Y100: 96.56 | Z100: 96.56 | AA100: 0 | AB100: 96.56 | AC100: 96.56 | AD100: 0 | AE100: 96.56 | AF100: 96.56 | AG100: 0 | AH100: 96.56 | AI100: 96.56 | AJ100: 0 | AK100: 96.56 | AL100: 96.56 | AM100: 0 | AN100: 96.56 | AO100: 96.56 | AP100: 0 | AQ100: 96.56 | AR100: 96.56 | AS100: 0 | AT100: 96.56 | AU100: 96.56 | AV100: 0 | AW100: 96.56 | AX100: 96.56 | AY100: 0 | AZ100: 96.56 | BA100: 0.91 | BN100: =T100+U100 -> 96.56 | BO100: 50.46 | BP100: =W100+X100 -> 96.56 | BQ100: 57.15 | BR100: =+Z100+AA100 -> 96.56 | BS100: 60.48 | BT100: =+AC100+AD100 -> 96.56 | BU100: 62.99 | BV100: =+AH100 -> 96.56 | BW100: 58.39 | BX100: =+AK100 -> 96.56 | BY100: 58.07 | BZ100: =+AN100 -> 96.56 | CA100: 38.31 | CB100: =+AQ100 -> 96.56 | CC100: 41.51 | CD100: =+AT100 -> 96.56 | CE100: 52.84 | CF100: =+AW100 -> 96.56 | CG100: -13.25 | CH100: 96.56 | CI100: -67.24 | CK100: (ni podpore 2011/2) | CL100: (ni podpore 2011/2) | CM100: (ni podpore 2011/2) | CN100: (ni podpore 2011/2) | CO100: 0 | CP100: 6.69 | CQ100: 0 | CR100: 3.33 | CS100: 0 | CT100: 2.51 | CU100: 0 | CV100: -4.6 | CW100: 0 | CX100: -0.32 | CY100: 0 | CZ100: -19.76 | DA100: 0 | DB100: 3.2 | DC100: 0 | DD100: 11.33 | DE100: 0 | DF100: -66.09 | DG100: 0 | DH100: -53.99
A101: SE24-2013apr | B101: 3.2 Sončne elektrarne - ostale 2013 april | D101: velika - nad 10MW do vključno 125MW | E101: SE24 | T101: 89.65 | U101: 0 | V101: 89.65 | W101: 89.65 | X101: 0 | Y101: 89.65 | Z101: 89.65 | AA101: 0 | AB101: 89.65 | AC101: 89.65 | AD101: 0 | AE101: 89.65 | AF101: 89.65 | AG101: 0 | AH101: 89.65 | AI101: 89.65 | AJ101: 0 | AK101: 89.65 | AL101: 89.65 | AM101: 0 | AN101: 89.65 | AO101: 89.65 | AP101: 0 | AQ101: 89.65 | AR101: 89.65 | AS101: 0 | AT101: 89.65 | AU101: 89.65 | AV101: 0 | AW101: 89.65 | AX101: 89.65 | AY101: 0 | AZ101: 89.65 | BA101: 1 | BN101: (ni ZO) | BO101: 38.99 | BP101: (ni ZO) | BQ101: 46.34 | BR101: (ni ZO) | BS101: 50 | BT101: (ni ZO) | BU101: 52.76 | BV101: (ni ZO) | BW101: 47.71 | BX101: (ni ZO) | BY101: 47.35 | BZ101: (ni ZO) | CA101: 25.64 | CB101: (ni ZO) | CC101: 29.15 | CD101: (ni ZO) | CE101: 41.61 | CF101: (ni ZO) | CG101: -31.02 | CH101: (ni ZO) | CI101: -90.35 | CK101: (ni podpore 2011/2) | CL101: (ni podpore 2011/2) | CM101: (ni podpore 2011/2) | CN101: (ni podpore 2011/2) | CO101: (ni ZO) | CP101: 7.35 | CQ101: (ni ZO) | CR101: 3.66 | CS101: (ni ZO) | CT101: 2.76 | CU101: (ni ZO) | CV101: -5.05 | CW101: (ni ZO) | CX101: -0.36 | CY101: (ni ZO) | CZ101: -21.71 | DA101: (ni ZO) | DB101: 3.51 | DC101: (ni ZO) | DD101: 12.46 | DE101: (ni ZO) | DF101: -72.63 | DG101: (ni ZO) | DH101: -59.33
A102: SE11-2013maj | B102: 3.1 Sončne elektrarne - na stavbah 2013 maj | D102: mikro - manjše od 50kW | E102: SE11 | T102: 135.59 | U102: 0 | V102: 135.59 | W102: 135.59 | X102: 0 | Y102: 135.59 | Z102: 135.59 | AA102: 0 | AB102: 135.59 | AC102: 135.59 | AD102: 0 | AE102: 135.59 | AF102: 135.59 | AG102: 0 | AH102: 135.59 | AI102: 135.59 | AJ102: 0 | AK102: 135.59 | AL102: 135.59 | AM102: 0 | AN102: 135.59 | AO102: 135.59 | AP102: 0 | AQ102: 135.59 | AR102: 135.59 | AS102: 0 | AT102: 135.59 | AU102: 135.59 | AV102: 0 | AW102: 135.59 | AX102: 135.59 | AY102: 0 | AZ102: 135.59 | BA102: 0.88 | BN102: =T102+U102 -> 135.59 | BO102: 91.01 | BP102: =W102+X102 -> 135.59 | BQ102: 97.48 | BR102: =+Z102+AA102 -> 135.59 | BS102: 100.7 | BT102: =+AC102+AD102 -> 135.59 | BU102: 103.13 | BV102: =+AH102 -> 135.59 | BW102: 98.68 | BX102: =+AK102 -> 135.59 | BY102: 98.37 | BZ102: =+AN102 -> 135.59 | CA102: 79.26 | CB102: =+AQ102 -> 135.59 | CC102: 82.35 | CD102: =+AT102 -> 135.59 | CE102: 93.31 | CF102: =+AW102 -> 135.59 | CG102: 29.4 | CH102: =+AZ102 -> 135.59 | CI102: -22.81 | CK102: (ni podpore 2011/2) | CL102: (ni podpore 2011/2) | CM102: (ni podpore 2011/2) | CN102: (ni podpore 2011/2) | CO102: =BP102-BN102 -> 0 | CP102: 6.47 | CQ102: 0 | CR102: 3.22 | CS102: 0 | CT102: 2.43 | CU102: =BV102-BT102 -> 0 | CV102: -4.45 | CW102: =BX102-BV102 -> 0 | CX102: -0.31 | CY102: =BZ102-BX102 -> 0 | CZ102: -19.11 | DA102: =CB102-BZ102 -> 0 | DB102: 3.09 | DC102: =CD102-CB102 -> 0 | DD102: 10.96 | DE102: =CF102-CD102 -> 0 | DF102: -63.91 | DG102: =CH102-CF102 -> 0 | DH102: -52.21
A103: SE12-2013maj | B103: 3.1 Sončne elektrarne - na stavbah 2013 maj | D103: mala - manjše od 1MW | E103: SE12 | T103: 124.01 | U103: 0 | V103: 124.01 | W103: 124.01 | X103: 0 | Y103: 124.01 | Z103: 124.01 | AA103: 0 | AB103: 124.01 | AC103: 124.01 | AD103: 0 | AE103: 124.01 | AF103: 124.01 | AG103: 0 | AH103: 124.01 | AI103: 124.01 | AJ103: 0 | AK103: 124.01 | AL103: 124.01 | AM103: 0 | AN103: 124.01 | AO103: 124.01 | AP103: 0 | AQ103: 124.01 | AR103: 124.01 | AS103: 0 | AT103: 124.01 | AU103: 124.01 | AV103: 0 | AW103: 124.01 | AX103: 124.01 | AY103: 0 | AZ103: 124.01 | BA103: 0.88 | BN103: =T103+U103 -> 124.01 | BO103: 79.43 | BP103: =W103+X103 -> 124.01 | BQ103: 85.9 | BR103: =+Z103+AA103 -> 124.01 | BS103: 89.12 | BT103: =+AC103+AD103 -> 124.01 | BU103: 91.55 | BV103: =+AH103 -> 124.01 | BW103: 87.1 | BX103: =+AK103 -> 124.01 | BY103: 86.79 | BZ103: =+AN103 -> 124.01 | CA103: 67.68 | CB103: =+AQ103 -> 124.01 | CC103: 70.77 | CD103: =+AT103 -> 124.01 | CE103: 81.73 | CF103: =+AW103 -> 124.01 | CG103: 17.82 | CH103: 124.01 | CI103: -34.39 | CK103: (ni podpore 2011/2) | CL103: (ni podpore 2011/2) | CM103: (ni podpore 2011/2) | CN103: (ni podpore 2011/2) | CO103: 0 | CP103: 6.47 | CQ103: 0 | CR103: 3.22 | CS103: 0 | CT103: 2.43 | CU103: 0 | CV103: -4.45 | CW103: 0 | CX103: -0.31 | CY103: 0 | CZ103: -19.11 | DA103: 0 | DB103: 3.09 | DC103: 0 | DD103: 10.96 | DE103: 0 | DF103: -63.91 | DG103: 0 | DH103: -52.21
A104: SE13-2013maj | B104: 3.1 Sončne elektrarne - na stavbah 2013 maj | D104: srednja - od 1MW do vključno 10MW | E104: SE13 | T104: 102.91 | U104: 0 | V104: 102.91 | W104: 102.91 | X104: 0 | Y104: 102.91 | Z104: 102.91 | AA104: 0 | AB104: 102.91 | AC104: 102.91 | AD104: 0 | AE104: 102.91 | AF104: 102.91 | AG104: 0 | AH104: 102.91 | AI104: 102.91 | AJ104: 0 | AK104: 102.91 | AL104: 102.91 | AM104: 0 | AN104: 102.91 | AO104: 102.91 | AP104: 0 | AQ104: 102.91 | AR104: 102.91 | AS104: 0 | AT104: 102.91 | AU104: 102.91 | AV104: 0 | AW104: 102.91 | AX104: 102.91 | AY104: 0 | AZ104: 102.91 | BA104: 0.91 | BN104: =T104+U104 -> 102.91 | BO104: 56.81 | BP104: =W104+X104 -> 102.91 | BQ104: 63.5 | BR104: =+Z104+AA104 -> 102.91 | BS104: 66.83 | BT104: =+AC104+AD104 -> 102.91 | BU104: 69.34 | BV104: =+AH104 -> 102.91 | BW104: 64.74 | BX104: =+AK104 -> 102.91 | BY104: 64.42 | BZ104: =+AN104 -> 102.91 | CA104: 44.66 | CB104: =+AQ104 -> 102.91 | CC104: 47.86 | CD104: =+AT104 -> 102.91 | CE104: 59.19 | CF104: =+AW104 -> 102.91 | CG104: -6.9 | CH104: 102.91 | CI104: -60.89 | CK104: (ni podpore 2011/2) | CL104: (ni podpore 2011/2) | CM104: (ni podpore 2011/2) | CN104: (ni podpore 2011/2) | CO104: 0 | CP104: 6.69 | CQ104: 0 | CR104: 3.33 | CS104: 0 | CT104: 2.51 | CU104: 0 | CV104: -4.6 | CW104: 0 | CX104: -0.32 | CY104: 0 | CZ104: -19.76 | DA104: 0 | DB104: 3.2 | DC104: 0 | DD104: 11.33 | DE104: 0 | DF104: -66.09 | DG104: 0 | DH104: -53.99
A105: SE14-2013maj | B105: 3.1 Sončne elektrarne - na stavbah 2013 maj | D105: velika - nad 10MW do vključno 125MW | E105: SE14 | T105: 91.59 | U105: 0 | V105: 91.59 | W105: 91.59 | X105: 0 | Y105: 91.59 | Z105: 91.59 | AA105: 0 | AB105: 91.59 | AC105: 91.59 | AD105: 0 | AE105: 91.59 | AF105: 91.59 | AG105: 0 | AH105: 91.59 | AI105: 91.59 | AJ105: 0 | AK105: 91.59 | AL105: 91.59 | AM105: 0 | AN105: 91.59 | AO105: 91.59 | AP105: 0 | AQ105: 91.59 | AR105: 91.59 | AS105: 0 | AT105: 91.59 | AU105: 91.59 | AV105: 0 | AW105: 91.59 | AX105: 91.59 | AY105: 0 | AZ105: 91.59 | BA105: 1 | BN105: (ni ZO) | BO105: 40.93 | BP105: (ni ZO) | BQ105: 48.28 | BR105: (ni ZO) | BS105: 51.94 | BT105: (ni ZO) | BU105: 54.7 | BV105: (ni ZO) | BW105: 49.65 | BX105: (ni ZO) | BY105: 49.29 | BZ105: (ni ZO) | CA105: 27.58 | CB105: (ni ZO) | CC105: 31.09 | CD105: (ni ZO) | CE105: 43.55 | CF105: (ni ZO) | CG105: -29.08 | CH105: (ni ZO) | CI105: -88.41 | CK105: (ni podpore 2011/2) | CL105: (ni podpore 2011/2) | CM105: (ni podpore 2011/2) | CN105: (ni podpore 2011/2) | CO105: (ni ZO) | CP105: 7.35 | CQ105: (ni ZO) | CR105: 3.66 | CS105: (ni ZO) | CT105: 2.76 | CU105: (ni ZO) | CV105: -5.05 | CW105: (ni ZO) | CX105: -0.36 | CY105: (ni ZO) | CZ105: -21.71 | DA105: (ni ZO) | DB105: 3.51 | DC105: (ni ZO) | DD105: 12.46 | DE105: (ni ZO) | DF105: -72.63 | DG105: (ni ZO) | DH105: -59.33
A106: SE21-2013maj | B106: 3.2 Sončne elektrarne - ostale 2013 maj | D106: mikro - manjše od 50kW | E106: SE21 | T106: 127.41 | U106: 0 | V106: 127.41 | W106: 127.41 | X106: 0 | Y106: 127.41 | Z106: 127.41 | AA106: 0 | AB106: 127.41 | AC106: 127.41 | AD106: 0 | AE106: 127.41 | AF106: 127.41 | AG106: 0 | AH106: 127.41 | AI106: 127.41 | AJ106: 0 | AK106: 127.41 | AL106: 127.41 | AM106: 0 | AN106: 127.41 | AO106: 127.41 | AP106: 0 | AQ106: 127.41 | AR106: 127.41 | AS106: 0 | AT106: 127.41 | AU106: 127.41 | AV106: 0 | AW106: 127.41 | AX106: 127.41 | AY106: 0 | AZ106: 127.41 | BA106: 0.88 | BN106: =T106+U106 -> 127.41 | BO106: 82.83 | BP106: =W106+X106 -> 127.41 | BQ106: 89.3 | BR106: =+Z106+AA106 -> 127.41 | BS106: 92.52 | BT106: =+AC106+AD106 -> 127.41 | BU106: 94.95 | BV106: =+AH106 -> 127.41 | BW106: 90.5 | BX106: =+AK106 -> 127.41 | BY106: 90.19 | BZ106: =+AN106 -> 127.41 | CA106: 71.08 | CB106: =+AQ106 -> 127.41 | CC106: 74.17 | CD106: =+AT106 -> 127.41 | CE106: 85.13 | CF106: =+AW106 -> 127.41 | CG106: 21.22 | CH106: =+AZ106 -> 127.41 | CI106: -30.99 | CK106: (ni podpore 2011/2) | CL106: (ni podpore 2011/2) | CM106: (ni podpore 2011/2) | CN106: (ni podpore 2011/2) | CO106: =BP106-BN106 -> 0 | CP106: 6.47 | CQ106: 0 | CR106: 3.22 | CS106: 0 | CT106: 2.43 | CU106: =BV106-BT106 -> 0 | CV106: -4.45 | CW106: =BX106-BV106 -> 0 | CX106: -0.31 | CY106: =BZ106-BX106 -> 0 | CZ106: -19.11 | DA106: =CB106-BZ106 -> 0 | DB106: 3.09 | DC106: =CD106-CB106 -> 0 | DD106: 10.96 | DE106: =CF106-CD106 -> 0 | DF106: -63.91 | DG106: =CH106-CF106 -> 0 | DH106: -52.21
A107: SE22-2013maj | B107: 3.2 Sončne elektrarne - ostale 2013 maj | D107: mala - manjše od 1MW | E107: SE22 | T107: 117.38 | U107: 0 | V107: 117.38 | W107: 117.38 | X107: 0 | Y107: 117.38 | Z107: 117.38 | AA107: 0 | AB107: 117.38 | AC107: 117.38 | AD107: 0 | AE107: 117.38 | AF107: 117.38 | AG107: 0 | AH107: 117.38 | AI107: 117.38 | AJ107: 0 | AK107: 117.38 | AL107: 117.38 | AM107: 0 | AN107: 117.38 | AO107: 117.38 | AP107: 0 | AQ107: 117.38 | AR107: 117.38 | AS107: 0 | AT107: 117.38 | AU107: 117.38 | AV107: 0 | AW107: 117.38 | AX107: 117.38 | AY107: 0 | AZ107: 117.38 | BA107: 0.88 | BN107: =T107+U107 -> 117.38 | BO107: 72.8 | BP107: =W107+X107 -> 117.38 | BQ107: 79.27 | BR107: =+Z107+AA107 -> 117.38 | BS107: 82.49 | BT107: =+AC107+AD107 -> 117.38 | BU107: 84.92 | BV107: =+AH107 -> 117.38 | BW107: 80.47 | BX107: =+AK107 -> 117.38 | BY107: 80.16 | BZ107: =+AN107 -> 117.38 | CA107: 61.05 | CB107: =+AQ107 -> 117.38 | CC107: 64.14 | CD107: =+AT107 -> 117.38 | CE107: 75.1 | CF107: =+AW107 -> 117.38 | CG107: 11.19 | CH107: 117.38 | CI107: -41.02 | CK107: (ni podpore 2011/2) | CL107: (ni podpore 2011/2) | CM107: (ni podpore 2011/2) | CN107: (ni podpore 2011/2) | CO107: 0 | CP107: 6.47 | CQ107: 0 | CR107: 3.22 | CS107: 0 | CT107: 2.43 | CU107: 0 | CV107: -4.45 | CW107: 0 | CX107: -0.31 | CY107: 0 | CZ107: -19.11 | DA107: 0 | DB107: 3.09 | DC107: 0 | DD107: 10.96 | DE107: 0 | DF107: -63.91 | DG107: 0 | DH107: -52.21
A108: SE23-2013maj | B108: 3.2 Sončne elektrarne - ostale 2013 maj | D108: srednja - od 1MW do vključno 10MW | E108: SE23 | T108: 94.63 | U108: 0 | V108: 94.63 | W108: 94.63 | X108: 0 | Y108: 94.63 | Z108: 94.63 | AA108: 0 | AB108: 94.63 | AC108: 94.63 | AD108: 0 | AE108: 94.63 | AF108: 94.63 | AG108: 0 | AH108: 94.63 | AI108: 94.63 | AJ108: 0 | AK108: 94.63 | AL108: 94.63 | AM108: 0 | AN108: 94.63 | AO108: 94.63 | AP108: 0 | AQ108: 94.63 | AR108: 94.63 | AS108: 0 | AT108: 94.63 | AU108: 94.63 | AV108: 0 | AW108: 94.63 | AX108: 94.63 | AY108: 0 | AZ108: 94.63 | BA108: 0.91 | BN108: =T108+U108 -> 94.63 | BO108: 48.53 | BP108: =W108+X108 -> 94.63 | BQ108: 55.22 | BR108: =+Z108+AA108 -> 94.63 | BS108: 58.55 | BT108: =+AC108+AD108 -> 94.63 | BU108: 61.06 | BV108: =+AH108 -> 94.63 | BW108: 56.46 | BX108: =+AK108 -> 94.63 | BY108: 56.14 | BZ108: =+AN108 -> 94.63 | CA108: 36.38 | CB108: =+AQ108 -> 94.63 | CC108: 39.58 | CD108: =+AT108 -> 94.63 | CE108: 50.91 | CF108: =+AW108 -> 94.63 | CG108: -15.18 | CH108: 94.63 | CI108: -69.17 | CK108: (ni podpore 2011/2) | CL108: (ni podpore 2011/2) | CM108: (ni podpore 2011/2) | CN108: (ni podpore 2011/2) | CO108: 0 | CP108: 6.69 | CQ108: 0 | CR108: 3.33 | CS108: 0 | CT108: 2.51 | CU108: 0 | CV108: -4.6 | CW108: 0 | CX108: -0.32 | CY108: 0 | CZ108: -19.76 | DA108: 0 | DB108: 3.2 | DC108: 0 | DD108: 11.33 | DE108: 0 | DF108: -66.09 | DG108: 0 | DH108: -53.99
A109: SE24-2013maj | B109: 3.2 Sončne elektrarne - ostale 2013 maj | D109: velika - nad 10MW do vključno 125MW | E109: SE24 | T109: 87.86 | U109: 0 | V109: 87.86 | W109: 87.86 | X109: 0 | Y109: 87.86 | Z109: 87.86 | AA109: 0 | AB109: 87.86 | AC109: 87.86 | AD109: 0 | AE109: 87.86 | AF109: 87.86 | AG109: 0 | AH109: 87.86 | AI109: 87.86 | AJ109: 0 | AK109: 87.86 | AL109: 87.86 | AM109: 0 | AN109: 87.86 | AO109: 87.86 | AP109: 0 | AQ109: 87.86 | AR109: 87.86 | AS109: 0 | AT109: 87.86 | AU109: 87.86 | AV109: 0 | AW109: 87.86 | AX109: 87.86 | AY109: 0 | AZ109: 87.86 | BA109: 1 | BN109: (ni ZO) | BO109: 37.2 | BP109: (ni ZO) | BQ109: 44.55 | BR109: (ni ZO) | BS109: 48.21 | BT109: (ni ZO) | BU109: 50.97 | BV109: (ni ZO) | BW109: 45.92 | BX109: (ni ZO) | BY109: 45.56 | BZ109: (ni ZO) | CA109: 23.85 | CB109: (ni ZO) | CC109: 27.36 | CD109: (ni ZO) | CE109: 39.82 | CF109: (ni ZO) | CG109: -32.81 | CH109: (ni ZO) | CI109: -92.14 | CK109: (ni podpore 2011/2) | CL109: (ni podpore 2011/2) | CM109: (ni podpore 2011/2) | CN109: (ni podpore 2011/2) | CO109: (ni ZO) | CP109: 7.35 | CQ109: (ni ZO) | CR109: 3.66 | CS109: (ni ZO) | CT109: 2.76 | CU109: (ni ZO) | CV109: -5.05 | CW109: (ni ZO) | CX109: -0.36 | CY109: (ni ZO) | CZ109: -21.71 | DA109: (ni ZO) | DB109: 3.51 | DC109: (ni ZO) | DD109: 12.46 | DE109: (ni ZO) | DF109: -72.63 | DG109: (ni ZO) | DH109: -59.33
A110: SE11-2013jun | B110: 3.1 Sončne elektrarne - na stavbah 2013 junij | D110: mikro - manjše od 50kW | E110: SE11 | T110: 132.88 | U110: 0 | V110: 132.88 | W110: 132.88 | X110: 0 | Y110: 132.88 | Z110: 132.88 | AA110: 0 | AB110: 132.88 | AC110: 132.88 | AD110: 0 | AE110: 132.88 | AF110: 132.88 | AG110: 0 | AH110: 132.88 | AI110: 132.88 | AJ110: 0 | AK110: 132.88 | AL110: 132.88 | AM110: 0 | AN110: 132.88 | AO110: 132.88 | AP110: 0 | AQ110: 132.88 | AR110: 132.88 | AS110: 0 | AT110: 132.88 | AU110: 132.88 | AV110: 0 | AW110: 132.88 | AX110: 132.88 | AY110: 0 | AZ110: 132.88 | BA110: 0.88 | BN110: =T110+U110 -> 132.88 | BO110: 88.3 | BP110: =W110+X110 -> 132.88 | BQ110: 94.77 | BR110: =+Z110+AA110 -> 132.88 | BS110: 97.99 | BT110: =+AC110+AD110 -> 132.88 | BU110: 100.42 | BV110: =+AH110 -> 132.88 | BW110: 95.97 | BX110: =+AK110 -> 132.88 | BY110: 95.66 | BZ110: =+AN110 -> 132.88 | CA110: 76.55 | CB110: =+AQ110 -> 132.88 | CC110: 79.64 | CD110: =+AT110 -> 132.88 | CE110: 90.6 | CF110: =+AW110 -> 132.88 | CG110: 26.69 | CH110: =+AZ110 -> 132.88 | CI110: -25.52 | CK110: (ni podpore 2011/2) | CL110: (ni podpore 2011/2) | CM110: (ni podpore 2011/2) | CN110: (ni podpore 2011/2) | CO110: =BP110-BN110 -> 0 | CP110: 6.47 | CQ110: 0 | CR110: 3.22 | CS110: 0 | CT110: 2.43 | CU110: =BV110-BT110 -> 0 | CV110: -4.45 | CW110: =BX110-BV110 -> 0 | CX110: -0.31 | CY110: =BZ110-BX110 -> 0 | CZ110: -19.11 | DA110: =CB110-BZ110 -> 0 | DB110: 3.09 | DC110: =CD110-CB110 -> 0 | DD110: 10.96 | DE110: =CF110-CD110 -> 0 | DF110: -63.91 | DG110: =CH110-CF110 -> 0 | DH110: -52.21
A111: SE12-2013jun | B111: 3.1 Sončne elektrarne - na stavbah 2013 junij | D111: mala - manjše od 1MW | E111: SE12 | T111: 121.53 | U111: 0 | V111: 121.53 | W111: 121.53 | X111: 0 | Y111: 121.53 | Z111: 121.53 | AA111: 0 | AB111: 121.53 | AC111: 121.53 | AD111: 0 | AE111: 121.53 | AF111: 121.53 | AG111: 0 | AH111: 121.53 | AI111: 121.53 | AJ111: 0 | AK111: 121.53 | AL111: 121.53 | AM111: 0 | AN111: 121.53 | AO111: 121.53 | AP111: 0 | AQ111: 121.53 | AR111: 121.53 | AS111: 0 | AT111: 121.53 | AU111: 121.53 | AV111: 0 | AW111: 121.53 | AX111: 121.53 | AY111: 0 | AZ111: 121.53 | BA111: 0.88 | BN111: =T111+U111 -> 121.53 | BO111: 76.95 | BP111: =W111+X111 -> 121.53 | BQ111: 83.42 | BR111: =+Z111+AA111 -> 121.53 | BS111: 86.64 | BT111: =+AC111+AD111 -> 121.53 | BU111: 89.07 | BV111: =+AH111 -> 121.53 | BW111: 84.62 | BX111: =+AK111 -> 121.53 | BY111: 84.31 | BZ111: =+AN111 -> 121.53 | CA111: 65.2 | CB111: =+AQ111 -> 121.53 | CC111: 68.29 | CD111: =+AT111 -> 121.53 | CE111: 79.25 | CF111: =+AW111 -> 121.53 | CG111: 15.34 | CH111: 121.53 | CI111: -36.87 | CK111: (ni podpore 2011/2) | CL111: (ni podpore 2011/2) | CM111: (ni podpore 2011/2) | CN111: (ni podpore 2011/2) | CO111: 0 | CP111: 6.47 | CQ111: 0 | CR111: 3.22 | CS111: 0 | CT111: 2.43 | CU111: 0 | CV111: -4.45 | CW111: 0 | CX111: -0.31 | CY111: 0 | CZ111: -19.11 | DA111: 0 | DB111: 3.09 | DC111: 0 | DD111: 10.96 | DE111: 0 | DF111: -63.91 | DG111: 0 | DH111: -52.21
A112: SE13-2013jun | B112: 3.1 Sončne elektrarne - na stavbah 2013 junij | D112: srednja - od 1MW do vključno 10MW | E112: SE13 | T112: 100.85 | U112: 0 | V112: 100.85 | W112: 100.85 | X112: 0 | Y112: 100.85 | Z112: 100.85 | AA112: 0 | AB112: 100.85 | AC112: 100.85 | AD112: 0 | AE112: 100.85 | AF112: 100.85 | AG112: 0 | AH112: 100.85 | AI112: 100.85 | AJ112: 0 | AK112: 100.85 | AL112: 100.85 | AM112: 0 | AN112: 100.85 | AO112: 100.85 | AP112: 0 | AQ112: 100.85 | AR112: 100.85 | AS112: 0 | AT112: 100.85 | AU112: 100.85 | AV112: 0 | AW112: 100.85 | AX112: 100.85 | AY112: 0 | AZ112: 100.85 | BA112: 0.91 | BN112: =T112+U112 -> 100.85 | BO112: 54.75 | BP112: =W112+X112 -> 100.85 | BQ112: 61.44 | BR112: =+Z112+AA112 -> 100.85 | BS112: 64.77 | BT112: =+AC112+AD112 -> 100.85 | BU112: 67.28 | BV112: =+AH112 -> 100.85 | BW112: 62.68 | BX112: =+AK112 -> 100.85 | BY112: 62.36 | BZ112: =+AN112 -> 100.85 | CA112: 42.6 | CB112: =+AQ112 -> 100.85 | CC112: 45.8 | CD112: =+AT112 -> 100.85 | CE112: 57.13 | CF112: =+AW112 -> 100.85 | CG112: -8.96 | CH112: 100.85 | CI112: -62.95 | CK112: (ni podpore 2011/2) | CL112: (ni podpore 2011/2) | CM112: (ni podpore 2011/2) | CN112: (ni podpore 2011/2) | CO112: 0 | CP112: 6.69 | CQ112: 0 | CR112: 3.33 | CS112: 0 | CT112: 2.51 | CU112: 0 | CV112: -4.6 | CW112: 0 | CX112: -0.32 | CY112: 0 | CZ112: -19.76 | DA112: 0 | DB112: 3.2 | DC112: 0 | DD112: 11.33 | DE112: 0 | DF112: -66.09 | DG112: 0 | DH112: -53.99
A113: SE14-2013jun | B113: 3.1 Sončne elektrarne - na stavbah 2013 junij | D113: velika - nad 10MW do vključno 125MW | E113: SE14 | T113: 89.76 | U113: 0 | V113: 89.76 | W113: 89.76 | X113: 0 | Y113: 89.76 | Z113: 89.76 | AA113: 0 | AB113: 89.76 | AC113: 89.76 | AD113: 0 | AE113: 89.76 | AF113: 89.76 | AG113: 0 | AH113: 89.76 | AI113: 89.76 | AJ113: 0 | AK113: 89.76 | AL113: 89.76 | AM113: 0 | AN113: 89.76 | AO113: 89.76 | AP113: 0 | AQ113: 89.76 | AR113: 89.76 | AS113: 0 | AT113: 89.76 | AU113: 89.76 | AV113: 0 | AW113: 89.76 | AX113: 89.76 | AY113: 0 | AZ113: 89.76 | BA113: 1 | BN113: (ni ZO) | BO113: 39.1 | BP113: (ni ZO) | BQ113: 46.45 | BR113: (ni ZO) | BS113: 50.11 | BT113: (ni ZO) | BU113: 52.87 | BV113: (ni ZO) | BW113: 47.82 | BX113: (ni ZO) | BY113: 47.46 | BZ113: (ni ZO) | CA113: 25.75 | CB113: (ni ZO) | CC113: 29.26 | CD113: (ni ZO) | CE113: 41.72 | CF113: (ni ZO) | CG113: -30.91 | CH113: (ni ZO) | CI113: -90.24 | CK113: (ni podpore 2011/2) | CL113: (ni podpore 2011/2) | CM113: (ni podpore 2011/2) | CN113: (ni podpore 2011/2) | CO113: (ni ZO) | CP113: 7.35 | CQ113: (ni ZO) | CR113: 3.66 | CS113: (ni ZO) | CT113: 2.76 | CU113: (ni ZO) | CV113: -5.05 | CW113: (ni ZO) | CX113: -0.36 | CY113: (ni ZO) | CZ113: -21.71 | DA113: (ni ZO) | DB113: 3.51 | DC113: (ni ZO) | DD113: 12.46 | DE113: (ni ZO) | DF113: -72.63 | DG113: (ni ZO) | DH113: -59.33
A114: SE21-2013jun | B114: 3.2 Sončne elektrarne - ostale 2013 junij | D114: mikro - manjše od 50kW | E114: SE21 | T114: 124.86 | U114: 0 | V114: 124.86 | W114: 124.86 | X114: 0 | Y114: 124.86 | Z114: 124.86 | AA114: 0 | AB114: 124.86 | AC114: 124.86 | AD114: 0 | AE114: 124.86 | AF114: 124.86 | AG114: 0 | AH114: 124.86 | AI114: 124.86 | AJ114: 0 | AK114: 124.86 | AL114: 124.86 | AM114: 0 | AN114: 124.86 | AO114: 124.86 | AP114: 0 | AQ114: 124.86 | AR114: 124.86 | AS114: 0 | AT114: 124.86 | AU114: 124.86 | AV114: 0 | AW114: 124.86 | AX114: 124.86 | AY114: 0 | AZ114: 124.86 | BA114: 0.88 | BN114: =T114+U114 -> 124.86 | BO114: 80.28 | BP114: =W114+X114 -> 124.86 | BQ114: 86.75 | BR114: =+Z114+AA114 -> 124.86 | BS114: 89.97 | BT114: =+AC114+AD114 -> 124.86 | BU114: 92.4 | BV114: =+AH114 -> 124.86 | BW114: 87.95 | BX114: =+AK114 -> 124.86 | BY114: 87.64 | BZ114: =+AN114 -> 124.86 | CA114: 68.53 | CB114: =+AQ114 -> 124.86 | CC114: 71.62 | CD114: =+AT114 -> 124.86 | CE114: 82.58 | CF114: =+AW114 -> 124.86 | CG114: 18.67 | CH114: =+AZ114 -> 124.86 | CI114: -33.54 | CK114: (ni podpore 2011/2) | CL114: (ni podpore 2011/2) | CM114: (ni podpore 2011/2) | CN114: (ni podpore 2011/2) | CO114: =BP114-BN114 -> 0 | CP114: 6.47 | CQ114: 0 | CR114: 3.22 | CS114: 0 | CT114: 2.43 | CU114: =BV114-BT114 -> 0 | CV114: -4.45 | CW114: =BX114-BV114 -> 0 | CX114: -0.31 | CY114: =BZ114-BX114 -> 0 | CZ114: -19.11 | DA114: =CB114-BZ114 -> 0 | DB114: 3.09 | DC114: =CD114-CB114 -> 0 | DD114: 10.96 | DE114: =CF114-CD114 -> 0 | DF114: -63.91 | DG114: =CH114-CF114 -> 0 | DH114: -52.21
A115: SE22-2013jun | B115: 3.2 Sončne elektrarne - ostale 2013 junij | D115: mala - manjše od 1MW | E115: SE22 | T115: 115.03 | U115: 0 | V115: 115.03 | W115: 115.03 | X115: 0 | Y115: 115.03 | Z115: 115.03 | AA115: 0 | AB115: 115.03 | AC115: 115.03 | AD115: 0 | AE115: 115.03 | AF115: 115.03 | AG115: 0 | AH115: 115.03 | AI115: 115.03 | AJ115: 0 | AK115: 115.03 | AL115: 115.03 | AM115: 0 | AN115: 115.03 | AO115: 115.03 | AP115: 0 | AQ115: 115.03 | AR115: 115.03 | AS115: 0 | AT115: 115.03 | AU115: 115.03 | AV115: 0 | AW115: 115.03 | AX115: 115.03 | AY115: 0 | AZ115: 115.03 | BA115: 0.88 | BN115: =T115+U115 -> 115.03 | BO115: 70.45 | BP115: =W115+X115 -> 115.03 | BQ115: 76.92 | BR115: =+Z115+AA115 -> 115.03 | BS115: 80.14 | BT115: =+AC115+AD115 -> 115.03 | BU115: 82.57 | BV115: =+AH115 -> 115.03 | BW115: 78.12 | BX115: =+AK115 -> 115.03 | BY115: 77.81 | BZ115: =+AN115 -> 115.03 | CA115: 58.7 | CB115: =+AQ115 -> 115.03 | CC115: 61.79 | CD115: =+AT115 -> 115.03 | CE115: 72.75 | CF115: =+AW115 -> 115.03 | CG115: 8.84 | CH115: 115.03 | CI115: -43.37 | CK115: (ni podpore 2011/2) | CL115: (ni podpore 2011/2) | CM115: (ni podpore 2011/2) | CN115: (ni podpore 2011/2) | CO115: 0 | CP115: 6.47 | CQ115: 0 | CR115: 3.22 | CS115: 0 | CT115: 2.43 | CU115: 0 | CV115: -4.45 | CW115: 0 | CX115: -0.31 | CY115: 0 | CZ115: -19.11 | DA115: 0 | DB115: 3.09 | DC115: 0 | DD115: 10.96 | DE115: 0 | DF115: -63.91 | DG115: 0 | DH115: -52.21
A116: SE23-2013jun | B116: 3.2 Sončne elektrarne - ostale 2013 junij | D116: srednja - od 1MW do vključno 10MW | E116: SE23 | T116: 92.74 | U116: 0 | V116: 92.74 | W116: 92.74 | X116: 0 | Y116: 92.74 | Z116: 92.74 | AA116: 0 | AB116: 92.74 | AC116: 92.74 | AD116: 0 | AE116: 92.74 | AF116: 92.74 | AG116: 0 | AH116: 92.74 | AI116: 92.74 | AJ116: 0 | AK116: 92.74 | AL116: 92.74 | AM116: 0 | AN116: 92.74 | AO116: 92.74 | AP116: 0 | AQ116: 92.74 | AR116: 92.74 | AS116: 0 | AT116: 92.74 | AU116: 92.74 | AV116: 0 | AW116: 92.74 | AX116: 92.74 | AY116: 0 | AZ116: 92.74 | BA116: 0.91 | BN116: =T116+U116 -> 92.74 | BO116: 46.64 | BP116: =W116+X116 -> 92.74 | BQ116: 53.33 | BR116: =+Z116+AA116 -> 92.74 | BS116: 56.66 | BT116: =+AC116+AD116 -> 92.74 | BU116: 59.17 | BV116: =+AH116 -> 92.74 | BW116: 54.57 | BX116: =+AK116 -> 92.74 | BY116: 54.25 | BZ116: =+AN116 -> 92.74 | CA116: 34.49 | CB116: =+AQ116 -> 92.74 | CC116: 37.69 | CD116: =+AT116 -> 92.74 | CE116: 49.02 | CF116: =+AW116 -> 92.74 | CG116: -17.07 | CH116: 92.74 | CI116: -71.06 | CK116: (ni podpore 2011/2) | CL116: (ni podpore 2011/2) | CM116: (ni podpore 2011/2) | CN116: (ni podpore 2011/2) | CO116: 0 | CP116: 6.69 | CQ116: 0 | CR116: 3.33 | CS116: 0 | CT116: 2.51 | CU116: 0 | CV116: -4.6 | CW116: 0 | CX116: -0.32 | CY116: 0 | CZ116: -19.76 | DA116: 0 | DB116: 3.2 | DC116: 0 | DD116: 11.33 | DE116: 0 | DF116: -66.09 | DG116: 0 | DH116: -53.99
A117: SE24-2013jun | B117: 3.2 Sončne elektrarne - ostale 2013 junij | D117: velika - nad 10MW do vključno 125MW | E117: SE24 | T117: 86.1 | U117: 0 | V117: 86.1 | W117: 86.1 | X117: 0 | Y117: 86.1 | Z117: 86.1 | AA117: 0 | AB117: 86.1 | AC117: 86.1 | AD117: 0 | AE117: 86.1 | AF117: 86.1 | AG117: 0 | AH117: 86.1 | AI117: 86.1 | AJ117: 0 | AK117: 86.1 | AL117: 86.1 | AM117: 0 | AN117: 86.1 | AO117: 86.1 | AP117: 0 | AQ117: 86.1 | AR117: 86.1 | AS117: 0 | AT117: 86.1 | AU117: 86.1 | AV117: 0 | AW117: 86.1 | AX117: 86.1 | AY117: 0 | AZ117: 86.1 | BA117: 1 | BN117: (ni ZO) | BO117: 35.44 | BP117: (ni ZO) | BQ117: 42.79 | BR117: (ni ZO) | BS117: 46.45 | BT117: (ni ZO) | BU117: 49.21 | BV117: (ni ZO) | BW117: 44.16 | BX117: (ni ZO) | BY117: 43.8 | BZ117: (ni ZO) | CA117: 22.09 | CB117: (ni ZO) | CC117: 25.6 | CD117: (ni ZO) | CE117: 38.06 | CF117: (ni ZO) | CG117: -34.57 | CH117: (ni ZO) | CI117: -93.9 | CK117: (ni podpore 2011/2) | CL117: (ni podpore 2011/2) | CM117: (ni podpore 2011/2) | CN117: (ni podpore 2011/2) | CO117: (ni ZO) | CP117: 7.35 | CQ117: (ni ZO) | CR117: 3.66 | CS117: (ni ZO) | CT117: 2.76 | CU117: (ni ZO) | CV117: -5.05 | CW117: (ni ZO) | CX117: -0.36 | CY117: (ni ZO) | CZ117: -21.71 | DA117: (ni ZO) | DB117: 3.51 | DC117: (ni ZO) | DD117: 12.46 | DE117: (ni ZO) | DF117: -72.63 | DG117: (ni ZO) | DH117: -59.33
A118: SE11-2013jul | B118: 3.1 Sončne elektrarne - na stavbah 2013 julij | D118: mikro - manjše od 50kW | E118: SE11 | T118: 130.22 | U118: 0 | V118: 130.22 | W118: 130.22 | X118: 0 | Y118: 130.22 | Z118: 130.22 | AA118: 0 | AB118: 130.22 | AC118: 130.22 | AD118: 0 | AE118: 130.22 | AF118: 130.22 | AG118: 0 | AH118: 130.22 | AI118: 130.22 | AJ118: 0 | AK118: 130.22 | AL118: 130.22 | AM118: 0 | AN118: 130.22 | AO118: 130.22 | AP118: 0 | AQ118: 130.22 | AR118: 130.22 | AS118: 0 | AT118: 130.22 | AU118: 130.22 | AV118: 0 | AW118: 130.22 | AX118: 130.22 | AY118: 0 | AZ118: 130.22 | BA118: 0.88 | BN118: =T118+U118 -> 130.22 | BO118: 85.64 | BP118: =W118+X118 -> 130.22 | BQ118: 92.11 | BR118: =+Z118+AA118 -> 130.22 | BS118: 95.33 | BT118: =+AC118+AD118 -> 130.22 | BU118: 97.76 | BV118: =+AH118 -> 130.22 | BW118: 93.31 | BX118: =+AK118 -> 130.22 | BY118: 93 | BZ118: =+AN118 -> 130.22 | CA118: 73.89 | CB118: =+AQ118 -> 130.22 | CC118: 76.98 | CD118: =+AT118 -> 130.22 | CE118: 87.94 | CF118: =+AW118 -> 130.22 | CG118: 24.03 | CH118: =+AZ118 -> 130.22 | CI118: -28.18 | CK118: (ni podpore 2011/2) | CL118: (ni podpore 2011/2) | CM118: (ni podpore 2011/2) | CN118: (ni podpore 2011/2) | CO118: =BP118-BN118 -> 0 | CP118: 6.47 | CQ118: 0 | CR118: 3.22 | CS118: 0 | CT118: 2.43 | CU118: =BV118-BT118 -> 0 | CV118: -4.45 | CW118: =BX118-BV118 -> 0 | CX118: -0.31 | CY118: =BZ118-BX118 -> 0 | CZ118: -19.11 | DA118: =CB118-BZ118 -> 0 | DB118: 3.09 | DC118: =CD118-CB118 -> 0 | DD118: 10.96 | DE118: =CF118-CD118 -> 0 | DF118: -63.91 | DG118: =CH118-CF118 -> 0 | DH118: -52.21
A119: SE12-2013jul | B119: 3.1 Sončne elektrarne - na stavbah 2013 julij | D119: mala - manjše od 1MW | E119: SE12 | T119: 119.1 | U119: 0 | V119: 119.1 | W119: 119.1 | X119: 0 | Y119: 119.1 | Z119: 119.1 | AA119: 0 | AB119: 119.1 | AC119: 119.1 | AD119: 0 | AE119: 119.1 | AF119: 119.1 | AG119: 0 | AH119: 119.1 | AI119: 119.1 | AJ119: 0 | AK119: 119.1 | AL119: 119.1 | AM119: 0 | AN119: 119.1 | AO119: 119.1 | AP119: 0 | AQ119: 119.1 | AR119: 119.1 | AS119: 0 | AT119: 119.1 | AU119: 119.1 | AV119: 0 | AW119: 119.1 | AX119: 119.1 | AY119: 0 | AZ119: 119.1 | BA119: 0.88 | BN119: =T119+U119 -> 119.1 | BO119: 74.52 | BP119: =W119+X119 -> 119.1 | BQ119: 80.99 | BR119: =+Z119+AA119 -> 119.1 | BS119: 84.21 | BT119: =+AC119+AD119 -> 119.1 | BU119: 86.64 | BV119: =+AH119 -> 119.1 | BW119: 82.19 | BX119: =+AK119 -> 119.1 | BY119: 81.88 | BZ119: =+AN119 -> 119.1 | CA119: 62.77 | CB119: =+AQ119 -> 119.1 | CC119: 65.86 | CD119: =+AT119 -> 119.1 | CE119: 76.82 | CF119: =+AW119 -> 119.1 | CG119: 12.91 | CH119: 119.1 | CI119: -39.3 | CK119: (ni podpore 2011/2) | CL119: (ni podpore 2011/2) | CM119: (ni podpore 2011/2) | CN119: (ni podpore 2011/2) | CO119: 0 | CP119: 6.47 | CQ119: 0 | CR119: 3.22 | CS119: 0 | CT119: 2.43 | CU119: 0 | CV119: -4.45 | CW119: 0 | CX119: -0.31 | CY119: 0 | CZ119: -19.11 | DA119: 0 | DB119: 3.09 | DC119: 0 | DD119: 10.96 | DE119: 0 | DF119: -63.91 | DG119: 0 | DH119: -52.21
A120: SE13-2013jul | B120: 3.1 Sončne elektrarne - na stavbah 2013 julij | D120: srednja - od 1MW do vključno 10MW | E120: SE13 | T120: 98.83 | U120: 0 | V120: 98.83 | W120: 98.83 | X120: 0 | Y120: 98.83 | Z120: 98.83 | AA120: 0 | AB120: 98.83 | AC120: 98.83 | AD120: 0 | AE120: 98.83 | AF120: 98.83 | AG120: 0 | AH120: 98.83 | AI120: 98.83 | AJ120: 0 | AK120: 98.83 | AL120: 98.83 | AM120: 0 | AN120: 98.83 | AO120: 98.83 | AP120: 0 | AQ120: 98.83 | AR120: 98.83 | AS120: 0 | AT120: 98.83 | AU120: 98.83 | AV120: 0 | AW120: 98.83 | AX120: 98.83 | AY120: 0 | AZ120: 98.83 | BA120: 0.91 | BN120: =T120+U120 -> 98.83 | BO120: 52.73 | BP120: =W120+X120 -> 98.83 | BQ120: 59.42 | BR120: =+Z120+AA120 -> 98.83 | BS120: 62.75 | BT120: =+AC120+AD120 -> 98.83 | BU120: 65.26 | BV120: =+AH120 -> 98.83 | BW120: 60.66 | BX120: =+AK120 -> 98.83 | BY120: 60.34 | BZ120: =+AN120 -> 98.83 | CA120: 40.58 | CB120: =+AQ120 -> 98.83 | CC120: 43.78 | CD120: =+AT120 -> 98.83 | CE120: 55.11 | CF120: =+AW120 -> 98.83 | CG120: -10.98 | CH120: 98.83 | CI120: -64.97 | CK120: (ni podpore 2011/2) | CL120: (ni podpore 2011/2) | CM120: (ni podpore 2011/2) | CN120: (ni podpore 2011/2) | CO120: 0 | CP120: 6.69 | CQ120: 0 | CR120: 3.33 | CS120: 0 | CT120: 2.51 | CU120: 0 | CV120: -4.6 | CW120: 0 | CX120: -0.32 | CY120: 0 | CZ120: -19.76 | DA120: 0 | DB120: 3.2 | DC120: 0 | DD120: 11.33 | DE120: 0 | DF120: -66.09 | DG120: 0 | DH120: -53.99
A121: SE14-2013jul | B121: 3.1 Sončne elektrarne - na stavbah 2013 julij | D121: velika - nad 10MW do vključno 125MW | E121: SE14 | T121: 87.96 | U121: 0 | V121: 87.96 | W121: 87.96 | X121: 0 | Y121: 87.96 | Z121: 87.96 | AA121: 0 | AB121: 87.96 | AC121: 87.96 | AD121: 0 | AE121: 87.96 | AF121: 87.96 | AG121: 0 | AH121: 87.96 | AI121: 87.96 | AJ121: 0 | AK121: 87.96 | AL121: 87.96 | AM121: 0 | AN121: 87.96 | AO121: 87.96 | AP121: 0 | AQ121: 87.96 | AR121: 87.96 | AS121: 0 | AT121: 87.96 | AU121: 87.96 | AV121: 0 | AW121: 87.96 | AX121: 87.96 | AY121: 0 | AZ121: 87.96 | BA121: 1 | BN121: (ni ZO) | BO121: 37.3 | BP121: (ni ZO) | BQ121: 44.65 | BR121: (ni ZO) | BS121: 48.31 | BT121: (ni ZO) | BU121: 51.07 | BV121: (ni ZO) | BW121: 46.02 | BX121: (ni ZO) | BY121: 45.66 | BZ121: (ni ZO) | CA121: 23.95 | CB121: (ni ZO) | CC121: 27.46 | CD121: (ni ZO) | CE121: 39.92 | CF121: (ni ZO) | CG121: -32.71 | CH121: (ni ZO) | CI121: -92.04 | CK121: (ni podpore 2011/2) | CL121: (ni podpore 2011/2) | CM121: (ni podpore 2011/2) | CN121: (ni podpore 2011/2) | CO121: (ni ZO) | CP121: 7.35 | CQ121: (ni ZO) | CR121: 3.66 | CS121: (ni ZO) | CT121: 2.76 | CU121: (ni ZO) | CV121: -5.05 | CW121: (ni ZO) | CX121: -0.36 | CY121: (ni ZO) | CZ121: -21.71 | DA121: (ni ZO) | DB121: 3.51 | DC121: (ni ZO) | DD121: 12.46 | DE121: (ni ZO) | DF121: -72.63 | DG121: (ni ZO) | DH121: -59.33
A122: SE21-2013jul | B122: 3.2 Sončne elektrarne - ostale 2013 julij | D122: mikro - manjše od 50kW | E122: SE21 | T122: 122.36 | U122: 0 | V122: 122.36 | W122: 122.36 | X122: 0 | Y122: 122.36 | Z122: 122.36 | AA122: 0 | AB122: 122.36 | AC122: 122.36 | AD122: 0 | AE122: 122.36 | AF122: 122.36 | AG122: 0 | AH122: 122.36 | AI122: 122.36 | AJ122: 0 | AK122: 122.36 | AL122: 122.36 | AM122: 0 | AN122: 122.36 | AO122: 122.36 | AP122: 0 | AQ122: 122.36 | AR122: 122.36 | AS122: 0 | AT122: 122.36 | AU122: 122.36 | AV122: 0 | AW122: 122.36 | AX122: 122.36 | AY122: 0 | AZ122: 122.36 | BA122: 0.88 | BN122: =T122+U122 -> 122.36 | BO122: 77.78 | BP122: =W122+X122 -> 122.36 | BQ122: 84.25 | BR122: =+Z122+AA122 -> 122.36 | BS122: 87.47 | BT122: =+AC122+AD122 -> 122.36 | BU122: 89.9 | BV122: =+AH122 -> 122.36 | BW122: 85.45 | BX122: =+AK122 -> 122.36 | BY122: 85.14 | BZ122: =+AN122 -> 122.36 | CA122: 66.03 | CB122: =+AQ122 -> 122.36 | CC122: 69.12 | CD122: =+AT122 -> 122.36 | CE122: 80.08 | CF122: =+AW122 -> 122.36 | CG122: 16.17 | CH122: =+AZ122 -> 122.36 | CI122: -36.04 | CK122: (ni podpore 2011/2) | CL122: (ni podpore 2011/2) | CM122: (ni podpore 2011/2) | CN122: (ni podpore 2011/2) | CO122: =BP122-BN122 -> 0 | CP122: 6.47 | CQ122: 0 | CR122: 3.22 | CS122: 0 | CT122: 2.43 | CU122: =BV122-BT122 -> 0 | CV122: -4.45 | CW122: =BX122-BV122 -> 0 | CX122: -0.31 | CY122: =BZ122-BX122 -> 0 | CZ122: -19.11 | DA122: =CB122-BZ122 -> 0 | DB122: 3.09 | DC122: =CD122-CB122 -> 0 | DD122: 10.96 | DE122: =CF122-CD122 -> 0 | DF122: -63.91 | DG122: =CH122-CF122 -> 0 | DH122: -52.21
A123: SE22-2013jul | B123: 3.2 Sončne elektrarne - ostale 2013 julij | D123: mala - manjše od 1MW | E123: SE22 | T123: 112.73 | U123: 0 | V123: 112.73 | W123: 112.73 | X123: 0 | Y123: 112.73 | Z123: 112.73 | AA123: 0 | AB123: 112.73 | AC123: 112.73 | AD123: 0 | AE123: 112.73 | AF123: 112.73 | AG123: 0 | AH123: 112.73 | AI123: 112.73 | AJ123: 0 | AK123: 112.73 | AL123: 112.73 | AM123: 0 | AN123: 112.73 | AO123: 112.73 | AP123: 0 | AQ123: 112.73 | AR123: 112.73 | AS123: 0 | AT123: 112.73 | AU123: 112.73 | AV123: 0 | AW123: 112.73 | AX123: 112.73 | AY123: 0 | AZ123: 112.73 | BA123: 0.88 | BN123: =T123+U123 -> 112.73 | BO123: 68.15 | BP123: =W123+X123 -> 112.73 | BQ123: 74.62 | BR123: =+Z123+AA123 -> 112.73 | BS123: 77.84 | BT123: =+AC123+AD123 -> 112.73 | BU123: 80.27 | BV123: =+AH123 -> 112.73 | BW123: 75.82 | BX123: =+AK123 -> 112.73 | BY123: 75.51 | BZ123: =+AN123 -> 112.73 | CA123: 56.4 | CB123: =+AQ123 -> 112.73 | CC123: 59.49 | CD123: =+AT123 -> 112.73 | CE123: 70.45 | CF123: =+AW123 -> 112.73 | CG123: 6.54 | CH123: 112.73 | CI123: -45.67 | CK123: (ni podpore 2011/2) | CL123: (ni podpore 2011/2) | CM123: (ni podpore 2011/2) | CN123: (ni podpore 2011/2) | CO123: 0 | CP123: 6.47 | CQ123: 0 | CR123: 3.22 | CS123: 0 | CT123: 2.43 | CU123: 0 | CV123: -4.45 | CW123: 0 | CX123: -0.31 | CY123: 0 | CZ123: -19.11 | DA123: 0 | DB123: 3.09 | DC123: 0 | DD123: 10.96 | DE123: 0 | DF123: -63.91 | DG123: 0 | DH123: -52.21
A124: SE23-2013jul | B124: 3.2 Sončne elektrarne - ostale 2013 julij | D124: srednja - od 1MW do vključno 10MW | E124: SE23 | T124: 90.89 | U124: 0 | V124: 90.89 | W124: 90.89 | X124: 0 | Y124: 90.89 | Z124: 90.89 | AA124: 0 | AB124: 90.89 | AC124: 90.89 | AD124: 0 | AE124: 90.89 | AF124: 90.89 | AG124: 0 | AH124: 90.89 | AI124: 90.89 | AJ124: 0 | AK124: 90.89 | AL124: 90.89 | AM124: 0 | AN124: 90.89 | AO124: 90.89 | AP124: 0 | AQ124: 90.89 | AR124: 90.89 | AS124: 0 | AT124: 90.89 | AU124: 90.89 | AV124: 0 | AW124: 90.89 | AX124: 90.89 | AY124: 0 | AZ124: 90.89 | BA124: 0.91 | BN124: =T124+U124 -> 90.89 | BO124: 44.79 | BP124: =W124+X124 -> 90.89 | BQ124: 51.48 | BR124: =+Z124+AA124 -> 90.89 | BS124: 54.81 | BT124: =+AC124+AD124 -> 90.89 | BU124: 57.32 | BV124: =+AH124 -> 90.89 | BW124: 52.72 | BX124: =+AK124 -> 90.89 | BY124: 52.4 | BZ124: =+AN124 -> 90.89 | CA124: 32.64 | CB124: =+AQ124 -> 90.89 | CC124: 35.84 | CD124: =+AT124 -> 90.89 | CE124: 47.17 | CF124: =+AW124 -> 90.89 | CG124: -18.92 | CH124: 90.89 | CI124: -72.91 | CK124: (ni podpore 2011/2) | CL124: (ni podpore 2011/2) | CM124: (ni podpore 2011/2) | CN124: (ni podpore 2011/2) | CO124: 0 | CP124: 6.69 | CQ124: 0 | CR124: 3.33 | CS124: 0 | CT124: 2.51 | CU124: 0 | CV124: -4.6 | CW124: 0 | CX124: -0.32 | CY124: 0 | CZ124: -19.76 | DA124: 0 | DB124: 3.2 | DC124: 0 | DD124: 11.33 | DE124: 0 | DF124: -66.09 | DG124: 0 | DH124: -53.99
A125: SE24-2013jul | B125: 3.2 Sončne elektrarne - ostale 2013 julij | D125: velika - nad 10MW do vključno 125MW | E125: SE24 | T125: 84.38 | U125: 0 | V125: 84.38 | W125: 84.38 | X125: 0 | Y125: 84.38 | Z125: 84.38 | AA125: 0 | AB125: 84.38 | AC125: 84.38 | AD125: 0 | AE125: 84.38 | AF125: 84.38 | AG125: 0 | AH125: 84.38 | AI125: 84.38 | AJ125: 0 | AK125: 84.38 | AL125: 84.38 | AM125: 0 | AN125: 84.38 | AO125: 84.38 | AP125: 0 | AQ125: 84.38 | AR125: 84.38 | AS125: 0 | AT125: 84.38 | AU125: 84.38 | AV125: 0 | AW125: 84.38 | AX125: 84.38 | AY125: 0 | AZ125: 84.38 | BA125: 1 | BN125: (ni ZO) | BO125: 33.72 | BP125: (ni ZO) | BQ125: 41.07 | BR125: (ni ZO) | BS125: 44.73 | BT125: (ni ZO) | BU125: 47.49 | BV125: (ni ZO) | BW125: 42.44 | BX125: (ni ZO) | BY125: 42.08 | BZ125: (ni ZO) | CA125: 20.37 | CB125: (ni ZO) | CC125: 23.88 | CD125: (ni ZO) | CE125: 36.34 | CF125: (ni ZO) | CG125: -36.29 | CH125: (ni ZO) | CI125: -95.62 | CK125: (ni podpore 2011/2) | CL125: (ni podpore 2011/2) | CM125: (ni podpore 2011/2) | CN125: (ni podpore 2011/2) | CO125: (ni ZO) | CP125: 7.35 | CQ125: (ni ZO) | CR125: 3.66 | CS125: (ni ZO) | CT125: 2.76 | CU125: (ni ZO) | CV125: -5.05 | CW125: (ni ZO) | CX125: -0.36 | CY125: (ni ZO) | CZ125: -21.71 | DA125: (ni ZO) | DB125: 3.51 | DC125: (ni ZO) | DD125: 12.46 | DE125: (ni ZO) | DF125: -72.63 | DG125: (ni ZO) | DH125: -59.33
A126: SE11-2013avg | B126: 3.1 Sončne elektrarne - na stavbah 2013 avgust | D126: mikro - manjše od 50kW | E126: SE11 | T126: 127.62 | U126: 0 | V126: 127.62 | W126: 127.62 | X126: 0 | Y126: 127.62 | Z126: 127.62 | AA126: 0 | AB126: 127.62 | AC126: 127.62 | AD126: 0 | AE126: 127.62 | AF126: 127.62 | AG126: 0 | AH126: 127.62 | AI126: 127.62 | AJ126: 0 | AK126: 127.62 | AL126: 127.62 | AM126: 0 | AN126: 127.62 | AO126: 127.62 | AP126: 0 | AQ126: 127.62 | AR126: 127.62 | AS126: 0 | AT126: 127.62 | AU126: 127.62 | AV126: 0 | AW126: 127.62 | AX126: 127.62 | AY126: 0 | AZ126: 127.62 | BA126: 0.88 | BN126: =T126+U126 -> 127.62 | BO126: 83.04 | BP126: =W126+X126 -> 127.62 | BQ126: 89.51 | BR126: =+Z126+AA126 -> 127.62 | BS126: 92.73 | BT126: =+AC126+AD126 -> 127.62 | BU126: 95.16 | BV126: =+AH126 -> 127.62 | BW126: 90.71 | BX126: =+AK126 -> 127.62 | BY126: 90.4 | BZ126: =+AN126 -> 127.62 | CA126: 71.29 | CB126: =+AQ126 -> 127.62 | CC126: 74.38 | CD126: =+AT126 -> 127.62 | CE126: 85.34 | CF126: =+AW126 -> 127.62 | CG126: 21.43 | CH126: =+AZ126 -> 127.62 | CI126: -30.78 | CK126: (ni podpore 2011/2) | CL126: (ni podpore 2011/2) | CM126: (ni podpore 2011/2) | CN126: (ni podpore 2011/2) | CO126: =BP126-BN126 -> 0 | CP126: =BQ126-BO126 -> 6.47 | CQ126: 0 | CR126: 3.22 | CS126: 0 | CT126: 2.43 | CU126: =BV126-BT126 -> 0 | CV126: -4.45 | CW126: =BX126-BV126 -> 0 | CX126: -0.31 | CY126: =BZ126-BX126 -> 0 | CZ126: -19.11 | DA126: =CB126-BZ126 -> 0 | DB126: 3.09 | DC126: =CD126-CB126 -> 0 | DD126: 10.96 | DE126: =CF126-CD126 -> 0 | DF126: -63.91 | DG126: =CH126-CF126 -> 0 | DH126: -52.21
A127: SE12-2013avg | B127: 3.1 Sončne elektrarne - na stavbah 2013 avgust | D127: mala - manjše od 1MW | E127: SE12 | T127: 116.72 | U127: 0 | V127: 116.72 | W127: 116.72 | X127: 0 | Y127: 116.72 | Z127: 116.72 | AA127: 0 | AB127: 116.72 | AC127: 116.72 | AD127: 0 | AE127: 116.72 | AF127: 116.72 | AG127: 0 | AH127: 116.72 | AI127: 116.72 | AJ127: 0 | AK127: 116.72 | AL127: 116.72 | AM127: 0 | AN127: 116.72 | AO127: 116.72 | AP127: 0 | AQ127: 116.72 | AR127: 116.72 | AS127: 0 | AT127: 116.72 | AU127: 116.72 | AV127: 0 | AW127: 116.72 | AX127: 116.72 | AY127: 0 | AZ127: 116.72 | BA127: 0.88 | BN127: =T127+U127 -> 116.72 | BO127: 72.14 | BP127: =W127+X127 -> 116.72 | BQ127: 78.61 | BR127: =+Z127+AA127 -> 116.72 | BS127: 81.83 | BT127: =+AC127+AD127 -> 116.72 | BU127: 84.26 | BV127: =+AH127 -> 116.72 | BW127: 79.81 | BX127: =+AK127 -> 116.72 | BY127: 79.5 | BZ127: =+AN127 -> 116.72 | CA127: 60.39 | CB127: =+AQ127 -> 116.72 | CC127: 63.48 | CD127: =+AT127 -> 116.72 | CE127: 74.44 | CF127: =+AW127 -> 116.72 | CG127: 10.53 | CH127: 116.72 | CI127: -41.68 | CK127: (ni podpore 2011/2) | CL127: (ni podpore 2011/2) | CM127: (ni podpore 2011/2) | CN127: (ni podpore 2011/2) | CO127: 0 | CP127: 6.47 | CQ127: 0 | CR127: 3.22 | CS127: 0 | CT127: 2.43 | CU127: 0 | CV127: -4.45 | CW127: 0 | CX127: -0.31 | CY127: 0 | CZ127: -19.11 | DA127: 0 | DB127: 3.09 | DC127: 0 | DD127: 10.96 | DE127: 0 | DF127: -63.91 | DG127: 0 | DH127: -52.21
A128: SE13-2013avg | B128: 3.1 Sončne elektrarne - na stavbah 2013 avgust | D128: srednja - od 1MW do vključno 10MW | E128: SE13 | T128: 96.85 | U128: 0 | V128: 96.85 | W128: 96.85 | X128: 0 | Y128: 96.85 | Z128: 96.85 | AA128: 0 | AB128: 96.85 | AC128: 96.85 | AD128: 0 | AE128: 96.85 | AF128: 96.85 | AG128: 0 | AH128: 96.85 | AI128: 96.85 | AJ128: 0 | AK128: 96.85 | AL128: 96.85 | AM128: 0 | AN128: 96.85 | AO128: 96.85 | AP128: 0 | AQ128: 96.85 | AR128: 96.85 | AS128: 0 | AT128: 96.85 | AU128: 96.85 | AV128: 0 | AW128: 96.85 | AX128: 96.85 | AY128: 0 | AZ128: 96.85 | BA128: 0.91 | BN128: =T128+U128 -> 96.85 | BO128: 50.75 | BP128: =W128+X128 -> 96.85 | BQ128: 57.44 | BR128: =+Z128+AA128 -> 96.85 | BS128: 60.77 | BT128: =+AC128+AD128 -> 96.85 | BU128: 63.28 | BV128: =+AH128 -> 96.85 | BW128: 58.68 | BX128: =+AK128 -> 96.85 | BY128: 58.36 | BZ128: =+AN128 -> 96.85 | CA128: 38.6 | CB128: =+AQ128 -> 96.85 | CC128: 41.8 | CD128: =+AT128 -> 96.85 | CE128: 53.13 | CF128: =+AW128 -> 96.85 | CG128: -12.96 | CH128: 96.85 | CI128: -66.95 | CK128: (ni podpore 2011/2) | CL128: (ni podpore 2011/2) | CM128: (ni podpore 2011/2) | CN128: (ni podpore 2011/2) | CO128: 0 | CP128: 6.69 | CQ128: 0 | CR128: 3.33 | CS128: 0 | CT128: 2.51 | CU128: 0 | CV128: -4.6 | CW128: 0 | CX128: -0.32 | CY128: 0 | CZ128: -19.76 | DA128: 0 | DB128: 3.2 | DC128: 0 | DD128: 11.33 | DE128: 0 | DF128: -66.09 | DG128: 0 | DH128: -53.99
A129: SE14-2013avg | B129: 3.1 Sončne elektrarne - na stavbah 2013 avgust | D129: velika - nad 10MW do vključno 125MW | E129: SE14 | T129: 86.2 | U129: 0 | V129: 86.2 | W129: 86.2 | X129: 0 | Y129: 86.2 | Z129: 86.2 | AA129: 0 | AB129: 86.2 | AC129: 86.2 | AD129: 0 | AE129: 86.2 | AF129: 86.2 | AG129: 0 | AH129: 86.2 | AI129: 86.2 | AJ129: 0 | AK129: 86.2 | AL129: 86.2 | AM129: 0 | AN129: 86.2 | AO129: 86.2 | AP129: 0 | AQ129: 86.2 | AR129: 86.2 | AS129: 0 | AT129: 86.2 | AU129: 86.2 | AV129: 0 | AW129: 86.2 | AX129: 86.2 | AY129: 0 | AZ129: 86.2 | BA129: 1 | BN129: (ni ZO) | BO129: 35.54 | BP129: (ni ZO) | BQ129: 42.89 | BR129: (ni ZO) | BS129: 46.55 | BT129: (ni ZO) | BU129: 49.31 | BV129: (ni ZO) | BW129: 44.26 | BX129: (ni ZO) | BY129: 43.9 | BZ129: (ni ZO) | CA129: 22.19 | CB129: (ni ZO) | CC129: 25.7 | CD129: (ni ZO) | CE129: 38.16 | CF129: (ni ZO) | CG129: -34.47 | CH129: (ni ZO) | CI129: -93.8 | CK129: (ni podpore 2011/2) | CL129: (ni podpore 2011/2) | CM129: (ni podpore 2011/2) | CN129: (ni podpore 2011/2) | CO129: (ni ZO) | CP129: 7.35 | CQ129: (ni ZO) | CR129: 3.66 | CS129: (ni ZO) | CT129: 2.76 | CU129: (ni ZO) | CV129: -5.05 | CW129: (ni ZO) | CX129: -0.36 | CY129: (ni ZO) | CZ129: -21.71 | DA129: (ni ZO) | DB129: 3.51 | DC129: (ni ZO) | DD129: 12.46 | DE129: (ni ZO) | DF129: -72.63 | DG129: (ni ZO) | DH129: -59.33
A130: SE21-2013avg | B130: 3.2 Sončne elektrarne - ostale 2013 avgust | D130: mikro - manjše od 50kW | E130: SE21 | T130: 119.91 | U130: 0 | V130: 119.91 | W130: 119.91 | X130: 0 | Y130: 119.91 | Z130: =+W130 -> 119.91 | AA130: =+X130 -> 0 | AB130: =+Z130+AA130 -> 119.91 | AC130: 119.91 | AD130: 0 | AE130: 119.91 | AF130: 119.91 | AG130: 0 | AH130: 119.91 | AI130: 119.91 | AJ130: 0 | AK130: 119.91 | AL130: 119.91 | AM130: 0 | AN130: 119.91 | AO130: 119.91 | AP130: 0 | AQ130: 119.91 | AR130: 119.91 | AS130: 0 | AT130: 119.91 | AU130: 119.91 | AV130: 0 | AW130: 119.91 | AX130: 119.91 | AY130: 0 | AZ130: 119.91 | BA130: 0.88 | BN130: =T130+U130 -> 119.91 | BO130: =ROUND((T130+U130)-BA130*$O$326,2) -> 75.33 | BP130: =W130+X130 -> 119.91 | BQ130: =ROUND((W130+X130)-BA130*$N$326,2) -> 81.8 | BR130: =+Z130+AA130 -> 119.91 | BS130: =ROUND((Z130+AA130)-BA130*$M$326,2) -> 85.02 | BT130: =+AC130+AD130 -> 119.91 | BU130: =ROUND((AC130+AD130)-BA130*$L$326,2) -> 87.45 | BV130: =+AH130 -> 119.91 | BW130: =ROUND(AH130-BA130*$K$326,2) -> 83 | BX130: =+AK130 -> 119.91 | BY130: =ROUND(AK130-BA130*$J$326,2) -> 82.69 | BZ130: =+AN130 -> 119.91 | CA130: =ROUND(AN130-BA130*$I$326,2) -> 63.58 | CB130: =+AQ130 -> 119.91 | CC130: =ROUND(AQ130-BA130*$H$326,2) -> 66.67 | CD130: =+AT130 -> 119.91 | CE130: =ROUND(AT130-BA130*$G$326,2) -> 77.63 | CF130: =+AW130 -> 119.91 | CG130: =ROUND(AW130-BA130*$F$326,2) -> 13.72 | CH130: =+AZ130 -> 119.91 | CI130: -38.49 | CK130: (ni podpore 2011/2) | CL130: (ni podpore 2011/2) | CM130: (ni podpore 2011/2) | CN130: (ni podpore 2011/2) | CO130: =BP130-BN130 -> 0 | CP130: 6.47 | CQ130: 0 | CR130: 3.22 | CS130: =BT130-BR130 -> 0 | CT130: =BU130-BS130 -> 2.43 | CU130: =BV130-BT130 -> 0 | CV130: =BW130-BU130 -> -4.45 | CW130: =BX130-BV130 -> 0 | CX130: =BY130-BW130 -> -0.31 | CY130: =BZ130-BX130 -> 0 | CZ130: =CA130-BY130 -> -19.11 | DA130: =CB130-BZ130 -> 0 | DB130: =CC130-CA130 -> 3.09 | DC130: =CD130-CB130 -> 0 | DD130: =CE130-CC130 -> 10.96 | DE130: =CF130-CD130 -> 0 | DF130: =CG130-CE130 -> -63.91 | DG130: =CH130-CF130 -> 0 | DH130: =CI130-CG130 -> -52.21
A131: SE22-2013avg | B131: 3.2 Sončne elektrarne - ostale 2013 avgust | D131: mala - manjše od 1MW | E131: SE22 | T131: 110.48 | U131: 0 | V131: 110.48 | W131: 110.48 | X131: 0 | Y131: 110.48 | Z131: 110.48 | AA131: 0 | AB131: 110.48 | AC131: =+Z131 -> 110.48 | AD131: =+AA131 -> 0 | AE131: =+AC131+AD131 -> 110.48 | AF131: =+AC131 -> 110.48 | AG131: =+AD131 -> 0 | AH131: =+AF131+AG131 -> 110.48 | AI131: =+AF131 -> 110.48 | AJ131: =+AG131 -> 0 | AK131: =+AI131+AJ131 -> 110.48 | AL131: =+AI131 -> 110.48 | AM131: =+AJ131 -> 0 | AN131: =+AL131+AM131 -> 110.48 | AO131: =+AL131 -> 110.48 | AP131: =+AM131 -> 0 | AQ131: =+AO131+AP131 -> 110.48 | AR131: =+AO131 -> 110.48 | AS131: =+AP131 -> 0 | AT131: =+AR131+AS131 -> 110.48 | AU131: =+AR131 -> 110.48 | AV131: =+AS131 -> 0 | AW131: =+AU131+AV131 -> 110.48 | AX131: =+AU131 -> 110.48 | AY131: =+AV131 -> 0 | AZ131: =+AX131+AY131 -> 110.48 | BA131: 0.88 | BN131: =T131+U131 -> 110.48 | BO131: 65.9 | BP131: =W131+X131 -> 110.48 | BQ131: 72.37 | BR131: =+Z131+AA131 -> 110.48 | BS131: 75.59 | BT131: =+AC131+AD131 -> 110.48 | BU131: 78.02 | BV131: =+AH131 -> 110.48 | BW131: 73.57 | BX131: =+AK131 -> 110.48 | BY131: 73.26 | BZ131: =+AN131 -> 110.48 | CA131: 54.15 | CB131: =+AQ131 -> 110.48 | CC131: 57.24 | CD131: =+AT131 -> 110.48 | CE131: 68.2 | CF131: =+AW131 -> 110.48 | CG131: 4.29 | CH131: 110.48 | CI131: -47.92 | CK131: (ni podpore 2011/2) | CL131: (ni podpore 2011/2) | CM131: (ni podpore 2011/2) | CN131: (ni podpore 2011/2) | CO131: 0 | CP131: 6.47 | CQ131: =BR131-BP131 -> 0 | CR131: =BS131-BQ131 -> 3.22 | CS131: 0 | CT131: 2.43 | CU131: 0 | CV131: -4.45 | CW131: 0 | CX131: -0.31 | CY131: 0 | CZ131: -19.11 | DA131: 0 | DB131: 3.09 | DC131: 0 | DD131: 10.96 | DE131: 0 | DF131: -63.91 | DG131: 0 | DH131: -52.21
A132: SE23-2013avg | B132: 3.2 Sončne elektrarne - ostale 2013 avgust | D132: srednja - od 1MW do vključno 10MW | E132: SE23 | T132: 89.07 | U132: 0 | V132: 89.07 | W132: 89.07 | X132: 0 | Y132: 89.07 | Z132: 89.07 | AA132: 0 | AB132: 89.07 | AC132: 89.07 | AD132: 0 | AE132: 89.07 | AF132: 89.07 | AG132: 0 | AH132: 89.07 | AI132: 89.07 | AJ132: 0 | AK132: 89.07 | AL132: 89.07 | AM132: 0 | AN132: 89.07 | AO132: 89.07 | AP132: 0 | AQ132: 89.07 | AR132: 89.07 | AS132: 0 | AT132: 89.07 | AU132: 89.07 | AV132: 0 | AW132: 89.07 | AX132: 89.07 | AY132: 0 | AZ132: 89.07 | BA132: 0.91 | BN132: =T132+U132 -> 89.07 | BO132: 42.97 | BP132: =W132+X132 -> 89.07 | BQ132: 49.66 | BR132: =+Z132+AA132 -> 89.07 | BS132: 52.99 | BT132: =+AC132+AD132 -> 89.07 | BU132: 55.5 | BV132: =+AH132 -> 89.07 | BW132: 50.9 | BX132: =+AK132 -> 89.07 | BY132: 50.58 | BZ132: =+AN132 -> 89.07 | CA132: 30.82 | CB132: =+AQ132 -> 89.07 | CC132: 34.02 | CD132: =+AT132 -> 89.07 | CE132: 45.35 | CF132: =+AW132 -> 89.07 | CG132: -20.74 | CH132: 89.07 | CI132: -74.73 | CK132: (ni podpore 2011/2) | CL132: (ni podpore 2011/2) | CM132: (ni podpore 2011/2) | CN132: (ni podpore 2011/2) | CO132: 0 | CP132: 6.69 | CQ132: 0 | CR132: 3.33 | CS132: 0 | CT132: 2.51 | CU132: 0 | CV132: -4.6 | CW132: 0 | CX132: -0.32 | CY132: 0 | CZ132: -19.76 | DA132: 0 | DB132: 3.2 | DC132: 0 | DD132: 11.33 | DE132: 0 | DF132: -66.09 | DG132: 0 | DH132: -53.99
A133: SE24-2013avg | B133: 3.2 Sončne elektrarne - ostale 2013 avgust | D133: velika - nad 10MW do vključno 125MW | E133: SE24 | T133: 82.69 | U133: 0 | V133: 82.69 | W133: 82.69 | X133: 0 | Y133: 82.69 | Z133: 82.69 | AA133: 0 | AB133: 82.69 | AC133: 82.69 | AD133: 0 | AE133: 82.69 | AF133: 82.69 | AG133: 0 | AH133: 82.69 | AI133: 82.69 | AJ133: 0 | AK133: 82.69 | AL133: 82.69 | AM133: 0 | AN133: 82.69 | AO133: 82.69 | AP133: 0 | AQ133: 82.69 | AR133: 82.69 | AS133: 0 | AT133: 82.69 | AU133: 82.69 | AV133: 0 | AW133: 82.69 | AX133: 82.69 | AY133: 0 | AZ133: 82.69 | BA133: 1 | BN133: (ni ZO) | BO133: 32.03 | BP133: (ni ZO) | BQ133: 39.38 | BR133: (ni ZO) | BS133: 43.04 | BT133: (ni ZO) | BU133: 45.8 | BV133: (ni ZO) | BW133: 40.75 | BX133: (ni ZO) | BY133: 40.39 | BZ133: (ni ZO) | CA133: 18.68 | CB133: (ni ZO) | CC133: 22.19 | CD133: (ni ZO) | CE133: 34.65 | CF133: (ni ZO) | CG133: -37.98 | CH133: (ni ZO) | CI133: -97.31 | CK133: (ni podpore 2011/2) | CL133: (ni podpore 2011/2) | CM133: (ni podpore 2011/2) | CN133: (ni podpore 2011/2) | CO133: (ni ZO) | CP133: 7.35 | CQ133: (ni ZO) | CR133: 3.66 | CS133: (ni ZO) | CT133: 2.76 | CU133: (ni ZO) | CV133: -5.05 | CW133: (ni ZO) | CX133: -0.36 | CY133: (ni ZO) | CZ133: -21.71 | DA133: (ni ZO) | DB133: 3.51 | DC133: (ni ZO) | DD133: 12.46 | DE133: (ni ZO) | DF133: -72.63 | DG133: (ni ZO) | DH133: -59.33
A134: SE11-2013sep | B134: 3.1 Sončne elektrarne - na stavbah 2013 september | D134: mikro - manjše od 50kW | E134: SE11 | T134: 125.07 | U134: 0 | V134: =T134+U134 -> 125.07 | W134: 125.07 | X134: 0 | Y134: 125.07 | Z134: 125.07 | AA134: 0 | AB134: 125.07 | AC134: 125.07 | AD134: 0 | AE134: 125.07 | AF134: 125.07 | AG134: 0 | AH134: 125.07 | AI134: 125.07 | AJ134: 0 | AK134: 125.07 | AL134: 125.07 | AM134: 0 | AN134: 125.07 | AO134: 125.07 | AP134: 0 | AQ134: 125.07 | AR134: 125.07 | AS134: 0 | AT134: 125.07 | AU134: 125.07 | AV134: 0 | AW134: 125.07 | AX134: 125.07 | AY134: 0 | AZ134: 125.07 | BA134: 0.88 | BN134: =T134+U134 -> 125.07 | BO134: 80.49 | BP134: =W134+X134 -> 125.07 | BQ134: 86.96 | BR134: =+Z134+AA134 -> 125.07 | BS134: 90.18 | BT134: =+AC134+AD134 -> 125.07 | BU134: 92.61 | BV134: =+AH134 -> 125.07 | BW134: 88.16 | BX134: =+AK134 -> 125.07 | BY134: 87.85 | BZ134: =+AN134 -> 125.07 | CA134: 68.74 | CB134: =+AQ134 -> 125.07 | CC134: 71.83 | CD134: =+AT134 -> 125.07 | CE134: 82.79 | CF134: =+AW134 -> 125.07 | CG134: 18.88 | CH134: =+AZ134 -> 125.07 | CI134: -33.33 | CK134: (ni podpore 2011/2) | CL134: (ni podpore 2011/2) | CM134: (ni podpore 2011/2) | CN134: (ni podpore 2011/2) | CO134: =BP134-BN134 -> 0 | CP134: 6.47 | CQ134: 0 | CR134: 3.22 | CS134: 0 | CT134: 2.43 | CU134: =BV134-BT134 -> 0 | CV134: -4.45 | CW134: =BX134-BV134 -> 0 | CX134: -0.31 | CY134: =BZ134-BX134 -> 0 | CZ134: -19.11 | DA134: =CB134-BZ134 -> 0 | DB134: 3.09 | DC134: =CD134-CB134 -> 0 | DD134: 10.96 | DE134: =CF134-CD134 -> 0 | DF134: -63.91 | DG134: =CH134-CF134 -> 0 | DH134: -52.21
A135: SE12-2013sep | B135: 3.1 Sončne elektrarne - na stavbah 2013 september | D135: mala - manjše od 1MW | E135: SE12 | T135: =ROUND(0.98*T127,2) -> 114.39 | U135: 0 | V135: 114.39 | W135: =ROUND(0.98*W127,2) -> 114.39 | X135: 0 | Y135: 114.39 | Z135: 114.39 | AA135: 0 | AB135: 114.39 | AC135: 114.39 | AD135: 0 | AE135: 114.39 | AF135: 114.39 | AG135: 0 | AH135: 114.39 | AI135: 114.39 | AJ135: 0 | AK135: 114.39 | AL135: 114.39 | AM135: 0 | AN135: 114.39 | AO135: 114.39 | AP135: 0 | AQ135: 114.39 | AR135: 114.39 | AS135: 0 | AT135: 114.39 | AU135: 114.39 | AV135: 0 | AW135: 114.39 | AX135: 114.39 | AY135: 0 | AZ135: 114.39 | BA135: 0.88 | BN135: =T135+U135 -> 114.39 | BO135: 69.81 | BP135: =W135+X135 -> 114.39 | BQ135: 76.28 | BR135: =+Z135+AA135 -> 114.39 | BS135: 79.5 | BT135: =+AC135+AD135 -> 114.39 | BU135: 81.93 | BV135: =+AH135 -> 114.39 | BW135: 77.48 | BX135: =+AK135 -> 114.39 | BY135: 77.17 | BZ135: =+AN135 -> 114.39 | CA135: 58.06 | CB135: =+AQ135 -> 114.39 | CC135: 61.15 | CD135: =+AT135 -> 114.39 | CE135: 72.11 | CF135: =+AW135 -> 114.39 | CG135: 8.2 | CH135: 114.39 | CI135: -44.01 | CK135: (ni podpore 2011/2) | CL135: (ni podpore 2011/2) | CM135: (ni podpore 2011/2) | CN135: (ni podpore 2011/2) | CO135: 0 | CP135: 6.47 | CQ135: 0 | CR135: 3.22 | CS135: 0 | CT135: 2.43 | CU135: 0 | CV135: -4.45 | CW135: 0 | CX135: -0.31 | CY135: 0 | CZ135: -19.11 | DA135: 0 | DB135: 3.09 | DC135: 0 | DD135: 10.96 | DE135: 0 | DF135: -63.91 | DG135: 0 | DH135: -52.21
A136: SE13-2013sep | B136: 3.1 Sončne elektrarne - na stavbah 2013 september | D136: srednja - od 1MW do vključno 10MW | E136: SE13 | T136: 94.91 | U136: 0 | V136: 94.91 | W136: 94.91 | X136: 0 | Y136: 94.91 | Z136: 94.91 | AA136: 0 | AB136: 94.91 | AC136: 94.91 | AD136: 0 | AE136: 94.91 | AF136: 94.91 | AG136: 0 | AH136: 94.91 | AI136: 94.91 | AJ136: 0 | AK136: 94.91 | AL136: 94.91 | AM136: 0 | AN136: 94.91 | AO136: 94.91 | AP136: 0 | AQ136: 94.91 | AR136: 94.91 | AS136: 0 | AT136: 94.91 | AU136: 94.91 | AV136: 0 | AW136: 94.91 | AX136: 94.91 | AY136: 0 | AZ136: 94.91 | BA136: 0.91 | BN136: =T136+U136 -> 94.91 | BO136: 48.81 | BP136: =W136+X136 -> 94.91 | BQ136: 55.5 | BR136: =+Z136+AA136 -> 94.91 | BS136: 58.83 | BT136: =+AC136+AD136 -> 94.91 | BU136: 61.34 | BV136: =+AH136 -> 94.91 | BW136: 56.74 | BX136: =+AK136 -> 94.91 | BY136: 56.42 | BZ136: =+AN136 -> 94.91 | CA136: 36.66 | CB136: =+AQ136 -> 94.91 | CC136: 39.86 | CD136: =+AT136 -> 94.91 | CE136: 51.19 | CF136: =+AW136 -> 94.91 | CG136: -14.9 | CH136: 94.91 | CI136: -68.89 | CK136: (ni podpore 2011/2) | CL136: (ni podpore 2011/2) | CM136: (ni podpore 2011/2) | CN136: (ni podpore 2011/2) | CO136: 0 | CP136: 6.69 | CQ136: 0 | CR136: 3.33 | CS136: 0 | CT136: 2.51 | CU136: 0 | CV136: -4.6 | CW136: 0 | CX136: -0.32 | CY136: 0 | CZ136: -19.76 | DA136: 0 | DB136: 3.2 | DC136: 0 | DD136: 11.33 | DE136: 0 | DF136: -66.09 | DG136: 0 | DH136: -53.99
A137: SE14-2013sep | B137: 3.1 Sončne elektrarne - na stavbah 2013 september | D137: velika - nad 10MW do vključno 125MW | E137: SE14 | T137: 84.48 | U137: 0 | V137: 84.48 | W137: 84.48 | X137: 0 | Y137: 84.48 | Z137: 84.48 | AA137: 0 | AB137: 84.48 | AC137: 84.48 | AD137: 0 | AE137: 84.48 | AF137: 84.48 | AG137: 0 | AH137: 84.48 | AI137: 84.48 | AJ137: 0 | AK137: 84.48 | AL137: 84.48 | AM137: 0 | AN137: 84.48 | AO137: 84.48 | AP137: 0 | AQ137: 84.48 | AR137: 84.48 | AS137: 0 | AT137: 84.48 | AU137: 84.48 | AV137: 0 | AW137: 84.48 | AX137: 84.48 | AY137: 0 | AZ137: 84.48 | BA137: 1 | BN137: (ni ZO) | BO137: 33.82 | BP137: (ni ZO) | BQ137: 41.17 | BR137: (ni ZO) | BS137: 44.83 | BT137: (ni ZO) | BU137: 47.59 | BV137: (ni ZO) | BW137: 42.54 | BX137: (ni ZO) | BY137: 42.18 | BZ137: (ni ZO) | CA137: 20.47 | CB137: (ni ZO) | CC137: 23.98 | CD137: (ni ZO) | CE137: 36.44 | CF137: (ni ZO) | CG137: -36.19 | CH137: (ni ZO) | CI137: -95.52 | CK137: (ni podpore 2011/2) | CL137: (ni podpore 2011/2) | CM137: (ni podpore 2011/2) | CN137: (ni podpore 2011/2) | CO137: (ni ZO) | CP137: 7.35 | CQ137: (ni ZO) | CR137: 3.66 | CS137: (ni ZO) | CT137: 2.76 | CU137: (ni ZO) | CV137: -5.05 | CW137: (ni ZO) | CX137: -0.36 | CY137: (ni ZO) | CZ137: -21.71 | DA137: (ni ZO) | DB137: 3.51 | DC137: (ni ZO) | DD137: 12.46 | DE137: (ni ZO) | DF137: -72.63 | DG137: (ni ZO) | DH137: -59.33
A138: SE21-2013sep | B138: 3.2 Sončne elektrarne - ostale 2013 september | D138: mikro - manjše od 50kW | E138: SE21 | T138: 117.51 | U138: 0 | V138: 117.51 | W138: 117.51 | X138: 0 | Y138: 117.51 | Z138: 117.51 | AA138: 0 | AB138: 117.51 | AC138: 117.51 | AD138: 0 | AE138: 117.51 | AF138: 117.51 | AG138: 0 | AH138: 117.51 | AI138: 117.51 | AJ138: 0 | AK138: 117.51 | AL138: 117.51 | AM138: 0 | AN138: 117.51 | AO138: 117.51 | AP138: 0 | AQ138: 117.51 | AR138: 117.51 | AS138: 0 | AT138: 117.51 | AU138: 117.51 | AV138: 0 | AW138: 117.51 | AX138: 117.51 | AY138: 0 | AZ138: 117.51 | BA138: 0.88 | BN138: =T138+U138 -> 117.51 | BO138: 72.93 | BP138: =W138+X138 -> 117.51 | BQ138: 79.4 | BR138: =+Z138+AA138 -> 117.51 | BS138: 82.62 | BT138: =+AC138+AD138 -> 117.51 | BU138: 85.05 | BV138: =+AH138 -> 117.51 | BW138: 80.6 | BX138: =+AK138 -> 117.51 | BY138: 80.29 | BZ138: =+AN138 -> 117.51 | CA138: 61.18 | CB138: =+AQ138 -> 117.51 | CC138: 64.27 | CD138: =+AT138 -> 117.51 | CE138: 75.23 | CF138: =+AW138 -> 117.51 | CG138: 11.32 | CH138: =+AZ138 -> 117.51 | CI138: -40.89 | CK138: (ni podpore 2011/2) | CL138: (ni podpore 2011/2) | CM138: (ni podpore 2011/2) | CN138: (ni podpore 2011/2) | CO138: =BP138-BN138 -> 0 | CP138: 6.47 | CQ138: 0 | CR138: 3.22 | CS138: 0 | CT138: 2.43 | CU138: =BV138-BT138 -> 0 | CV138: -4.45 | CW138: =BX138-BV138 -> 0 | CX138: -0.31 | CY138: =BZ138-BX138 -> 0 | CZ138: -19.11 | DA138: =CB138-BZ138 -> 0 | DB138: 3.09 | DC138: =CD138-CB138 -> 0 | DD138: 10.96 | DE138: =CF138-CD138 -> 0 | DF138: -63.91 | DG138: =CH138-CF138 -> 0 | DH138: -52.21
A139: SE22-2013sep | B139: 3.2 Sončne elektrarne - ostale 2013 september | D139: mala - manjše od 1MW | E139: SE22 | T139: 108.27 | U139: 0 | V139: 108.27 | W139: 108.27 | X139: 0 | Y139: 108.27 | Z139: 108.27 | AA139: 0 | AB139: 108.27 | AC139: 108.27 | AD139: 0 | AE139: 108.27 | AF139: 108.27 | AG139: 0 | AH139: 108.27 | AI139: 108.27 | AJ139: 0 | AK139: 108.27 | AL139: 108.27 | AM139: 0 | AN139: 108.27 | AO139: 108.27 | AP139: 0 | AQ139: 108.27 | AR139: 108.27 | AS139: 0 | AT139: 108.27 | AU139: 108.27 | AV139: 0 | AW139: 108.27 | AX139: 108.27 | AY139: 0 | AZ139: 108.27 | BA139: 0.88 | BN139: =T139+U139 -> 108.27 | BO139: 63.69 | BP139: =W139+X139 -> 108.27 | BQ139: 70.16 | BR139: =+Z139+AA139 -> 108.27 | BS139: 73.38 | BT139: =+AC139+AD139 -> 108.27 | BU139: 75.81 | BV139: =+AH139 -> 108.27 | BW139: 71.36 | BX139: =+AK139 -> 108.27 | BY139: 71.05 | BZ139: =+AN139 -> 108.27 | CA139: 51.94 | CB139: =+AQ139 -> 108.27 | CC139: 55.03 | CD139: =+AT139 -> 108.27 | CE139: 65.99 | CF139: =+AW139 -> 108.27 | CG139: 2.08 | CH139: 108.27 | CI139: -50.13 | CK139: (ni podpore 2011/2) | CL139: (ni podpore 2011/2) | CM139: (ni podpore 2011/2) | CN139: (ni podpore 2011/2) | CO139: 0 | CP139: 6.47 | CQ139: 0 | CR139: 3.22 | CS139: 0 | CT139: 2.43 | CU139: 0 | CV139: -4.45 | CW139: 0 | CX139: -0.31 | CY139: 0 | CZ139: -19.11 | DA139: 0 | DB139: 3.09 | DC139: 0 | DD139: 10.96 | DE139: 0 | DF139: -63.91 | DG139: 0 | DH139: -52.21
A140: SE23-2013sep | B140: 3.2 Sončne elektrarne - ostale 2013 september | D140: srednja - od 1MW do vključno 10MW | E140: SE23 | T140: 87.29 | U140: 0 | V140: 87.29 | W140: 87.29 | X140: 0 | Y140: 87.29 | Z140: 87.29 | AA140: 0 | AB140: 87.29 | AC140: 87.29 | AD140: 0 | AE140: 87.29 | AF140: 87.29 | AG140: 0 | AH140: 87.29 | AI140: 87.29 | AJ140: 0 | AK140: 87.29 | AL140: 87.29 | AM140: 0 | AN140: 87.29 | AO140: 87.29 | AP140: 0 | AQ140: 87.29 | AR140: 87.29 | AS140: 0 | AT140: 87.29 | AU140: 87.29 | AV140: 0 | AW140: 87.29 | AX140: 87.29 | AY140: 0 | AZ140: 87.29 | BA140: 0.91 | BN140: =T140+U140 -> 87.29 | BO140: 41.19 | BP140: =W140+X140 -> 87.29 | BQ140: 47.88 | BR140: =+Z140+AA140 -> 87.29 | BS140: 51.21 | BT140: =+AC140+AD140 -> 87.29 | BU140: 53.72 | BV140: =+AH140 -> 87.29 | BW140: 49.12 | BX140: =+AK140 -> 87.29 | BY140: 48.8 | BZ140: =+AN140 -> 87.29 | CA140: 29.04 | CB140: =+AQ140 -> 87.29 | CC140: 32.24 | CD140: =+AT140 -> 87.29 | CE140: 43.57 | CF140: =+AW140 -> 87.29 | CG140: -22.52 | CH140: 87.29 | CI140: -76.51 | CK140: (ni podpore 2011/2) | CL140: (ni podpore 2011/2) | CM140: (ni podpore 2011/2) | CN140: (ni podpore 2011/2) | CO140: 0 | CP140: 6.69 | CQ140: 0 | CR140: 3.33 | CS140: 0 | CT140: 2.51 | CU140: 0 | CV140: -4.6 | CW140: 0 | CX140: -0.32 | CY140: 0 | CZ140: -19.76 | DA140: 0 | DB140: 3.2 | DC140: 0 | DD140: 11.33 | DE140: 0 | DF140: -66.09 | DG140: 0 | DH140: -53.99
A141: SE24-2013sep | B141: 3.2 Sončne elektrarne - ostale 2013 september | D141: velika - nad 10MW do vključno 125MW | E141: SE24 | T141: 81.04 | U141: 0 | V141: 81.04 | W141: 81.04 | X141: 0 | Y141: 81.04 | Z141: 81.04 | AA141: 0 | AB141: 81.04 | AC141: 81.04 | AD141: 0 | AE141: 81.04 | AF141: 81.04 | AG141: 0 | AH141: 81.04 | AI141: 81.04 | AJ141: 0 | AK141: 81.04 | AL141: 81.04 | AM141: 0 | AN141: 81.04 | AO141: 81.04 | AP141: 0 | AQ141: 81.04 | AR141: 81.04 | AS141: 0 | AT141: 81.04 | AU141: 81.04 | AV141: 0 | AW141: 81.04 | AX141: 81.04 | AY141: 0 | AZ141: 81.04 | BA141: 1 | BN141: (ni ZO) | BO141: 30.38 | BP141: (ni ZO) | BQ141: 37.73 | BR141: (ni ZO) | BS141: 41.39 | BT141: (ni ZO) | BU141: 44.15 | BV141: (ni ZO) | BW141: 39.1 | BX141: (ni ZO) | BY141: 38.74 | BZ141: (ni ZO) | CA141: 17.03 | CB141: (ni ZO) | CC141: 20.54 | CD141: (ni ZO) | CE141: 33 | CF141: (ni ZO) | CG141: -39.63 | CH141: (ni ZO) | CI141: -98.96 | CK141: (ni podpore 2011/2) | CL141: (ni podpore 2011/2) | CM141: (ni podpore 2011/2) | CN141: (ni podpore 2011/2) | CO141: (ni ZO) | CP141: 7.35 | CQ141: (ni ZO) | CR141: 3.66 | CS141: (ni ZO) | CT141: 2.76 | CU141: (ni ZO) | CV141: -5.05 | CW141: (ni ZO) | CX141: -0.36 | CY141: (ni ZO) | CZ141: -21.71 | DA141: (ni ZO) | DB141: 3.51 | DC141: (ni ZO) | DD141: 12.46 | DE141: (ni ZO) | DF141: -72.63 | DG141: (ni ZO) | DH141: -59.33
A142: SE11-2013okt | B142: 3.1 Sončne elektrarne - na stavbah 2013 oktober | D142: mikro - manjše od 50kW | E142: SE11 | T142: 122.57 | U142: 0 | V142: 122.57 | W142: 122.57 | X142: 0 | Y142: 122.57 | Z142: 122.57 | AA142: 0 | AB142: 122.57 | AC142: 122.57 | AD142: 0 | AE142: 122.57 | AF142: 122.57 | AG142: 0 | AH142: 122.57 | AI142: 122.57 | AJ142: 0 | AK142: 122.57 | AL142: 122.57 | AM142: 0 | AN142: 122.57 | AO142: 122.57 | AP142: 0 | AQ142: 122.57 | AR142: 122.57 | AS142: 0 | AT142: 122.57 | AU142: 122.57 | AV142: 0 | AW142: 122.57 | AX142: 122.57 | AY142: 0 | AZ142: 122.57 | BA142: 0.88 | BN142: =T142+U142 -> 122.57 | BO142: 77.99 | BP142: =W142+X142 -> 122.57 | BQ142: 84.46 | BR142: =+Z142+AA142 -> 122.57 | BS142: 87.68 | BT142: =+AC142+AD142 -> 122.57 | BU142: 90.11 | BV142: =+AH142 -> 122.57 | BW142: 85.66 | BX142: =+AK142 -> 122.57 | BY142: 85.35 | BZ142: =+AN142 -> 122.57 | CA142: 66.24 | CB142: =+AQ142 -> 122.57 | CC142: 69.33 | CD142: =+AT142 -> 122.57 | CE142: 80.29 | CF142: =+AW142 -> 122.57 | CG142: 16.38 | CH142: =+AZ142 -> 122.57 | CI142: -35.83 | CK142: (ni podpore 2011/2) | CL142: (ni podpore 2011/2) | CM142: (ni podpore 2011/2) | CN142: (ni podpore 2011/2) | CO142: =BP142-BN142 -> 0 | CP142: 6.47 | CQ142: 0 | CR142: 3.22 | CS142: 0 | CT142: 2.43 | CU142: =BV142-BT142 -> 0 | CV142: -4.45 | CW142: =BX142-BV142 -> 0 | CX142: -0.31 | CY142: =BZ142-BX142 -> 0 | CZ142: -19.11 | DA142: =CB142-BZ142 -> 0 | DB142: 3.09 | DC142: =CD142-CB142 -> 0 | DD142: 10.96 | DE142: =CF142-CD142 -> 0 | DF142: -63.91 | DG142: =CH142-CF142 -> 0 | DH142: -52.21
A143: SE12-2013okt | B143: 3.1 Sončne elektrarne - na stavbah 2013 oktober | D143: mala - manjše od 1MW | E143: SE12 | T143: 112.1 | U143: 0 | V143: 112.1 | W143: 112.1 | X143: 0 | Y143: 112.1 | Z143: 112.1 | AA143: 0 | AB143: 112.1 | AC143: 112.1 | AD143: 0 | AE143: 112.1 | AF143: 112.1 | AG143: 0 | AH143: 112.1 | AI143: 112.1 | AJ143: 0 | AK143: 112.1 | AL143: 112.1 | AM143: 0 | AN143: 112.1 | AO143: 112.1 | AP143: 0 | AQ143: 112.1 | AR143: 112.1 | AS143: 0 | AT143: 112.1 | AU143: 112.1 | AV143: 0 | AW143: 112.1 | AX143: 112.1 | AY143: 0 | AZ143: 112.1 | BA143: 0.88 | BN143: =T143+U143 -> 112.1 | BO143: 67.52 | BP143: =W143+X143 -> 112.1 | BQ143: 73.99 | BR143: =+Z143+AA143 -> 112.1 | BS143: 77.21 | BT143: =+AC143+AD143 -> 112.1 | BU143: 79.64 | BV143: =+AH143 -> 112.1 | BW143: 75.19 | BX143: =+AK143 -> 112.1 | BY143: 74.88 | BZ143: =+AN143 -> 112.1 | CA143: 55.77 | CB143: =+AQ143 -> 112.1 | CC143: 58.86 | CD143: =+AT143 -> 112.1 | CE143: 69.82 | CF143: =+AW143 -> 112.1 | CG143: 5.91 | CH143: 112.1 | CI143: -46.3 | CK143: (ni podpore 2011/2) | CL143: (ni podpore 2011/2) | CM143: (ni podpore 2011/2) | CN143: (ni podpore 2011/2) | CO143: 0 | CP143: 6.47 | CQ143: 0 | CR143: 3.22 | CS143: 0 | CT143: 2.43 | CU143: 0 | CV143: -4.45 | CW143: 0 | CX143: -0.31 | CY143: 0 | CZ143: -19.11 | DA143: 0 | DB143: 3.09 | DC143: 0 | DD143: 10.96 | DE143: 0 | DF143: -63.91 | DG143: 0 | DH143: -52.21
A144: SE13-2013okt | B144: 3.1 Sončne elektrarne - na stavbah 2013 oktober | D144: srednja - od 1MW do vključno 10MW | E144: SE13 | T144: 93.01 | U144: 0 | V144: 93.01 | W144: 93.01 | X144: 0 | Y144: 93.01 | Z144: 93.01 | AA144: 0 | AB144: 93.01 | AC144: 93.01 | AD144: 0 | AE144: 93.01 | AF144: 93.01 | AG144: 0 | AH144: 93.01 | AI144: 93.01 | AJ144: 0 | AK144: 93.01 | AL144: 93.01 | AM144: 0 | AN144: 93.01 | AO144: 93.01 | AP144: 0 | AQ144: 93.01 | AR144: 93.01 | AS144: 0 | AT144: 93.01 | AU144: 93.01 | AV144: 0 | AW144: 93.01 | AX144: 93.01 | AY144: 0 | AZ144: 93.01 | BA144: 0.91 | BN144: =T144+U144 -> 93.01 | BO144: 46.91 | BP144: =W144+X144 -> 93.01 | BQ144: 53.6 | BR144: =+Z144+AA144 -> 93.01 | BS144: 56.93 | BT144: =+AC144+AD144 -> 93.01 | BU144: 59.44 | BV144: =+AH144 -> 93.01 | BW144: 54.84 | BX144: =+AK144 -> 93.01 | BY144: 54.52 | BZ144: =+AN144 -> 93.01 | CA144: 34.76 | CB144: =+AQ144 -> 93.01 | CC144: 37.96 | CD144: =+AT144 -> 93.01 | CE144: 49.29 | CF144: =+AW144 -> 93.01 | CG144: -16.8 | CH144: 93.01 | CI144: -70.79 | CK144: (ni podpore 2011/2) | CL144: (ni podpore 2011/2) | CM144: (ni podpore 2011/2) | CN144: (ni podpore 2011/2) | CO144: 0 | CP144: 6.69 | CQ144: 0 | CR144: 3.33 | CS144: 0 | CT144: 2.51 | CU144: 0 | CV144: -4.6 | CW144: 0 | CX144: -0.32 | CY144: 0 | CZ144: -19.76 | DA144: 0 | DB144: 3.2 | DC144: 0 | DD144: 11.33 | DE144: 0 | DF144: -66.09 | DG144: 0 | DH144: -53.99
A145: SE14-2013okt | B145: 3.1 Sončne elektrarne - na stavbah 2013 oktober | D145: velika - nad 10MW do vključno 125MW | E145: SE14 | T145: 82.79 | U145: 0 | V145: 82.79 | W145: 82.79 | X145: 0 | Y145: 82.79 | Z145: 82.79 | AA145: 0 | AB145: 82.79 | AC145: 82.79 | AD145: 0 | AE145: 82.79 | AF145: 82.79 | AG145: 0 | AH145: 82.79 | AI145: 82.79 | AJ145: 0 | AK145: 82.79 | AL145: 82.79 | AM145: 0 | AN145: 82.79 | AO145: 82.79 | AP145: 0 | AQ145: 82.79 | AR145: 82.79 | AS145: 0 | AT145: 82.79 | AU145: 82.79 | AV145: 0 | AW145: 82.79 | AX145: 82.79 | AY145: 0 | AZ145: 82.79 | BA145: 1 | BN145: (ni ZO) | BO145: 32.13 | BP145: (ni ZO) | BQ145: 39.48 | BR145: (ni ZO) | BS145: 43.14 | BT145: (ni ZO) | BU145: 45.9 | BV145: (ni ZO) | BW145: 40.85 | BX145: (ni ZO) | BY145: 40.49 | BZ145: (ni ZO) | CA145: 18.78 | CB145: (ni ZO) | CC145: 22.29 | CD145: (ni ZO) | CE145: 34.75 | CF145: (ni ZO) | CG145: -37.88 | CH145: (ni ZO) | CI145: =ROUND(AZ145-BA145*$E$326,2) -> -97.21 | CK145: (ni podpore 2011/2) | CL145: (ni podpore 2011/2) | CM145: (ni podpore 2011/2) | CN145: (ni podpore 2011/2) | CO145: (ni ZO) | CP145: 7.35 | CQ145: (ni ZO) | CR145: 3.66 | CS145: (ni ZO) | CT145: 2.76 | CU145: (ni ZO) | CV145: -5.05 | CW145: (ni ZO) | CX145: -0.36 | CY145: (ni ZO) | CZ145: -21.71 | DA145: (ni ZO) | DB145: 3.51 | DC145: (ni ZO) | DD145: 12.46 | DE145: (ni ZO) | DF145: -72.63 | DG145: (ni ZO) | DH145: -59.33
A146: SE21-2013okt | B146: 3.2 Sončne elektrarne - ostale 2013 oktober | D146: mikro - manjše od 50kW | E146: SE21 | T146: 115.16 | U146: 0 | V146: 115.16 | W146: 115.16 | X146: 0 | Y146: 115.16 | Z146: 115.16 | AA146: 0 | AB146: 115.16 | AC146: 115.16 | AD146: 0 | AE146: 115.16 | AF146: 115.16 | AG146: 0 | AH146: 115.16 | AI146: 115.16 | AJ146: 0 | AK146: 115.16 | AL146: 115.16 | AM146: 0 | AN146: 115.16 | AO146: 115.16 | AP146: 0 | AQ146: 115.16 | AR146: 115.16 | AS146: 0 | AT146: 115.16 | AU146: 115.16 | AV146: 0 | AW146: 115.16 | AX146: 115.16 | AY146: 0 | AZ146: 115.16 | BA146: 0.88 | BN146: =T146+U146 -> 115.16 | BO146: 70.58 | BP146: =W146+X146 -> 115.16 | BQ146: 77.05 | BR146: =+Z146+AA146 -> 115.16 | BS146: 80.27 | BT146: =+AC146+AD146 -> 115.16 | BU146: 82.7 | BV146: =+AH146 -> 115.16 | BW146: 78.25 | BX146: =+AK146 -> 115.16 | BY146: 77.94 | BZ146: =+AN146 -> 115.16 | CA146: 58.83 | CB146: =+AQ146 -> 115.16 | CC146: 61.92 | CD146: =+AT146 -> 115.16 | CE146: 72.88 | CF146: =+AW146 -> 115.16 | CG146: 8.97 | CH146: =+AZ146 -> 115.16 | CI146: -43.24 | CK146: (ni podpore 2011/2) | CL146: (ni podpore 2011/2) | CM146: (ni podpore 2011/2) | CN146: (ni podpore 2011/2) | CO146: =BP146-BN146 -> 0 | CP146: 6.47 | CQ146: 0 | CR146: 3.22 | CS146: 0 | CT146: 2.43 | CU146: =BV146-BT146 -> 0 | CV146: -4.45 | CW146: =BX146-BV146 -> 0 | CX146: -0.31 | CY146: =BZ146-BX146 -> 0 | CZ146: -19.11 | DA146: =CB146-BZ146 -> 0 | DB146: 3.09 | DC146: =CD146-CB146 -> 0 | DD146: 10.96 | DE146: =CF146-CD146 -> 0 | DF146: -63.91 | DG146: =CH146-CF146 -> 0 | DH146: -52.21
A147: SE22-2013okt | B147: 3.2 Sončne elektrarne - ostale 2013 oktober | D147: mala - manjše od 1MW | E147: SE22 | T147: 106.1 | U147: 0 | V147: 106.1 | W147: 106.1 | X147: 0 | Y147: 106.1 | Z147: 106.1 | AA147: 0 | AB147: 106.1 | AC147: 106.1 | AD147: 0 | AE147: 106.1 | AF147: 106.1 | AG147: 0 | AH147: 106.1 | AI147: 106.1 | AJ147: 0 | AK147: 106.1 | AL147: 106.1 | AM147: 0 | AN147: 106.1 | AO147: 106.1 | AP147: 0 | AQ147: 106.1 | AR147: 106.1 | AS147: 0 | AT147: 106.1 | AU147: 106.1 | AV147: 0 | AW147: 106.1 | AX147: 106.1 | AY147: 0 | AZ147: 106.1 | BA147: 0.88 | BN147: =T147+U147 -> 106.1 | BO147: 61.52 | BP147: =W147+X147 -> 106.1 | BQ147: 67.99 | BR147: =+Z147+AA147 -> 106.1 | BS147: 71.21 | BT147: =+AC147+AD147 -> 106.1 | BU147: 73.64 | BV147: =+AH147 -> 106.1 | BW147: 69.19 | BX147: =+AK147 -> 106.1 | BY147: 68.88 | BZ147: =+AN147 -> 106.1 | CA147: 49.77 | CB147: =+AQ147 -> 106.1 | CC147: 52.86 | CD147: =+AT147 -> 106.1 | CE147: 63.82 | CF147: =+AW147 -> 106.1 | CG147: -0.09 | CH147: 106.1 | CI147: -52.3 | CK147: (ni podpore 2011/2) | CL147: (ni podpore 2011/2) | CM147: (ni podpore 2011/2) | CN147: (ni podpore 2011/2) | CO147: 0 | CP147: 6.47 | CQ147: 0 | CR147: 3.22 | CS147: 0 | CT147: 2.43 | CU147: 0 | CV147: -4.45 | CW147: 0 | CX147: -0.31 | CY147: 0 | CZ147: -19.11 | DA147: 0 | DB147: 3.09 | DC147: 0 | DD147: 10.96 | DE147: 0 | DF147: -63.91 | DG147: 0 | DH147: -52.21
A148: SE23-2013okt | B148: 3.2 Sončne elektrarne - ostale 2013 oktober | D148: srednja - od 1MW do vključno 10MW | E148: SE23 | T148: 85.54 | U148: 0 | V148: 85.54 | W148: 85.54 | X148: 0 | Y148: 85.54 | Z148: 85.54 | AA148: 0 | AB148: 85.54 | AC148: 85.54 | AD148: 0 | AE148: 85.54 | AF148: 85.54 | AG148: 0 | AH148: 85.54 | AI148: 85.54 | AJ148: 0 | AK148: 85.54 | AL148: 85.54 | AM148: 0 | AN148: 85.54 | AO148: 85.54 | AP148: 0 | AQ148: 85.54 | AR148: 85.54 | AS148: 0 | AT148: 85.54 | AU148: 85.54 | AV148: 0 | AW148: 85.54 | AX148: 85.54 | AY148: 0 | AZ148: 85.54 | BA148: 0.91 | BN148: =T148+U148 -> 85.54 | BO148: 39.44 | BP148: =W148+X148 -> 85.54 | BQ148: 46.13 | BR148: =+Z148+AA148 -> 85.54 | BS148: 49.46 | BT148: =+AC148+AD148 -> 85.54 | BU148: 51.97 | BV148: =+AH148 -> 85.54 | BW148: 47.37 | BX148: =+AK148 -> 85.54 | BY148: 47.05 | BZ148: =+AN148 -> 85.54 | CA148: 27.29 | CB148: =+AQ148 -> 85.54 | CC148: 30.49 | CD148: =+AT148 -> 85.54 | CE148: 41.82 | CF148: =+AW148 -> 85.54 | CG148: -24.27 | CH148: 85.54 | CI148: -78.26 | CK148: (ni podpore 2011/2) | CL148: (ni podpore 2011/2) | CM148: (ni podpore 2011/2) | CN148: (ni podpore 2011/2) | CO148: 0 | CP148: 6.69 | CQ148: 0 | CR148: 3.33 | CS148: 0 | CT148: 2.51 | CU148: 0 | CV148: -4.6 | CW148: 0 | CX148: -0.32 | CY148: 0 | CZ148: -19.76 | DA148: 0 | DB148: 3.2 | DC148: 0 | DD148: 11.33 | DE148: 0 | DF148: -66.09 | DG148: 0 | DH148: -53.99
A149: SE24-2013okt | B149: 3.2 Sončne elektrarne - ostale 2013 oktober | D149: velika - nad 10MW do vključno 125MW | E149: SE24 | T149: 79.42 | U149: 0 | V149: 79.42 | W149: 79.42 | X149: 0 | Y149: 79.42 | Z149: 79.42 | AA149: 0 | AB149: 79.42 | AC149: 79.42 | AD149: 0 | AE149: 79.42 | AF149: 79.42 | AG149: 0 | AH149: 79.42 | AI149: 79.42 | AJ149: 0 | AK149: 79.42 | AL149: 79.42 | AM149: 0 | AN149: 79.42 | AO149: 79.42 | AP149: 0 | AQ149: 79.42 | AR149: 79.42 | AS149: 0 | AT149: 79.42 | AU149: 79.42 | AV149: 0 | AW149: 79.42 | AX149: 79.42 | AY149: 0 | AZ149: 79.42 | BA149: 1 | BN149: (ni ZO) | BO149: 28.76 | BP149: (ni ZO) | BQ149: 36.11 | BR149: (ni ZO) | BS149: 39.77 | BT149: (ni ZO) | BU149: 42.53 | BV149: (ni ZO) | BW149: 37.48 | BX149: (ni ZO) | BY149: 37.12 | BZ149: (ni ZO) | CA149: 15.41 | CB149: (ni ZO) | CC149: 18.92 | CD149: (ni ZO) | CE149: 31.38 | CF149: (ni ZO) | CG149: -41.25 | CH149: (ni ZO) | CI149: -100.58 | CK149: (ni podpore 2011/2) | CL149: (ni podpore 2011/2) | CM149: (ni podpore 2011/2) | CN149: (ni podpore 2011/2) | CO149: (ni ZO) | CP149: 7.35 | CQ149: (ni ZO) | CR149: 3.66 | CS149: (ni ZO) | CT149: 2.76 | CU149: (ni ZO) | CV149: -5.05 | CW149: (ni ZO) | CX149: -0.36 | CY149: (ni ZO) | CZ149: -21.71 | DA149: (ni ZO) | DB149: 3.51 | DC149: (ni ZO) | DD149: 12.46 | DE149: (ni ZO) | DF149: -72.63 | DG149: (ni ZO) | DH149: -59.33
A150: SE11-2013nov | B150: 3.1 Sončne elektrarne - na stavbah 2013 november | D150: mikro - manjše od 50kW | E150: SE11 | T150: 120.12 | U150: 0 | V150: 120.12 | W150: 120.12 | X150: 0 | Y150: 120.12 | Z150: 120.12 | AA150: 0 | AB150: 120.12 | AC150: 120.12 | AD150: 0 | AE150: 120.12 | AF150: 120.12 | AG150: 0 | AH150: 120.12 | AI150: 120.12 | AJ150: 0 | AK150: 120.12 | AL150: 120.12 | AM150: 0 | AN150: 120.12 | AO150: 120.12 | AP150: 0 | AQ150: 120.12 | AR150: 120.12 | AS150: 0 | AT150: 120.12 | AU150: 120.12 | AV150: 0 | AW150: 120.12 | AX150: 120.12 | AY150: 0 | AZ150: 120.12 | BA150: 0.88 | BN150: =T150+U150 -> 120.12 | BO150: 75.54 | BP150: =W150+X150 -> 120.12 | BQ150: 82.01 | BR150: =+Z150+AA150 -> 120.12 | BS150: 85.23 | BT150: =+AC150+AD150 -> 120.12 | BU150: 87.66 | BV150: =+AH150 -> 120.12 | BW150: 83.21 | BX150: =+AK150 -> 120.12 | BY150: 82.9 | BZ150: =+AN150 -> 120.12 | CA150: 63.79 | CB150: =+AQ150 -> 120.12 | CC150: 66.88 | CD150: =+AT150 -> 120.12 | CE150: 77.84 | CF150: =+AW150 -> 120.12 | CG150: 13.93 | CH150: =+AZ150 -> 120.12 | CI150: -38.28 | CK150: (ni podpore 2011/2) | CL150: (ni podpore 2011/2) | CM150: (ni podpore 2011/2) | CN150: (ni podpore 2011/2) | CO150: =BP150-BN150 -> 0 | CP150: 6.47 | CQ150: 0 | CR150: 3.22 | CS150: 0 | CT150: 2.43 | CU150: =BV150-BT150 -> 0 | CV150: -4.45 | CW150: =BX150-BV150 -> 0 | CX150: -0.31 | CY150: =BZ150-BX150 -> 0 | CZ150: -19.11 | DA150: =CB150-BZ150 -> 0 | DB150: 3.09 | DC150: =CD150-CB150 -> 0 | DD150: 10.96 | DE150: =CF150-CD150 -> 0 | DF150: -63.91 | DG150: =CH150-CF150 -> 0 | DH150: -52.21
A151: SE12-2013nov | B151: 3.1 Sončne elektrarne - na stavbah 2013 november | D151: mala - manjše od 1MW | E151: SE12 | T151: 109.86 | U151: 0 | V151: 109.86 | W151: 109.86 | X151: 0 | Y151: 109.86 | Z151: 109.86 | AA151: 0 | AB151: 109.86 | AC151: 109.86 | AD151: 0 | AE151: 109.86 | AF151: 109.86 | AG151: 0 | AH151: 109.86 | AI151: 109.86 | AJ151: 0 | AK151: 109.86 | AL151: 109.86 | AM151: 0 | AN151: 109.86 | AO151: 109.86 | AP151: 0 | AQ151: 109.86 | AR151: 109.86 | AS151: 0 | AT151: 109.86 | AU151: 109.86 | AV151: 0 | AW151: 109.86 | AX151: 109.86 | AY151: 0 | AZ151: 109.86 | BA151: 0.88 | BN151: =T151+U151 -> 109.86 | BO151: 65.28 | BP151: =W151+X151 -> 109.86 | BQ151: 71.75 | BR151: =+Z151+AA151 -> 109.86 | BS151: 74.97 | BT151: =+AC151+AD151 -> 109.86 | BU151: 77.4 | BV151: =+AH151 -> 109.86 | BW151: 72.95 | BX151: =+AK151 -> 109.86 | BY151: 72.64 | BZ151: =+AN151 -> 109.86 | CA151: 53.53 | CB151: =+AQ151 -> 109.86 | CC151: 56.62 | CD151: =+AT151 -> 109.86 | CE151: 67.58 | CF151: =+AW151 -> 109.86 | CG151: 3.67 | CH151: 109.86 | CI151: -48.54 | CK151: (ni podpore 2011/2) | CL151: (ni podpore 2011/2) | CM151: (ni podpore 2011/2) | CN151: (ni podpore 2011/2) | CO151: 0 | CP151: 6.47 | CQ151: 0 | CR151: 3.22 | CS151: 0 | CT151: 2.43 | CU151: 0 | CV151: -4.45 | CW151: 0 | CX151: -0.31 | CY151: 0 | CZ151: -19.11 | DA151: 0 | DB151: 3.09 | DC151: 0 | DD151: 10.96 | DE151: 0 | DF151: -63.91 | DG151: 0 | DH151: -52.21
A152: SE13-2013nov | B152: 3.1 Sončne elektrarne - na stavbah 2013 november | D152: srednja - od 1MW do vključno 10MW | E152: SE13 | T152: 91.15 | U152: 0 | V152: 91.15 | W152: 91.15 | X152: 0 | Y152: 91.15 | Z152: 91.15 | AA152: 0 | AB152: 91.15 | AC152: 91.15 | AD152: 0 | AE152: 91.15 | AF152: 91.15 | AG152: 0 | AH152: 91.15 | AI152: 91.15 | AJ152: 0 | AK152: 91.15 | AL152: 91.15 | AM152: 0 | AN152: 91.15 | AO152: 91.15 | AP152: 0 | AQ152: 91.15 | AR152: 91.15 | AS152: 0 | AT152: 91.15 | AU152: 91.15 | AV152: 0 | AW152: 91.15 | AX152: 91.15 | AY152: 0 | AZ152: 91.15 | BA152: 0.91 | BN152: =T152+U152 -> 91.15 | BO152: 45.05 | BP152: =W152+X152 -> 91.15 | BQ152: 51.74 | BR152: =+Z152+AA152 -> 91.15 | BS152: 55.07 | BT152: =+AC152+AD152 -> 91.15 | BU152: 57.58 | BV152: =+AH152 -> 91.15 | BW152: 52.98 | BX152: =+AK152 -> 91.15 | BY152: 52.66 | BZ152: =+AN152 -> 91.15 | CA152: 32.9 | CB152: =+AQ152 -> 91.15 | CC152: 36.1 | CD152: =+AT152 -> 91.15 | CE152: 47.43 | CF152: =+AW152 -> 91.15 | CG152: -18.66 | CH152: 91.15 | CI152: -72.65 | CK152: (ni podpore 2011/2) | CL152: (ni podpore 2011/2) | CM152: (ni podpore 2011/2) | CN152: (ni podpore 2011/2) | CO152: 0 | CP152: 6.69 | CQ152: 0 | CR152: 3.33 | CS152: 0 | CT152: 2.51 | CU152: 0 | CV152: -4.6 | CW152: 0 | CX152: -0.32 | CY152: 0 | CZ152: -19.76 | DA152: 0 | DB152: 3.2 | DC152: 0 | DD152: 11.33 | DE152: 0 | DF152: -66.09 | DG152: 0 | DH152: -53.99
A153: SE14-2013nov | B153: 3.1 Sončne elektrarne - na stavbah 2013 november | D153: velika - nad 10MW do vključno 125MW | E153: SE14 | T153: 81.13 | U153: 0 | V153: 81.13 | W153: 81.13 | X153: 0 | Y153: 81.13 | Z153: 81.13 | AA153: 0 | AB153: 81.13 | AC153: 81.13 | AD153: 0 | AE153: 81.13 | AF153: 81.13 | AG153: 0 | AH153: 81.13 | AI153: 81.13 | AJ153: 0 | AK153: 81.13 | AL153: 81.13 | AM153: 0 | AN153: 81.13 | AO153: 81.13 | AP153: 0 | AQ153: 81.13 | AR153: 81.13 | AS153: 0 | AT153: 81.13 | AU153: 81.13 | AV153: 0 | AW153: 81.13 | AX153: 81.13 | AY153: 0 | AZ153: 81.13 | BA153: 1 | BN153: (ni ZO) | BO153: 30.47 | BP153: (ni ZO) | BQ153: 37.82 | BR153: (ni ZO) | BS153: 41.48 | BT153: (ni ZO) | BU153: 44.24 | BV153: (ni ZO) | BW153: 39.19 | BX153: (ni ZO) | BY153: 38.83 | BZ153: (ni ZO) | CA153: 17.12 | CB153: (ni ZO) | CC153: 20.63 | CD153: (ni ZO) | CE153: 33.09 | CF153: (ni ZO) | CG153: -39.54 | CH153: (ni ZO) | CI153: -98.87 | CK153: (ni podpore 2011/2) | CL153: (ni podpore 2011/2) | CM153: (ni podpore 2011/2) | CN153: (ni podpore 2011/2) | CO153: (ni ZO) | CP153: 7.35 | CQ153: (ni ZO) | CR153: 3.66 | CS153: (ni ZO) | CT153: 2.76 | CU153: (ni ZO) | CV153: -5.05 | CW153: (ni ZO) | CX153: -0.36 | CY153: (ni ZO) | CZ153: -21.71 | DA153: (ni ZO) | DB153: 3.51 | DC153: (ni ZO) | DD153: 12.46 | DE153: (ni ZO) | DF153: -72.63 | DG153: (ni ZO) | DH153: -59.33
A154: SE21-2013nov | B154: 3.2 Sončne elektrarne - ostale 2013 november | D154: mikro - manjše od 50kW | E154: SE21 | T154: 112.86 | U154: 0 | V154: 112.86 | W154: 112.86 | X154: 0 | Y154: 112.86 | Z154: 112.86 | AA154: 0 | AB154: 112.86 | AC154: 112.86 | AD154: 0 | AE154: 112.86 | AF154: 112.86 | AG154: 0 | AH154: 112.86 | AI154: 112.86 | AJ154: 0 | AK154: 112.86 | AL154: 112.86 | AM154: 0 | AN154: 112.86 | AO154: 112.86 | AP154: 0 | AQ154: 112.86 | AR154: 112.86 | AS154: 0 | AT154: 112.86 | AU154: 112.86 | AV154: 0 | AW154: 112.86 | AX154: 112.86 | AY154: 0 | AZ154: 112.86 | BA154: 0.88 | BN154: =T154+U154 -> 112.86 | BO154: 68.28 | BP154: =W154+X154 -> 112.86 | BQ154: 74.75 | BR154: =+Z154+AA154 -> 112.86 | BS154: 77.97 | BT154: =+AC154+AD154 -> 112.86 | BU154: 80.4 | BV154: =+AH154 -> 112.86 | BW154: 75.95 | BX154: =+AK154 -> 112.86 | BY154: 75.64 | BZ154: =+AN154 -> 112.86 | CA154: 56.53 | CB154: =+AQ154 -> 112.86 | CC154: 59.62 | CD154: =+AT154 -> 112.86 | CE154: 70.58 | CF154: =+AW154 -> 112.86 | CG154: 6.67 | CH154: =+AZ154 -> 112.86 | CI154: -45.54 | CK154: (ni podpore 2011/2) | CL154: (ni podpore 2011/2) | CM154: (ni podpore 2011/2) | CN154: (ni podpore 2011/2) | CO154: =BP154-BN154 -> 0 | CP154: 6.47 | CQ154: 0 | CR154: 3.22 | CS154: 0 | CT154: 2.43 | CU154: =BV154-BT154 -> 0 | CV154: -4.45 | CW154: =BX154-BV154 -> 0 | CX154: -0.31 | CY154: =BZ154-BX154 -> 0 | CZ154: -19.11 | DA154: =CB154-BZ154 -> 0 | DB154: 3.09 | DC154: =CD154-CB154 -> 0 | DD154: 10.96 | DE154: =CF154-CD154 -> 0 | DF154: -63.91 | DG154: =CH154-CF154 -> 0 | DH154: -52.21
A155: SE22-2013nov | B155: 3.2 Sončne elektrarne - ostale 2013 november | D155: mala - manjše od 1MW | E155: SE22 | T155: 103.98 | U155: 0 | V155: 103.98 | W155: 103.98 | X155: 0 | Y155: 103.98 | Z155: 103.98 | AA155: 0 | AB155: 103.98 | AC155: 103.98 | AD155: 0 | AE155: 103.98 | AF155: 103.98 | AG155: 0 | AH155: 103.98 | AI155: 103.98 | AJ155: 0 | AK155: 103.98 | AL155: 103.98 | AM155: 0 | AN155: 103.98 | AO155: 103.98 | AP155: 0 | AQ155: 103.98 | AR155: 103.98 | AS155: 0 | AT155: 103.98 | AU155: 103.98 | AV155: 0 | AW155: 103.98 | AX155: 103.98 | AY155: 0 | AZ155: 103.98 | BA155: 0.88 | BN155: =T155+U155 -> 103.98 | BO155: 59.4 | BP155: =W155+X155 -> 103.98 | BQ155: 65.87 | BR155: =+Z155+AA155 -> 103.98 | BS155: 69.09 | BT155: =+AC155+AD155 -> 103.98 | BU155: 71.52 | BV155: =+AH155 -> 103.98 | BW155: 67.07 | BX155: =+AK155 -> 103.98 | BY155: 66.76 | BZ155: =+AN155 -> 103.98 | CA155: 47.65 | CB155: =+AQ155 -> 103.98 | CC155: 50.74 | CD155: =+AT155 -> 103.98 | CE155: 61.7 | CF155: =+AW155 -> 103.98 | CG155: -2.21 | CH155: 103.98 | CI155: -54.42 | CK155: (ni podpore 2011/2) | CL155: (ni podpore 2011/2) | CM155: (ni podpore 2011/2) | CN155: (ni podpore 2011/2) | CO155: 0 | CP155: 6.47 | CQ155: 0 | CR155: 3.22 | CS155: 0 | CT155: 2.43 | CU155: 0 | CV155: -4.45 | CW155: 0 | CX155: -0.31 | CY155: 0 | CZ155: -19.11 | DA155: 0 | DB155: 3.09 | DC155: 0 | DD155: 10.96 | DE155: 0 | DF155: -63.91 | DG155: 0 | DH155: -52.21
A156: SE23-2013nov | B156: 3.2 Sončne elektrarne - ostale 2013 november | D156: srednja - od 1MW do vključno 10MW | E156: SE23 | T156: 83.83 | U156: 0 | V156: 83.83 | W156: 83.83 | X156: 0 | Y156: 83.83 | Z156: 83.83 | AA156: 0 | AB156: 83.83 | AC156: 83.83 | AD156: 0 | AE156: 83.83 | AF156: 83.83 | AG156: 0 | AH156: 83.83 | AI156: 83.83 | AJ156: 0 | AK156: 83.83 | AL156: 83.83 | AM156: 0 | AN156: 83.83 | AO156: 83.83 | AP156: 0 | AQ156: 83.83 | AR156: 83.83 | AS156: 0 | AT156: 83.83 | AU156: 83.83 | AV156: 0 | AW156: 83.83 | AX156: 83.83 | AY156: 0 | AZ156: 83.83 | BA156: 0.91 | BN156: =T156+U156 -> 83.83 | BO156: 37.73 | BP156: =W156+X156 -> 83.83 | BQ156: 44.42 | BR156: =+Z156+AA156 -> 83.83 | BS156: 47.75 | BT156: =+AC156+AD156 -> 83.83 | BU156: 50.26 | BV156: =+AH156 -> 83.83 | BW156: 45.66 | BX156: =+AK156 -> 83.83 | BY156: 45.34 | BZ156: =+AN156 -> 83.83 | CA156: 25.58 | CB156: =+AQ156 -> 83.83 | CC156: 28.78 | CD156: =+AT156 -> 83.83 | CE156: 40.11 | CF156: =+AW156 -> 83.83 | CG156: -25.98 | CH156: 83.83 | CI156: -79.97 | CK156: (ni podpore 2011/2) | CL156: (ni podpore 2011/2) | CM156: (ni podpore 2011/2) | CN156: (ni podpore 2011/2) | CO156: 0 | CP156: 6.69 | CQ156: 0 | CR156: 3.33 | CS156: 0 | CT156: 2.51 | CU156: 0 | CV156: -4.6 | CW156: 0 | CX156: -0.32 | CY156: 0 | CZ156: -19.76 | DA156: 0 | DB156: 3.2 | DC156: 0 | DD156: 11.33 | DE156: 0 | DF156: -66.09 | DG156: 0 | DH156: -53.99
A157: SE24-2013nov | B157: 3.2 Sončne elektrarne - ostale 2013 november | D157: velika - nad 10MW do vključno 125MW | E157: SE24 | T157: 77.83 | U157: 0 | V157: 77.83 | W157: 77.83 | X157: 0 | Y157: 77.83 | Z157: 77.83 | AA157: 0 | AB157: 77.83 | AC157: 77.83 | AD157: 0 | AE157: 77.83 | AF157: 77.83 | AG157: 0 | AH157: 77.83 | AI157: 77.83 | AJ157: 0 | AK157: 77.83 | AL157: 77.83 | AM157: 0 | AN157: 77.83 | AO157: 77.83 | AP157: 0 | AQ157: 77.83 | AR157: 77.83 | AS157: 0 | AT157: 77.83 | AU157: 77.83 | AV157: 0 | AW157: 77.83 | AX157: 77.83 | AY157: 0 | AZ157: 77.83 | BA157: 1 | BN157: (ni ZO) | BO157: 27.17 | BP157: (ni ZO) | BQ157: 34.52 | BR157: (ni ZO) | BS157: 38.18 | BT157: (ni ZO) | BU157: 40.94 | BV157: (ni ZO) | BW157: 35.89 | BX157: (ni ZO) | BY157: 35.53 | BZ157: (ni ZO) | CA157: 13.82 | CB157: (ni ZO) | CC157: 17.33 | CD157: (ni ZO) | CE157: 29.79 | CF157: (ni ZO) | CG157: -42.84 | CH157: (ni ZO) | CI157: -102.17 | CK157: (ni podpore 2011/2) | CL157: (ni podpore 2011/2) | CM157: (ni podpore 2011/2) | CN157: (ni podpore 2011/2) | CO157: (ni ZO) | CP157: 7.35 | CQ157: (ni ZO) | CR157: 3.66 | CS157: (ni ZO) | CT157: 2.76 | CU157: (ni ZO) | CV157: -5.05 | CW157: (ni ZO) | CX157: -0.36 | CY157: (ni ZO) | CZ157: -21.71 | DA157: (ni ZO) | DB157: 3.51 | DC157: (ni ZO) | DD157: 12.46 | DE157: (ni ZO) | DF157: -72.63 | DG157: (ni ZO) | DH157: -59.33
A158: SE11-2013dec | B158: 3.1 Sončne elektrarne - na stavbah 2013 december | D158: mikro - manjše od 50kW | E158: SE11 | T158: 117.72 | U158: 0 | V158: 117.72 | W158: 117.72 | X158: 0 | Y158: 117.72 | Z158: 117.72 | AA158: 0 | AB158: 117.72 | AC158: 117.72 | AD158: 0 | AE158: 117.72 | AF158: 117.72 | AG158: 0 | AH158: 117.72 | AI158: 117.72 | AJ158: 0 | AK158: 117.72 | AL158: 117.72 | AM158: 0 | AN158: 117.72 | AO158: 117.72 | AP158: 0 | AQ158: 117.72 | AR158: 117.72 | AS158: 0 | AT158: 117.72 | AU158: 117.72 | AV158: 0 | AW158: 117.72 | AX158: 117.72 | AY158: 0 | AZ158: 117.72 | BA158: 0.88 | BN158: =T158+U158 -> 117.72 | BO158: 73.14 | BP158: =W158+X158 -> 117.72 | BQ158: 79.61 | BR158: =+Z158+AA158 -> 117.72 | BS158: 82.83 | BT158: =+AC158+AD158 -> 117.72 | BU158: 85.26 | BV158: =+AH158 -> 117.72 | BW158: 80.81 | BX158: =+AK158 -> 117.72 | BY158: 80.5 | BZ158: =+AN158 -> 117.72 | CA158: 61.39 | CB158: =+AQ158 -> 117.72 | CC158: 64.48 | CD158: =+AT158 -> 117.72 | CE158: 75.44 | CF158: =+AW158 -> 117.72 | CG158: 11.53 | CH158: =+AZ158 -> 117.72 | CI158: -40.68 | CK158: (ni podpore 2011/2) | CL158: (ni podpore 2011/2) | CM158: (ni podpore 2011/2) | CN158: (ni podpore 2011/2) | CO158: =BP158-BN158 -> 0 | CP158: 6.47 | CQ158: 0 | CR158: 3.22 | CS158: 0 | CT158: 2.43 | CU158: =BV158-BT158 -> 0 | CV158: -4.45 | CW158: =BX158-BV158 -> 0 | CX158: -0.31 | CY158: =BZ158-BX158 -> 0 | CZ158: -19.11 | DA158: =CB158-BZ158 -> 0 | DB158: 3.09 | DC158: =CD158-CB158 -> 0 | DD158: 10.96 | DE158: =CF158-CD158 -> 0 | DF158: -63.91 | DG158: =CH158-CF158 -> 0 | DH158: -52.21
A159: SE12-2013dec | B159: 3.1 Sončne elektrarne - na stavbah 2013 december | D159: mala - manjše od 1MW | E159: SE12 | T159: 107.66 | U159: 0 | V159: 107.66 | W159: 107.66 | X159: 0 | Y159: 107.66 | Z159: 107.66 | AA159: 0 | AB159: 107.66 | AC159: 107.66 | AD159: 0 | AE159: 107.66 | AF159: 107.66 | AG159: 0 | AH159: 107.66 | AI159: 107.66 | AJ159: 0 | AK159: 107.66 | AL159: 107.66 | AM159: 0 | AN159: 107.66 | AO159: 107.66 | AP159: 0 | AQ159: 107.66 | AR159: 107.66 | AS159: 0 | AT159: 107.66 | AU159: 107.66 | AV159: 0 | AW159: 107.66 | AX159: 107.66 | AY159: 0 | AZ159: 107.66 | BA159: 0.88 | BN159: =T159+U159 -> 107.66 | BO159: 63.08 | BP159: =W159+X159 -> 107.66 | BQ159: 69.55 | BR159: =+Z159+AA159 -> 107.66 | BS159: 72.77 | BT159: =+AC159+AD159 -> 107.66 | BU159: 75.2 | BV159: =+AH159 -> 107.66 | BW159: 70.75 | BX159: =+AK159 -> 107.66 | BY159: 70.44 | BZ159: =+AN159 -> 107.66 | CA159: 51.33 | CB159: =+AQ159 -> 107.66 | CC159: 54.42 | CD159: =+AT159 -> 107.66 | CE159: 65.38 | CF159: =+AW159 -> 107.66 | CG159: 1.47 | CH159: 107.66 | CI159: -50.74 | CK159: (ni podpore 2011/2) | CL159: (ni podpore 2011/2) | CM159: (ni podpore 2011/2) | CN159: (ni podpore 2011/2) | CO159: 0 | CP159: 6.47 | CQ159: 0 | CR159: 3.22 | CS159: 0 | CT159: 2.43 | CU159: 0 | CV159: -4.45 | CW159: 0 | CX159: -0.31 | CY159: 0 | CZ159: -19.11 | DA159: 0 | DB159: 3.09 | DC159: 0 | DD159: 10.96 | DE159: 0 | DF159: -63.91 | DG159: 0 | DH159: -52.21
A160: SE13-2013dec | B160: 3.1 Sončne elektrarne - na stavbah 2013 december | D160: srednja - od 1MW do vključno 10MW | E160: SE13 | T160: 89.33 | U160: 0 | V160: 89.33 | W160: 89.33 | X160: 0 | Y160: 89.33 | Z160: 89.33 | AA160: 0 | AB160: 89.33 | AC160: 89.33 | AD160: 0 | AE160: 89.33 | AF160: 89.33 | AG160: 0 | AH160: 89.33 | AI160: 89.33 | AJ160: 0 | AK160: 89.33 | AL160: 89.33 | AM160: 0 | AN160: 89.33 | AO160: 89.33 | AP160: 0 | AQ160: 89.33 | AR160: 89.33 | AS160: 0 | AT160: 89.33 | AU160: 89.33 | AV160: 0 | AW160: 89.33 | AX160: 89.33 | AY160: 0 | AZ160: 89.33 | BA160: 0.91 | BN160: =T160+U160 -> 89.33 | BO160: 43.23 | BP160: =W160+X160 -> 89.33 | BQ160: 49.92 | BR160: =+Z160+AA160 -> 89.33 | BS160: 53.25 | BT160: =+AC160+AD160 -> 89.33 | BU160: 55.76 | BV160: =+AH160 -> 89.33 | BW160: 51.16 | BX160: =+AK160 -> 89.33 | BY160: 50.84 | BZ160: =+AN160 -> 89.33 | CA160: 31.08 | CB160: =+AQ160 -> 89.33 | CC160: 34.28 | CD160: =+AT160 -> 89.33 | CE160: 45.61 | CF160: =+AW160 -> 89.33 | CG160: -20.48 | CH160: 89.33 | CI160: -74.47 | CK160: (ni podpore 2011/2) | CL160: (ni podpore 2011/2) | CM160: (ni podpore 2011/2) | CN160: (ni podpore 2011/2) | CO160: 0 | CP160: 6.69 | CQ160: 0 | CR160: 3.33 | CS160: 0 | CT160: 2.51 | CU160: 0 | CV160: -4.6 | CW160: 0 | CX160: -0.32 | CY160: 0 | CZ160: -19.76 | DA160: 0 | DB160: 3.2 | DC160: 0 | DD160: 11.33 | DE160: 0 | DF160: -66.09 | DG160: 0 | DH160: -53.99
A161: SE14-2013dec | B161: 3.1 Sončne elektrarne - na stavbah 2013 december | D161: velika - nad 10MW do vključno 125MW | E161: SE14 | T161: 79.51 | U161: 0 | V161: 79.51 | W161: 79.51 | X161: 0 | Y161: 79.51 | Z161: 79.51 | AA161: 0 | AB161: 79.51 | AC161: 79.51 | AD161: 0 | AE161: 79.51 | AF161: 79.51 | AG161: 0 | AH161: 79.51 | AI161: 79.51 | AJ161: 0 | AK161: 79.51 | AL161: 79.51 | AM161: 0 | AN161: 79.51 | AO161: 79.51 | AP161: 0 | AQ161: 79.51 | AR161: 79.51 | AS161: 0 | AT161: 79.51 | AU161: 79.51 | AV161: 0 | AW161: 79.51 | AX161: 79.51 | AY161: 0 | AZ161: 79.51 | BA161: 1 | BN161: (ni ZO) | BO161: 28.85 | BP161: (ni ZO) | BQ161: 36.2 | BR161: (ni ZO) | BS161: 39.86 | BT161: (ni ZO) | BU161: 42.62 | BV161: (ni ZO) | BW161: 37.57 | BX161: (ni ZO) | BY161: 37.21 | BZ161: (ni ZO) | CA161: 15.5 | CB161: (ni ZO) | CC161: 19.01 | CD161: (ni ZO) | CE161: 31.47 | CF161: (ni ZO) | CG161: -41.16 | CH161: (ni ZO) | CI161: -100.49 | CK161: (ni podpore 2011/2) | CL161: (ni podpore 2011/2) | CM161: (ni podpore 2011/2) | CN161: (ni podpore 2011/2) | CO161: (ni ZO) | CP161: 7.35 | CQ161: (ni ZO) | CR161: 3.66 | CS161: (ni ZO) | CT161: 2.76 | CU161: (ni ZO) | CV161: -5.05 | CW161: (ni ZO) | CX161: -0.36 | CY161: (ni ZO) | CZ161: -21.71 | DA161: (ni ZO) | DB161: 3.51 | DC161: (ni ZO) | DD161: 12.46 | DE161: (ni ZO) | DF161: -72.63 | DG161: (ni ZO) | DH161: -59.33
A162: SE21-2013dec | B162: 3.2 Sončne elektrarne - ostale 2013 december | D162: mikro - manjše od 50kW | E162: SE21 | T162: 110.6 | U162: 0 | V162: 110.6 | W162: 110.6 | X162: 0 | Y162: 110.6 | Z162: 110.6 | AA162: 0 | AB162: 110.6 | AC162: 110.6 | AD162: 0 | AE162: 110.6 | AF162: 110.6 | AG162: 0 | AH162: 110.6 | AI162: 110.6 | AJ162: 0 | AK162: 110.6 | AL162: 110.6 | AM162: 0 | AN162: 110.6 | AO162: 110.6 | AP162: 0 | AQ162: 110.6 | AR162: 110.6 | AS162: 0 | AT162: 110.6 | AU162: 110.6 | AV162: 0 | AW162: 110.6 | AX162: 110.6 | AY162: 0 | AZ162: 110.6 | BA162: 0.88 | BN162: =T162+U162 -> 110.6 | BO162: 66.02 | BP162: =W162+X162 -> 110.6 | BQ162: 72.49 | BR162: =+Z162+AA162 -> 110.6 | BS162: 75.71 | BT162: =+AC162+AD162 -> 110.6 | BU162: 78.14 | BV162: =+AH162 -> 110.6 | BW162: 73.69 | BX162: =+AK162 -> 110.6 | BY162: 73.38 | BZ162: =+AN162 -> 110.6 | CA162: 54.27 | CB162: =+AQ162 -> 110.6 | CC162: 57.36 | CD162: =+AT162 -> 110.6 | CE162: 68.32 | CF162: =+AW162 -> 110.6 | CG162: 4.41 | CH162: =+AZ162 -> 110.6 | CI162: -47.8 | CK162: (ni podpore 2011/2) | CL162: (ni podpore 2011/2) | CM162: (ni podpore 2011/2) | CN162: (ni podpore 2011/2) | CO162: =BP162-BN162 -> 0 | CP162: 6.47 | CQ162: 0 | CR162: 3.22 | CS162: 0 | CT162: 2.43 | CU162: =BV162-BT162 -> 0 | CV162: -4.45 | CW162: =BX162-BV162 -> 0 | CX162: -0.31 | CY162: =BZ162-BX162 -> 0 | CZ162: -19.11 | DA162: =CB162-BZ162 -> 0 | DB162: 3.09 | DC162: =CD162-CB162 -> 0 | DD162: 10.96 | DE162: =CF162-CD162 -> 0 | DF162: -63.91 | DG162: =CH162-CF162 -> 0 | DH162: -52.21
A163: SE22-2013dec | B163: 3.2 Sončne elektrarne - ostale 2013 december | D163: mala - manjše od 1MW | E163: SE22 | T163: 101.9 | U163: 0 | V163: 101.9 | W163: 101.9 | X163: 0 | Y163: 101.9 | Z163: 101.9 | AA163: 0 | AB163: 101.9 | AC163: 101.9 | AD163: 0 | AE163: 101.9 | AF163: 101.9 | AG163: 0 | AH163: 101.9 | AI163: 101.9 | AJ163: 0 | AK163: 101.9 | AL163: 101.9 | AM163: 0 | AN163: 101.9 | AO163: 101.9 | AP163: 0 | AQ163: 101.9 | AR163: 101.9 | AS163: 0 | AT163: 101.9 | AU163: 101.9 | AV163: 0 | AW163: 101.9 | AX163: 101.9 | AY163: 0 | AZ163: 101.9 | BA163: 0.88 | BN163: =T163+U163 -> 101.9 | BO163: 57.32 | BP163: =W163+X163 -> 101.9 | BQ163: 63.79 | BR163: =+Z163+AA163 -> 101.9 | BS163: 67.01 | BT163: =+AC163+AD163 -> 101.9 | BU163: 69.44 | BV163: =+AH163 -> 101.9 | BW163: 64.99 | BX163: =+AK163 -> 101.9 | BY163: 64.68 | BZ163: =+AN163 -> 101.9 | CA163: 45.57 | CB163: =+AQ163 -> 101.9 | CC163: 48.66 | CD163: =+AT163 -> 101.9 | CE163: 59.62 | CF163: =+AW163 -> 101.9 | CG163: -4.29 | CH163: 101.9 | CI163: -56.5 | CK163: (ni podpore 2011/2) | CL163: (ni podpore 2011/2) | CM163: (ni podpore 2011/2) | CN163: (ni podpore 2011/2) | CO163: 0 | CP163: 6.47 | CQ163: 0 | CR163: 3.22 | CS163: 0 | CT163: 2.43 | CU163: 0 | CV163: -4.45 | CW163: 0 | CX163: -0.31 | CY163: 0 | CZ163: -19.11 | DA163: 0 | DB163: 3.09 | DC163: 0 | DD163: 10.96 | DE163: 0 | DF163: -63.91 | DG163: 0 | DH163: -52.21
A164: SE23-2013dec | B164: 3.2 Sončne elektrarne - ostale 2013 december | D164: srednja - od 1MW do vključno 10MW | E164: SE23 | T164: 82.15 | U164: 0 | V164: 82.15 | W164: 82.15 | X164: 0 | Y164: 82.15 | Z164: 82.15 | AA164: 0 | AB164: 82.15 | AC164: 82.15 | AD164: 0 | AE164: 82.15 | AF164: 82.15 | AG164: 0 | AH164: 82.15 | AI164: 82.15 | AJ164: 0 | AK164: 82.15 | AL164: 82.15 | AM164: 0 | AN164: 82.15 | AO164: 82.15 | AP164: 0 | AQ164: 82.15 | AR164: 82.15 | AS164: 0 | AT164: 82.15 | AU164: 82.15 | AV164: 0 | AW164: 82.15 | AX164: 82.15 | AY164: 0 | AZ164: 82.15 | BA164: 0.91 | BN164: =T164+U164 -> 82.15 | BO164: 36.05 | BP164: =W164+X164 -> 82.15 | BQ164: 42.74 | BR164: =+Z164+AA164 -> 82.15 | BS164: 46.07 | BT164: =+AC164+AD164 -> 82.15 | BU164: 48.58 | BV164: =+AH164 -> 82.15 | BW164: 43.98 | BX164: =+AK164 -> 82.15 | BY164: 43.66 | BZ164: =+AN164 -> 82.15 | CA164: 23.9 | CB164: =+AQ164 -> 82.15 | CC164: 27.1 | CD164: =+AT164 -> 82.15 | CE164: 38.43 | CF164: =+AW164 -> 82.15 | CG164: -27.66 | CH164: 82.15 | CI164: -81.65 | CK164: (ni podpore 2011/2) | CL164: (ni podpore 2011/2) | CM164: (ni podpore 2011/2) | CN164: (ni podpore 2011/2) | CO164: 0 | CP164: 6.69 | CQ164: 0 | CR164: 3.33 | CS164: 0 | CT164: 2.51 | CU164: 0 | CV164: -4.6 | CW164: 0 | CX164: -0.32 | CY164: 0 | CZ164: -19.76 | DA164: 0 | DB164: 3.2 | DC164: 0 | DD164: 11.33 | DE164: 0 | DF164: -66.09 | DG164: 0 | DH164: -53.99
A165: SE24-2013dec | B165: 3.2 Sončne elektrarne - ostale 2013 december | D165: velika - nad 10MW do vključno 125MW | E165: SE24 | T165: 76.27 | U165: 0 | V165: 76.27 | W165: 76.27 | X165: 0 | Y165: 76.27 | Z165: 76.27 | AA165: 0 | AB165: 76.27 | AC165: 76.27 | AD165: 0 | AE165: 76.27 | AF165: 76.27 | AG165: 0 | AH165: 76.27 | AI165: 76.27 | AJ165: 0 | AK165: 76.27 | AL165: 76.27 | AM165: 0 | AN165: 76.27 | AO165: 76.27 | AP165: 0 | AQ165: 76.27 | AR165: 76.27 | AS165: 0 | AT165: 76.27 | AU165: 76.27 | AV165: 0 | AW165: 76.27 | AX165: 76.27 | AY165: 0 | AZ165: 76.27 | BA165: 1 | BN165: (ni ZO) | BO165: 25.61 | BP165: (ni ZO) | BQ165: 32.96 | BR165: (ni ZO) | BS165: 36.62 | BT165: (ni ZO) | BU165: 39.38 | BV165: (ni ZO) | BW165: 34.33 | BX165: (ni ZO) | BY165: 33.97 | BZ165: (ni ZO) | CA165: 12.26 | CB165: (ni ZO) | CC165: 15.77 | CD165: (ni ZO) | CE165: 28.23 | CF165: (ni ZO) | CG165: -44.4 | CH165: (ni ZO) | CI165: -103.73 | CK165: (ni podpore 2011/2) | CL165: (ni podpore 2011/2) | CM165: (ni podpore 2011/2) | CN165: (ni podpore 2011/2) | CO165: (ni ZO) | CP165: 7.35 | CQ165: (ni ZO) | CR165: 3.66 | CS165: (ni ZO) | CT165: 2.76 | CU165: (ni ZO) | CV165: -5.05 | CW165: (ni ZO) | CX165: -0.36 | CY165: (ni ZO) | CZ165: -21.71 | DA165: (ni ZO) | DB165: 3.51 | DC165: (ni ZO) | DD165: 12.46 | DE165: (ni ZO) | DF165: -72.63 | DG165: (ni ZO) | DH165: -59.33
A166: SE11-2014jan | B166: 3.1 Sončne elektrarne - na stavbah 2014 januar | D166: mikro - manjše od 50kW | E166: SE11 | W166: 115.37 | X166: 0 | Y166: =W166+X166 -> 115.37 | Z166: 115.37 | AA166: 0 | AB166: 115.37 | AC166: 115.37 | AD166: 0 | AE166: 115.37 | AF166: 115.37 | AG166: 0 | AH166: 115.37 | AI166: 115.37 | AJ166: 0 | AK166: 115.37 | AL166: 115.37 | AM166: 0 | AN166: 115.37 | AO166: 115.37 | AP166: 0 | AQ166: 115.37 | AR166: 115.37 | AS166: 0 | AT166: 115.37 | AU166: 115.37 | AV166: 0 | AW166: 115.37 | AX166: 115.37 | AY166: 0 | AZ166: 115.37 | BA166: 0.88 | BP166: =W166+X166 -> 115.37 | BQ166: 77.26 | BR166: =+Z166+AA166 -> 115.37 | BS166: 80.48 | BT166: =+AC166+AD166 -> 115.37 | BU166: 82.91 | BV166: =+AH166 -> 115.37 | BW166: 78.46 | BX166: =+AK166 -> 115.37 | BY166: 78.15 | BZ166: =+AN166 -> 115.37 | CA166: 59.04 | CB166: =+AQ166 -> 115.37 | CC166: 62.13 | CD166: =+AT166 -> 115.37 | CE166: 73.09 | CF166: =+AW166 -> 115.37 | CG166: 9.18 | CH166: =+AZ166 -> 115.37 | CI166: -43.03 | CK166: (ni podpore 2011/2) | CL166: (ni podpore 2011/2) | CM166: (ni podpore 2011/2) | CN166: (ni podpore 2011/2) | CO166: (ni podpore 2013) | CP166: (ni podpore 2013) | CQ166: 0 | CR166: 3.22 | CS166: 0 | CT166: 2.43 | CU166: =BV166-BT166 -> 0 | CV166: -4.45 | CW166: =BX166-BV166 -> 0 | CX166: -0.31 | CY166: =BZ166-BX166 -> 0 | CZ166: -19.11 | DA166: =CB166-BZ166 -> 0 | DB166: 3.09 | DC166: =CD166-CB166 -> 0 | DD166: 10.96 | DE166: =CF166-CD166 -> 0 | DF166: -63.91 | DG166: =CH166-CF166 -> 0 | DH166: -52.21
A167: SE12-2014jan | B167: 3.1 Sončne elektrarne - na stavbah 2014 januar | D167: mala - manjše od 1MW | E167: SE12 | W167: 105.51 | X167: 0 | Y167: 105.51 | Z167: 105.51 | AA167: 0 | AB167: 105.51 | AC167: 105.51 | AD167: 0 | AE167: 105.51 | AF167: 105.51 | AG167: 0 | AH167: 105.51 | AI167: 105.51 | AJ167: 0 | AK167: 105.51 | AL167: 105.51 | AM167: 0 | AN167: 105.51 | AO167: 105.51 | AP167: 0 | AQ167: 105.51 | AR167: 105.51 | AS167: 0 | AT167: 105.51 | AU167: 105.51 | AV167: 0 | AW167: 105.51 | AX167: 105.51 | AY167: 0 | AZ167: 105.51 | BA167: 0.88 | BP167: =W167+X167 -> 105.51 | BQ167: 67.4 | BR167: =+Z167+AA167 -> 105.51 | BS167: 70.62 | BT167: =+AC167+AD167 -> 105.51 | BU167: 73.05 | BV167: =+AH167 -> 105.51 | BW167: 68.6 | BX167: =+AK167 -> 105.51 | BY167: 68.29 | BZ167: =+AN167 -> 105.51 | CA167: 49.18 | CB167: =+AQ167 -> 105.51 | CC167: 52.27 | CD167: =+AT167 -> 105.51 | CE167: 63.23 | CF167: =+AW167 -> 105.51 | CG167: -0.68 | CH167: 105.51 | CI167: -52.89 | CK167: (ni podpore 2011/2) | CL167: (ni podpore 2011/2) | CM167: (ni podpore 2011/2) | CN167: (ni podpore 2011/2) | CO167: (ni podpore 2013) | CP167: (ni podpore 2013) | CQ167: 0 | CR167: 3.22 | CS167: 0 | CT167: 2.43 | CU167: 0 | CV167: -4.45 | CW167: 0 | CX167: -0.31 | CY167: 0 | CZ167: -19.11 | DA167: 0 | DB167: 3.09 | DC167: 0 | DD167: 10.96 | DE167: 0 | DF167: -63.91 | DG167: 0 | DH167: -52.21
A168: SE13-2014jan | B168: 3.1 Sončne elektrarne - na stavbah 2014 januar | D168: srednja - od 1MW do vključno 10MW | E168: SE13 | W168: 87.54 | X168: 0 | Y168: 87.54 | Z168: 87.54 | AA168: 0 | AB168: 87.54 | AC168: 87.54 | AD168: 0 | AE168: 87.54 | AF168: 87.54 | AG168: 0 | AH168: 87.54 | AI168: 87.54 | AJ168: 0 | AK168: 87.54 | AL168: 87.54 | AM168: 0 | AN168: 87.54 | AO168: 87.54 | AP168: 0 | AQ168: 87.54 | AR168: 87.54 | AS168: 0 | AT168: 87.54 | AU168: 87.54 | AV168: 0 | AW168: 87.54 | AX168: 87.54 | AY168: 0 | AZ168: 87.54 | BA168: 0.91 | BP168: =W168+X168 -> 87.54 | BQ168: 48.13 | BR168: =+Z168+AA168 -> 87.54 | BS168: 51.46 | BT168: =+AC168+AD168 -> 87.54 | BU168: 53.97 | BV168: =+AH168 -> 87.54 | BW168: 49.37 | BX168: =+AK168 -> 87.54 | BY168: 49.05 | BZ168: =+AN168 -> 87.54 | CA168: 29.29 | CB168: =+AQ168 -> 87.54 | CC168: 32.49 | CD168: =+AT168 -> 87.54 | CE168: 43.82 | CF168: =+AW168 -> 87.54 | CG168: -22.27 | CH168: 87.54 | CI168: -76.26 | CK168: (ni podpore 2011/2) | CL168: (ni podpore 2011/2) | CM168: (ni podpore 2011/2) | CN168: (ni podpore 2011/2) | CO168: (ni podpore 2013) | CP168: (ni podpore 2013) | CQ168: 0 | CR168: 3.33 | CS168: 0 | CT168: 2.51 | CU168: 0 | CV168: -4.6 | CW168: 0 | CX168: -0.32 | CY168: 0 | CZ168: -19.76 | DA168: 0 | DB168: 3.2 | DC168: 0 | DD168: 11.33 | DE168: 0 | DF168: -66.09 | DG168: 0 | DH168: -53.99
A169: SE14-2014jan | B169: 3.1 Sončne elektrarne - na stavbah 2014 januar | D169: velika - nad 10MW do vključno 125MW | E169: SE14 | W169: 77.92 | X169: 0 | Y169: 77.92 | Z169: 77.92 | AA169: 0 | AB169: 77.92 | AC169: 77.92 | AD169: 0 | AE169: 77.92 | AF169: 77.92 | AG169: 0 | AH169: 77.92 | AI169: 77.92 | AJ169: 0 | AK169: 77.92 | AL169: 77.92 | AM169: 0 | AN169: 77.92 | AO169: 77.92 | AP169: 0 | AQ169: 77.92 | AR169: 77.92 | AS169: 0 | AT169: 77.92 | AU169: 77.92 | AV169: 0 | AW169: 77.92 | AX169: 77.92 | AY169: 0 | AZ169: 77.92 | BA169: 1 | BP169: (ni ZO) | BQ169: 34.61 | BR169: (ni ZO) | BS169: 38.27 | BT169: (ni ZO) | BU169: 41.03 | BV169: (ni ZO) | BW169: 35.98 | BX169: (ni ZO) | BY169: 35.62 | BZ169: (ni ZO) | CA169: 13.91 | CB169: (ni ZO) | CC169: 17.42 | CD169: (ni ZO) | CE169: 29.88 | CF169: (ni ZO) | CG169: -42.75 | CH169: (ni ZO) | CI169: -102.08 | CK169: (ni podpore 2011/2) | CL169: (ni podpore 2011/2) | CM169: (ni podpore 2011/2) | CN169: (ni podpore 2011/2) | CO169: (ni podpore 2013) | CP169: (ni podpore 2013) | CQ169: (ni ZO) | CR169: 3.66 | CS169: (ni ZO) | CT169: 2.76 | CU169: (ni ZO) | CV169: -5.05 | CW169: (ni ZO) | CX169: -0.36 | CY169: (ni ZO) | CZ169: -21.71 | DA169: (ni ZO) | DB169: 3.51 | DC169: (ni ZO) | DD169: 12.46 | DE169: (ni ZO) | DF169: -72.63 | DG169: (ni ZO) | DH169: -59.33
A170: SE21-2014jan | B170: 3.2 Sončne elektrarne - ostale 2014 januar | D170: mikro - manjše od 50kW | E170: SE21 | W170: 108.39 | X170: 0 | Y170: 108.39 | Z170: 108.39 | AA170: 0 | AB170: 108.39 | AC170: 108.39 | AD170: 0 | AE170: 108.39 | AF170: 108.39 | AG170: 0 | AH170: 108.39 | AI170: 108.39 | AJ170: 0 | AK170: 108.39 | AL170: 108.39 | AM170: 0 | AN170: 108.39 | AO170: 108.39 | AP170: 0 | AQ170: 108.39 | AR170: 108.39 | AS170: 0 | AT170: 108.39 | AU170: 108.39 | AV170: 0 | AW170: 108.39 | AX170: 108.39 | AY170: 0 | AZ170: 108.39 | BA170: 0.88 | BP170: =W170+X170 -> 108.39 | BQ170: 70.28 | BR170: =+Z170+AA170 -> 108.39 | BS170: 73.5 | BT170: =+AC170+AD170 -> 108.39 | BU170: 75.93 | BV170: =+AH170 -> 108.39 | BW170: 71.48 | BX170: =+AK170 -> 108.39 | BY170: 71.17 | BZ170: =+AN170 -> 108.39 | CA170: 52.06 | CB170: =+AQ170 -> 108.39 | CC170: 55.15 | CD170: =+AT170 -> 108.39 | CE170: 66.11 | CF170: =+AW170 -> 108.39 | CG170: 2.2 | CH170: =+AZ170 -> 108.39 | CI170: =ROUND(AZ170-BA170*$E$326,2) -> -50.01 | CK170: (ni podpore 2011/2) | CL170: (ni podpore 2011/2) | CM170: (ni podpore 2011/2) | CN170: (ni podpore 2011/2) | CO170: (ni podpore 2013) | CP170: (ni podpore 2013) | CQ170: 0 | CR170: 3.22 | CS170: 0 | CT170: 2.43 | CU170: =BV170-BT170 -> 0 | CV170: -4.45 | CW170: =BX170-BV170 -> 0 | CX170: -0.31 | CY170: =BZ170-BX170 -> 0 | CZ170: -19.11 | DA170: =CB170-BZ170 -> 0 | DB170: 3.09 | DC170: =CD170-CB170 -> 0 | DD170: 10.96 | DE170: =CF170-CD170 -> 0 | DF170: -63.91 | DG170: =CH170-CF170 -> 0 | DH170: -52.21
A171: SE22-2014jan | B171: 3.2 Sončne elektrarne - ostale 2014 januar | D171: mala - manjše od 1MW | E171: SE22 | W171: 99.86 | X171: 0 | Y171: 99.86 | Z171: 99.86 | AA171: 0 | AB171: 99.86 | AC171: 99.86 | AD171: 0 | AE171: 99.86 | AF171: 99.86 | AG171: 0 | AH171: 99.86 | AI171: 99.86 | AJ171: 0 | AK171: 99.86 | AL171: 99.86 | AM171: 0 | AN171: 99.86 | AO171: 99.86 | AP171: 0 | AQ171: 99.86 | AR171: 99.86 | AS171: 0 | AT171: 99.86 | AU171: 99.86 | AV171: 0 | AW171: 99.86 | AX171: 99.86 | AY171: 0 | AZ171: 99.86 | BA171: 0.88 | BP171: =W171+X171 -> 99.86 | BQ171: 61.75 | BR171: =+Z171+AA171 -> 99.86 | BS171: 64.97 | BT171: =+AC171+AD171 -> 99.86 | BU171: 67.4 | BV171: =+AH171 -> 99.86 | BW171: 62.95 | BX171: =+AK171 -> 99.86 | BY171: 62.64 | BZ171: =+AN171 -> 99.86 | CA171: 43.53 | CB171: =+AQ171 -> 99.86 | CC171: 46.62 | CD171: =+AT171 -> 99.86 | CE171: 57.58 | CF171: =+AW171 -> 99.86 | CG171: -6.33 | CH171: 99.86 | CI171: -58.54 | CK171: (ni podpore 2011/2) | CL171: (ni podpore 2011/2) | CM171: (ni podpore 2011/2) | CN171: (ni podpore 2011/2) | CO171: (ni podpore 2013) | CP171: (ni podpore 2013) | CQ171: 0 | CR171: 3.22 | CS171: 0 | CT171: 2.43 | CU171: 0 | CV171: -4.45 | CW171: 0 | CX171: -0.31 | CY171: 0 | CZ171: -19.11 | DA171: 0 | DB171: 3.09 | DC171: 0 | DD171: 10.96 | DE171: 0 | DF171: -63.91 | DG171: 0 | DH171: -52.21
A172: SE23-2014jan | B172: 3.2 Sončne elektrarne - ostale 2014 januar | D172: srednja - od 1MW do vključno 10MW | E172: SE23 | W172: 80.51 | X172: 0 | Y172: 80.51 | Z172: 80.51 | AA172: 0 | AB172: 80.51 | AC172: 80.51 | AD172: 0 | AE172: 80.51 | AF172: 80.51 | AG172: 0 | AH172: 80.51 | AI172: 80.51 | AJ172: 0 | AK172: 80.51 | AL172: 80.51 | AM172: 0 | AN172: 80.51 | AO172: 80.51 | AP172: 0 | AQ172: 80.51 | AR172: 80.51 | AS172: 0 | AT172: 80.51 | AU172: 80.51 | AV172: 0 | AW172: 80.51 | AX172: 80.51 | AY172: 0 | AZ172: 80.51 | BA172: 0.91 | BP172: =W172+X172 -> 80.51 | BQ172: 41.1 | BR172: =+Z172+AA172 -> 80.51 | BS172: 44.43 | BT172: =+AC172+AD172 -> 80.51 | BU172: 46.94 | BV172: =+AH172 -> 80.51 | BW172: 42.34 | BX172: =+AK172 -> 80.51 | BY172: 42.02 | BZ172: =+AN172 -> 80.51 | CA172: 22.26 | CB172: =+AQ172 -> 80.51 | CC172: 25.46 | CD172: =+AT172 -> 80.51 | CE172: 36.79 | CF172: =+AW172 -> 80.51 | CG172: -29.3 | CH172: 80.51 | CI172: -83.29 | CK172: (ni podpore 2011/2) | CL172: (ni podpore 2011/2) | CM172: (ni podpore 2011/2) | CN172: (ni podpore 2011/2) | CO172: (ni podpore 2013) | CP172: (ni podpore 2013) | CQ172: 0 | CR172: 3.33 | CS172: 0 | CT172: 2.51 | CU172: 0 | CV172: -4.6 | CW172: 0 | CX172: -0.32 | CY172: 0 | CZ172: -19.76 | DA172: 0 | DB172: 3.2 | DC172: 0 | DD172: 11.33 | DE172: 0 | DF172: -66.09 | DG172: 0 | DH172: -53.99
A173: SE24-2014jan | B173: 3.2 Sončne elektrarne - ostale 2014 januar | D173: velika - nad 10MW do vključno 125MW | E173: SE24 | W173: 74.74 | X173: 0 | Y173: 74.74 | Z173: 74.74 | AA173: 0 | AB173: 74.74 | AC173: 74.74 | AD173: 0 | AE173: 74.74 | AF173: 74.74 | AG173: 0 | AH173: 74.74 | AI173: 74.74 | AJ173: 0 | AK173: 74.74 | AL173: 74.74 | AM173: 0 | AN173: 74.74 | AO173: 74.74 | AP173: 0 | AQ173: 74.74 | AR173: 74.74 | AS173: 0 | AT173: 74.74 | AU173: 74.74 | AV173: 0 | AW173: 74.74 | AX173: 74.74 | AY173: 0 | AZ173: 74.74 | BA173: 1 | BP173: (ni ZO) | BQ173: 31.43 | BR173: (ni ZO) | BS173: 35.09 | BT173: (ni ZO) | BU173: 37.85 | BV173: (ni ZO) | BW173: 32.8 | BX173: (ni ZO) | BY173: 32.44 | BZ173: (ni ZO) | CA173: 10.73 | CB173: (ni ZO) | CC173: 14.24 | CD173: (ni ZO) | CE173: 26.7 | CF173: (ni ZO) | CG173: -45.93 | CH173: (ni ZO) | CI173: -105.26 | CK173: (ni podpore 2011/2) | CL173: (ni podpore 2011/2) | CM173: (ni podpore 2011/2) | CN173: (ni podpore 2011/2) | CO173: (ni podpore 2013) | CP173: (ni podpore 2013) | CQ173: (ni ZO) | CR173: 3.66 | CS173: (ni ZO) | CT173: 2.76 | CU173: (ni ZO) | CV173: -5.05 | CW173: (ni ZO) | CX173: -0.36 | CY173: (ni ZO) | CZ173: -21.71 | DA173: (ni ZO) | DB173: 3.51 | DC173: (ni ZO) | DD173: 12.46 | DE173: (ni ZO) | DF173: -72.63 | DG173: (ni ZO) | DH173: -59.33
A174: SE11-2014feb | B174: 3.1 Sončne elektrarne - na stavbah 2014 februar | D174: mikro - manjše od 50kW | E174: SE11 | W174: 113.06 | X174: 0 | Y174: 113.06 | Z174: 113.06 | AA174: 0 | AB174: 113.06 | AC174: 113.06 | AD174: 0 | AE174: 113.06 | AF174: 113.06 | AG174: 0 | AH174: 113.06 | AI174: 113.06 | AJ174: 0 | AK174: 113.06 | AL174: 113.06 | AM174: 0 | AN174: 113.06 | AO174: 113.06 | AP174: 0 | AQ174: 113.06 | AR174: 113.06 | AS174: 0 | AT174: 113.06 | AU174: 113.06 | AV174: 0 | AW174: 113.06 | AX174: 113.06 | AY174: 0 | AZ174: 113.06 | BA174: 0.88 | BP174: =W174+X174 -> 113.06 | BQ174: 74.95 | BR174: =+Z174+AA174 -> 113.06 | BS174: 78.17 | BT174: =+AC174+AD174 -> 113.06 | BU174: 80.6 | BV174: =+AH174 -> 113.06 | BW174: 76.15 | BX174: =+AK174 -> 113.06 | BY174: 75.84 | BZ174: =+AN174 -> 113.06 | CA174: 56.73 | CB174: =+AQ174 -> 113.06 | CC174: 59.82 | CD174: =+AT174 -> 113.06 | CE174: 70.78 | CF174: =+AW174 -> 113.06 | CG174: 6.87 | CH174: =+AZ174 -> 113.06 | CI174: -45.34 | CK174: (ni podpore 2011/2) | CL174: (ni podpore 2011/2) | CM174: (ni podpore 2011/2) | CN174: (ni podpore 2011/2) | CO174: (ni podpore 2013) | CP174: (ni podpore 2013) | CQ174: 0 | CR174: 3.22 | CS174: 0 | CT174: 2.43 | CU174: =BV174-BT174 -> 0 | CV174: -4.45 | CW174: =BX174-BV174 -> 0 | CX174: -0.31 | CY174: =BZ174-BX174 -> 0 | CZ174: -19.11 | DA174: =CB174-BZ174 -> 0 | DB174: 3.09 | DC174: =CD174-CB174 -> 0 | DD174: 10.96 | DE174: =CF174-CD174 -> 0 | DF174: -63.91 | DG174: =CH174-CF174 -> 0 | DH174: -52.21
A175: SE12-2014feb | B175: 3.1 Sončne elektrarne - na stavbah 2014 februar | D175: mala - manjše od 1MW | E175: SE12 | W175: 103.4 | X175: 0 | Y175: 103.4 | Z175: 103.4 | AA175: 0 | AB175: 103.4 | AC175: 103.4 | AD175: 0 | AE175: 103.4 | AF175: 103.4 | AG175: 0 | AH175: 103.4 | AI175: 103.4 | AJ175: 0 | AK175: 103.4 | AL175: 103.4 | AM175: 0 | AN175: 103.4 | AO175: 103.4 | AP175: 0 | AQ175: 103.4 | AR175: 103.4 | AS175: 0 | AT175: 103.4 | AU175: 103.4 | AV175: 0 | AW175: 103.4 | AX175: 103.4 | AY175: 0 | AZ175: 103.4 | BA175: 0.88 | BP175: =W175+X175 -> 103.4 | BQ175: 65.29 | BR175: =+Z175+AA175 -> 103.4 | BS175: 68.51 | BT175: =+AC175+AD175 -> 103.4 | BU175: 70.94 | BV175: =+AH175 -> 103.4 | BW175: 66.49 | BX175: =+AK175 -> 103.4 | BY175: 66.18 | BZ175: =+AN175 -> 103.4 | CA175: 47.07 | CB175: =+AQ175 -> 103.4 | CC175: 50.16 | CD175: =+AT175 -> 103.4 | CE175: 61.12 | CF175: =+AW175 -> 103.4 | CG175: -2.79 | CH175: 103.4 | CI175: -55 | CK175: (ni podpore 2011/2) | CL175: (ni podpore 2011/2) | CM175: (ni podpore 2011/2) | CN175: (ni podpore 2011/2) | CO175: (ni podpore 2013) | CP175: (ni podpore 2013) | CQ175: 0 | CR175: 3.22 | CS175: 0 | CT175: 2.43 | CU175: 0 | CV175: -4.45 | CW175: 0 | CX175: -0.31 | CY175: 0 | CZ175: -19.11 | DA175: 0 | DB175: 3.09 | DC175: 0 | DD175: 10.96 | DE175: 0 | DF175: -63.91 | DG175: 0 | DH175: -52.21
A176: SE13-2014feb | B176: 3.1 Sončne elektrarne - na stavbah 2014 februar | D176: srednja - od 1MW do vključno 10MW | E176: SE13 | W176: 85.79 | X176: 0 | Y176: 85.79 | Z176: 85.79 | AA176: 0 | AB176: 85.79 | AC176: 85.79 | AD176: 0 | AE176: 85.79 | AF176: 85.79 | AG176: 0 | AH176: 85.79 | AI176: 85.79 | AJ176: 0 | AK176: 85.79 | AL176: 85.79 | AM176: 0 | AN176: 85.79 | AO176: 85.79 | AP176: 0 | AQ176: 85.79 | AR176: 85.79 | AS176: 0 | AT176: 85.79 | AU176: 85.79 | AV176: 0 | AW176: 85.79 | AX176: 85.79 | AY176: 0 | AZ176: 85.79 | BA176: 0.91 | BP176: =W176+X176 -> 85.79 | BQ176: 46.38 | BR176: =+Z176+AA176 -> 85.79 | BS176: 49.71 | BT176: =+AC176+AD176 -> 85.79 | BU176: 52.22 | BV176: =+AH176 -> 85.79 | BW176: 47.62 | BX176: =+AK176 -> 85.79 | BY176: 47.3 | BZ176: =+AN176 -> 85.79 | CA176: 27.54 | CB176: =+AQ176 -> 85.79 | CC176: 30.74 | CD176: =+AT176 -> 85.79 | CE176: 42.07 | CF176: =+AW176 -> 85.79 | CG176: -24.02 | CH176: 85.79 | CI176: -78.01 | CK176: (ni podpore 2011/2) | CL176: (ni podpore 2011/2) | CM176: (ni podpore 2011/2) | CN176: (ni podpore 2011/2) | CO176: (ni podpore 2013) | CP176: (ni podpore 2013) | CQ176: 0 | CR176: 3.33 | CS176: 0 | CT176: 2.51 | CU176: 0 | CV176: -4.6 | CW176: 0 | CX176: -0.32 | CY176: 0 | CZ176: -19.76 | DA176: 0 | DB176: 3.2 | DC176: 0 | DD176: 11.33 | DE176: 0 | DF176: -66.09 | DG176: 0 | DH176: -53.99
A177: SE14-2014feb | B177: 3.1 Sončne elektrarne - na stavbah 2014 februar | D177: velika - nad 10MW do vključno 125MW | E177: SE14 | W177: 76.36 | X177: 0 | Y177: 76.36 | Z177: 76.36 | AA177: 0 | AB177: 76.36 | AC177: 76.36 | AD177: 0 | AE177: 76.36 | AF177: 76.36 | AG177: 0 | AH177: 76.36 | AI177: 76.36 | AJ177: 0 | AK177: 76.36 | AL177: 76.36 | AM177: 0 | AN177: 76.36 | AO177: 76.36 | AP177: 0 | AQ177: 76.36 | AR177: 76.36 | AS177: 0 | AT177: 76.36 | AU177: 76.36 | AV177: 0 | AW177: 76.36 | AX177: 76.36 | AY177: 0 | AZ177: 76.36 | BA177: 1 | BP177: (ni ZO) | BQ177: 33.05 | BR177: (ni ZO) | BS177: 36.71 | BT177: (ni ZO) | BU177: 39.47 | BV177: (ni ZO) | BW177: 34.42 | BX177: (ni ZO) | BY177: 34.06 | BZ177: (ni ZO) | CA177: 12.35 | CB177: (ni ZO) | CC177: 15.86 | CD177: (ni ZO) | CE177: 28.32 | CF177: (ni ZO) | CG177: -44.31 | CH177: (ni ZO) | CI177: -103.64 | CK177: (ni podpore 2011/2) | CL177: (ni podpore 2011/2) | CM177: (ni podpore 2011/2) | CN177: (ni podpore 2011/2) | CO177: (ni podpore 2013) | CP177: (ni podpore 2013) | CQ177: (ni ZO) | CR177: 3.66 | CS177: (ni ZO) | CT177: 2.76 | CU177: (ni ZO) | CV177: -5.05 | CW177: (ni ZO) | CX177: -0.36 | CY177: (ni ZO) | CZ177: -21.71 | DA177: (ni ZO) | DB177: 3.51 | DC177: (ni ZO) | DD177: 12.46 | DE177: (ni ZO) | DF177: -72.63 | DG177: (ni ZO) | DH177: -59.33
A178: SE21-2014feb | B178: 3.2 Sončne elektrarne - ostale 2014 februar | D178: mikro - manjše od 50kW | E178: SE21 | W178: 106.22 | X178: 0 | Y178: 106.22 | Z178: 106.22 | AA178: 0 | AB178: 106.22 | AC178: 106.22 | AD178: 0 | AE178: 106.22 | AF178: 106.22 | AG178: 0 | AH178: 106.22 | AI178: 106.22 | AJ178: 0 | AK178: 106.22 | AL178: 106.22 | AM178: 0 | AN178: 106.22 | AO178: 106.22 | AP178: 0 | AQ178: 106.22 | AR178: 106.22 | AS178: 0 | AT178: 106.22 | AU178: 106.22 | AV178: 0 | AW178: 106.22 | AX178: 106.22 | AY178: 0 | AZ178: 106.22 | BA178: 0.88 | BP178: =W178+X178 -> 106.22 | BQ178: 68.11 | BR178: =+Z178+AA178 -> 106.22 | BS178: 71.33 | BT178: =+AC178+AD178 -> 106.22 | BU178: 73.76 | BV178: =+AH178 -> 106.22 | BW178: 69.31 | BX178: =+AK178 -> 106.22 | BY178: 69 | BZ178: =+AN178 -> 106.22 | CA178: 49.89 | CB178: =+AQ178 -> 106.22 | CC178: 52.98 | CD178: =+AT178 -> 106.22 | CE178: 63.94 | CF178: =+AW178 -> 106.22 | CG178: 0.03 | CH178: =+AZ178 -> 106.22 | CI178: -52.18 | CK178: (ni podpore 2011/2) | CL178: (ni podpore 2011/2) | CM178: (ni podpore 2011/2) | CN178: (ni podpore 2011/2) | CO178: (ni podpore 2013) | CP178: (ni podpore 2013) | CQ178: 0 | CR178: 3.22 | CS178: 0 | CT178: 2.43 | CU178: =BV178-BT178 -> 0 | CV178: -4.45 | CW178: =BX178-BV178 -> 0 | CX178: -0.31 | CY178: =BZ178-BX178 -> 0 | CZ178: -19.11 | DA178: =CB178-BZ178 -> 0 | DB178: 3.09 | DC178: =CD178-CB178 -> 0 | DD178: 10.96 | DE178: =CF178-CD178 -> 0 | DF178: -63.91 | DG178: =CH178-CF178 -> 0 | DH178: -52.21
A179: SE22-2014feb | B179: 3.2 Sončne elektrarne - ostale 2014 februar | D179: mala - manjše od 1MW | E179: SE22 | W179: 97.86 | X179: 0 | Y179: 97.86 | Z179: 97.86 | AA179: 0 | AB179: 97.86 | AC179: 97.86 | AD179: 0 | AE179: 97.86 | AF179: 97.86 | AG179: 0 | AH179: 97.86 | AI179: 97.86 | AJ179: 0 | AK179: 97.86 | AL179: 97.86 | AM179: 0 | AN179: 97.86 | AO179: 97.86 | AP179: 0 | AQ179: 97.86 | AR179: 97.86 | AS179: 0 | AT179: 97.86 | AU179: 97.86 | AV179: 0 | AW179: 97.86 | AX179: 97.86 | AY179: 0 | AZ179: 97.86 | BA179: 0.88 | BP179: =W179+X179 -> 97.86 | BQ179: 59.75 | BR179: =+Z179+AA179 -> 97.86 | BS179: 62.97 | BT179: =+AC179+AD179 -> 97.86 | BU179: 65.4 | BV179: =+AH179 -> 97.86 | BW179: 60.95 | BX179: =+AK179 -> 97.86 | BY179: 60.64 | BZ179: =+AN179 -> 97.86 | CA179: 41.53 | CB179: =+AQ179 -> 97.86 | CC179: 44.62 | CD179: =+AT179 -> 97.86 | CE179: 55.58 | CF179: =+AW179 -> 97.86 | CG179: -8.33 | CH179: 97.86 | CI179: -60.54 | CK179: (ni podpore 2011/2) | CL179: (ni podpore 2011/2) | CM179: (ni podpore 2011/2) | CN179: (ni podpore 2011/2) | CO179: (ni podpore 2013) | CP179: (ni podpore 2013) | CQ179: 0 | CR179: 3.22 | CS179: 0 | CT179: 2.43 | CU179: 0 | CV179: -4.45 | CW179: 0 | CX179: -0.31 | CY179: 0 | CZ179: -19.11 | DA179: 0 | DB179: 3.09 | DC179: 0 | DD179: 10.96 | DE179: 0 | DF179: -63.91 | DG179: 0 | DH179: -52.21
A180: SE23-2014feb | B180: 3.2 Sončne elektrarne - ostale 2014 februar | D180: srednja - od 1MW do vključno 10MW | E180: SE23 | W180: 78.9 | X180: 0 | Y180: 78.9 | Z180: 78.9 | AA180: 0 | AB180: 78.9 | AC180: 78.9 | AD180: 0 | AE180: 78.9 | AF180: 78.9 | AG180: 0 | AH180: 78.9 | AI180: 78.9 | AJ180: 0 | AK180: 78.9 | AL180: 78.9 | AM180: 0 | AN180: 78.9 | AO180: 78.9 | AP180: 0 | AQ180: 78.9 | AR180: 78.9 | AS180: 0 | AT180: 78.9 | AU180: 78.9 | AV180: 0 | AW180: 78.9 | AX180: 78.9 | AY180: 0 | AZ180: 78.9 | BA180: 0.91 | BP180: =W180+X180 -> 78.9 | BQ180: 39.49 | BR180: =+Z180+AA180 -> 78.9 | BS180: 42.82 | BT180: =+AC180+AD180 -> 78.9 | BU180: 45.33 | BV180: =+AH180 -> 78.9 | BW180: 40.73 | BX180: =+AK180 -> 78.9 | BY180: 40.41 | BZ180: =+AN180 -> 78.9 | CA180: 20.65 | CB180: =+AQ180 -> 78.9 | CC180: 23.85 | CD180: =+AT180 -> 78.9 | CE180: 35.18 | CF180: =+AW180 -> 78.9 | CG180: -30.91 | CH180: 78.9 | CI180: -84.9 | CK180: (ni podpore 2011/2) | CL180: (ni podpore 2011/2) | CM180: (ni podpore 2011/2) | CN180: (ni podpore 2011/2) | CO180: (ni podpore 2013) | CP180: (ni podpore 2013) | CQ180: 0 | CR180: 3.33 | CS180: 0 | CT180: 2.51 | CU180: 0 | CV180: -4.6 | CW180: 0 | CX180: -0.32 | CY180: 0 | CZ180: -19.76 | DA180: 0 | DB180: 3.2 | DC180: 0 | DD180: 11.33 | DE180: 0 | DF180: -66.09 | DG180: 0 | DH180: -53.99
A181: SE24-2014feb | B181: 3.2 Sončne elektrarne - ostale 2014 februar | D181: velika - nad 10MW do vključno 125MW | E181: SE24 | W181: 73.25 | X181: 0 | Y181: 73.25 | Z181: 73.25 | AA181: 0 | AB181: 73.25 | AC181: 73.25 | AD181: 0 | AE181: 73.25 | AF181: 73.25 | AG181: 0 | AH181: 73.25 | AI181: 73.25 | AJ181: 0 | AK181: 73.25 | AL181: 73.25 | AM181: 0 | AN181: 73.25 | AO181: 73.25 | AP181: 0 | AQ181: 73.25 | AR181: 73.25 | AS181: 0 | AT181: 73.25 | AU181: 73.25 | AV181: 0 | AW181: 73.25 | AX181: 73.25 | AY181: 0 | AZ181: 73.25 | BA181: 1 | BP181: (ni ZO) | BQ181: 29.94 | BR181: (ni ZO) | BS181: 33.6 | BT181: (ni ZO) | BU181: 36.36 | BV181: (ni ZO) | BW181: 31.31 | BX181: (ni ZO) | BY181: 30.95 | BZ181: (ni ZO) | CA181: 9.24 | CB181: (ni ZO) | CC181: 12.75 | CD181: (ni ZO) | CE181: 25.21 | CF181: (ni ZO) | CG181: -47.42 | CH181: (ni ZO) | CI181: -106.75 | CK181: (ni podpore 2011/2) | CL181: (ni podpore 2011/2) | CM181: (ni podpore 2011/2) | CN181: (ni podpore 2011/2) | CO181: (ni podpore 2013) | CP181: (ni podpore 2013) | CQ181: (ni ZO) | CR181: 3.66 | CS181: (ni ZO) | CT181: 2.76 | CU181: (ni ZO) | CV181: -5.05 | CW181: (ni ZO) | CX181: -0.36 | CY181: (ni ZO) | CZ181: -21.71 | DA181: (ni ZO) | DB181: 3.51 | DC181: (ni ZO) | DD181: 12.46 | DE181: (ni ZO) | DF181: -72.63 | DG181: (ni ZO) | DH181: -59.33
A182: SE11-2014mar | B182: 3.1 Sončne elektrarne - na stavbah 2014 marec | D182: mikro - manjše od 50kW | E182: SE11 | W182: 110.8 | X182: 0 | Y182: 110.8 | Z182: 110.8 | AA182: 0 | AB182: 110.8 | AC182: 110.8 | AD182: 0 | AE182: 110.8 | AF182: 110.8 | AG182: 0 | AH182: 110.8 | AI182: 110.8 | AJ182: 0 | AK182: 110.8 | AL182: 110.8 | AM182: 0 | AN182: 110.8 | AO182: 110.8 | AP182: 0 | AQ182: 110.8 | AR182: 110.8 | AS182: 0 | AT182: 110.8 | AU182: 110.8 | AV182: 0 | AW182: 110.8 | AX182: 110.8 | AY182: 0 | AZ182: 110.8 | BA182: 0.88 | BP182: =W182+X182 -> 110.8 | BQ182: 72.69 | BR182: =+Z182+AA182 -> 110.8 | BS182: 75.91 | BT182: =+AC182+AD182 -> 110.8 | BU182: 78.34 | BV182: =+AH182 -> 110.8 | BW182: 73.89 | BX182: =+AK182 -> 110.8 | BY182: 73.58 | BZ182: =+AN182 -> 110.8 | CA182: 54.47 | CB182: =+AQ182 -> 110.8 | CC182: 57.56 | CD182: =+AT182 -> 110.8 | CE182: 68.52 | CF182: =+AW182 -> 110.8 | CG182: 4.61 | CH182: =+AZ182 -> 110.8 | CI182: -47.6 | CK182: (ni podpore 2011/2) | CL182: (ni podpore 2011/2) | CM182: (ni podpore 2011/2) | CN182: (ni podpore 2011/2) | CO182: (ni podpore 2013) | CP182: (ni podpore 2013) | CQ182: 0 | CR182: 3.22 | CS182: 0 | CT182: 2.43 | CU182: =BV182-BT182 -> 0 | CV182: -4.45 | CW182: =BX182-BV182 -> 0 | CX182: -0.31 | CY182: =BZ182-BX182 -> 0 | CZ182: -19.11 | DA182: =CB182-BZ182 -> 0 | DB182: 3.09 | DC182: =CD182-CB182 -> 0 | DD182: 10.96 | DE182: =CF182-CD182 -> 0 | DF182: -63.91 | DG182: =CH182-CF182 -> 0 | DH182: -52.21
A183: SE12-2014mar | B183: 3.1 Sončne elektrarne - na stavbah 2014 marec | D183: mala - manjše od 1MW | E183: SE12 | W183: 101.33 | X183: 0 | Y183: 101.33 | Z183: 101.33 | AA183: 0 | AB183: 101.33 | AC183: 101.33 | AD183: 0 | AE183: 101.33 | AF183: 101.33 | AG183: 0 | AH183: 101.33 | AI183: 101.33 | AJ183: 0 | AK183: 101.33 | AL183: 101.33 | AM183: 0 | AN183: 101.33 | AO183: 101.33 | AP183: 0 | AQ183: 101.33 | AR183: 101.33 | AS183: 0 | AT183: 101.33 | AU183: 101.33 | AV183: 0 | AW183: 101.33 | AX183: 101.33 | AY183: 0 | AZ183: 101.33 | BA183: 0.88 | BP183: =W183+X183 -> 101.33 | BQ183: 63.22 | BR183: =+Z183+AA183 -> 101.33 | BS183: 66.44 | BT183: =+AC183+AD183 -> 101.33 | BU183: 68.87 | BV183: =+AH183 -> 101.33 | BW183: 64.42 | BX183: =+AK183 -> 101.33 | BY183: 64.11 | BZ183: =+AN183 -> 101.33 | CA183: 45 | CB183: =+AQ183 -> 101.33 | CC183: 48.09 | CD183: =+AT183 -> 101.33 | CE183: 59.05 | CF183: =+AW183 -> 101.33 | CG183: -4.86 | CH183: 101.33 | CI183: -57.07 | CK183: (ni podpore 2011/2) | CL183: (ni podpore 2011/2) | CM183: (ni podpore 2011/2) | CN183: (ni podpore 2011/2) | CO183: (ni podpore 2013) | CP183: (ni podpore 2013) | CQ183: 0 | CR183: 3.22 | CS183: 0 | CT183: 2.43 | CU183: 0 | CV183: -4.45 | CW183: 0 | CX183: -0.31 | CY183: 0 | CZ183: -19.11 | DA183: 0 | DB183: 3.09 | DC183: 0 | DD183: 10.96 | DE183: 0 | DF183: -63.91 | DG183: 0 | DH183: -52.21
A184: SE13-2014mar | B184: 3.1 Sončne elektrarne - na stavbah 2014 marec | D184: srednja - od 1MW do vključno 10MW | E184: SE13 | W184: 84.07 | X184: 0 | Y184: 84.07 | Z184: 84.07 | AA184: 0 | AB184: 84.07 | AC184: 84.07 | AD184: 0 | AE184: 84.07 | AF184: 84.07 | AG184: 0 | AH184: 84.07 | AI184: 84.07 | AJ184: 0 | AK184: 84.07 | AL184: 84.07 | AM184: 0 | AN184: 84.07 | AO184: 84.07 | AP184: 0 | AQ184: 84.07 | AR184: 84.07 | AS184: 0 | AT184: 84.07 | AU184: 84.07 | AV184: 0 | AW184: 84.07 | AX184: 84.07 | AY184: 0 | AZ184: 84.07 | BA184: 0.91 | BP184: =W184+X184 -> 84.07 | BQ184: 44.66 | BR184: =+Z184+AA184 -> 84.07 | BS184: 47.99 | BT184: =+AC184+AD184 -> 84.07 | BU184: 50.5 | BV184: =+AH184 -> 84.07 | BW184: 45.9 | BX184: =+AK184 -> 84.07 | BY184: 45.58 | BZ184: =+AN184 -> 84.07 | CA184: 25.82 | CB184: =+AQ184 -> 84.07 | CC184: 29.02 | CD184: =+AT184 -> 84.07 | CE184: 40.35 | CF184: =+AW184 -> 84.07 | CG184: -25.74 | CH184: 84.07 | CI184: -79.73 | CK184: (ni podpore 2011/2) | CL184: (ni podpore 2011/2) | CM184: (ni podpore 2011/2) | CN184: (ni podpore 2011/2) | CO184: (ni podpore 2013) | CP184: (ni podpore 2013) | CQ184: 0 | CR184: 3.33 | CS184: 0 | CT184: 2.51 | CU184: 0 | CV184: -4.6 | CW184: 0 | CX184: -0.32 | CY184: 0 | CZ184: -19.76 | DA184: 0 | DB184: 3.2 | DC184: 0 | DD184: 11.33 | DE184: 0 | DF184: -66.09 | DG184: 0 | DH184: -53.99
A185: SE14-2014mar | B185: 3.1 Sončne elektrarne - na stavbah 2014 marec | D185: velika - nad 10MW do vključno 125MW | E185: SE14 | W185: 74.83 | X185: 0 | Y185: 74.83 | Z185: 74.83 | AA185: 0 | AB185: 74.83 | AC185: 74.83 | AD185: 0 | AE185: 74.83 | AF185: 74.83 | AG185: 0 | AH185: 74.83 | AI185: 74.83 | AJ185: 0 | AK185: 74.83 | AL185: 74.83 | AM185: 0 | AN185: 74.83 | AO185: 74.83 | AP185: 0 | AQ185: 74.83 | AR185: 74.83 | AS185: 0 | AT185: 74.83 | AU185: 74.83 | AV185: 0 | AW185: 74.83 | AX185: 74.83 | AY185: 0 | AZ185: 74.83 | BA185: 1 | BP185: (ni ZO) | BQ185: 31.52 | BR185: (ni ZO) | BS185: 35.18 | BT185: (ni ZO) | BU185: 37.94 | BV185: (ni ZO) | BW185: 32.89 | BX185: (ni ZO) | BY185: 32.53 | BZ185: (ni ZO) | CA185: 10.82 | CB185: (ni ZO) | CC185: 14.33 | CD185: (ni ZO) | CE185: 26.79 | CF185: (ni ZO) | CG185: -45.84 | CH185: (ni ZO) | CI185: -105.17 | CK185: (ni podpore 2011/2) | CL185: (ni podpore 2011/2) | CM185: (ni podpore 2011/2) | CN185: (ni podpore 2011/2) | CO185: (ni podpore 2013) | CP185: (ni podpore 2013) | CQ185: (ni ZO) | CR185: 3.66 | CS185: (ni ZO) | CT185: 2.76 | CU185: (ni ZO) | CV185: -5.05 | CW185: (ni ZO) | CX185: -0.36 | CY185: (ni ZO) | CZ185: -21.71 | DA185: (ni ZO) | DB185: 3.51 | DC185: (ni ZO) | DD185: 12.46 | DE185: (ni ZO) | DF185: -72.63 | DG185: (ni ZO) | DH185: -59.33
A186: SE21-2014mar | B186: 3.2 Sončne elektrarne - ostale 2014 marec | D186: mikro - manjše od 50kW | E186: SE21 | W186: 104.1 | X186: 0 | Y186: 104.1 | Z186: 104.1 | AA186: 0 | AB186: 104.1 | AC186: 104.1 | AD186: 0 | AE186: 104.1 | AF186: 104.1 | AG186: 0 | AH186: 104.1 | AI186: 104.1 | AJ186: 0 | AK186: 104.1 | AL186: 104.1 | AM186: 0 | AN186: 104.1 | AO186: 104.1 | AP186: 0 | AQ186: 104.1 | AR186: 104.1 | AS186: 0 | AT186: 104.1 | AU186: 104.1 | AV186: 0 | AW186: 104.1 | AX186: 104.1 | AY186: 0 | AZ186: 104.1 | BA186: 0.88 | BP186: =W186+X186 -> 104.1 | BQ186: 65.99 | BR186: =+Z186+AA186 -> 104.1 | BS186: 69.21 | BT186: =+AC186+AD186 -> 104.1 | BU186: 71.64 | BV186: =+AH186 -> 104.1 | BW186: 67.19 | BX186: =+AK186 -> 104.1 | BY186: 66.88 | BZ186: =+AN186 -> 104.1 | CA186: 47.77 | CB186: =+AQ186 -> 104.1 | CC186: 50.86 | CD186: =+AT186 -> 104.1 | CE186: 61.82 | CF186: =+AW186 -> 104.1 | CG186: -2.09 | CH186: =+AZ186 -> 104.1 | CI186: -54.3 | CK186: (ni podpore 2011/2) | CL186: (ni podpore 2011/2) | CM186: (ni podpore 2011/2) | CN186: (ni podpore 2011/2) | CO186: (ni podpore 2013) | CP186: (ni podpore 2013) | CQ186: 0 | CR186: 3.22 | CS186: 0 | CT186: 2.43 | CU186: =BV186-BT186 -> 0 | CV186: -4.45 | CW186: =BX186-BV186 -> 0 | CX186: -0.31 | CY186: =BZ186-BX186 -> 0 | CZ186: -19.11 | DA186: =CB186-BZ186 -> 0 | DB186: 3.09 | DC186: =CD186-CB186 -> 0 | DD186: 10.96 | DE186: =CF186-CD186 -> 0 | DF186: -63.91 | DG186: =CH186-CF186 -> 0 | DH186: -52.21
A187: SE22-2014mar | B187: 3.2 Sončne elektrarne - ostale 2014 marec | D187: mala - manjše od 1MW | E187: SE22 | W187: 95.9 | X187: 0 | Y187: 95.9 | Z187: 95.9 | AA187: 0 | AB187: 95.9 | AC187: 95.9 | AD187: 0 | AE187: 95.9 | AF187: 95.9 | AG187: 0 | AH187: 95.9 | AI187: 95.9 | AJ187: 0 | AK187: 95.9 | AL187: 95.9 | AM187: 0 | AN187: 95.9 | AO187: 95.9 | AP187: 0 | AQ187: 95.9 | AR187: 95.9 | AS187: 0 | AT187: 95.9 | AU187: 95.9 | AV187: 0 | AW187: 95.9 | AX187: 95.9 | AY187: 0 | AZ187: 95.9 | BA187: 0.88 | BP187: =W187+X187 -> 95.9 | BQ187: 57.79 | BR187: =+Z187+AA187 -> 95.9 | BS187: 61.01 | BT187: =+AC187+AD187 -> 95.9 | BU187: 63.44 | BV187: =+AH187 -> 95.9 | BW187: 58.99 | BX187: =+AK187 -> 95.9 | BY187: 58.68 | BZ187: =+AN187 -> 95.9 | CA187: 39.57 | CB187: =+AQ187 -> 95.9 | CC187: 42.66 | CD187: =+AT187 -> 95.9 | CE187: 53.62 | CF187: =+AW187 -> 95.9 | CG187: -10.29 | CH187: 95.9 | CI187: -62.5 | CK187: (ni podpore 2011/2) | CL187: (ni podpore 2011/2) | CM187: (ni podpore 2011/2) | CN187: (ni podpore 2011/2) | CO187: (ni podpore 2013) | CP187: (ni podpore 2013) | CQ187: 0 | CR187: 3.22 | CS187: 0 | CT187: 2.43 | CU187: 0 | CV187: -4.45 | CW187: 0 | CX187: -0.31 | CY187: 0 | CZ187: -19.11 | DA187: 0 | DB187: 3.09 | DC187: 0 | DD187: 10.96 | DE187: 0 | DF187: -63.91 | DG187: 0 | DH187: -52.21
A188: SE23-2014mar | B188: 3.2 Sončne elektrarne - ostale 2014 marec | D188: srednja - od 1MW do vključno 10MW | E188: SE23 | W188: 77.32 | X188: 0 | Y188: 77.32 | Z188: 77.32 | AA188: 0 | AB188: 77.32 | AC188: 77.32 | AD188: 0 | AE188: 77.32 | AF188: 77.32 | AG188: 0 | AH188: 77.32 | AI188: 77.32 | AJ188: 0 | AK188: 77.32 | AL188: 77.32 | AM188: 0 | AN188: 77.32 | AO188: 77.32 | AP188: 0 | AQ188: 77.32 | AR188: 77.32 | AS188: 0 | AT188: 77.32 | AU188: 77.32 | AV188: 0 | AW188: 77.32 | AX188: 77.32 | AY188: 0 | AZ188: 77.32 | BA188: 0.91 | BP188: =W188+X188 -> 77.32 | BQ188: 37.91 | BR188: =+Z188+AA188 -> 77.32 | BS188: 41.24 | BT188: =+AC188+AD188 -> 77.32 | BU188: 43.75 | BV188: =+AH188 -> 77.32 | BW188: 39.15 | BX188: =+AK188 -> 77.32 | BY188: 38.83 | BZ188: =+AN188 -> 77.32 | CA188: 19.07 | CB188: =+AQ188 -> 77.32 | CC188: 22.27 | CD188: =+AT188 -> 77.32 | CE188: 33.6 | CF188: =+AW188 -> 77.32 | CG188: -32.49 | CH188: 77.32 | CI188: -86.48 | CK188: (ni podpore 2011/2) | CL188: (ni podpore 2011/2) | CM188: (ni podpore 2011/2) | CN188: (ni podpore 2011/2) | CO188: (ni podpore 2013) | CP188: (ni podpore 2013) | CQ188: 0 | CR188: 3.33 | CS188: 0 | CT188: 2.51 | CU188: 0 | CV188: -4.6 | CW188: 0 | CX188: -0.32 | CY188: 0 | CZ188: -19.76 | DA188: 0 | DB188: 3.2 | DC188: 0 | DD188: 11.33 | DE188: 0 | DF188: -66.09 | DG188: 0 | DH188: -53.99
A189: SE24-2014mar | B189: 3.2 Sončne elektrarne - ostale 2014 marec | D189: velika - nad 10MW do vključno 125MW | E189: SE24 | W189: 71.79 | X189: 0 | Y189: 71.79 | Z189: 71.79 | AA189: 0 | AB189: 71.79 | AC189: 71.79 | AD189: 0 | AE189: 71.79 | AF189: 71.79 | AG189: 0 | AH189: 71.79 | AI189: 71.79 | AJ189: 0 | AK189: 71.79 | AL189: 71.79 | AM189: 0 | AN189: 71.79 | AO189: 71.79 | AP189: 0 | AQ189: 71.79 | AR189: 71.79 | AS189: 0 | AT189: 71.79 | AU189: 71.79 | AV189: 0 | AW189: 71.79 | AX189: 71.79 | AY189: 0 | AZ189: 71.79 | BA189: 1 | BP189: (ni ZO) | BQ189: 28.48 | BR189: (ni ZO) | BS189: 32.14 | BT189: (ni ZO) | BU189: 34.9 | BV189: (ni ZO) | BW189: 29.85 | BX189: (ni ZO) | BY189: 29.49 | BZ189: (ni ZO) | CA189: 7.78 | CB189: (ni ZO) | CC189: 11.29 | CD189: (ni ZO) | CE189: 23.75 | CF189: (ni ZO) | CG189: -48.88 | CH189: (ni ZO) | CI189: -108.21 | CK189: (ni podpore 2011/2) | CL189: (ni podpore 2011/2) | CM189: (ni podpore 2011/2) | CN189: (ni podpore 2011/2) | CO189: (ni podpore 2013) | CP189: (ni podpore 2013) | CQ189: (ni ZO) | CR189: 3.66 | CS189: (ni ZO) | CT189: 2.76 | CU189: (ni ZO) | CV189: -5.05 | CW189: (ni ZO) | CX189: -0.36 | CY189: (ni ZO) | CZ189: -21.71 | DA189: (ni ZO) | DB189: 3.51 | DC189: (ni ZO) | DD189: 12.46 | DE189: (ni ZO) | DF189: -72.63 | DG189: (ni ZO) | DH189: -59.33
A190: SE11-2014apr | B190: 3.1 Sončne elektrarne - na stavbah 2014 april | D190: mikro - manjše od 50kW | E190: SE11 | W190: 108.58 | X190: 0 | Y190: 108.58 | Z190: 108.58 | AA190: 0 | AB190: 108.58 | AC190: 108.58 | AD190: 0 | AE190: 108.58 | AF190: 108.58 | AG190: 0 | AH190: 108.58 | AI190: 108.58 | AJ190: 0 | AK190: 108.58 | AL190: 108.58 | AM190: 0 | AN190: 108.58 | AO190: 108.58 | AP190: 0 | AQ190: 108.58 | AR190: 108.58 | AS190: 0 | AT190: 108.58 | AU190: 108.58 | AV190: 0 | AW190: 108.58 | AX190: 108.58 | AY190: 0 | AZ190: 108.58 | BA190: 0.88 | BP190: =W190+X190 -> 108.58 | BQ190: 70.47 | BR190: =+Z190+AA190 -> 108.58 | BS190: 73.69 | BT190: =+AC190+AD190 -> 108.58 | BU190: 76.12 | BV190: =+AH190 -> 108.58 | BW190: 71.67 | BX190: =+AK190 -> 108.58 | BY190: 71.36 | BZ190: =+AN190 -> 108.58 | CA190: 52.25 | CB190: =+AQ190 -> 108.58 | CC190: 55.34 | CD190: =+AT190 -> 108.58 | CE190: 66.3 | CF190: =+AW190 -> 108.58 | CG190: 2.39 | CH190: =+AZ190 -> 108.58 | CI190: -49.82 | CK190: (ni podpore 2011/2) | CL190: (ni podpore 2011/2) | CM190: (ni podpore 2011/2) | CN190: (ni podpore 2011/2) | CO190: (ni podpore 2013) | CP190: (ni podpore 2013) | CQ190: 0 | CR190: 3.22 | CS190: 0 | CT190: 2.43 | CU190: =BV190-BT190 -> 0 | CV190: -4.45 | CW190: =BX190-BV190 -> 0 | CX190: -0.31 | CY190: =BZ190-BX190 -> 0 | CZ190: -19.11 | DA190: =CB190-BZ190 -> 0 | DB190: 3.09 | DC190: =CD190-CB190 -> 0 | DD190: 10.96 | DE190: =CF190-CD190 -> 0 | DF190: -63.91 | DG190: =CH190-CF190 -> 0 | DH190: -52.21
A191: SE12-2014apr | B191: 3.1 Sončne elektrarne - na stavbah 2014 april | D191: mala - manjše od 1MW | E191: SE12 | W191: 99.3 | X191: 0 | Y191: 99.3 | Z191: 99.3 | AA191: 0 | AB191: 99.3 | AC191: 99.3 | AD191: 0 | AE191: 99.3 | AF191: 99.3 | AG191: 0 | AH191: 99.3 | AI191: 99.3 | AJ191: 0 | AK191: 99.3 | AL191: 99.3 | AM191: 0 | AN191: 99.3 | AO191: 99.3 | AP191: 0 | AQ191: 99.3 | AR191: 99.3 | AS191: 0 | AT191: 99.3 | AU191: 99.3 | AV191: 0 | AW191: 99.3 | AX191: 99.3 | AY191: 0 | AZ191: 99.3 | BA191: 0.88 | BP191: =W191+X191 -> 99.3 | BQ191: 61.19 | BR191: =+Z191+AA191 -> 99.3 | BS191: 64.41 | BT191: =+AC191+AD191 -> 99.3 | BU191: 66.84 | BV191: =+AH191 -> 99.3 | BW191: 62.39 | BX191: =+AK191 -> 99.3 | BY191: 62.08 | BZ191: =+AN191 -> 99.3 | CA191: 42.97 | CB191: =+AQ191 -> 99.3 | CC191: 46.06 | CD191: =+AT191 -> 99.3 | CE191: 57.02 | CF191: =+AW191 -> 99.3 | CG191: -6.89 | CH191: 99.3 | CI191: -59.1 | CK191: (ni podpore 2011/2) | CL191: (ni podpore 2011/2) | CM191: (ni podpore 2011/2) | CN191: (ni podpore 2011/2) | CO191: (ni podpore 2013) | CP191: (ni podpore 2013) | CQ191: 0 | CR191: 3.22 | CS191: 0 | CT191: 2.43 | CU191: 0 | CV191: -4.45 | CW191: 0 | CX191: -0.31 | CY191: 0 | CZ191: -19.11 | DA191: 0 | DB191: 3.09 | DC191: 0 | DD191: 10.96 | DE191: 0 | DF191: -63.91 | DG191: 0 | DH191: -52.21
A192: SE13-2014apr | B192: 3.1 Sončne elektrarne - na stavbah 2014 april | D192: srednja - od 1MW do vključno 10MW | E192: SE13 | W192: 82.39 | X192: 0 | Y192: 82.39 | Z192: 82.39 | AA192: 0 | AB192: 82.39 | AC192: 82.39 | AD192: 0 | AE192: 82.39 | AF192: 82.39 | AG192: 0 | AH192: 82.39 | AI192: 82.39 | AJ192: 0 | AK192: 82.39 | AL192: 82.39 | AM192: 0 | AN192: 82.39 | AO192: 82.39 | AP192: 0 | AQ192: 82.39 | AR192: 82.39 | AS192: 0 | AT192: 82.39 | AU192: 82.39 | AV192: 0 | AW192: 82.39 | AX192: 82.39 | AY192: 0 | AZ192: 82.39 | BA192: 0.91 | BP192: =W192+X192 -> 82.39 | BQ192: 42.98 | BR192: =+Z192+AA192 -> 82.39 | BS192: 46.31 | BT192: =+AC192+AD192 -> 82.39 | BU192: 48.82 | BV192: =+AH192 -> 82.39 | BW192: 44.22 | BX192: =+AK192 -> 82.39 | BY192: 43.9 | BZ192: =+AN192 -> 82.39 | CA192: 24.14 | CB192: =+AQ192 -> 82.39 | CC192: 27.34 | CD192: =+AT192 -> 82.39 | CE192: 38.67 | CF192: =+AW192 -> 82.39 | CG192: -27.42 | CH192: 82.39 | CI192: -81.41 | CK192: (ni podpore 2011/2) | CL192: (ni podpore 2011/2) | CM192: (ni podpore 2011/2) | CN192: (ni podpore 2011/2) | CO192: (ni podpore 2013) | CP192: (ni podpore 2013) | CQ192: 0 | CR192: 3.33 | CS192: 0 | CT192: 2.51 | CU192: 0 | CV192: -4.6 | CW192: 0 | CX192: -0.32 | CY192: 0 | CZ192: -19.76 | DA192: 0 | DB192: 3.2 | DC192: 0 | DD192: 11.33 | DE192: 0 | DF192: -66.09 | DG192: 0 | DH192: -53.99
A193: SE14-2014apr | B193: 3.1 Sončne elektrarne - na stavbah 2014 april | D193: velika - nad 10MW do vključno 125MW | E193: SE14 | W193: 73.33 | X193: 0 | Y193: 73.33 | Z193: 73.33 | AA193: 0 | AB193: 73.33 | AC193: 73.33 | AD193: 0 | AE193: 73.33 | AF193: 73.33 | AG193: 0 | AH193: 73.33 | AI193: 73.33 | AJ193: 0 | AK193: 73.33 | AL193: 73.33 | AM193: 0 | AN193: 73.33 | AO193: 73.33 | AP193: 0 | AQ193: 73.33 | AR193: 73.33 | AS193: 0 | AT193: 73.33 | AU193: 73.33 | AV193: 0 | AW193: 73.33 | AX193: 73.33 | AY193: 0 | AZ193: 73.33 | BA193: 1 | BP193: (ni ZO) | BQ193: 30.02 | BR193: (ni ZO) | BS193: 33.68 | BT193: (ni ZO) | BU193: 36.44 | BV193: (ni ZO) | BW193: 31.39 | BX193: (ni ZO) | BY193: 31.03 | BZ193: (ni ZO) | CA193: 9.32 | CB193: (ni ZO) | CC193: 12.83 | CD193: (ni ZO) | CE193: 25.29 | CF193: (ni ZO) | CG193: -47.34 | CH193: (ni ZO) | CI193: -106.67 | CK193: (ni podpore 2011/2) | CL193: (ni podpore 2011/2) | CM193: (ni podpore 2011/2) | CN193: (ni podpore 2011/2) | CO193: (ni podpore 2013) | CP193: (ni podpore 2013) | CQ193: (ni ZO) | CR193: 3.66 | CS193: (ni ZO) | CT193: 2.76 | CU193: (ni ZO) | CV193: -5.05 | CW193: (ni ZO) | CX193: -0.36 | CY193: (ni ZO) | CZ193: -21.71 | DA193: (ni ZO) | DB193: 3.51 | DC193: (ni ZO) | DD193: 12.46 | DE193: (ni ZO) | DF193: -72.63 | DG193: (ni ZO) | DH193: -59.33
A194: SE21-2014apr | B194: 3.2 Sončne elektrarne - ostale 2014 april | D194: mikro - manjše od 50kW | E194: SE21 | W194: 102.02 | X194: 0 | Y194: 102.02 | Z194: =+W194 -> 102.02 | AA194: =+X194 -> 0 | AB194: =+Z194+AA194 -> 102.02 | AC194: 102.02 | AD194: 0 | AE194: 102.02 | AF194: 102.02 | AG194: 0 | AH194: 102.02 | AI194: 102.02 | AJ194: 0 | AK194: 102.02 | AL194: 102.02 | AM194: 0 | AN194: 102.02 | AO194: 102.02 | AP194: 0 | AQ194: 102.02 | AR194: 102.02 | AS194: 0 | AT194: 102.02 | AU194: 102.02 | AV194: 0 | AW194: 102.02 | AX194: 102.02 | AY194: 0 | AZ194: 102.02 | BA194: 0.88 | BP194: =W194+X194 -> 102.02 | BQ194: =ROUND((W194+X194)-BA194*$N$326,2) -> 63.91 | BR194: =+Z194+AA194 -> 102.02 | BS194: =ROUND((Z194+AA194)-BA194*$M$326,2) -> 67.13 | BT194: =+AC194+AD194 -> 102.02 | BU194: =ROUND((AC194+AD194)-BA194*$L$326,2) -> 69.56 | BV194: =+AH194 -> 102.02 | BW194: =ROUND(AH194-BA194*$K$326,2) -> 65.11 | BX194: =+AK194 -> 102.02 | BY194: =ROUND(AK194-BA194*$J$326,2) -> 64.8 | BZ194: =+AN194 -> 102.02 | CA194: =ROUND(AN194-BA194*$I$326,2) -> 45.69 | CB194: =+AQ194 -> 102.02 | CC194: =ROUND(AQ194-BA194*$H$326,2) -> 48.78 | CD194: =+AT194 -> 102.02 | CE194: =ROUND(AT194-BA194*$G$326,2) -> 59.74 | CF194: =+AW194 -> 102.02 | CG194: =ROUND(AW194-BA194*$F$326,2) -> -4.17 | CH194: =+AZ194 -> 102.02 | CI194: -56.38 | CK194: (ni podpore 2011/2) | CL194: (ni podpore 2011/2) | CM194: (ni podpore 2011/2) | CN194: (ni podpore 2011/2) | CO194: (ni podpore 2013) | CP194: (ni podpore 2013) | CQ194: 0 | CR194: 3.22 | CS194: =BT194-BR194 -> 0 | CT194: =BU194-BS194 -> 2.43 | CU194: =BV194-BT194 -> 0 | CV194: =BW194-BU194 -> -4.45 | CW194: =BX194-BV194 -> 0 | CX194: =BY194-BW194 -> -0.31 | CY194: =BZ194-BX194 -> 0 | CZ194: =CA194-BY194 -> -19.11 | DA194: =CB194-BZ194 -> 0 | DB194: =CC194-CA194 -> 3.09 | DC194: =CD194-CB194 -> 0 | DD194: =CE194-CC194 -> 10.96 | DE194: =CF194-CD194 -> 0 | DF194: =CG194-CE194 -> -63.91 | DG194: =CH194-CF194 -> 0 | DH194: =CI194-CG194 -> -52.21
A195: SE22-2014apr | B195: 3.2 Sončne elektrarne - ostale 2014 april | D195: mala - manjše od 1MW | E195: SE22 | W195: 93.98 | X195: 0 | Y195: 93.98 | Z195: 93.98 | AA195: 0 | AB195: 93.98 | AC195: =+Z195 -> 93.98 | AD195: =+AA195 -> 0 | AE195: =+AC195+AD195 -> 93.98 | AF195: =+AC195 -> 93.98 | AG195: =+AD195 -> 0 | AH195: =+AF195+AG195 -> 93.98 | AI195: =+AF195 -> 93.98 | AJ195: =+AG195 -> 0 | AK195: =+AI195+AJ195 -> 93.98 | AL195: =+AI195 -> 93.98 | AM195: =+AJ195 -> 0 | AN195: =+AL195+AM195 -> 93.98 | AO195: =+AL195 -> 93.98 | AP195: =+AM195 -> 0 | AQ195: =+AO195+AP195 -> 93.98 | AR195: =+AO195 -> 93.98 | AS195: =+AP195 -> 0 | AT195: =+AR195+AS195 -> 93.98 | AU195: =+AR195 -> 93.98 | AV195: =+AS195 -> 0 | AW195: =+AU195+AV195 -> 93.98 | AX195: =+AU195 -> 93.98 | AY195: =+AV195 -> 0 | AZ195: =+AX195+AY195 -> 93.98 | BA195: 0.88 | BP195: =W195+X195 -> 93.98 | BQ195: 55.87 | BR195: =+Z195+AA195 -> 93.98 | BS195: 59.09 | BT195: =+AC195+AD195 -> 93.98 | BU195: 61.52 | BV195: =+AH195 -> 93.98 | BW195: 57.07 | BX195: =+AK195 -> 93.98 | BY195: 56.76 | BZ195: =+AN195 -> 93.98 | CA195: 37.65 | CB195: =+AQ195 -> 93.98 | CC195: 40.74 | CD195: =+AT195 -> 93.98 | CE195: 51.7 | CF195: =+AW195 -> 93.98 | CG195: -12.21 | CH195: 93.98 | CI195: -64.42 | CK195: (ni podpore 2011/2) | CL195: (ni podpore 2011/2) | CM195: (ni podpore 2011/2) | CN195: (ni podpore 2011/2) | CO195: (ni podpore 2013) | CP195: (ni podpore 2013) | CQ195: =BR195-BP195 -> 0 | CR195: =BS195-BQ195 -> 3.22 | CS195: 0 | CT195: 2.43 | CU195: 0 | CV195: -4.45 | CW195: 0 | CX195: -0.31 | CY195: 0 | CZ195: -19.11 | DA195: 0 | DB195: 3.09 | DC195: 0 | DD195: 10.96 | DE195: 0 | DF195: -63.91 | DG195: 0 | DH195: -52.21
A196: SE23-2014apr | B196: 3.2 Sončne elektrarne - ostale 2014 april | D196: srednja - od 1MW do vključno 10MW | E196: SE23 | W196: 75.77 | X196: 0 | Y196: 75.77 | Z196: 75.77 | AA196: 0 | AB196: 75.77 | AC196: 75.77 | AD196: 0 | AE196: 75.77 | AF196: 75.77 | AG196: 0 | AH196: 75.77 | AI196: 75.77 | AJ196: 0 | AK196: 75.77 | AL196: 75.77 | AM196: 0 | AN196: 75.77 | AO196: 75.77 | AP196: 0 | AQ196: 75.77 | AR196: 75.77 | AS196: 0 | AT196: 75.77 | AU196: 75.77 | AV196: 0 | AW196: 75.77 | AX196: 75.77 | AY196: 0 | AZ196: 75.77 | BA196: 0.91 | BP196: =W196+X196 -> 75.77 | BQ196: 36.36 | BR196: =+Z196+AA196 -> 75.77 | BS196: 39.69 | BT196: =+AC196+AD196 -> 75.77 | BU196: 42.2 | BV196: =+AH196 -> 75.77 | BW196: 37.6 | BX196: =+AK196 -> 75.77 | BY196: 37.28 | BZ196: =+AN196 -> 75.77 | CA196: 17.52 | CB196: =+AQ196 -> 75.77 | CC196: 20.72 | CD196: =+AT196 -> 75.77 | CE196: 32.05 | CF196: =+AW196 -> 75.77 | CG196: -34.04 | CH196: 75.77 | CI196: -88.03 | CK196: (ni podpore 2011/2) | CL196: (ni podpore 2011/2) | CM196: (ni podpore 2011/2) | CN196: (ni podpore 2011/2) | CO196: (ni podpore 2013) | CP196: (ni podpore 2013) | CQ196: 0 | CR196: 3.33 | CS196: 0 | CT196: 2.51 | CU196: 0 | CV196: -4.6 | CW196: 0 | CX196: -0.32 | CY196: 0 | CZ196: -19.76 | DA196: 0 | DB196: 3.2 | DC196: 0 | DD196: 11.33 | DE196: 0 | DF196: -66.09 | DG196: 0 | DH196: -53.99
